Workbook

Sheet Anleitung
A1: Sehr geehrte Landwirtin, sehr geehrter Landwirt,
A2: den zunehmenden Anforderungen an die Biokontrolle- und Zertifizierung werden die bisher verwendeten Word-Dokumente nicht mehr gerecht . Daher haben wir dieses Dokument entwickelt, um sicher zu stellen, dass Ihr Betrieb und wir den aktuellen Qualitätsansprüchen einer Biokontrolle entsprechen. Bitte lesen Sie sich diese Anleitung sorgfältig durch, um die Berechnungstabellen für die Tierarten, die auf Ihrem Betrieb gehalten werden, auch richtig ausfüllen zu können. Im Grunde sind die Tabellen selbsterklärend und daher auch einfach auszufüllen. Gutes Gelingen beim Ausfüllen der Tabellen und bei Fragen steht Ihnen Ihr Ansprechpartner in Ihrem Regioteam gerne zur Verfügung.
A3: Inhaltsverzeichnis
A4: Kapitel | C4: Beschreibung | D4: Anzahl Druckseiten
A5: 1. Maßnahmen | C5: link | D5: 3
A6: 2. Rinder | C6: link | D6: max. 4
A7: 3. Pferde u. kl. Widerkäuer | C7: link | D7: max. 2
A8: 4. Schweine | C8: link | D8: max. 3
A9: 5. Kaninchen | C9: link | D9: max. 3
A10: 6. Geweihträger | C10: link | D10: max. 3
A11: 7. Legehennen | C11: link | D11: 2
A12: 8. Junghennen-Bruderhähne | C12: link | D12: 2
A13: 9. Masthähnchen | C13: link | D13: 2
A14: 10. Mastputen | C14: link | D14: 2
A15: 11. sonst. Mastgeflügel | C15: link | D15: 2
A17: 1. <OSP-Tier-Maßnahmen> Fangen Sie mit dem Ausfüllen dieser Registerkarte an. Nachdem Sie die abgefragten Basisdaten in die dafür vorgesehenen Felder eingetragen haben, wählen Sie bitte die von Ihnen gehaltene Tierart aus. Daraufhin öffnet sich das entsprechende Stalldatenblatt in einem eigenen Register. Anschließend tragen Sie bitte in die Tabelle 1) die von Ihnen eingesetzten Futtermittel ein. Falls die Tabelle nicht ausreicht, können Sie auch auf einen Anhang verweisen, in dem die Futtermittel vollständig aufgeführt sind. 2) Zucht: hier können Sie in dem Dropdown-Menü die auf Ihrem Betrieb hauptsächlich eingesetzte Zuchtmethode auswählen:
A24: Im darunter liegenden Kommentarfeld tragen Sie bitte noch nähere Erläuterungen ein, sofern notwendig. Z.B. wenn Sie bei Ihrer Mutterkuhherde Natursprung als Zuchtmethode einsetzen, bei den Zuchtschweinen aber künstliche Besamung, dann trage Sie eine solche Differenzierung bitte im Kommentarfeld ein.
A25: 3) und 4): bitte tragen Sie hier die jeweiligen angefragten Angaben ein.
A26: 5) Damit der Stickstoffanfall je ha Dungfläche richtig berechnet werden kann tragen Sie im Feld ha
A29: bitte die ha-Zahl der von Ihnen laut amtlichem FNN bewirtschafteten DUNGfläche ein. Die Größe der von Ihnen bewirtschfteten Flächen, auf denen kein Wirtschaftsdünger ausgebracht werden darf, muss von der auf dem FNN angegebenen Gesamtfläche abgezogen werden. Und dieser Betrag wird in dem oben gezeigten Feld eingetragen.
A30: Die weiteren Eingabefelder beantworten Sie bitte gemäß der Fragestellung bzw. der jeweiligen Spaltenüberschrift
A32: 2. Stalldatenblatt Rinder
A33: In der Registerkarte <Rinder> finden Sie die Eingabetabelle für vier verschiedene Ställe. Falls Sie mehr Rinderställe bewirtschaften, melden Sie sich bitte bei uns, wir fügen dann weitere Ställe hinzu. Bitte verwenden Sie für jeden von Ihnen genutzten Stall eine eigene Tabellenvorlage. Bitte wählen Sie zunächst aus, ob es sich bei dem genutzten Stall bezüglich der Haltung von Milchkühen um einen Laufstall oder Anbindestall handelt.:
A40: Bitte stellen Sie in der Spalte <Box-nummer(n) lt. Stall-plan> einen Bezug zum Stallplan her, so dass nachvollzogen werden kann, in welcher Box die Tiere welcher Tiergruppe stehen. Falls Tiere einer Tiergruppe in mehreren Boxen in einem Stall aufgestallt sind, dann können in der Spalte auch all diese Boxen aufgeführt werden. Bleibt dieses Feld leer, bleibt die max. erlaubte Tierzahl immer 0. Dieses Feld muss also unbedingt ausgefüllt werden!
A53: Alle weiteren gelb hinterlegten Felder füllen Sie bitte entsprechend der Anfrage in der Spaltenüberschrift für die jeweilige Tiergruppe aus. Wenn in der Spalte <Boxennummer(n) …> mehrere Boxen aufgeführt sind, tragen Sie in die Spalten die jeweilige Summe ein.
A54: In der Zeile <Geprüfte Maßangaben> müssen Sie nichts eintragen. Das Feld ist vom Inspektor auszufüllen.
A55: Falls auf Ihrem Betrieb für die Tierhaltung Ausnahmegenehmigungen bestehen, dann tragen Sie diese bitte in das Feld <Anmerkungen / best. ANG´s> ein:
A59: 3. Kleine Widerkäuer / Pferde
A60: In der Registerkarte <Equiden_kl Widerkäuer> finden Sie die Eingabetabelle für vier verschiedene Ställe. Falls Sie mehr Ställe für Tiere in dieser Kategorie bewirtschaften, melden Sie sich bitte bei uns, wir fügen dann weitere Ställe hinzu. Bitte verwenden Sie für jeden von Ihnen genutzten Stall eine eigene Tabellenvorlage.
A61: Bitte stellen Sie in der Spalte <Box-nummer(n) lt. Stall-plan> einen Bezug zum Stallplan her, so dass nachvollzogen werden kann, in welcher Box die Tiere welcher Tiergruppe stehen. Falls Tiere einer Tiergruppe in mehreren Boxen in einem Stall aufgestallt sind, dann können in der Spalte auch all diese Boxen aufgeführt werden. Bleibt dieses Feld leer, bleibt die max. erlaubte Tierzahl immer 0. Dieses Feld muss also unbedingt ausgefüllt werden!
A62: Alle weiteren gelb hinterlegten Felder füllen Sie bitte entsprechend der Anfrage in der Spaltenüberschrift für die jeweilige Tiergruppe aus. Wenn in der Spalte <Boxennummer(n) …> mehrere Boxen aufgeführt sind, tragen Sie in die Spalten die jeweilige Summe ein.
A63: In der Zeile <Geprüfte Maßangaben> müssen Sie nichts eintragen. Das Feld ist vom Inspektor auszufüllen.
A64: Falls auf Ihrem Betrieb für die Tierhaltung Ausnahmegenehmigungen bestehen, dann tragen Sie diese bitte in das Feld <Anmerkungen / best. ANG´s> ein:
A68: 4. Schweine
A69: In der Registerkarte <Schweine> finden Sie die Eingabetabelle für fünf verschiedene Ställe. Falls Sie mehr Ställe für Tiere in dieser Kategorie bewirtschaften, melden Sie sich bitte bei uns, wir fügen dann weitere Ställe hinzu. Bitte verwenden Sie für jeden von Ihnen genutzten Stall eine eigene Tabellenvorlage.
A70: Bitte stellen Sie in der Spalte <Box-nummer(n) lt. Stall-plan> einen Bezug zum Stallplan her, so dass nachvollzogen werden kann, in welcher Box die Tiere welcher Tiergruppe stehen. Falls Tiere einer Tiergruppe in mehreren Boxen in einem Stall aufgestallt sind, dann können in der Spalte auch all diese Boxen aufgeführt werden. Bleibt dieses Feld leer, bleibt die max. erlaubte Tierzahl immer 0. Dieses Feld muss also unbedingt ausgefüllt werden!
A71: Alle weiteren gelb hinterlegten Felder füllen Sie bitte entsprechend der Anfrage in der Spaltenüberschrift für die jeweilige Tiergruppe aus. Wenn in der Spalte <Boxennummer(n) …> mehrere Boxen aufgeführt sind, tragen Sie in die Spalten die jeweilige Summe ein.
A72: In der Zeile <Geprüfte Maßangaben> müssen Sie nichts eintragen, das Feld ist vom Inspektor auszufüllen.
A73: Falls auf Ihrem Betrieb für die Tierhaltung Ausnahmegenehmigungen bestehen, dann tragen Sie diese bitte in das Feld <Anmerkungen / best. ANG´s> ein:
A77: 6. Kaninchen
A78: Bitte je Stall ein Blatt ausfüllen. Damit beginnen, auszuwählen, ob es sich um einen festen oder mobilen Stall handelt. Dann alle weiteren gelb hinterlegten Felder entsprechend der gehaltenen Tiergruppen ausfüllen.
A86: 7. Geweihträger
A87: Bitte je Gehege ein Blatt ausfüllen. Alle weiteren gelb hinterlegten Felder entsprechend der gehaltenen Tiergruppen ausfüllen.
A100: 8. Legehennen
A101: Je Stall, der von Ihnen für die Haltung von Legehennen genutzt wird, existiert in dem Register <LH> eine Zeile:
D108: Alle gelb hinterlegten Zellen in einer Zeile müssen ausgefüllt werden, damit die Tabelle ein Ergebnis errechnen kann.
A113: Falls Sie in Ihren Ställen runde Futter- oder Tränkeeinrichtungen einsetzen, dann können Sie die Randlängen der runden Futtereinrichtunge, die hier eingetragen werden müssen
A122: über die Registerkarte <Randlängen-Rund> einfach ermitteln, in dem Sie dort bei dem jeweiligen Stall die Anzahl der genutzten Einrichtungen sowie deren jeweiligen Durchmesser eingeben:
A140: Die Tabelle errechnet dann automatisch die Gesamt-Randlänge aller von Ihnen genutzten runden Futter- bzw. Tränkeeinrichtungen und überträgt die Zahl in die Haupttabelle <LH>.
A141: 9. Junghennen-Bruderhähne
A142: Je Stall, der von Ihnen für die Haltung von Junghennen / Bruderhähnen genutzt wird, existiert in dem Register <Junghenne-Bruderhähne> eine Zeile:
A151: Bitte beachten Sie bei der Dateneingabe, dass unterschieden wird zwischen Festen Ställen und beweglichen Ställen, da hierfür ggf. andere gesetzliche Vorgaben existieren:
D157: Alle gelb hinterlegten Zellen in einer Zeile müssen ausgefüllt werden, damit die Tabelle ein Ergebnis errechnen kann.
A163: Falls Sie in Ihren Ställen runde Futter- oder Tränkeeinrichtungen einsetzen, dann können Sie die Randlängen der runden Futtereinrichtunge, die hier eingetragen werden müssen
A171: über die Registerkarte <Randlängen-Rund> einfach ermitteln, in dem Sie dort bei dem jeweiligen Stall die Anzahl der genutzten Einrichtungen sowie deren jeweiligen Durchmesser eingeben:
A181: Die Tabelle errechnet dann automatisch die Gesamt-Randlänge aller von Ihnen genutzten runden Futter- bzw. Tränkeeinrichtungen und überträgt die Zahl in die Haupttabelle <Junghenne-Bruderhähne>.
A182: 7. Masthähnchen
A183: Je Stall, der von Ihnen für die Haltung von Masthähnchen bzw. Kapaunen und Poularden genutzt wird, existiert in dem Register <Masthähnchen> eine Zeile. Beginnend mit der Liste der Ställe für Masthähnchen gefolgt von den Tabellen für Kapaune und Poularden.
A192: Bitte beachten Sie bei der Dateneingabe, dass unterschieden wird zwischen Festen Ställen und beweglichen Ställen, da hierfür jeweils andere gesetzliche Vorgaben existieren:
D198: Alle gelb hinterlegten Zellen in einer Zeile müssen ausgefüllt werden, damit die Tabelle ein Ergebnis errechnen kann.
A204: Falls Sie in Ihren Ställen runde Futter- oder Tränkeeinrichtungen einsetzen, dann können Sie die Randlängen der runden Futtereinrichtungen, die hier eingetragen werden müssen
A212: über die Registerkarte <Randlängen-Rund> einfach ermitteln, in dem Sie dort bei dem jeweiligen Stall die Anzahl der genutzten Einrichtungen sowie deren jeweiligen Durchmesser eingeben:
A222: Die Tabelle errechnet dann automatisch die Gesamt-Randlänge aller von Ihnen genutzten runden Futter- bzw. Tränkeeinrichtungen und überträgt die Zahl in die Haupttabelle <Mast-H>.
A223: 8. Mast-Puten
A224: Je Stall, der von Ihnen für die Haltung von Mastputen genutzt wird, existiert in dem Register <M-Puten> eine Zeile:
A236: Bitte beachten Sie bei der Dateneingabe, dass unterschieden wird zwischen Festen Ställen und beweglichen Ställen, da hierfür jeweils andere gesetzliche Vorgaben existieren:
D240: Alle gelb hinterlegten Zellen in einer Zeile müssen ausgefüllt werden, damit die Tabelle ein Ergebnis errechnen kann.
A244: Falls Sie in Ihren Ställen runde Futter- oder Tränkeeinrichtungen einsetzen, dann können Sie die Randlängen der runden Futtereinrichtunge, die hier eingetragen werden müssen
A254: über die Registerkarte <Randlängen-Rund> einfach ermitteln, in dem Sie dort bei dem jeweiligen Stall die Anzahl der genutzten Einrichtungen sowie deren jeweiligen Durchmesser eingeben:
A264: Die Tabelle errechnet dann automatisch die Gesamt-Randlänge aller von Ihnen genutzten runden Futter- bzw. Tränkeeinrichtungen und überträgt die Zahl in die Haupttabelle <M-Puten>.
A265: 9. sonstiges Mastgeflügel: Enten, Gänse, Perlhühner
A266: Je Stall, der von Ihnen für die Haltung von Enten, Gänsen oder Perlhühnern genutzt wird, existiert in dem Register <M-Gefl-sonst> eine Zeile und jeweils 4 Zeilen je Tierart:
C274: Alle gelb hinterlegten Zellen in einer Zeile müssen ausgefüllt werden, damit die Tabelle ein Ergebnis errechnen kann.
A283: Falls Sie in Ihren Ställen runde Futter- oder Tränkeeinrichtungen einsetzen, dann können Sie die Randlängen der runden Futtereinrichtunge, die hier eingetragen werden müssen
A293: über die Registerkarte <Randlängen-Rund> einfach ermitteln, in dem Sie dort bei dem jeweiligen Stall die Anzahl der genutzten Einrichtungen sowie deren jeweiligen Durchmesser eingeben:
A304: Die Tabelle errechnet dann automatisch die Gesamt-Randlänge aller von Ihnen genutzten runden Futter- bzw. Tränkeeinrichtungen und überträgt die Zahl in die Haupttabelle <M-Gefl-sonst>.

Sheet OSP-Tier-Maßnahmen
B1: Betrieb (Name, ggf. Vorname)
B2: Öko-Kontrollnummer
A3: Tierart(en) | H3: Bitte das jeweilige Stalldatenblatt vollständig ausfüllen!
A6: A) Bewirtschaftungsplan
A7: 1) Fütterung
A8: Tierart | B8: hofeigene Futtermittel | C8: Status | D8: Menge | E8: Einheit | F8: Zukaufsfuttermittel | G8: Status | H8: Menge | I8: Einheit
A22: 2) Zucht | B22: Tierart | C22: Zuchtart
A27: Kommentar:
A31: 3) Tiergesundheit (Maßnahmen zur Krankheitsvorsorge, Identifizierung von Problembereichen, u. ä.):
A41: 4) Tierhaltung (Stallbauvorhaben, Auslauf, Freiflächen, sonstige Maßnahmen):
A51: 5) Haltung von Pensionstieren
A52: Tierart | D52: Anzahl von Tieren
A54: Beweidete Flächen
A56: Genutzte Stalleinrichtungen
A58: 6) Stickstoffanfall je Hektar ökologischer landwirtschaftlicher Nutzfläche aus eigenen Wirtschaftsdüngern über alle Tierarten (entspricht 170 kg N pro ha und Jahr gem. VO (EU) 2018/848 Anh II Teil II 1.6.6):
C59: Bewirtschaftete Dungfläche lt. amtlichem FNN: | E59: ha | F59: Gesamt GV lt. FNN
C60: Gesamt N über alle Tierarten: | D60: =G59*170 -> 0 | E60: kg
C61: kg N je ha | D61: =IF(D59=0,0,D60/D59) -> 0 | E61: kg N je ha Dungfläche
A62: Fazit: | B62: =IF(D59=0,"",IF(D61<=170,CONCATENATE("Zulässige Höchstmenge von 170 kg N je ha Dungfläche eingehalten."),CONCATENATE("ACHTUNG!! Zulässige Höchstmenge von ",Berechnungstabellen!L2," kg N je ha Dungfläche überschritten! - Bitte im Folgenden Maßnahmen beschreiben, die dazu führen, den zulässigen Höchstwert von ",Berechnungstabellen!L2," kg N je ha Dungfläche einzuhalten."))) -> 
A66: B) Ausbringplan
A67: Auf meinem Betrieb fallen im Jahr folgende Mengen an Wirtschaftsdünger an:
A68: Düngerart | C68: Menge | D68: Einheit | E68: Stickstoff (kg N) je Einheit | F68: Stickstoff ges.
F69: =C69*E69 -> 0
F70: =C70*E70 -> 0
F71: 0
F72: =C72*E72 -> 0
F73: =C73*E73 -> 0
F74: =C74*E74 -> 0
E75: Stickstoff Wirtschaftsdünger ges.: | F75: =SUM(F69:F74) -> 0
A77: Die Düngermenge wird wie folgt auf eigene biologisch bewirtschaftete Fläche verteilt: (Bsp.: Festmist x dt pro ha vor Weizen im Monat y / Gülle x m³ pro ha nach jedem Schnitt)
A83: Soweit zutreffend bitte ankreuzen:
A84: Die schriftlichen Vereinbarungen mit anderen Landwirten über die Dungabgabe sind in der Anlage beigefügt.
A86: Dieser Plan ist Bestandteil der Betriebsbeschreibung (Maßnahmen). Eine Zweitschrift verbleibt auf dem Betrieb und wird bei der jährlichen Kontrolle bereitgehalten. Änderungen werden eingetragen und der Kontrollstelle mitgeteilt.
A89: _______________________________ | C89: ________________________________
A90: Ort, Datum | C90: Unterschrift
A92: genehmigt: | B92: ________________________________
B93: Datum, Unterschrift der Kontrollstelle

Sheet Rinder
A1: Ermittlung der maximalen Tierzahl, die gem. EU VO 2018/848 sowie 2020-464 Anhang I je Stallblatt gehalten werden darf | S1: Rinder
A2: Stallblatt | B2: 1 | C2: Stallname (bei mehreren Ställen bzw. bei Anbinde- UND Laufstallhaltung f. Rinder > 2 Jahre in einem Stall: Je Stall bzw. Haltungsform ist das Formular jew. separat auszufüllen): | P2: Baujahr:
A3: Laufstall | C3: Stallgebäude | L3: Außenfläche (muss planbefestigt sein!) | U3: Zum Abgleich Eingabe Ecert mit HITier Tagesbestand
A4: Anbindehaltung | E4: Stallfläche | I4: Stallboden | N4: Außenfläche | Q4: Überdachung
C5: Min. m²/Tier | D5: Box-nummer(n) lt. Stall-plan | E5: Stall-fläche m² | F5: max. Tierzahl Stallfläche | G5: Anzahl Liege-plätze | H5: davon Spaltenboden / perforiert m² | I5: in % | J5: max. Tierzahl Stallboden | K5: Belegung aktuell | L5: Min. m²/Tier | M5: Zugang Sommer-weide möglich (Mai-Okt.) | N5: Außen-fläche m² | O5: max. Tierzahl Außen-flächen | P5: Über-dachung m2 | Q5: Über-dachung % | R5: max. Tierzahl Über-dachung | S5: Max. Tier-zahl | U5: Tierzahl ges. über alle Ställe
A6: Tiergruppe | H6: max. | I6: 0.5 | P6: max. | Q6: 0.5 | V6: Max Tierzahl ges. | W6: Gehaltene Tiere
A7: Kälber <1 Jahr <100kg | C7: 1.5 | F7: =ROUNDDOWN(E7/C7,0) -> 0 | I7: =IF(ISERROR(H7/E7),0,H7/E7) -> 0 | J7: =IF(H7=0,F7,IF(ROUNDDOWN(E7/C7/(H7/(E7/2)),0)<(E7/C7),ROUNDDOWN(E7/C7/(H7/(E7/2)),0),ROUNDDOWN(E7/C7,0))) -> 0 | L7: 1.1 | O7: =IF(M7="JA",MIN(F7,J7),ROUNDDOWN(N7/L7,0)) -> 0 | Q7: =IF(N7=0,0,P7/N7) -> 0 | R7: =IF(M7="JA",O7,IF(N7=0,0,IF(ROUNDDOWN((O7+(O7*-((P7-(N7*Q$6))/(N7-(N7*Q$6))))),0)>O7,O7,(ROUNDDOWN((O7+(O7*-((P7-(N7*Q$6))/(N7-(N7*Q$6))))),0))))) -> 0 | S7: =Berechnungstabellen!I4 -> 0 | U7: =A7 -> Kälber <1 Jahr <100kg | V7: =Berechnungstabellen!J4 -> 0 | W7: =K7+K27+K47+K67 -> 0
A8: Kälber <1 Jahr <200kg | C8: 2.5 | F8: =ROUNDDOWN(E8/C8,0) -> 0 | I8: =IF(ISERROR(H8/E8),0,H8/E8) -> 0 | J8: =IF(H8=0,F8,IF(ROUNDDOWN(E8/C8/(H8/(E8/2)),0)<(E8/C8),ROUNDDOWN(E8/C8/(H8/(E8/2)),0),ROUNDDOWN(E8/C8,0))) -> 0 | L8: 1.9 | O8: =IF(M8="JA",MIN(F8,J8),ROUNDDOWN(N8/L8,0)) -> 0 | Q8: =IF(N8=0,0,P8/N8) -> 0 | R8: =IF(M8="JA",O8,IF(N8=0,0,IF(ROUNDDOWN((O8+(O8*-((P8-(N8*Q$6))/(N8-(N8*Q$6))))),0)>O8,O8,(ROUNDDOWN((O8+(O8*-((P8-(N8*Q$6))/(N8-(N8*Q$6))))),0))))) -> 0 | S8: =Berechnungstabellen!I5 -> 0 | U8: =A8 -> Kälber <1 Jahr <200kg | V8: =Berechnungstabellen!J5 -> 0 | W8: =K8+K28+K48+K68 -> 0
A9: Rinder 1-2 Jahr <350kg | C9: 4 | F9: =ROUNDDOWN(E9/C9,0) -> 0 | I9: =IF(ISERROR(H9/E9),0,H9/E9) -> 0 | J9: 0 | L9: 3 | O9: 0 | Q9: =IF(N9=0,0,P9/N9) -> 0 | R9: 0 | S9: =Berechnungstabellen!I6 -> 0 | U9: =A9 -> Rinder 1-2 Jahr <350kg | V9: =Berechnungstabellen!J6 -> 0 | W9: 0
A11: Milchkühe | C11: 6 | F11: =IF(B4="JA",G11,ROUNDDOWN(E11/C11,0)) -> 0 | I11: =IF(ISERROR(H11/E11),0,H11/E11) -> 0 | J11: 0 | L11: 4.5 | O11: =IF($B$4="JA",IF(M11="JA",G11,ROUNDDOWN(N11/L11,0)),IF(M11="JA",ROUNDDOWN(MIN(F11,J11),0),N11/L11)) -> 0 | Q11: =IF(N11=0,0,P11/N11) -> 0 | R11: =IF(M11="JA",O11,IF(N11=0,0,IF(ROUNDDOWN((O11+(O11*-((P11-(N11*Q$6))/(N11-(N11*Q$6))))),0)>O11,O11,(ROUNDDOWN((O11+(O11*-((P11-(N11*Q$6))/(N11-(N11*Q$6))))),0))))) -> 0 | S11: =Berechnungstabellen!I7 -> 0 | U11: =A11 -> Milchkühe | V11: =Berechnungstabellen!J7 -> 0 | W11: 0
A12: Mutter-/ Ammenkühe | C12: 6 | F12: =IF(B4="JA",G12,ROUNDDOWN(E12/C12,0)) -> 0 | I12: =IF(ISERROR(H12/E12),0,H12/E12) -> 0 | J12: 0 | L12: 4.5 | O12: =IF($B$4="JA",IF(M12="JA",G12,ROUNDDOWN(N12/L12,0)),IF(M12="JA",ROUNDDOWN(MIN(F12,J12),0),N12/L12)) -> 0 | Q12: =IF(N12=0,0,P12/N12) -> 0 | R12: =IF(M12="JA",O12,IF(N12=0,0,IF(ROUNDDOWN((O12+(O12*-((P12-(N12*Q$6))/(N12-(N12*Q$6))))),0)>O12,O12,(ROUNDDOWN((O12+(O12*-((P12-(N12*Q$6))/(N12-(N12*Q$6))))),0))))) -> 0 | S12: =Berechnungstabellen!I8 -> 0 | U12: =A12 -> Mutter-/ Ammenkühe | V12: =Berechnungstabellen!J8 -> 0 | W12: 0
C13: 1m²/100kg | L13: 0,75m²/100kg
A14: Bullen >2 Jahr >350kg | C14: 5 | F14: =ROUNDDOWN(E14/C14,0) -> 0 | I14: =IF(ISERROR(H14/E14),0,H14/E14) -> 0 | J14: 0 | L14: 3.7 | O14: =IF($B$4="JA",IF(M14="JA",G14,ROUNDDOWN(N14/L14,0)),IF(M14="JA",ROUNDDOWN(MIN(F14,J14),0),N14/L14)) -> 0 | Q14: =IF(N14=0,0,P14/N14) -> 0 | R14: 0 | S14: =Berechnungstabellen!I9 -> 0 | U14: =A14 -> Bullen >2 Jahr >350kg | V14: =Berechnungstabellen!J9 -> 0 | W14: 0
A15: Färsen >2 Jahr >350kg | C15: 5 | F15: =ROUNDDOWN(E15/C15,0) -> 0 | I15: =IF(ISERROR(H15/E15),0,H15/E15) -> 0 | J15: 0 | L15: 3.7 | O15: =IF($B$4="JA",IF(M15="JA",G15,ROUNDDOWN(N15/L15,0)),IF(M15="JA",ROUNDDOWN(MIN(F15,J15),0),N15/L15)) -> 0 | Q15: =IF(N15=0,0,P15/N15) -> 0 | R15: 0 | S15: =Berechnungstabellen!I10 -> 0 | U15: =A15 -> Färsen >2 Jahr >350kg | V15: =Berechnungstabellen!J10 -> 0 | W15: 0
A16: bei Einzelhaltung; wenn Haltung in Herde mit weibl. Rindern, wird Zuchtbulle wie Rind der jew. Gruppe gezählt
A17: Zuchtbullen | C17: 10 | F17: =ROUNDDOWN(E17/C17,0) -> 0 | I17: =IF(ISERROR(H17/#REF!),0,H17/#REF!) -> 0 | J17: =IF(H17=0,F17,IF(ROUNDDOWN(#REF!/C17/(H17/(#REF!/2)),0)<(#REF!/C17),ROUNDDOWN(#REF!/C17/(H17/(#REF!/2)),0),ROUNDDOWN(#REF!/C17,0))) -> 0 | L17: 30 | O17: =IF($B$4="JA",IF(M17="JA",G17,ROUNDDOWN(N17/L17,0)),IF(M17="JA",ROUNDDOWN(MIN(F17,J17),0),N17/L17)) -> 0 | Q17: =IF(N17=0,0,P17/N17) -> 0 | R17: 0 | S17: =Berechnungstabellen!I11 -> 0 | U17: =A17 -> Zuchtbullen | V17: =Berechnungstabellen!J11 -> 0 | W17: 0
A18: Geprüfte Maßangaben:
A20: Anmerkungen / best. ANG´s
A22: Stallblatt | B22: =B2+1 -> 2 | C22: Stallname (bei mehreren Ställen bzw. bei Anbinde- UND Laufstallhaltung f. Rinder > 2 Jahre in einem Stall: Je Stall bzw. Haltungsform ist das Formular jew. separat auszufüllen): | P22: Baujahr:
A23: Laufstall | C23: Stallgebäude | L23: Außenfläche (muss planbefestigt sein!)
A24: Anbindehaltung | E24: Stallfläche | I24: Stallboden | N24: Außenfläche | Q24: Überdachung
C25: Min. m²/Tier | D25: =D$5 -> Box-nummer(n) lt. Stall-plan | E25: Stall-fläche m² | F25: max. Tierzahl Stallfläche | G25: Anzahl Liege-plätze | H25: davon Spaltenboden / perforiert m² | I25: in % | J25: max. Tierzahl Stallboden | K25: Belegung aktuell | L25: Min. m²/Tier | M25: Zugang Sommer-weide möglich (Mai-Okt.) | N25: Außen-fläche m² | O25: max. Tierzahl Außen-flächen | P25: Über-dachung m2 | Q25: Über-dachung % | R25: max. Tierzahl Über-dachung | S25: Max. Tier-zahl
A26: Tiergruppe | H26: max. | I26: 0.5 | P26: max. | Q26: 0.5
A27: Kälber <1 Jahr <100kg | C27: 1.5 | F27: =ROUNDDOWN(E27/C27,0) -> 0 | I27: =IF(ISERROR(H27/E27),0,H27/E27) -> 0 | J27: =IF(H27=0,F27,IF(ROUNDDOWN(E27/C27/(H27/(E27/2)),0)<(E27/C27),ROUNDDOWN(E27/C27/(H27/(E27/2)),0),ROUNDDOWN(E27/C27,0))) -> 0 | L27: 1.1 | O27: =IF(M27="JA",MIN(F27,G27),ROUNDDOWN(N27/L27,0)) -> 0 | Q27: =IF(N27=0,0,P27/N27) -> 0 | R27: =IF(M27="JA",O27,IF(N27=0,0,IF(ROUNDDOWN((O27+(O27*-((P27-(N27*Q$26))/(N27-(N27*Q$26))))),0)>O27,O27,(ROUNDDOWN((O27+(O27*-((P27-(N27*Q$26))/(N27-(N27*Q$26))))),0))))) -> 0 | S27: =Berechnungstabellen!I13 -> 0
A28: Kälber <1 Jahr <200kg | C28: 2.5 | F28: =ROUNDDOWN(E28/C28,0) -> 0 | I28: =IF(ISERROR(H28/E28),0,H28/E28) -> 0 | J28: =IF(H28=0,F28,IF(ROUNDDOWN(E28/C28/(H28/(E28/2)),0)<(E28/C28),ROUNDDOWN(E28/C28/(H28/(E28/2)),0),ROUNDDOWN(E28/C28,0))) -> 0 | L28: 1.9 | O28: =IF(M28="JA",MIN(F28,G28),ROUNDDOWN(N28/L28,0)) -> 0 | Q28: =IF(N28=0,0,P28/N28) -> 0 | R28: =IF(M28="JA",O28,IF(N28=0,0,IF(ROUNDDOWN((O28+(O28*-((P28-(N28*Q$26))/(N28-(N28*Q$26))))),0)>O28,O28,(ROUNDDOWN((O28+(O28*-((P28-(N28*Q$26))/(N28-(N28*Q$26))))),0))))) -> 0 | S28: =Berechnungstabellen!I14 -> 0
A29: Rinder 1-2 Jahr <350kg | C29: 4 | F29: =ROUNDDOWN(E29/C29,0) -> 0 | I29: 0 | J29: 0 | L29: 3 | O29: =IF(M29="JA",MIN(F29,G29),ROUNDDOWN(N29/L29,0)) -> 0 | Q29: =IF(N29=0,0,P29/N29) -> 0 | R29: =IF(M29="JA",O29,IF(N29=0,0,IF(ROUNDDOWN((O29+(O29*-((P29-(N29*Q$26))/(N29-(N29*Q$26))))),0)>O29,O29,(ROUNDDOWN((O29+(O29*-((P29-(N29*Q$26))/(N29-(N29*Q$26))))),0))))) -> 0 | S29: =Berechnungstabellen!I15 -> 0
A31: Milchkühe | C31: 6 | F31: =IF(B24="JA",G31,ROUNDDOWN(E31/C31,0)) -> 0 | I31: =IF(ISERROR(H31/E31),0,H31/E31) -> 0 | J31: 0 | L31: 4.5 | O31: =IF($B$24="JA",IF(M31="JA",G31,ROUNDDOWN(N31/L31,0)),IF(M31="JA",ROUNDDOWN(MIN(F31,J31),0),N31/L31)) -> 0 | Q31: =IF(N31=0,0,P31/N31) -> 0 | R31: =IF(M31="JA",O31,IF(N31=0,0,IF(ROUNDDOWN((O31+(O31*-((P31-(N31*Q$26))/(N31-(N31*Q$26))))),0)>O31,O31,(ROUNDDOWN((O31+(O31*-((P31-(N31*Q$26))/(N31-(N31*Q$26))))),0))))) -> 0 | S31: =Berechnungstabellen!I16 -> 0
A32: Mutter-/ Ammenkühe | C32: 6 | F32: =IF(B24="JA",G32,ROUNDDOWN(E32/C32,0)) -> 0 | I32: 0 | J32: 0 | L32: 4.5 | O32: =IF($B$24="JA",IF(M32="JA",G32,ROUNDDOWN(N32/L32,0)),IF(M32="JA",ROUNDDOWN(MIN(F32,J32),0),N32/L32)) -> 0 | Q32: =IF(N32=0,0,P32/N32) -> 0 | R32: =IF(M32="JA",O32,IF(N32=0,0,IF(ROUNDDOWN((O32+(O32*-((P32-(N32*Q$26))/(N32-(N32*Q$26))))),0)>O32,O32,(ROUNDDOWN((O32+(O32*-((P32-(N32*Q$26))/(N32-(N32*Q$26))))),0))))) -> 0 | S32: =Berechnungstabellen!I17 -> 0
C33: 1m²/100kg | L33: 0,75m²/100kg
A34: Bullen >2 Jahr >350kg | C34: 5 | F34: =ROUNDDOWN(E34/C34,0) -> 0 | I34: =IF(ISERROR(H34/E34),0,H34/E34) -> 0 | J34: 0 | L34: 3.7 | O34: =IF($B$24="JA",IF(M34="JA",G34,ROUNDDOWN(N34/L34,0)),IF(M34="JA",ROUNDDOWN(MIN(F34,J34),0),N34/L34)) -> 0 | Q34: =IF(N34=0,0,P34/N34) -> 0 | R34: =IF(M34="JA",O34,IF(N34=0,0,IF(ROUNDDOWN((O34+(O34*-((P34-(N34*Q$26))/(N34-(N34*Q$26))))),0)>O34,O34,(ROUNDDOWN((O34+(O34*-((P34-(N34*Q$26))/(N34-(N34*Q$26))))),0))))) -> 0 | S34: =Berechnungstabellen!I18 -> 0
A35: Färsen >2 Jahr >350kg | C35: 5 | F35: =ROUNDDOWN(E35/C35,0) -> 0 | I35: 0 | J35: 0 | L35: 3.7 | O35: =IF($B$24="JA",IF(M35="JA",G35,ROUNDDOWN(N35/L35,0)),IF(M35="JA",ROUNDDOWN(MIN(F35,J35),0),N35/L35)) -> 0 | Q35: =IF(N35=0,0,P35/N35) -> 0 | R35: =IF(M35="JA",O35,IF(N35=0,0,IF(ROUNDDOWN((O35+(O35*-((P35-(N35*Q$26))/(N35-(N35*Q$26))))),0)>O35,O35,(ROUNDDOWN((O35+(O35*-((P35-(N35*Q$26))/(N35-(N35*Q$26))))),0))))) -> 0 | S35: =Berechnungstabellen!I19 -> 0
A36: bei Einzelhaltung; wenn Haltung in Herde mit weibl. Rindern, wird Zuchtbulle wie Rind der jew. Gruppe gezählt
A37: Zuchtbullen | C37: 10 | F37: =ROUNDDOWN(E37/C37,0) -> 0 | I37: =IF(ISERROR(H37/E37),0,H37/E37) -> 0 | J37: 0 | L37: 30 | O37: =IF($B$24="JA",IF(M37="JA",G37,ROUNDDOWN(N37/L37,0)),IF(M37="JA",ROUNDDOWN(MIN(F37,J37),0),N37/L37)) -> 0 | Q37: =IF(N37=0,0,P37/N37) -> 0 | R37: =IF(M37="JA",O37,IF(N37=0,0,IF(ROUNDDOWN((O37+(O37*-((P37-(N37*Q$26))/(N37-(N37*Q$26))))),0)>O37,O37,(ROUNDDOWN((O37+(O37*-((P37-(N37*Q$26))/(N37-(N37*Q$26))))),0))))) -> 0 | S37: =Berechnungstabellen!I20 -> 0
A38: Geprüfte Maßangaben:
A40: Anmerkungen / best. ANG´s
A42: Stallblatt | B42: =B22+1 -> 3 | C42: Stallname (bei mehreren Ställen bzw. bei Anbinde- UND Laufstallhaltung f. Rinder > 2 Jahre in einem Stall: Je Stall bzw. Haltungsform ist das Formular jew. separat auszufüllen): | P42: Baujahr:
A43: Laufstall | C43: Stallgebäude | L43: Außenfläche (muss planbefestigt sein!)
A44: Anbindehaltung | E44: Stallfläche | I44: Stallboden | N44: Außenfläche | Q44: Überdachung
C45: Min. m²/Tier | D45: =D$5 -> Box-nummer(n) lt. Stall-plan | E45: Stall-fläche m² | F45: max. Tierzahl Stallfläche | G45: Anzahl Liege-plätze | H45: davon Spaltenboden / perforiert m² | I45: in % | J45: max. Tierzahl Stallboden | K45: Belegung aktuell | L45: Min. m²/Tier | M45: Zugang Sommer-weide möglich (Mai-Okt.) | N45: Außen-fläche m² | O45: max. Tierzahl Außen-flächen | P45: Über-dachung m2 | Q45: Über-dachung % | R45: max. Tierzahl Über-dachung | S45: Max. Tier-zahl
A46: Tiergruppe | H46: max. | I46: 0.5 | P46: max. | Q46: 0.5
A47: Kälber <1 Jahr <100kg | C47: 1.5 | F47: =ROUNDDOWN(E47/C47,0) -> 0 | I47: =IF(ISERROR(H47/E47),0,H47/E47) -> 0 | J47: =IF(H47=0,F47,IF(ROUNDDOWN(E47/C47/(H47/(E47/2)),0)<(E47/C47),ROUNDDOWN(E47/C47/(H47/(E47/2)),0),ROUNDDOWN(E47/C47,0))) -> 0 | L47: 1.1 | O47: =IF(M47="JA",MIN(F47,G47),ROUNDDOWN(N47/L47,0)) -> 0 | Q47: =IF(N47=0,0,P47/N47) -> 0 | R47: =IF(M47="JA",O47,IF(N47=0,0,IF(ROUNDDOWN((O47+(O47*-((P47-(N47*Q$46))/(N47-(N47*Q$46))))),0)>O47,O47,(ROUNDDOWN((O47+(O47*-((P47-(N47*Q$46))/(N47-(N47*Q$46))))),0))))) -> 0 | S47: =Berechnungstabellen!I22 -> 0
A48: Kälber <1 Jahr <200kg | C48: 2.5 | F48: =ROUNDDOWN(E48/C48,0) -> 0 | I48: =IF(ISERROR(H48/E48),0,H48/E48) -> 0 | J48: =IF(H48=0,F48,IF(ROUNDDOWN(E48/C48/(H48/(E48/2)),0)<(E48/C48),ROUNDDOWN(E48/C48/(H48/(E48/2)),0),ROUNDDOWN(E48/C48,0))) -> 0 | L48: 1.9 | O48: =IF(M48="JA",MIN(F48,G48),ROUNDDOWN(N48/L48,0)) -> 0 | Q48: =IF(N48=0,0,P48/N48) -> 0 | R48: =IF(M48="JA",O48,IF(N48=0,0,IF(ROUNDDOWN((O48+(O48*-((P48-(N48*Q$46))/(N48-(N48*Q$46))))),0)>O48,O48,(ROUNDDOWN((O48+(O48*-((P48-(N48*Q$46))/(N48-(N48*Q$46))))),0))))) -> 0 | S48: =Berechnungstabellen!I23 -> 0
A49: Rinder 1-2 Jahr <350kg | C49: 4 | F49: =ROUNDDOWN(E49/C49,0) -> 0 | I49: 0 | J49: 0 | L49: 3 | O49: =IF(M49="JA",MIN(F49,G49),ROUNDDOWN(N49/L49,0)) -> 0 | Q49: =IF(N49=0,0,P49/N49) -> 0 | R49: =IF(M49="JA",O49,IF(N49=0,0,IF(ROUNDDOWN((O49+(O49*-((P49-(N49*Q$46))/(N49-(N49*Q$46))))),0)>O49,O49,(ROUNDDOWN((O49+(O49*-((P49-(N49*Q$46))/(N49-(N49*Q$46))))),0))))) -> 0 | S49: =Berechnungstabellen!I24 -> 0
A51: Milchkühe | C51: 6 | F51: =IF(B44="JA",G51,ROUNDDOWN(E51/C51,0)) -> 0 | I51: =IF(ISERROR(H51/E51),0,H51/E51) -> 0 | J51: 0 | L51: 4.5 | O51: =IF($B$44="JA",IF(M51="JA",G51,ROUNDDOWN(N51/L51,0)),IF(M51="JA",ROUNDDOWN(MIN(F51,J51),0),N51/L51)) -> 0 | Q51: =IF(N51=0,0,P51/N51) -> 0 | R51: =IF(M51="JA",O51,IF(N51=0,0,IF(ROUNDDOWN((O51+(O51*-((P51-(N51*Q$46))/(N51-(N51*Q$46))))),0)>O51,O51,(ROUNDDOWN((O51+(O51*-((P51-(N51*Q$46))/(N51-(N51*Q$46))))),0))))) -> 0 | S51: =Berechnungstabellen!I25 -> 0
A52: Mutter-/ Ammenkühe | C52: 6 | F52: =IF(B44="JA",G52,ROUNDDOWN(E52/C52,0)) -> 0 | I52: 0 | J52: 0 | L52: 4.5 | O52: =IF($B$44="JA",IF(M52="JA",G52,ROUNDDOWN(N52/L52,0)),IF(M52="JA",ROUNDDOWN(MIN(F52,J52),0),N52/L52)) -> 0 | Q52: =IF(N52=0,0,P52/N52) -> 0 | R52: =IF(M52="JA",O52,IF(N52=0,0,IF(ROUNDDOWN((O52+(O52*-((P52-(N52*Q$46))/(N52-(N52*Q$46))))),0)>O52,O52,(ROUNDDOWN((O52+(O52*-((P52-(N52*Q$46))/(N52-(N52*Q$46))))),0))))) -> 0 | S52: =Berechnungstabellen!I26 -> 0
C53: 1m²/100kg | L53: 0,75m²/100kg
A54: Bullen >2 Jahr >350kg | C54: 5 | F54: =ROUNDDOWN(E54/C54,0) -> 0 | I54: =IF(ISERROR(H54/E54),0,H54/E54) -> 0 | J54: 0 | L54: 3.7 | O54: =IF($B$44="JA",IF(M54="JA",G54,ROUNDDOWN(N54/L54,0)),IF(M54="JA",ROUNDDOWN(MIN(F54,J54),0),N54/L54)) -> 0 | Q54: =IF(N54=0,0,P54/N54) -> 0 | R54: =IF(M54="JA",O54,IF(N54=0,0,IF(ROUNDDOWN((O54+(O54*-((P54-(N54*Q$46))/(N54-(N54*Q$46))))),0)>O54,O54,(ROUNDDOWN((O54+(O54*-((P54-(N54*Q$46))/(N54-(N54*Q$46))))),0))))) -> 0 | S54: =Berechnungstabellen!I27 -> 0
A55: Färsen >2 Jahr >350kg | C55: 5 | F55: =ROUNDDOWN(E55/C55,0) -> 0 | I55: 0 | J55: 0 | L55: 3.7 | O55: =IF($B$44="JA",IF(M55="JA",G55,ROUNDDOWN(N55/L55,0)),IF(M55="JA",ROUNDDOWN(MIN(F55,J55),0),N55/L55)) -> 0 | Q55: =IF(N55=0,0,P55/N55) -> 0 | R55: =IF(M55="JA",O55,IF(N55=0,0,IF(ROUNDDOWN((O55+(O55*-((P55-(N55*Q$46))/(N55-(N55*Q$46))))),0)>O55,O55,(ROUNDDOWN((O55+(O55*-((P55-(N55*Q$46))/(N55-(N55*Q$46))))),0))))) -> 0 | S55: =Berechnungstabellen!I28 -> 0
A56: bei Einzelhaltung; wenn Haltung in Herde mit weibl. Rindern, wird Zuchtbulle wie Rind der jew. Gruppe gezählt
A57: Zuchtbullen | C57: 10 | F57: =ROUNDDOWN(E57/C57,0) -> 0 | I57: =IF(ISERROR(H57/E57),0,H57/E57) -> 0 | J57: 0 | L57: 30 | O57: =IF($B$44="JA",IF(M57="JA",G57,ROUNDDOWN(N57/L57,0)),IF(M57="JA",ROUNDDOWN(MIN(F57,J57),0),N57/L57)) -> 0 | Q57: =IF(N57=0,0,P57/N57) -> 0 | R57: =IF(M57="JA",O57,IF(N57=0,0,IF(ROUNDDOWN((O57+(O57*-((P57-(N57*Q$46))/(N57-(N57*Q$46))))),0)>O57,O57,(ROUNDDOWN((O57+(O57*-((P57-(N57*Q$46))/(N57-(N57*Q$46))))),0))))) -> 0 | S57: =Berechnungstabellen!I29 -> 0
A58: Geprüfte Maßangaben:
A60: Anmerkungen / best. ANG´s
A62: Stallblatt | B62: =B42+1 -> 4 | C62: Stallname (bei mehreren Ställen bzw. bei Anbinde- UND Laufstallhaltung f. Rinder > 2 Jahre in einem Stall: Je Stall bzw. Haltungsform ist das Formular jew. separat auszufüllen): | P62: Baujahr:
A63: Laufstall | C63: Stallgebäude | L63: Außenfläche (muss planbefestigt sein!)
A64: Anbindehaltung | E64: Stallfläche | I64: Stallboden | N64: Außenfläche | Q64: Überdachung
C65: Min. m²/Tier | D65: =D$5 -> Box-nummer(n) lt. Stall-plan | E65: Stall-fläche m² | F65: max. Tierzahl Stallfläche | G65: Anzahl Liege-plätze | H65: davon Spaltenboden / perforiert m² | I65: in % | J65: max. Tierzahl Stallboden | K65: Belegung aktuell | L65: Min. m²/Tier | M65: Zugang Sommer-weide möglich (Mai-Okt.) | N65: Außen-fläche m² | O65: max. Tierzahl Außen-flächen | P65: Über-dachung m2 | Q65: Über-dachung % | R65: max. Tierzahl Über-dachung | S65: Max. Tier-zahl
A66: Tiergruppe | H66: max. | I66: 0.5 | P66: max. | Q66: 0.5
A67: Kälber <1 Jahr <100kg | C67: 1.5 | F67: =ROUNDDOWN(E67/C67,0) -> 0 | I67: =IF(ISERROR(H67/E67),0,H67/E67) -> 0 | J67: =IF(H67=0,F67,IF(ROUNDDOWN(E67/C67/(H67/(E67/2)),0)<(E67/C67),ROUNDDOWN(E67/C67/(H67/(E67/2)),0),ROUNDDOWN(E67/C67,0))) -> 0 | L67: 1.1 | O67: =IF(M67="JA",MIN(F67,G67),ROUNDDOWN(N67/L67,0)) -> 0 | Q67: =IF(N67=0,0,P67/N67) -> 0 | R67: =IF(M67="JA",O67,IF(N67=0,0,IF(ROUNDDOWN((O67+(O67*-((P67-(N67*Q$66))/(N67-(N67*Q$66))))),0)>O67,O67,(ROUNDDOWN((O67+(O67*-((P67-(N67*Q$66))/(N67-(N67*Q$66))))),0))))) -> 0 | S67: =Berechnungstabellen!I31 -> 0
A68: Kälber <1 Jahr <200kg | C68: 2.5 | F68: =ROUNDDOWN(E68/C68,0) -> 0 | I68: =IF(ISERROR(H68/E68),0,H68/E68) -> 0 | J68: =IF(H68=0,F68,IF(ROUNDDOWN(E68/C68/(H68/(E68/2)),0)<(E68/C68),ROUNDDOWN(E68/C68/(H68/(E68/2)),0),ROUNDDOWN(E68/C68,0))) -> 0 | L68: 1.9 | O68: =IF(M68="JA",MIN(F68,G68),ROUNDDOWN(N68/L68,0)) -> 0 | Q68: =IF(N68=0,0,P68/N68) -> 0 | R68: =IF(M68="JA",O68,IF(N68=0,0,IF(ROUNDDOWN((O68+(O68*-((P68-(N68*Q$66))/(N68-(N68*Q$66))))),0)>O68,O68,(ROUNDDOWN((O68+(O68*-((P68-(N68*Q$66))/(N68-(N68*Q$66))))),0))))) -> 0 | S68: =Berechnungstabellen!I32 -> 0
A69: Rinder 1-2 Jahr <350kg | C69: 4 | F69: =ROUNDDOWN(E69/C69,0) -> 0 | I69: 0 | J69: 0 | L69: 3 | O69: =IF(M69="JA",MIN(F69,G69),ROUNDDOWN(N69/L69,0)) -> 0 | Q69: =IF(N69=0,0,P69/N69) -> 0 | R69: =IF(M69="JA",O69,IF(N69=0,0,IF(ROUNDDOWN((O69+(O69*-((P69-(N69*Q$66))/(N69-(N69*Q$66))))),0)>O69,O69,(ROUNDDOWN((O69+(O69*-((P69-(N69*Q$66))/(N69-(N69*Q$66))))),0))))) -> 0 | S69: =Berechnungstabellen!I33 -> 0
A71: Milchkühe | C71: 6 | F71: =IF(B64="JA",G71,ROUNDDOWN(E71/C71,0)) -> 0 | I71: =IF(ISERROR(H71/E71),0,H71/E71) -> 0 | J71: 0 | L71: 4.5 | O71: =IF($B$64="JA",IF(M71="JA",G71,ROUNDDOWN(N71/L71,0)),IF(M71="JA",ROUNDDOWN(MIN(F71,J71),0),N71/L71)) -> 0 | Q71: =IF(N71=0,0,P71/N71) -> 0 | R71: =IF(M71="JA",O71,IF(N71=0,0,IF(ROUNDDOWN((O71+(O71*-((P71-(N71*Q$66))/(N71-(N71*Q$66))))),0)>O71,O71,(ROUNDDOWN((O71+(O71*-((P71-(N71*Q$66))/(N71-(N71*Q$66))))),0))))) -> 0 | S71: =Berechnungstabellen!I34 -> 0
A72: Mutter-/ Ammenkühe | C72: 6 | F72: =IF(B64="JA",G72,ROUNDDOWN(E72/C72,0)) -> 0 | I72: 0 | J72: 0 | L72: 4.5 | O72: =IF($B$64="JA",IF(M72="JA",G72,ROUNDDOWN(N72/L72,0)),IF(M72="JA",ROUNDDOWN(MIN(F72,J72),0),N72/L72)) -> 0 | Q72: =IF(N72=0,0,P72/N72) -> 0 | R72: =IF(M72="JA",O72,IF(N72=0,0,IF(ROUNDDOWN((O72+(O72*-((P72-(N72*Q$66))/(N72-(N72*Q$66))))),0)>O72,O72,(ROUNDDOWN((O72+(O72*-((P72-(N72*Q$66))/(N72-(N72*Q$66))))),0))))) -> 0 | S72: =Berechnungstabellen!I35 -> 0
C73: 1m²/100kg | L73: 0,75m²/100kg
A74: Bullen >2 Jahr >350kg | C74: 5 | F74: =ROUNDDOWN(E74/C74,0) -> 0 | I74: =IF(ISERROR(H74/E74),0,H74/E74) -> 0 | J74: 0 | L74: 3.7 | O74: =IF($B$64="JA",IF(M74="JA",G74,ROUNDDOWN(N74/L74,0)),IF(M74="JA",ROUNDDOWN(MIN(F74,J74),0),N74/L74)) -> 0 | Q74: =IF(N74=0,0,P74/N74) -> 0 | R74: =IF(M74="JA",O74,IF(N74=0,0,IF(ROUNDDOWN((O74+(O74*-((P74-(N74*Q$66))/(N74-(N74*Q$66))))),0)>O74,O74,(ROUNDDOWN((O74+(O74*-((P74-(N74*Q$66))/(N74-(N74*Q$66))))),0))))) -> 0 | S74: =Berechnungstabellen!I36 -> 0
A75: Färsen >2 Jahr >350kg | C75: 5 | F75: =ROUNDDOWN(E75/C75,0) -> 0 | I75: 0 | J75: 0 | L75: 3.7 | O75: =IF($B$64="JA",IF(M75="JA",G75,ROUNDDOWN(N75/L75,0)),IF(M75="JA",ROUNDDOWN(MIN(F75,J75),0),N75/L75)) -> 0 | Q75: =IF(N75=0,0,P75/N75) -> 0 | R75: =IF(M75="JA",O75,IF(N75=0,0,IF(ROUNDDOWN((O75+(O75*-((P75-(N75*Q$66))/(N75-(N75*Q$66))))),0)>O75,O75,(ROUNDDOWN((O75+(O75*-((P75-(N75*Q$66))/(N75-(N75*Q$66))))),0))))) -> 0 | S75: =Berechnungstabellen!I37 -> 0
A76: bei Einzelhaltung; wenn Haltung in Herde mit weibl. Rindern, wird Zuchtbulle wie Rind der jew. Gruppe gezählt
A77: Zuchtbullen | C77: 10 | F77: =ROUNDDOWN(E77/C77,0) -> 0 | I77: =IF(ISERROR(H77/E77),0,H77/E77) -> 0 | J77: 0 | L77: 30 | O77: =IF($B$64="JA",IF(M77="JA",G77,ROUNDDOWN(N77/L77,0)),IF(M77="JA",ROUNDDOWN(MIN(F77,J77),0),N77/L77)) -> 0 | Q77: =IF(N77=0,0,P77/N77) -> 0 | R77: =IF(M77="JA",O77,IF(N77=0,0,IF(ROUNDDOWN((O77+(O77*-((P77-(N77*Q$66))/(N77-(N77*Q$66))))),0)>O77,O77,(ROUNDDOWN((O77+(O77*-((P77-(N77*Q$66))/(N77-(N77*Q$66))))),0))))) -> 0 | S77: =Berechnungstabellen!I38 -> 0
A78: Geprüfte Maßangaben:
A80: Anmerkungen / best. ANG´s

Sheet Kl. Wiederkäuer_Equidien
A1: Ermittlung der maximalen Tierzahl, die gem. EU VO 2018/848 sowie 2020-464 Anhang I je Stallblatt gehalten werden darf | R1: Kleine Wiederkäuer
A2: Stallblatt | B2: 1 | C2: Stallname (bei mehreren Ställen: Je Stall ist das Formular jew. separat auszufüllen): | O2: Baujahr:
C3: Stallgebäude | K3: Außenfläche (muss planbefestigt sein!) | T3: Zum Abgleich Eingabe Ecert mit HITier Tagesbestand
E4: Stallfläche | H4: Stallboden
A5: Tiergruppe | C5: benötigte m²/Tier | D5: Box-nummer(n) lt. Stall-plan | E5: Stall-fläche m² | F5: max. Tierzahl Stallfläche | G5: davon Spalten-boden / perforiert m² | H5: in % | I5: max. Tierzahl Stall-boden | J5: Belegung aktuell | K5: benötigte m²/Tier | L5: Zugang Weide möglich (Mai-Okt.) | M5: Außen-fläche m² | N5: max. Tierzahl Außen-flächen | O5: Über-dachung m2 | P5: Über-dachung % | Q5: max. Tierzahl Über-dachung | R5: Max. Tier-zahl | T5: Tierzahl ges. über alle Ställe
A6: Schafe | G6: max. | H6: 0.5 | O6: max. | P6: 0.5 | U6: Max Tierzahl ges. | V6: Gehaltene Tiere
A7: Lamm (< 1J) | C7: 0.35 | F7: =ROUNDDOWN(E7/C7,0) -> 0 | H7: =IF(ISERROR(G7/E7),0,G7/E7) -> 0 | I7: =IF(G7=0,F7,IF(ROUNDDOWN(E7/C7/(G7/(E7/2)),0)<(E7/C7),ROUNDDOWN(E7/C7/(G7/(E7/2)),0),ROUNDDOWN(E7/C7,0))) -> 0 | K7: 0.5 | N7: =IF(L7="JA",MIN(F7,I7),ROUNDDOWN(M7/K7,0)) -> 0 | P7: =IF(M7=0,0,O7/M7) -> 0 | Q7: =IF(L7="JA",N7,IF(M7=0,0,IF(ROUNDDOWN((N7+(N7*-((O7-(M7*P$6))/(M7-(M7*P$6))))),0)>N7,N7,(ROUNDDOWN((N7+(N7*-((O7-(M7*P$6))/(M7-(M7*P$6))))),0))))) -> 0 | R7: =Berechnungstabellen!I41 -> 0 | T7: =A7 -> Lamm (< 1J) | U7: =Berechnungstabellen!J41 -> 0 | V7: =J7+J26+J45+J64 -> 0
A8: Mutter-/ Milchschaf | C8: 1.5 | F8: =ROUNDDOWN(E8/C8,0) -> 0 | H8: =IF(ISERROR(G8/E8),0,G8/E8) -> 0 | I8: =IF(G8=0,F8,IF(ROUNDDOWN(E8/C8/(G8/(E8/2)),0)<(E8/C8),ROUNDDOWN(E8/C8/(G8/(E8/2)),0),ROUNDDOWN(E8/C8,0))) -> 0 | K8: 2.5 | N8: =IF(L8="JA",MIN(F8,I8),ROUNDDOWN(M8/K8,0)) -> 0 | P8: =IF(M8=0,0,O8/M8) -> 0 | Q8: =IF(L8="JA",N8,IF(M8=0,0,IF(ROUNDDOWN((N8+(N8*-((O8-(M8*P$6))/(M8-(M8*P$6))))),0)>N8,N8,(ROUNDDOWN((N8+(N8*-((O8-(M8*P$6))/(M8-(M8*P$6))))),0))))) -> 0 | R8: =Berechnungstabellen!I42 -> 0 | T8: Mutter-/ Milchschaf | U8: =Berechnungstabellen!J42 -> 0 | V8: =J8+J27+J46+J65 -> 0
A9: Ziegen | T9: Ziegen
A10: Ziegenlamm (< 1J) | C10: 0.35 | F10: =ROUNDDOWN(E10/C10,0) -> 0 | H10: =IF(ISERROR(G10/E10),0,G10/E10) -> 0 | I10: =IF(G10=0,F10,IF(ROUNDDOWN(E10/C10/(G10/(E10/2)),0)<(E10/C10),ROUNDDOWN(E10/C10/(G10/(E10/2)),0),ROUNDDOWN(E10/C10,0))) -> 0 | K10: 0.5 | N10: =IF(L10="JA",MIN(F10,I10),ROUNDDOWN(M10/K10,0)) -> 0 | P10: =IF(M10=0,0,O10/M10) -> 0 | Q10: 0 | R10: =Berechnungstabellen!I44 -> 0 | T10: Ziegenlamm (< 1J) | U10: =Berechnungstabellen!J44 -> 0 | V10: =J10+J29+J48+J67 -> 0
A11: Ziegen | C11: 1.5 | F11: =ROUNDDOWN(E11/C11,0) -> 0 | H11: =IF(ISERROR(G11/E11),0,G11/E11) -> 0 | I11: =IF(G11=0,F11,IF(ROUNDDOWN(E11/C11/(G11/(E11/2)),0)<(E11/C11),ROUNDDOWN(E11/C11/(G11/(E11/2)),0),ROUNDDOWN(E11/C11,0))) -> 0 | K11: 2.5 | N11: =IF(L11="JA",MIN(F11,I11),ROUNDDOWN(M11/K11,0)) -> 0 | P11: =IF(M11=0,0,O11/M11) -> 0 | Q11: 0 | R11: =Berechnungstabellen!I45 -> 0 | T11: Ziegen | U11: =Berechnungstabellen!J45 -> 0 | V11: =J11+J30+J49+J68 -> 0
A12: Pferde | C12: mind. 1m²/100kg | K12: mind. 0,75m²/100kg | T12: Pferde
A13: Pferde < 100 kg | C13: 1.5 | F13: =ROUNDDOWN(E13/C13,0) -> 0 | H13: =IF(ISERROR(G13/E13),0,G13/E13) -> 0 | I13: =IF(G13=0,F13,IF(ROUNDDOWN(E13/C13/(G13/(E13/2)),0)<(E13/C13),ROUNDDOWN(E13/C13/(G13/(E13/2)),0),ROUNDDOWN(E13/C13,0))) -> 0 | K13: 1.1 | N13: =IF(L13="JA",MIN(F13,I13),ROUNDDOWN(M13/K13,0)) -> 0 | P13: =IF(M13=0,0,O13/M13) -> 0 | Q13: =IF(L13="JA",N13,IF(M13=0,0,IF(ROUNDDOWN((N13+(N13*-((O13-(M13*P$6))/(M13-(M13*P$6))))),0)>N13,N13,(ROUNDDOWN((N13+(N13*-((O13-(M13*P$6))/(M13-(M13*P$6))))),0))))) -> 0 | R13: =Berechnungstabellen!I47 -> 0 | T13: Pferde < 6 Monate | U13: =Berechnungstabellen!J47 -> 0 | V13: =J13+J32+J51+J70 -> 0
A14: Pferde bis 200 kg | C14: 2.5 | F14: =ROUNDDOWN(E14/C14,0) -> 0 | H14: =IF(ISERROR(G14/E14),0,G14/E14) -> 0 | I14: =IF(G14=0,F14,IF(ROUNDDOWN(E14/C14/(G14/(E14/2)),0)<(E14/C14),ROUNDDOWN(E14/C14/(G14/(E14/2)),0),ROUNDDOWN(E14/C14,0))) -> 0 | K14: 1.9 | N14: =IF(L14="JA",MIN(F14,I14),ROUNDDOWN(M14/K14,0)) -> 0 | P14: =IF(M14=0,0,O14/M14) -> 0 | Q14: =IF(L14="JA",N14,IF(M14=0,0,IF(ROUNDDOWN((N14+(N14*-((O14-(M14*P$6))/(M14-(M14*P$6))))),0)>N14,N14,(ROUNDDOWN((N14+(N14*-((O14-(M14*P$6))/(M14-(M14*P$6))))),0))))) -> 0 | R14: =Berechnungstabellen!I48 -> 0 | T14: Pferde > 6 Monat | U14: =Berechnungstabellen!J48+Berechnungstabellen!J49+Berechnungstabellen!J50 -> 0 | V14: =SUM(J14:J16)+SUM(J33:J35)+SUM(J52:J54)+SUM(J71:J73) -> 0
A15: Pferde bis 350 kg | C15: 4 | F15: 0 | H15: 0 | I15: 0 | K15: 3 | N15: 0 | P15: 0 | Q15: 0 | R15: =Berechnungstabellen!I49 -> 0
A16: Pferde über 350 kg | C16: 5 | F16: =ROUNDDOWN(E16/C16,0) -> 0 | H16: =IF(ISERROR(G16/E16),0,G16/E16) -> 0 | I16: =IF(G16=0,F16,IF(ROUNDDOWN(E16/C16/(G16/(E16/2)),0)<(E16/C16),ROUNDDOWN(E16/C16/(G16/(E16/2)),0),ROUNDDOWN(E16/C16,0))) -> 0 | K16: 3.7 | N16: =IF(L16="JA",MIN(F16,I16),ROUNDDOWN(M16/K16,0)) -> 0 | P16: =IF(M16=0,0,O16/M16) -> 0 | Q16: 0 | R16: =Berechnungstabellen!I50 -> 0
A17: Geprüfte Maßangaben:
A19: Anmerkungen / best. ANG´s
A21: Stallblatt | B21: =B2+1 -> 2 | C21: Stallname (bei mehreren Ställen: Je Stall ist das Formular jew. separat auszufüllen): | O21: Baujahr:
C22: Stallgebäude | K22: Außenfläche (muss planbefestigt sein!)
E23: Stallfläche | H23: Stallboden
A24: Tiergruppe | C24: benötigte m²/Tier | D24: Box-nummer(n) lt. Stall-plan | E24: Stall-fläche m² | F24: max. Tierzahl Stallfläche | G24: davon Spalten-boden / perforiert m² | H24: in % | I24: max. Tierzahl Stall-boden | J24: Belegung aktuell | K24: benötigte m²/Tier | L24: Zugang Weide möglich (Mai-Okt.) | M24: Außen-fläche m² | N24: max. Tierzahl Außen-flächen | O24: Über-dachung m2 | P24: Über-dachung % | Q24: max. Tierzahl Über-dachung | R24: Max. Tier-zahl
A25: Schafe | G25: max. | H25: 0.5 | O25: max. | P25: 0.5
A26: Lamm (< 1J) | C26: 0.35 | F26: =ROUNDDOWN(E26/C26,0) -> 0 | H26: =IF(ISERROR(G26/E26),0,G26/E26) -> 0 | I26: =IF(G26=0,F26,IF(ROUNDDOWN(E26/C26/(G26/(E26/2)),0)<(E26/C26),ROUNDDOWN(E26/C26/(G26/(E26/2)),0),ROUNDDOWN(E26/C26,0))) -> 0 | K26: 0.5 | N26: =IF(L26="JA",MIN(F26,I26),ROUNDDOWN(M26/K26,0)) -> 0 | P26: =IF(M26=0,0,O26/M26) -> 0 | Q26: =IF(L26="JA",N26,IF(M26=0,0,IF(ROUNDDOWN((N26+(N26*-((O26-(M26*P$6))/(M26-(M26*P$6))))),0)>N26,N26,(ROUNDDOWN((N26+(N26*-((O26-(M26*P$6))/(M26-(M26*P$6))))),0))))) -> 0 | R26: =Berechnungstabellen!I52 -> 0
A27: Mutter-/ Milchschaf | C27: 1.5 | F27: =ROUNDDOWN(E27/C27,0) -> 0 | H27: =IF(ISERROR(G27/E27),0,G27/E27) -> 0 | I27: =IF(G27=0,F27,IF(ROUNDDOWN(E27/C27/(G27/(E27/2)),0)<(E27/C27),ROUNDDOWN(E27/C27/(G27/(E27/2)),0),ROUNDDOWN(E27/C27,0))) -> 0 | K27: 2.5 | N27: =IF(L27="JA",MIN(F27,I27),ROUNDDOWN(M27/K27,0)) -> 0 | P27: =IF(M27=0,0,O27/M27) -> 0 | Q27: =IF(L27="JA",N27,IF(M27=0,0,IF(ROUNDDOWN((N27+(N27*-((O27-(M27*P$6))/(M27-(M27*P$6))))),0)>N27,N27,(ROUNDDOWN((N27+(N27*-((O27-(M27*P$6))/(M27-(M27*P$6))))),0))))) -> 0 | R27: =Berechnungstabellen!I53 -> 0
A28: Ziegen
A29: Ziegenlamm (< 1J) | C29: 0.35 | F29: =ROUNDDOWN(E29/C29,0) -> 0 | H29: =IF(ISERROR(G29/E29),0,G29/E29) -> 0 | I29: =IF(G29=0,F29,IF(ROUNDDOWN(E29/C29/(G29/(E29/2)),0)<(E29/C29),ROUNDDOWN(E29/C29/(G29/(E29/2)),0),ROUNDDOWN(E29/C29,0))) -> 0 | K29: 0.5 | N29: =IF(L29="JA",MIN(F29,I29),ROUNDDOWN(M29/K29,0)) -> 0 | P29: =IF(M29=0,0,O29/M29) -> 0 | Q29: =IF(L29="JA",N29,IF(M29=0,0,IF(ROUNDDOWN((N29+(N29*-((O29-(M29*P$6))/(M29-(M29*P$6))))),0)>N29,N29,(ROUNDDOWN((N29+(N29*-((O29-(M29*P$6))/(M29-(M29*P$6))))),0))))) -> 0 | R29: =Berechnungstabellen!I55 -> 0
A30: Ziegen | C30: 1.5 | F30: =ROUNDDOWN(E30/C30,0) -> 0 | H30: =IF(ISERROR(G30/E30),0,G30/E30) -> 0 | I30: =IF(G30=0,F30,IF(ROUNDDOWN(E30/C30/(G30/(E30/2)),0)<(E30/C30),ROUNDDOWN(E30/C30/(G30/(E30/2)),0),ROUNDDOWN(E30/C30,0))) -> 0 | K30: 2.5 | N30: =IF(L30="JA",MIN(F30,I30),ROUNDDOWN(M30/K30,0)) -> 0 | P30: =IF(M30=0,0,O30/M30) -> 0 | Q30: 0 | R30: =Berechnungstabellen!I56 -> 0
A31: Pferde | C31: 1m²/100kg | K31: 0,75m²/100kg
A32: Pferde < 100 kg | C32: 1.5 | F32: =ROUNDDOWN(E32/C32,0) -> 0 | H32: =IF(ISERROR(G32/E32),0,G32/E32) -> 0 | I32: =IF(G32=0,F32,IF(ROUNDDOWN(E32/C32/(G32/(E32/2)),0)<(E32/C32),ROUNDDOWN(E32/C32/(G32/(E32/2)),0),ROUNDDOWN(E32/C32,0))) -> 0 | K32: 1.1 | N32: =IF(L32="JA",MIN(F32,I32),ROUNDDOWN(M32/K32,0)) -> 0 | P32: =IF(M32=0,0,O32/M32) -> 0 | Q32: =IF(L32="JA",N32,IF(M32=0,0,IF(ROUNDDOWN((N32+(N32*-((O32-(M32*P$6))/(M32-(M32*P$6))))),0)>N32,N32,(ROUNDDOWN((N32+(N32*-((O32-(M32*P$6))/(M32-(M32*P$6))))),0))))) -> 0 | R32: =Berechnungstabellen!I58 -> 0
A33: Pferde bis 200 kg | C33: 2.5 | F33: =ROUNDDOWN(E33/C33,0) -> 0 | H33: =IF(ISERROR(G33/E33),0,G33/E33) -> 0 | I33: =IF(G33=0,F33,IF(ROUNDDOWN(E33/C33/(G33/(E33/2)),0)<(E33/C33),ROUNDDOWN(E33/C33/(G33/(E33/2)),0),ROUNDDOWN(E33/C33,0))) -> 0 | K33: 1.9 | N33: =IF(L33="JA",MIN(F33,I33),ROUNDDOWN(M33/K33,0)) -> 0 | P33: =IF(M33=0,0,O33/M33) -> 0 | Q33: 0 | R33: =Berechnungstabellen!I59 -> 0
A34: Pferde bis 350 kg | C34: 4 | F34: 0 | H34: 0 | I34: 0 | K34: 3 | N34: 0 | P34: 0 | Q34: 0 | R34: =Berechnungstabellen!I60 -> 0
A35: Pferde über 350 kg | C35: 5 | F35: =ROUNDDOWN(E35/C35,0) -> 0 | H35: =IF(ISERROR(G35/E35),0,G35/E35) -> 0 | I35: =IF(G35=0,F35,IF(ROUNDDOWN(E35/C35/(G35/(E35/2)),0)<(E35/C35),ROUNDDOWN(E35/C35/(G35/(E35/2)),0),ROUNDDOWN(E35/C35,0))) -> 0 | K35: 3.7 | N35: =IF(L35="JA",MIN(F35,I35),ROUNDDOWN(M35/K35,0)) -> 0 | P35: =IF(M35=0,0,O35/M35) -> 0 | Q35: 0 | R35: =Berechnungstabellen!I61 -> 0
A36: Geprüfte Maßangaben:
A38: Anmerkungen / best. ANG´s
A40: Stallblatt | B40: =B21+1 -> 3 | C40: Stallname (bei mehreren Ställen: Je Stall ist das Formular jew. separat auszufüllen): | O40: Baujahr:
C41: Stallgebäude | K41: Außenfläche (muss planbefestigt sein!)
E42: Stallfläche | H42: Stallboden
A43: Tiergruppe | C43: benötigte m²/Tier | D43: Box-nummer(n) lt. Stall-plan | E43: Stall-fläche m² | F43: max. Tierzahl Stallfläche | G43: davon Spalten-boden / perforiert m² | H43: in % | I43: max. Tierzahl Stall-boden | J43: Belegung aktuell | K43: benötigte m²/Tier | L43: Zugang Weide möglich (Mai-Okt.) | M43: Außen-fläche m² | N43: max. Tierzahl Außen-flächen | O43: Über-dachung m2 | P43: Über-dachung % | Q43: max. Tierzahl Über-dachung | R43: Max. Tier-zahl
A44: Schafe | G44: max. | H44: 0.5 | O44: max. | P44: 0.5
A45: Lamm (< 1J) | C45: 0.35 | F45: =ROUNDDOWN(E45/C45,0) -> 0 | H45: =IF(ISERROR(G45/E45),0,G45/E45) -> 0 | I45: =IF(G45=0,F45,IF(ROUNDDOWN(E45/C45/(G45/(E45/2)),0)<(E45/C45),ROUNDDOWN(E45/C45/(G45/(E45/2)),0),ROUNDDOWN(E45/C45,0))) -> 0 | K45: 0.5 | N45: =IF(L45="JA",MIN(F45,I45),ROUNDDOWN(M45/K45,0)) -> 0 | P45: =IF(M45=0,0,O45/M45) -> 0 | Q45: =IF(L45="JA",N45,IF(M45=0,0,IF(ROUNDDOWN((N45+(N45*-((O45-(M45*P$6))/(M45-(M45*P$6))))),0)>N45,N45,(ROUNDDOWN((N45+(N45*-((O45-(M45*P$6))/(M45-(M45*P$6))))),0))))) -> 0 | R45: =Berechnungstabellen!I63 -> 0
A46: Mutter-/ Milchschaf | C46: 1.5 | F46: =ROUNDDOWN(E46/C46,0) -> 0 | H46: =IF(ISERROR(G46/E46),0,G46/E46) -> 0 | I46: =IF(G46=0,F46,IF(ROUNDDOWN(E46/C46/(G46/(E46/2)),0)<(E46/C46),ROUNDDOWN(E46/C46/(G46/(E46/2)),0),ROUNDDOWN(E46/C46,0))) -> 0 | K46: 2.5 | N46: =IF(L46="JA",MIN(F46,I46),ROUNDDOWN(M46/K46,0)) -> 0 | P46: =IF(M46=0,0,O46/M46) -> 0 | Q46: =IF(L46="JA",N46,IF(M46=0,0,IF(ROUNDDOWN((N46+(N46*-((O46-(M46*P$6))/(M46-(M46*P$6))))),0)>N46,N46,(ROUNDDOWN((N46+(N46*-((O46-(M46*P$6))/(M46-(M46*P$6))))),0))))) -> 0 | R46: =Berechnungstabellen!I64 -> 0
A47: Ziegen
A48: Ziegenlamm (< 1J) | C48: 0.35 | F48: =ROUNDDOWN(E48/C48,0) -> 0 | H48: =IF(ISERROR(G48/E48),0,G48/E48) -> 0 | I48: =IF(G48=0,F48,IF(ROUNDDOWN(E48/C48/(G48/(E48/2)),0)<(E48/C48),ROUNDDOWN(E48/C48/(G48/(E48/2)),0),ROUNDDOWN(E48/C48,0))) -> 0 | K48: 0.5 | N48: =IF(L48="JA",MIN(F48,I48),ROUNDDOWN(M48/K48,0)) -> 0 | P48: =IF(M48=0,0,O48/M48) -> 0 | Q48: =IF(L48="JA",N48,IF(M48=0,0,IF(ROUNDDOWN((N48+(N48*-((O48-(M48*P$6))/(M48-(M48*P$6))))),0)>N48,N48,(ROUNDDOWN((N48+(N48*-((O48-(M48*P$6))/(M48-(M48*P$6))))),0))))) -> 0 | R48: =Berechnungstabellen!I66 -> 0
A49: Ziegen | C49: 1.5 | F49: =ROUNDDOWN(E49/C49,0) -> 0 | H49: =IF(ISERROR(G49/E49),0,G49/E49) -> 0 | I49: =IF(G49=0,F49,IF(ROUNDDOWN(E49/C49/(G49/(E49/2)),0)<(E49/C49),ROUNDDOWN(E49/C49/(G49/(E49/2)),0),ROUNDDOWN(E49/C49,0))) -> 0 | K49: 2.5 | N49: =IF(L49="JA",MIN(F49,I49),ROUNDDOWN(M49/K49,0)) -> 0 | P49: =IF(M49=0,0,O49/M49) -> 0 | Q49: 0 | R49: =Berechnungstabellen!I67 -> 0
A50: Pferde | C50: 1m²/100kg | K50: 0,75m²/100kg
A51: Pferde < 100 kg | C51: 1.5 | F51: =ROUNDDOWN(E51/C51,0) -> 0 | H51: =IF(ISERROR(G51/E51),0,G51/E51) -> 0 | I51: =IF(G51=0,F51,IF(ROUNDDOWN(E51/C51/(G51/(E51/2)),0)<(E51/C51),ROUNDDOWN(E51/C51/(G51/(E51/2)),0),ROUNDDOWN(E51/C51,0))) -> 0 | K51: 1.1 | N51: =IF(L51="JA",MIN(F51,I51),ROUNDDOWN(M51/K51,0)) -> 0 | P51: =IF(M51=0,0,O51/M51) -> 0 | Q51: =IF(L51="JA",N51,IF(M51=0,0,IF(ROUNDDOWN((N51+(N51*-((O51-(M51*P$6))/(M51-(M51*P$6))))),0)>N51,N51,(ROUNDDOWN((N51+(N51*-((O51-(M51*P$6))/(M51-(M51*P$6))))),0))))) -> 0 | R51: =Berechnungstabellen!I69 -> 0
A52: Pferde bis 200 kg | C52: 2.5 | F52: =ROUNDDOWN(E52/C52,0) -> 0 | H52: =IF(ISERROR(G52/E52),0,G52/E52) -> 0 | I52: =IF(G52=0,F52,IF(ROUNDDOWN(E52/C52/(G52/(E52/2)),0)<(E52/C52),ROUNDDOWN(E52/C52/(G52/(E52/2)),0),ROUNDDOWN(E52/C52,0))) -> 0 | K52: 1.9 | N52: =IF(L52="JA",MIN(F52,I52),ROUNDDOWN(M52/K52,0)) -> 0 | P52: =IF(M52=0,0,O52/M52) -> 0 | Q52: 0 | R52: =Berechnungstabellen!I70 -> 0
A53: Pferde bis 350 kg | C53: 4 | F53: 0 | H53: 0 | I53: 0 | K53: 3 | N53: 0 | P53: 0 | Q53: 0 | R53: =Berechnungstabellen!I71 -> 0
A54: Pferde über 350 kg | C54: 5 | F54: =ROUNDDOWN(E54/C54,0) -> 0 | H54: =IF(ISERROR(G54/E54),0,G54/E54) -> 0 | I54: =IF(G54=0,F54,IF(ROUNDDOWN(E54/C54/(G54/(E54/2)),0)<(E54/C54),ROUNDDOWN(E54/C54/(G54/(E54/2)),0),ROUNDDOWN(E54/C54,0))) -> 0 | K54: 3.7 | N54: =IF(L54="JA",MIN(F54,I54),ROUNDDOWN(M54/K54,0)) -> 0 | P54: =IF(M54=0,0,O54/M54) -> 0 | Q54: 0 | R54: =Berechnungstabellen!I72 -> 0
A55: Geprüfte Maßangaben:
A57: Anmerkungen / best. ANG´s
A59: Stallblatt | B59: =B40+1 -> 4 | C59: Stallname (bei mehreren Ställen: Je Stall ist das Formular jew. separat auszufüllen): | O59: Baujahr:
C60: Stallgebäude | K60: Außenfläche (muss planbefestigt sein!)
E61: Stallfläche | H61: Stallboden
A62: Tiergruppe | C62: benötigte m²/Tier | D62: Box-nummer(n) lt. Stall-plan | E62: Stall-fläche m² | F62: max. Tierzahl Stallfläche | G62: davon Spalten-boden / perforiert m² | H62: in % | I62: max. Tierzahl Stall-boden | J62: Belegung aktuell | K62: benötigte m²/Tier | L62: Zugang Weide möglich (Mai-Okt.) | M62: Außen-fläche m² | N62: max. Tierzahl Außen-flächen | O62: Über-dachung m2 | P62: Über-dachung % | Q62: max. Tierzahl Über-dachung | R62: Max. Tier-zahl
A63: Schafe | G63: max. | H63: 0.5 | O63: max. | P63: 0.5
A64: Lamm (< 1J) | C64: 0.35 | F64: =ROUNDDOWN(E64/C64,0) -> 0 | H64: =IF(ISERROR(G64/E64),0,G64/E64) -> 0 | I64: =IF(G64=0,F64,IF(ROUNDDOWN(E64/C64/(G64/(E64/2)),0)<(E64/C64),ROUNDDOWN(E64/C64/(G64/(E64/2)),0),ROUNDDOWN(E64/C64,0))) -> 0 | K64: 0.5 | N64: =IF(L64="JA",MIN(F64,I64),ROUNDDOWN(M64/K64,0)) -> 0 | P64: =IF(M64=0,0,O64/M64) -> 0 | Q64: =IF(L64="JA",N64,IF(M64=0,0,IF(ROUNDDOWN((N64+(N64*-((O64-(M64*P$6))/(M64-(M64*P$6))))),0)>N64,N64,(ROUNDDOWN((N64+(N64*-((O64-(M64*P$6))/(M64-(M64*P$6))))),0))))) -> 0 | R64: =Berechnungstabellen!I74 -> 0
A65: Mutter-/ Milchschaf | C65: 1.5 | F65: =ROUNDDOWN(E65/C65,0) -> 0 | H65: =IF(ISERROR(G65/E65),0,G65/E65) -> 0 | I65: =IF(G65=0,F65,IF(ROUNDDOWN(E65/C65/(G65/(E65/2)),0)<(E65/C65),ROUNDDOWN(E65/C65/(G65/(E65/2)),0),ROUNDDOWN(E65/C65,0))) -> 0 | K65: 2.5 | N65: =IF(L65="JA",MIN(F65,I65),ROUNDDOWN(M65/K65,0)) -> 0 | P65: =IF(M65=0,0,O65/M65) -> 0 | Q65: =IF(L65="JA",N65,IF(M65=0,0,IF(ROUNDDOWN((N65+(N65*-((O65-(M65*P$6))/(M65-(M65*P$6))))),0)>N65,N65,(ROUNDDOWN((N65+(N65*-((O65-(M65*P$6))/(M65-(M65*P$6))))),0))))) -> 0 | R65: =Berechnungstabellen!I75 -> 0
A66: Ziegen
A67: Ziegenlamm (< 1J) | C67: 0.35 | F67: =ROUNDDOWN(E67/C67,0) -> 0 | H67: =IF(ISERROR(G67/E67),0,G67/E67) -> 0 | I67: =IF(G67=0,F67,IF(ROUNDDOWN(E67/C67/(G67/(E67/2)),0)<(E67/C67),ROUNDDOWN(E67/C67/(G67/(E67/2)),0),ROUNDDOWN(E67/C67,0))) -> 0 | K67: 0.5 | N67: =IF(L67="JA",MIN(F67,I67),ROUNDDOWN(M67/K67,0)) -> 0 | P67: =IF(M67=0,0,O67/M67) -> 0 | Q67: =IF(L67="JA",N67,IF(M67=0,0,IF(ROUNDDOWN((N67+(N67*-((O67-(M67*P$6))/(M67-(M67*P$6))))),0)>N67,N67,(ROUNDDOWN((N67+(N67*-((O67-(M67*P$6))/(M67-(M67*P$6))))),0))))) -> 0 | R67: =Berechnungstabellen!I77 -> 0
A68: Ziegen | C68: 1.5 | F68: =ROUNDDOWN(E68/C68,0) -> 0 | H68: =IF(ISERROR(G68/E68),0,G68/E68) -> 0 | I68: =IF(G68=0,F68,IF(ROUNDDOWN(E68/C68/(G68/(E68/2)),0)<(E68/C68),ROUNDDOWN(E68/C68/(G68/(E68/2)),0),ROUNDDOWN(E68/C68,0))) -> 0 | K68: 2.5 | N68: =IF(L68="JA",MIN(F68,I68),ROUNDDOWN(M68/K68,0)) -> 0 | P68: =IF(M68=0,0,O68/M68) -> 0 | Q68: 0 | R68: =Berechnungstabellen!I78 -> 0
A69: Pferde | C69: 1m²/100kg | K69: 0,75m²/100kg
A70: Pferde < 100 kg | C70: 1.5 | F70: =ROUNDDOWN(E70/C70,0) -> 0 | H70: =IF(ISERROR(G70/E70),0,G70/E70) -> 0 | I70: =IF(G70=0,F70,IF(ROUNDDOWN(E70/C70/(G70/(E70/2)),0)<(E70/C70),ROUNDDOWN(E70/C70/(G70/(E70/2)),0),ROUNDDOWN(E70/C70,0))) -> 0 | K70: 1.1 | N70: =IF(L70="JA",MIN(F70,I70),ROUNDDOWN(M70/K70,0)) -> 0 | P70: =IF(M70=0,0,O70/M70) -> 0 | Q70: =IF(L70="JA",N70,IF(M70=0,0,IF(ROUNDDOWN((N70+(N70*-((O70-(M70*P$6))/(M70-(M70*P$6))))),0)>N70,N70,(ROUNDDOWN((N70+(N70*-((O70-(M70*P$6))/(M70-(M70*P$6))))),0))))) -> 0 | R70: =Berechnungstabellen!I80 -> 0
A71: Pferde bis 200 kg | C71: 2.5 | F71: =ROUNDDOWN(E71/C71,0) -> 0 | H71: =IF(ISERROR(G71/E71),0,G71/E71) -> 0 | I71: =IF(G71=0,F71,IF(ROUNDDOWN(E71/C71/(G71/(E71/2)),0)<(E71/C71),ROUNDDOWN(E71/C71/(G71/(E71/2)),0),ROUNDDOWN(E71/C71,0))) -> 0 | K71: 1.9 | N71: =IF(L71="JA",MIN(F71,I71),ROUNDDOWN(M71/K71,0)) -> 0 | P71: =IF(M71=0,0,O71/M71) -> 0 | Q71: 0 | R71: =Berechnungstabellen!I81 -> 0
A72: Pferde bis 350 kg | C72: 4 | F72: 0 | H72: 0 | I72: 0 | K72: 3 | N72: 0 | P72: 0 | Q72: 0 | R72: =Berechnungstabellen!I82 -> 0
A73: Pferde über 350 kg | C73: 5 | F73: =ROUNDDOWN(E73/C73,0) -> 0 | H73: =IF(ISERROR(G73/E73),0,G73/E73) -> 0 | I73: =IF(G73=0,F73,IF(ROUNDDOWN(E73/C73/(G73/(E73/2)),0)<(E73/C73),ROUNDDOWN(E73/C73/(G73/(E73/2)),0),ROUNDDOWN(E73/C73,0))) -> 0 | K73: 3.7 | N73: =IF(L73="JA",MIN(F73,I73),ROUNDDOWN(M73/K73,0)) -> 0 | P73: =IF(M73=0,0,O73/M73) -> 0 | Q73: 0 | R73: =Berechnungstabellen!I83 -> 0
A74: Geprüfte Maßangaben:
A76: Anmerkungen / best. ANG´s

Sheet Schweine
A1: Ermittlung der maximalen Tierzahl, die gem. EU VO 2018/848 sowie 2020-464 Anhang I je Stallblatt gehalten werden darf | R1: Schweine
A2: Stallblatt | B2: 1 | C2: Stallname (bei mehreren Ställen: Je Stall ist das Formular jew. separat auszufüllen): | P2: Baujahr:
C3: Stallgebäude | K3: Außenfläche (muss planbefestigt sein!) | T3: Zum Abgleich Eingabe Ecert mit Bestandsbuch Tagesbestand
E4: Stallfläche | H4: Stallboden | M4: Außenfläche | P4: Überdachung
A5: Tiergruppe | C5: benötigte m²/Tier | D5: Box-nummer(n) lt. Stall-plan | E5: Stall-fläche m² | F5: max. Tierzahl Stallfläche | G5: davon Spalten-boden / per-foriert m² | H5: in % | I5: max. Tierzahl Stall-boden | J5: Belegung aktuell | K5: benötigte m²/Tier | L5: Zugang Weide möglich (Mai-Okt.) | M5: Außen-fläche m² | N5: max. Tierzahl Außen-flächen | O5: Über-dachung m2 | P5: Über-dachung % | Q5: max. Tierzahl Über-dachung | R5: Max. Tier-zahl | T5: Max. Tierzahl ges. über alle Ställe
G6: max. | H6: 0.5 | O6: max. | P6: 0.5 | U6: Max Tierzahl ges. | V6: Gehaltene Tiere
A7: Führende Sau m. Ferkel <40 T. | C7: 7.5 | F7: =ROUNDDOWN(E7/C7,0) -> 0 | H7: =IF(ISERROR(G7/E7),0,G7/E7) -> 0 | I7: =IF(G7=0,F7,IF(ROUNDDOWN(E7/C7/(G7/(E7/2)),0)<(E7/C7),ROUNDDOWN(E7/C7/(G7/(E7/2)),0),ROUNDDOWN(E7/C7,0))) -> 0 | K7: 2.5 | N7: =IF(L7="JA",MIN(F7,I7),ROUNDDOWN(M7/K7,0)) -> 0 | P7: =IF(M7=0,0,O7/M7) -> 0 | Q7: =IF(L7="JA",N7,IF(M7=0,0,IF(ROUNDDOWN((N7+(N7*-((O7-(M7*P$6))/(M7-(M7*P$6))))),0)>N7,N7,(ROUNDDOWN((N7+(N7*-((O7-(M7*P$6))/(M7-(M7*P$6))))),0))))) -> 0 | R7: =Berechnungstabellen!I146 -> 0 | T7: =A7 -> Führende Sau m. Ferkel <40 T. | U7: =Berechnungstabellen!J146 -> 0 | V7: =J7+J25+J43+J61+J79 -> 0
A8: Ferkel >40Tage, < 30 kg | C8: 0.6 | F8: =ROUNDDOWN(E8/C8,0) -> 0 | H8: =IF(ISERROR(G8/E8),0,G8/E8) -> 0 | I8: =IF(G8=0,F8,IF(ROUNDDOWN(E8/C8/(G8/(E8/2)),0)<(E8/C8),ROUNDDOWN(E8/C8/(G8/(E8/2)),0),ROUNDDOWN(E8/C8,0))) -> 0 | K8: 0.4 | N8: =IF(L8="JA",MIN(F8,I8),ROUNDDOWN(M8/K8,0)) -> 0 | P8: =IF(M8=0,0,O8/M8) -> 0 | Q8: =IF(L8="JA",N8,IF(M8=0,0,IF(ROUNDDOWN((N8+(N8*-((O8-(M8*P$6))/(M8-(M8*P$6))))),0)>N8,N8,(ROUNDDOWN((N8+(N8*-((O8-(M8*P$6))/(M8-(M8*P$6))))),0))))) -> 0 | R8: =Berechnungstabellen!I147 -> 0 | T8: =A8 -> Ferkel >40Tage, < 30 kg | U8: =Berechnungstabellen!J147 -> 0 | V8: =J8+J26+J44+J62+J80 -> 0
A9: Mastschweine bis 50 kg | C9: 0.8 | F9: 0 | H9: 0 | I9: =IF(G9=0,F9,IF(ROUNDDOWN(E9/C9/(G9/(E9/2)),0)<(E9/C9),ROUNDDOWN(E9/C9/(G9/(E9/2)),0),ROUNDDOWN(E9/C9,0))) -> 0 | K9: 0.6 | N9: 0 | P9: 0 | Q9: 0 | R9: =Berechnungstabellen!I148 -> 0 | T9: =A9 -> Mastschweine bis 50 kg | U9: =Berechnungstabellen!J148 -> 0 | V9: 0
A10: Mastschweine bis 85 kg | C10: 1.1 | F10: 0 | H10: 0 | I10: 0 | K10: 0.8 | N10: 0 | P10: 0 | Q10: 0 | R10: =Berechnungstabellen!I149 -> 0 | T10: =A10 -> Mastschweine bis 85 kg | U10: =Berechnungstabellen!J149 -> 0 | V10: 0
A11: Mastschweine bis 110 kg | C11: 1.3 | F11: 0 | H11: 0 | I11: 0 | K11: 1 | N11: 0 | P11: 0 | Q11: 0 | R11: =Berechnungstabellen!I150 -> 0 | T11: Mastschweine bis 110 kg | U11: =Berechnungstabellen!J150 -> 0 | V11: 0
A12: Mastschweine über 110 kg | C12: 1.5 | F12: 0 | H12: 0 | I12: 0 | K12: 1.2 | N12: 0 | P12: 0 | Q12: 0 | R12: =Berechnungstabellen!I151 -> 0 | T12: Mastschweine über 110 kg | U12: =Berechnungstabellen!J151 -> 0 | V12: 0
A13: Zuchtsauen | C13: 2.5 | F13: 0 | H13: 0 | I13: 0 | K13: 1.9 | N13: 0 | P13: 0 | Q13: 0 | R13: =Berechnungstabellen!I152 -> 0 | T13: Zuchtsauen | U13: =Berechnungstabellen!J152 -> 0 | V13: 0
A14: Eber | C14: 6 | F14: 0 | H14: 0 | I14: 0 | K14: 8 | N14: 0 | P14: 0 | Q14: 0 | R14: =Berechnungstabellen!I153 -> 0 | T14: Eber | U14: =Berechnungstabellen!J153 -> 0 | V14: 0
A15: Eber (natürl. Paarung in Buchten) | C15: 10 | F15: 0 | H15: 0 | I15: 0 | K15: 8 | N15: 0 | P15: 0 | Q15: 0 | R15: =Berechnungstabellen!I154 -> 0 | T15: Eber (natürl. Paarung in Buchten) | U15: =Berechnungstabellen!J154 -> 0 | V15: 0
A16: Geprüfte Maßangaben:
A18: Anmerkungen / ANG´s
A20: Stallblatt | B20: =B2+1 -> 2 | C20: Stallname (bei mehreren Ställen: Je Stall ist das Formular jew. separat auszufüllen): | P20: Baujahr:
C21: Stallgebäude | K21: Außenfläche (muss planbefestigt sein!)
E22: Stallfläche | H22: Stallboden | M22: Außenfläche | P22: Überdachung
A23: Tiergruppe | C23: benötigte m²/Tier | D23: Box-nummer(n) lt. Stall-plan | E23: Stall-fläche m² | F23: max. Tierzahl Stallfläche | G23: davon Spalten-boden / per-foriert m² | H23: in % | I23: max. Tierzahl Stall-boden | J23: Belegung aktuell | K23: benötigte m²/Tier | L23: Zugang Weide möglich (Mai-Okt.) | M23: Außen-fläche m² | N23: max. Tierzahl Außen-flächen | O23: Über-dachung m2 | P23: Über-dachung % | Q23: max. Tierzahl Über-dachung | R23: Max. Tier-zahl
G24: max. | H24: 0.5 | O24: max. | P24: 0.5
A25: Führende Sau m. Ferkel <40 T. | C25: 7.5 | F25: =ROUNDDOWN(E25/C25,0) -> 0 | H25: =IF(ISERROR(G25/E25),0,G25/E25) -> 0 | I25: =IF(G25=0,F25,IF(ROUNDDOWN(E25/C25/(G25/(E25/2)),0)<(E25/C25),ROUNDDOWN(E25/C25/(G25/(E25/2)),0),ROUNDDOWN(E25/C25,0))) -> 0 | K25: 2.5 | N25: =IF(L25="JA",MIN(F25,I25),ROUNDDOWN(M25/K25,0)) -> 0 | P25: =IF(M25=0,0,O25/M25) -> 0 | Q25: =IF(L25="JA",N25,IF(M25=0,0,IF(ROUNDDOWN((N25+(N25*-((O25-(M25*P$6))/(M25-(M25*P$6))))),0)>N25,N25,(ROUNDDOWN((N25+(N25*-((O25-(M25*P$6))/(M25-(M25*P$6))))),0))))) -> 0 | R25: =Berechnungstabellen!I156 -> 0
A26: Ferkel >40Tage, < 30 kg | C26: 0.6 | F26: =ROUNDDOWN(E26/C26,0) -> 0 | H26: =IF(ISERROR(G26/E26),0,G26/E26) -> 0 | I26: =IF(G26=0,F26,IF(ROUNDDOWN(E26/C26/(G26/(E26/2)),0)<(E26/C26),ROUNDDOWN(E26/C26/(G26/(E26/2)),0),ROUNDDOWN(E26/C26,0))) -> 0 | K26: 0.4 | N26: =IF(L26="JA",MIN(F26,I26),ROUNDDOWN(M26/K26,0)) -> 0 | P26: =IF(M26=0,0,O26/M26) -> 0 | Q26: =IF(L26="JA",N26,IF(M26=0,0,IF(ROUNDDOWN((N26+(N26*-((O26-(M26*P$6))/(M26-(M26*P$6))))),0)>N26,N26,(ROUNDDOWN((N26+(N26*-((O26-(M26*P$6))/(M26-(M26*P$6))))),0))))) -> 0 | R26: =Berechnungstabellen!I157 -> 0
A27: Mastschweine bis 50 kg | C27: 0.8 | F27: 0 | H27: 0 | I27: =IF(G27=0,F27,IF(ROUNDDOWN(E27/C27/(G27/(E27/2)),0)<(E27/C27),ROUNDDOWN(E27/C27/(G27/(E27/2)),0),ROUNDDOWN(E27/C27,0))) -> 0 | K27: 0.6 | N27: 0 | P27: 0 | Q27: 0 | R27: =Berechnungstabellen!I158 -> 0
A28: Mastschweine bis 85 kg | C28: 1.1 | F28: 0 | H28: 0 | I28: 0 | K28: 0.8 | N28: 0 | P28: 0 | Q28: 0 | R28: =Berechnungstabellen!I159 -> 0
A29: Mastschweine bis 110 kg | C29: 1.3 | F29: 0 | H29: 0 | I29: 0 | K29: 1 | N29: 0 | P29: 0 | Q29: 0 | R29: =Berechnungstabellen!I160 -> 0
A30: Mastschweine über 110 kg | C30: 1.5 | F30: 0 | H30: 0 | I30: 0 | K30: 1.2 | N30: 0 | P30: 0 | Q30: 0 | R30: =Berechnungstabellen!I161 -> 0
A31: Zuchtsauen | C31: 2.5 | F31: 0 | H31: 0 | I31: 0 | K31: 1.9 | N31: 0 | P31: 0 | Q31: 0 | R31: =Berechnungstabellen!I162 -> 0
A32: Eber | C32: 6 | F32: 0 | H32: 0 | I32: 0 | K32: 8 | N32: 0 | P32: 0 | Q32: 0 | R32: =Berechnungstabellen!I163 -> 0
A33: Eber (natürl. Paarung in Buchten) | C33: 10 | F33: 0 | H33: 0 | I33: 0 | K33: 8 | N33: 0 | P33: 0 | Q33: 0 | R33: =Berechnungstabellen!I164 -> 0
A34: Geprüfte Maßangaben:
A36: Anmerkungen / ANG´s
A38: Stallblatt | B38: =B20+1 -> 3 | C38: Stallname (bei mehreren Ställen: Je Stall ist das Formular jew. separat auszufüllen): | P38: Baujahr:
C39: Stallgebäude | K39: Außenfläche (muss planbefestigt sein!)
E40: Stallfläche | H40: Stallboden | M40: Außenfläche | P40: Überdachung
A41: Tiergruppe | C41: benötigte m²/Tier | D41: Box-nummer(n) lt. Stall-plan | E41: Stall-fläche m² | F41: max. Tierzahl Stallfläche | G41: davon Spalten-boden / per-foriert m² | H41: in % | I41: max. Tierzahl Stall-boden | J41: Belegung aktuell | K41: benötigte m²/Tier | L41: Zugang Weide möglich (Mai-Okt.) | M41: Außen-fläche m² | N41: max. Tierzahl Außen-flächen | O41: Über-dachung m2 | P41: Über-dachung % | Q41: max. Tierzahl Über-dachung | R41: Max. Tier-zahl
G42: max. | H42: 0.5 | O42: max. | P42: 0.5
A43: Führende Sau m. Ferkel <40 T. | C43: 7.5 | F43: =ROUNDDOWN(E43/C43,0) -> 0 | H43: =IF(ISERROR(G43/E43),0,G43/E43) -> 0 | I43: =IF(G43=0,F43,IF(ROUNDDOWN(E43/C43/(G43/(E43/2)),0)<(E43/C43),ROUNDDOWN(E43/C43/(G43/(E43/2)),0),ROUNDDOWN(E43/C43,0))) -> 0 | K43: 2.5 | N43: =IF(L43="JA",MIN(F43,I43),ROUNDDOWN(M43/K43,0)) -> 0 | P43: =IF(M43=0,0,O43/M43) -> 0 | Q43: =IF(L43="JA",N43,IF(M43=0,0,IF(ROUNDDOWN((N43+(N43*-((O43-(M43*P$6))/(M43-(M43*P$6))))),0)>N43,N43,(ROUNDDOWN((N43+(N43*-((O43-(M43*P$6))/(M43-(M43*P$6))))),0))))) -> 0 | R43: =Berechnungstabellen!I166 -> 0
A44: Ferkel >40Tage, < 30 kg | C44: 0.6 | F44: =ROUNDDOWN(E44/C44,0) -> 0 | H44: =IF(ISERROR(G44/E44),0,G44/E44) -> 0 | I44: =IF(G44=0,F44,IF(ROUNDDOWN(E44/C44/(G44/(E44/2)),0)<(E44/C44),ROUNDDOWN(E44/C44/(G44/(E44/2)),0),ROUNDDOWN(E44/C44,0))) -> 0 | K44: 0.4 | N44: =IF(L44="JA",MIN(F44,I44),ROUNDDOWN(M44/K44,0)) -> 0 | P44: =IF(M44=0,0,O44/M44) -> 0 | Q44: =IF(L44="JA",N44,IF(M44=0,0,IF(ROUNDDOWN((N44+(N44*-((O44-(M44*P$6))/(M44-(M44*P$6))))),0)>N44,N44,(ROUNDDOWN((N44+(N44*-((O44-(M44*P$6))/(M44-(M44*P$6))))),0))))) -> 0 | R44: =Berechnungstabellen!I167 -> 0
A45: Mastschweine bis 50 kg | C45: 0.8 | F45: 0 | H45: 0 | I45: =IF(G45=0,F45,IF(ROUNDDOWN(E45/C45/(G45/(E45/2)),0)<(E45/C45),ROUNDDOWN(E45/C45/(G45/(E45/2)),0),ROUNDDOWN(E45/C45,0))) -> 0 | K45: 0.6 | N45: 0 | P45: 0 | Q45: 0 | R45: =Berechnungstabellen!I168 -> 0
A46: Mastschweine bis 85 kg | C46: 1.1 | F46: 0 | H46: 0 | I46: 0 | K46: 0.8 | N46: 0 | P46: 0 | Q46: 0 | R46: =Berechnungstabellen!I169 -> 0
A47: Mastschweine bis 110 kg | C47: 1.3 | F47: 0 | H47: 0 | I47: 0 | K47: 1 | N47: 0 | P47: 0 | Q47: 0 | R47: =Berechnungstabellen!I170 -> 0
A48: Mastschweine über 110 kg | C48: 1.5 | F48: 0 | H48: 0 | I48: 0 | K48: 1.2 | N48: 0 | P48: 0 | Q48: 0 | R48: =Berechnungstabellen!I171 -> 0
A49: Zuchtsauen | C49: 2.5 | F49: 0 | H49: 0 | I49: 0 | K49: 1.9 | N49: 0 | P49: 0 | Q49: 0 | R49: =Berechnungstabellen!I172 -> 0
A50: Eber | C50: 6 | F50: 0 | H50: 0 | I50: 0 | K50: 8 | N50: 0 | P50: 0 | Q50: 0 | R50: =Berechnungstabellen!I173 -> 0
A51: Eber (natürl. Paarung in Buchten) | C51: 10 | F51: 0 | H51: 0 | I51: 0 | K51: 8 | N51: 0 | P51: 0 | Q51: 0 | R51: =Berechnungstabellen!I174 -> 0
A52: Geprüfte Maßangaben:
A54: Anmerkungen / ANG´s
A56: Stallblatt | B56: =B38+1 -> 4 | C56: Stallname (bei mehreren Ställen: Je Stall ist das Formular jew. separat auszufüllen): | P56: Baujahr:
C57: Stallgebäude | K57: Außenfläche (muss planbefestigt sein!)
E58: Stallfläche | H58: Stallboden | M58: Außenfläche | P58: Überdachung
A59: Tiergruppe | C59: benötigte m²/Tier | D59: Box-nummer(n) lt. Stall-plan | E59: Stall-fläche m² | F59: max. Tierzahl Stallfläche | G59: davon Spalten-boden / per-foriert m² | H59: in % | I59: max. Tierzahl Stall-boden | J59: Belegung aktuell | K59: benötigte m²/Tier | L59: Zugang Weide möglich (Mai-Okt.) | M59: Außen-fläche m² | N59: max. Tierzahl Außen-flächen | O59: Über-dachung m2 | P59: Über-dachung % | Q59: max. Tierzahl Über-dachung | R59: Max. Tier-zahl
G60: max. | H60: 0.5 | O60: max. | P60: 0.5
A61: Führende Sau m. Ferkel <40 T. | C61: 7.5 | F61: =ROUNDDOWN(E61/C61,0) -> 0 | H61: =IF(ISERROR(G61/E61),0,G61/E61) -> 0 | I61: =IF(G61=0,F61,IF(ROUNDDOWN(E61/C61/(G61/(E61/2)),0)<(E61/C61),ROUNDDOWN(E61/C61/(G61/(E61/2)),0),ROUNDDOWN(E61/C61,0))) -> 0 | K61: 2.5 | N61: =IF(L61="JA",MIN(F61,I61),ROUNDDOWN(M61/K61,0)) -> 0 | P61: =IF(M61=0,0,O61/M61) -> 0 | Q61: =IF(L61="JA",N61,IF(M61=0,0,IF(ROUNDDOWN((N61+(N61*-((O61-(M61*P$6))/(M61-(M61*P$6))))),0)>N61,N61,(ROUNDDOWN((N61+(N61*-((O61-(M61*P$6))/(M61-(M61*P$6))))),0))))) -> 0 | R61: =Berechnungstabellen!I176 -> 0
A62: Ferkel >40Tage, < 30 kg | C62: 0.6 | F62: =ROUNDDOWN(E62/C62,0) -> 0 | H62: =IF(ISERROR(G62/E62),0,G62/E62) -> 0 | I62: =IF(G62=0,F62,IF(ROUNDDOWN(E62/C62/(G62/(E62/2)),0)<(E62/C62),ROUNDDOWN(E62/C62/(G62/(E62/2)),0),ROUNDDOWN(E62/C62,0))) -> 0 | K62: 0.4 | N62: =IF(L62="JA",MIN(F62,I62),ROUNDDOWN(M62/K62,0)) -> 0 | P62: =IF(M62=0,0,O62/M62) -> 0 | Q62: =IF(L62="JA",N62,IF(M62=0,0,IF(ROUNDDOWN((N62+(N62*-((O62-(M62*P$6))/(M62-(M62*P$6))))),0)>N62,N62,(ROUNDDOWN((N62+(N62*-((O62-(M62*P$6))/(M62-(M62*P$6))))),0))))) -> 0 | R62: =Berechnungstabellen!I177 -> 0
A63: Mastschweine bis 50 kg | C63: 0.8 | F63: 0 | H63: 0 | I63: =IF(G63=0,F63,IF(ROUNDDOWN(E63/C63/(G63/(E63/2)),0)<(E63/C63),ROUNDDOWN(E63/C63/(G63/(E63/2)),0),ROUNDDOWN(E63/C63,0))) -> 0 | K63: 0.6 | N63: 0 | P63: 0 | Q63: 0 | R63: =Berechnungstabellen!I178 -> 0
A64: Mastschweine bis 85 kg | C64: 1.1 | F64: 0 | H64: 0 | I64: 0 | K64: 0.8 | N64: 0 | P64: 0 | Q64: 0 | R64: =Berechnungstabellen!I179 -> 0
A65: Mastschweine bis 110 kg | C65: 1.3 | F65: 0 | H65: 0 | I65: 0 | K65: 1 | N65: 0 | P65: 0 | Q65: 0 | R65: =Berechnungstabellen!I180 -> 0
A66: Mastschweine über 110 kg | C66: 1.5 | F66: 0 | H66: 0 | I66: 0 | K66: 1.2 | N66: 0 | P66: 0 | Q66: 0 | R66: =Berechnungstabellen!I181 -> 0
A67: Zuchtsauen | C67: 2.5 | F67: 0 | H67: 0 | I67: 0 | K67: 1.9 | N67: 0 | P67: 0 | Q67: 0 | R67: =Berechnungstabellen!I182 -> 0
A68: Eber | C68: 6 | F68: 0 | H68: 0 | I68: 0 | K68: 8 | N68: 0 | P68: 0 | Q68: 0 | R68: =Berechnungstabellen!I183 -> 0
A69: Eber (natürl. Paarung in Buchten) | C69: 10 | F69: 0 | H69: 0 | I69: 0 | K69: 8 | N69: 0 | P69: 0 | Q69: 0 | R69: =Berechnungstabellen!I184 -> 0
A70: Geprüfte Maßangaben:
A72: Anmerkungen / ANG´s
A74: Stallblatt | B74: =B56+1 -> 5 | C74: Stallname (bei mehreren Ställen: Je Stall ist das Formular jew. separat auszufüllen): | P74: Baujahr:
C75: Stallgebäude | K75: Außenfläche (muss planbefestigt sein!)
E76: Stallfläche | H76: Stallboden | M76: Außenfläche | P76: Überdachung
A77: Tiergruppe | C77: benötigte m²/Tier | D77: Box-nummer(n) lt. Stall-plan | E77: Stall-fläche m² | F77: max. Tierzahl Stallfläche | G77: davon Spalten-boden / per-foriert m² | H77: in % | I77: max. Tierzahl Stall-boden | J77: Belegung aktuell | K77: benötigte m²/Tier | L77: Zugang Weide möglich (Mai-Okt.) | M77: Außen-fläche m² | N77: max. Tierzahl Außen-flächen | O77: Über-dachung m2 | P77: Über-dachung % | Q77: max. Tierzahl Über-dachung | R77: Max. Tier-zahl
G78: max. | H78: 0.5 | O78: max. | P78: 0.5
A79: Führende Sau m. Ferkel <40 T. | C79: 7.5 | F79: =ROUNDDOWN(E79/C79,0) -> 0 | H79: =IF(ISERROR(G79/E79),0,G79/E79) -> 0 | I79: =IF(G79=0,F79,IF(ROUNDDOWN(E79/C79/(G79/(E79/2)),0)<(E79/C79),ROUNDDOWN(E79/C79/(G79/(E79/2)),0),ROUNDDOWN(E79/C79,0))) -> 0 | K79: 2.5 | N79: =IF(L79="JA",MIN(F79,I79),ROUNDDOWN(M79/K79,0)) -> 0 | P79: =IF(M79=0,0,O79/M79) -> 0 | Q79: =IF(L79="JA",N79,IF(M79=0,0,IF(ROUNDDOWN((N79+(N79*-((O79-(M79*P$6))/(M79-(M79*P$6))))),0)>N79,N79,(ROUNDDOWN((N79+(N79*-((O79-(M79*P$6))/(M79-(M79*P$6))))),0))))) -> 0 | R79: =Berechnungstabellen!I186 -> 0
A80: Ferkel >40Tage, < 30 kg | C80: 0.6 | F80: =ROUNDDOWN(E80/C80,0) -> 0 | H80: =IF(ISERROR(G80/E80),0,G80/E80) -> 0 | I80: =IF(G80=0,F80,IF(ROUNDDOWN(E80/C80/(G80/(E80/2)),0)<(E80/C80),ROUNDDOWN(E80/C80/(G80/(E80/2)),0),ROUNDDOWN(E80/C80,0))) -> 0 | K80: 0.4 | N80: =IF(L80="JA",MIN(F80,I80),ROUNDDOWN(M80/K80,0)) -> 0 | P80: =IF(M80=0,0,O80/M80) -> 0 | Q80: =IF(L80="JA",N80,IF(M80=0,0,IF(ROUNDDOWN((N80+(N80*-((O80-(M80*P$6))/(M80-(M80*P$6))))),0)>N80,N80,(ROUNDDOWN((N80+(N80*-((O80-(M80*P$6))/(M80-(M80*P$6))))),0))))) -> 0 | R80: =Berechnungstabellen!I187 -> 0
A81: Mastschweine bis 50 kg | C81: 0.8 | F81: 0 | H81: 0 | I81: =IF(G81=0,F81,IF(ROUNDDOWN(E81/C81/(G81/(E81/2)),0)<(E81/C81),ROUNDDOWN(E81/C81/(G81/(E81/2)),0),ROUNDDOWN(E81/C81,0))) -> 0 | K81: 0.6 | N81: 0 | P81: 0 | Q81: 0 | R81: =Berechnungstabellen!I188 -> 0
A82: Mastschweine bis 85 kg | C82: 1.1 | F82: 0 | H82: 0 | I82: 0 | K82: 0.8 | N82: 0 | P82: 0 | Q82: 0 | R82: =Berechnungstabellen!I189 -> 0
A83: Mastschweine bis 110 kg | C83: 1.3 | F83: 0 | H83: 0 | I83: 0 | K83: 1 | N83: 0 | P83: 0 | Q83: 0 | R83: =Berechnungstabellen!I190 -> 0
A84: Mastschweine über 110 kg | C84: 1.5 | F84: 0 | H84: 0 | I84: 0 | K84: 1.2 | N84: 0 | P84: 0 | Q84: 0 | R84: =Berechnungstabellen!I191 -> 0
A85: Zuchtsauen | C85: 2.5 | F85: 0 | H85: 0 | I85: 0 | K85: 1.9 | N85: 0 | P85: 0 | Q85: 0 | R85: =Berechnungstabellen!I192 -> 0
A86: Eber | C86: 6 | F86: 0 | H86: 0 | I86: 0 | K86: 8 | N86: 0 | P86: 0 | Q86: 0 | R86: =Berechnungstabellen!I193 -> 0
A87: Eber (natürl. Paarung in Buchten) | C87: 10 | F87: 0 | H87: 0 | I87: 0 | K87: 8 | N87: 0 | P87: 0 | Q87: 0 | R87: =Berechnungstabellen!I194 -> 0
A88: Geprüfte Maßangaben:
A90: Anmerkungen / ANG´s

Sheet Kaninchen
A1: Ermittlung der maximalen Tierzahl, die gem. EU VO 2018/848 sowie 2020/464 Anhang I je Stallblatt gehalten werden darf | Q1: Kaninchen
A2: Stallblatt | B2: 1 | C2: Stallname (bei mehreren Ställen: Je Stall ist das Formular jew. separat auszufüllen): | N2: Baujahr: | S2: Zum Abgleich Eingabe Ecert mit Bestandsregister
A3: Fester Stall | C3: Stallgebäude | K3: Außenfläche (muss planbefestigt sein!)
A4: Mobiler Stall | E4: Stallfläche | H4: Stallboden | N4: Überdachung max. | O4: 0.5 | S4: Max. Tierzahl ges. über alle Ställe
A5: Tiergruppe | C5: benötigte m²/Tier | D5: Stall- /Box-nummer(n) lt. Stall-plan | E5: Stallfläche m² | F5: max. Tierzahl Stallfläche | G5: davon Spalten-boden / perforiert m² | H5: in % | I5: max. Tierzahl Stallboden | J5: Belegung aktuell | K5: benötigte m²/Tier | L5: Außen-fläche m² | M5: max. Tierzahl Außenflächen | N5: Über-dachung m2 | O5: Über-dachung % | P5: max. Tierzahl Über-dachung | Q5: Max. Tier-zahl | U5: Max Tierzahl ges. | V5: Gehaltene Tiere
A6: Säugende Muttertiere mit Jungen bis zum Absetzen Mutter < 6kg | C6: 0.6 | F6: =IF($B$3="Ja",ROUNDDOWN(E6/C6,0),ROUNDDOWN(E6/C6,0)) -> 0 | H6: =IF(ISERROR(G6/E6),0,G6/E6) -> 0 | I6: =IF(G6=0,F6,IF(ROUNDDOWN(E6/C6/(G6/(E6/2)),0)<(E6/C6),ROUNDDOWN(E6/C6/(G6/(E6/2)),0),ROUNDDOWN(E6/C6,0))) -> 0 | K6: 2.5 | M6: =ROUNDDOWN(L6/K6,0) -> 0 | O6: =IF(L6=0,0,N6/L6) -> 0 | P6: =IF(L6=0,0,IF(ROUNDDOWN((M6+(M6*-((N6-(L6*$O$4))/(L6-(L6*$O$4))))),0)>M6,M6,(ROUNDDOWN((M6+(M6*-((N6-(L6*$O$4))/(L6-(L6*$O$4))))),0)))) -> 0 | Q6: =Berechnungstabellen!I87 -> 0 | S6: Säugende Muttertiere mit Jungen bis zum Absetzen Mutter < 6kg | U6: =Berechnungstabellen!J87 -> 0 | V6: =J6+J22+J38+J54+J70+J86 -> 0
A7: Säugende Muttertiere mit Jungen bis zum Absetzen Mutter > 6kg | C7: 0.72 | F7: =IF($B$3="Ja",ROUNDDOWN(E7/C7,0),ROUNDDOWN(E7/C7,0)) -> 0 | H7: =IF(ISERROR(G7/E7),0,G7/E7) -> 0 | I7: =IF(G7=0,F7,IF(ROUNDDOWN(E7/C7/(G7/(E7/2)),0)<(E7/C7),ROUNDDOWN(E7/C7/(G7/(E7/2)),0),ROUNDDOWN(E7/C7,0))) -> 0 | K7: 2.5 | M7: =ROUNDDOWN(L7/K7,0) -> 0 | O7: =IF(L7=0,0,N7/L7) -> 0 | P7: =IF(L7=0,0,IF(ROUNDDOWN((M7+(M7*-((N7-(L7*$O$4))/(L7-(L7*$O$4))))),0)>M7,M7,(ROUNDDOWN((M7+(M7*-((N7-(L7*$O$4))/(L7-(L7*$O$4))))),0)))) -> 0 | Q7: =Berechnungstabellen!I88 -> 0 | S7: Säugende Muttertiere mit Jungen bis zum Absetzen Mutter > 6kg | U7: =Berechnungstabellen!J88 -> 0 | V7: =J7+J23+J39+J55+J71+J87 -> 0
A8: Trächtige Tiere und weibliche Zuchtkaninchen < 6 kg | C8: 0.5 | F8: 0 | H8: 0 | I8: 0 | K8: 2.5 | M8: 0 | O8: 0 | P8: 0 | Q8: =Berechnungstabellen!I89 -> 0 | S8: Trächtige Tiere und weibliche Zuchtkaninchen < 6 kg | U8: =Berechnungstabellen!J89 -> 0 | V8: 0
A9: Trächtige Tiere und weibliche Zuchtkaninchen > 6 kg | C9: 0.62 | F9: 0 | H9: 0 | I9: 0 | K9: 2.5 | M9: 0 | O9: 0 | P9: 0 | Q9: =Berechnungstabellen!I90 -> 0 | S9: Trächtige Tiere und weibliche Zuchtkaninchen > 6 kg | U9: =Berechnungstabellen!J90 -> 0 | V9: 0
A10: Mastkaninchen vom Absetzen bis zur Schlachtung Nachzuchtkaninchen (vom Ende der Mast bis 6 Monate) | C10: 0.2 | F10: =IF($B$3="Ja",ROUNDDOWN(E10/C10,0),ROUNDDOWN(E10/0.15,0)) -> 0 | H10: 0 | I10: 0 | K10: 0.5 | M10: 0 | O10: 0 | P10: 0 | Q10: =Berechnungstabellen!I91 -> 0 | S10: Mastkaninchen vom Absetzen bis zur Schlachtung Nachzuchtkaninchen (vom Ende der Mast bis 6 Monate) | U10: =Berechnungstabellen!J91 -> 0 | V10: 0
A11: Erwachsene Rammler | C11: 0.6 | F11: =ROUNDDOWN(E11/C11,0) -> 0 | H11: 0 | I11: 0 | K11: 2.5 | M11: 0 | O11: 0 | P11: 0 | Q11: =Berechnungstabellen!I92 -> 0 | S11: Erwachsene Rammler | U11: =Berechnungstabellen!J92 -> 0 | V11: 0
A12: Erwachsene Rammler mit Weibchen zur Paarung | C12: 1 | F12: 0 | H12: 0 | I12: 0 | K12: 2.5 | M12: 0 | O12: 0 | P12: 0 | Q12: =Berechnungstabellen!I93 -> 0 | S12: Erwachsene Rammler mit Weibchen zur Paarung | U12: =Berechnungstabellen!J93 -> 0 | V12: 0
A14: Geprüfte Maßangaben:
A16: Anmerkungen / ANG´s
A18: Stallblatt | B18: 2 | C18: Stallname (bei mehreren Ställen: Je Stall ist das Formular jew. separat auszufüllen): | N18: Baujahr:
A19: Fester Stall | C19: Stallgebäude | K19: Außenfläche (muss planbefestigt sein!)
A20: Mobiler Stall | E20: Stallfläche | H20: Stallboden | N20: Überdachung max. | O20: 0.5
A21: Tiergruppe | C21: benötigte m²/Tier | D21: Stall- /Box-nummer(n) lt. Stall-plan | E21: Stallfläche m² | F21: max. Tierzahl Stallfläche | G21: davon Spalten-boden / perforiert m² | H21: in % | I21: max. Tierzahl Stallboden | J21: Belegung aktuell | K21: benötigte m²/Tier | L21: Außen-fläche m² | M21: max. Tierzahl Außenflächen | N21: Über-dachung m2 | O21: Über-dachung % | P21: max. Tierzahl Über-dachung | Q21: Max. Tier-zahl
A22: Säugende Muttertiere mit Jungen bis zum Absetzen Mutter < 6kg | C22: 0.6 | F22: =IF($B$19="Ja",ROUNDDOWN(E22/C22,0),ROUNDDOWN(E22/C22,0)) -> 0 | H22: =IF(ISERROR(G22/E22),0,G22/E22) -> 0 | I22: =IF(G22=0,F22,IF(ROUNDDOWN(E22/C22/(G22/(E22/2)),0)<(E22/C22),ROUNDDOWN(E22/C22/(G22/(E22/2)),0),ROUNDDOWN(E22/C22,0))) -> 0 | K22: 2.5 | M22: =ROUNDDOWN(L22/K22,0) -> 0 | O22: =IF(L22=0,0,N22/L22) -> 0 | P22: =IF(L22=0,0,IF(ROUNDDOWN((M22+(M22*-((N22-(L22*$O$4))/(L22-(L22*$O$4))))),0)>M22,M22,(ROUNDDOWN((M22+(M22*-((N22-(L22*$O$4))/(L22-(L22*$O$4))))),0)))) -> 0 | Q22: =Berechnungstabellen!I95 -> 0
A23: Säugende Muttertiere mit Jungen bis zum Absetzen Mutter > 6kg | C23: 0.72 | F23: =IF($B$19="Ja",ROUNDDOWN(E23/C23,0),ROUNDDOWN(E23/C23,0)) -> 0 | H23: =IF(ISERROR(G23/E23),0,G23/E23) -> 0 | I23: =IF(G23=0,F23,IF(ROUNDDOWN(E23/C23/(G23/(E23/2)),0)<(E23/C23),ROUNDDOWN(E23/C23/(G23/(E23/2)),0),ROUNDDOWN(E23/C23,0))) -> 0 | K23: 2.5 | M23: =ROUNDDOWN(L23/K23,0) -> 0 | O23: =IF(L23=0,0,N23/L23) -> 0 | P23: =IF(L23=0,0,IF(ROUNDDOWN((M23+(M23*-((N23-(L23*$O$4))/(L23-(L23*$O$4))))),0)>M23,M23,(ROUNDDOWN((M23+(M23*-((N23-(L23*$O$4))/(L23-(L23*$O$4))))),0)))) -> 0 | Q23: =Berechnungstabellen!I96 -> 0
A24: Trächtige Tiere und weibliche Zuchtkaninchen < 6 kg | C24: 0.5 | F24: =IF($B$19="Ja",ROUNDDOWN(E24/C24,0),ROUNDDOWN(E24/C24,0)) -> 0 | H24: 0 | I24: 0 | K24: 2.5 | M24: 0 | O24: 0 | P24: 0 | Q24: =Berechnungstabellen!I97 -> 0
A25: Trächtige Tiere und weibliche Zuchtkaninchen > 6 kg | C25: 0.62 | F25: =IF($B$19="Ja",ROUNDDOWN(E25/C25,0),ROUNDDOWN(E25/C25,0)) -> 0 | H25: 0 | I25: 0 | K25: 2.5 | M25: 0 | O25: 0 | P25: 0 | Q25: =Berechnungstabellen!I98 -> 0
A26: Mastkaninchen vom Absetzen bis zur Schlachtung Nachzuchtkaninchen (vom Ende der Mast bis 6 Monate) | C26: 0.2 | F26: =IF($B$19="Ja",ROUNDDOWN(E26/C26,0),ROUNDDOWN(E26/0.15,0)) -> 0 | H26: 0 | I26: 0 | K26: 0.5 | M26: 0 | O26: 0 | P26: 0 | Q26: =Berechnungstabellen!I99 -> 0
A27: Erwachsene Rammler | C27: 0.6 | F27: =ROUNDDOWN(E27/C27,0) -> 0 | H27: 0 | I27: 0 | K27: 2.5 | M27: 0 | O27: 0 | P27: 0 | Q27: =Berechnungstabellen!I100 -> 0
A28: Erwachsene Rammler mit Weibchen zur Paarung | C28: 1 | F28: 0 | H28: 0 | I28: 0 | K28: 2.5 | M28: 0 | O28: 0 | P28: 0 | Q28: =Berechnungstabellen!I101 -> 0
A30: Geprüfte Maßangaben:
A32: Anmerkungen / ANG´s
A34: Stallblatt | B34: 3 | C34: Stallname (bei mehreren Ställen: Je Stall ist das Formular jew. separat auszufüllen): | N34: Baujahr:
A35: Fester Stall | B35: JA | C35: Stallgebäude | K35: Außenfläche (muss planbefestigt sein!)
A36: Mobiler Stall | B36: NEIN | E36: Stallfläche | H36: Stallboden | N36: Überdachung max. | O36: 0.5
A37: Tiergruppe | C37: benötigte m²/Tier | D37: Stall- /Box-nummer(n) lt. Stall-plan | E37: Stallfläche m² | F37: max. Tierzahl Stallfläche | G37: davon Spalten-boden / perforiert m² | H37: in % | I37: max. Tierzahl Stallboden | J37: Belegung aktuell | K37: benötigte m²/Tier | L37: Außen-fläche m² | M37: max. Tierzahl Außenflächen | N37: Über-dachung m2 | O37: Über-dachung % | P37: max. Tierzahl Über-dachung | Q37: Max. Tier-zahl
A38: Säugende Muttertiere mit Jungen bis zum Absetzen Mutter < 6kg | C38: 0.6 | F38: =IF($B$35="Ja",ROUNDDOWN(E38/C38,0),ROUNDDOWN(E38/C38,0)) -> 0 | H38: =IF(ISERROR(G38/E38),0,G38/E38) -> 0 | I38: =IF(G38=0,F38,IF(ROUNDDOWN(E38/C38/(G38/(E38/2)),0)<(E38/C38),ROUNDDOWN(E38/C38/(G38/(E38/2)),0),ROUNDDOWN(E38/C38,0))) -> 0 | K38: 2.5 | M38: =ROUNDDOWN(L38/K38,0) -> 0 | O38: =IF(L38=0,0,N38/L38) -> 0 | P38: =IF(L38=0,0,IF(ROUNDDOWN((M38+(M38*-((N38-(L38*$O$4))/(L38-(L38*$O$4))))),0)>M38,M38,(ROUNDDOWN((M38+(M38*-((N38-(L38*$O$4))/(L38-(L38*$O$4))))),0)))) -> 0 | Q38: =Berechnungstabellen!I103 -> 0
A39: Säugende Muttertiere mit Jungen bis zum Absetzen Mutter > 6kg | C39: 0.72 | F39: =IF($B$35="Ja",ROUNDDOWN(E39/C39,0),ROUNDDOWN(E39/C39,0)) -> 0 | H39: =IF(ISERROR(G39/E39),0,G39/E39) -> 0 | I39: =IF(G39=0,F39,IF(ROUNDDOWN(E39/C39/(G39/(E39/2)),0)<(E39/C39),ROUNDDOWN(E39/C39/(G39/(E39/2)),0),ROUNDDOWN(E39/C39,0))) -> 0 | K39: 2.5 | M39: =ROUNDDOWN(L39/K39,0) -> 0 | O39: =IF(L39=0,0,N39/L39) -> 0 | P39: =IF(L39=0,0,IF(ROUNDDOWN((M39+(M39*-((N39-(L39*$O$4))/(L39-(L39*$O$4))))),0)>M39,M39,(ROUNDDOWN((M39+(M39*-((N39-(L39*$O$4))/(L39-(L39*$O$4))))),0)))) -> 0 | Q39: =Berechnungstabellen!I104 -> 0
A40: Trächtige Tiere und weibliche Zuchtkaninchen < 6 kg | C40: 0.5 | F40: =IF($B$35="Ja",ROUNDDOWN(E40/C40,0),ROUNDDOWN(E40/C40,0)) -> 0 | H40: 0 | I40: 0 | K40: 2.5 | M40: 0 | O40: 0 | P40: 0 | Q40: =Berechnungstabellen!I105 -> 0
A41: Trächtige Tiere und weibliche Zuchtkaninchen > 6 kg | C41: 0.62 | F41: =IF($B$35="Ja",ROUNDDOWN(E41/C41,0),ROUNDDOWN(E41/C41,0)) -> 0 | H41: 0 | I41: 0 | K41: 2.5 | M41: 0 | O41: 0 | P41: 0 | Q41: =Berechnungstabellen!I106 -> 0
A42: Mastkaninchen vom Absetzen bis zur Schlachtung Nachzuchtkaninchen (vom Ende der Mast bis 6 Monate) | C42: 0.2 | F42: =IF($B$35="Ja",ROUNDDOWN(E42/C42,0),ROUNDDOWN(E42/0.15,0)) -> 0 | H42: 0 | I42: 0 | K42: 0.5 | M42: 0 | O42: 0 | P42: 0 | Q42: =Berechnungstabellen!I107 -> 0
A43: Erwachsene Rammler | C43: 0.6 | F43: =ROUNDDOWN(E43/C43,0) -> 0 | H43: 0 | I43: 0 | K43: 2.5 | M43: 0 | O43: 0 | P43: 0 | Q43: =Berechnungstabellen!I108 -> 0
A44: Erwachsene Rammler mit Weibchen zur Paarung | C44: 1 | F44: 0 | H44: 0 | I44: 0 | K44: 2.5 | M44: 0 | O44: 0 | P44: 0 | Q44: =Berechnungstabellen!I109 -> 0
A46: Geprüfte Maßangaben:
A48: Anmerkungen / ANG´s
A50: Stallblatt | B50: 4 | C50: Stallname (bei mehreren Ställen: Je Stall ist das Formular jew. separat auszufüllen): | N50: Baujahr:
A51: Fester Stall | C51: Stallgebäude | K51: Außenfläche (muss planbefestigt sein!)
A52: Mobiler Stall | E52: Stallfläche | H52: Stallboden | N52: Überdachung max. | O52: 0.5
A53: Tiergruppe | C53: benötigte m²/Tier | D53: Stall- /Box-nummer(n) lt. Stall-plan | E53: Stallfläche m² | F53: max. Tierzahl Stallfläche | G53: davon Spalten-boden / perforiert m² | H53: in % | I53: max. Tierzahl Stallboden | J53: Belegung aktuell | K53: benötigte m²/Tier | L53: Außen-fläche m² | M53: max. Tierzahl Außenflächen | N53: Über-dachung m2 | O53: Über-dachung % | P53: max. Tierzahl Über-dachung | Q53: Max. Tier-zahl
A54: Säugende Muttertiere mit Jungen bis zum Absetzen Mutter < 6kg | C54: 0.6 | F54: =IF($B$51="Ja",ROUNDDOWN(E54/C54,0),ROUNDDOWN(E54/C54,0)) -> 0 | H54: =IF(ISERROR(G54/E54),0,G54/E54) -> 0 | I54: =IF(G54=0,F54,IF(ROUNDDOWN(E54/C54/(G54/(E54/2)),0)<(E54/C54),ROUNDDOWN(E54/C54/(G54/(E54/2)),0),ROUNDDOWN(E54/C54,0))) -> 0 | K54: 2.5 | M54: =ROUNDDOWN(L54/K54,0) -> 0 | O54: =IF(L54=0,0,N54/L54) -> 0 | P54: =IF(L54=0,0,IF(ROUNDDOWN((M54+(M54*-((N54-(L54*$O$4))/(L54-(L54*$O$4))))),0)>M54,M54,(ROUNDDOWN((M54+(M54*-((N54-(L54*$O$4))/(L54-(L54*$O$4))))),0)))) -> 0 | Q54: =Berechnungstabellen!I111 -> 0
A55: Säugende Muttertiere mit Jungen bis zum Absetzen Mutter > 6kg | C55: 0.72 | F55: =IF($B$51="Ja",ROUNDDOWN(E55/C55,0),ROUNDDOWN(E55/C55,0)) -> 0 | H55: =IF(ISERROR(G55/E55),0,G55/E55) -> 0 | I55: =IF(G55=0,F55,IF(ROUNDDOWN(E55/C55/(G55/(E55/2)),0)<(E55/C55),ROUNDDOWN(E55/C55/(G55/(E55/2)),0),ROUNDDOWN(E55/C55,0))) -> 0 | K55: 2.5 | M55: =ROUNDDOWN(L55/K55,0) -> 0 | O55: =IF(L55=0,0,N55/L55) -> 0 | P55: =IF(L55=0,0,IF(ROUNDDOWN((M55+(M55*-((N55-(L55*$O$4))/(L55-(L55*$O$4))))),0)>M55,M55,(ROUNDDOWN((M55+(M55*-((N55-(L55*$O$4))/(L55-(L55*$O$4))))),0)))) -> 0 | Q55: =Berechnungstabellen!I112 -> 0
A56: Trächtige Tiere und weibliche Zuchtkaninchen < 6 kg | C56: 0.5 | F56: =IF($B$51="Ja",ROUNDDOWN(E56/C56,0),ROUNDDOWN(E56/C56,0)) -> 0 | H56: 0 | I56: 0 | K56: 2.5 | M56: 0 | O56: 0 | P56: 0 | Q56: =Berechnungstabellen!I113 -> 0
A57: Trächtige Tiere und weibliche Zuchtkaninchen > 6 kg | C57: 0.62 | F57: =IF($B$51="Ja",ROUNDDOWN(E57/C57,0),ROUNDDOWN(E57/C57,0)) -> 0 | H57: 0 | I57: 0 | K57: 2.5 | M57: 0 | O57: 0 | P57: 0 | Q57: =Berechnungstabellen!I114 -> 0
A58: Mastkaninchen vom Absetzen bis zur Schlachtung Nachzuchtkaninchen (vom Ende der Mast bis 6 Monate) | C58: 0.2 | F58: =IF($B$51="Ja",ROUNDDOWN(E58/C58,0),ROUNDDOWN(E58/0.15,0)) -> 0 | H58: 0 | I58: 0 | K58: 0.5 | M58: 0 | O58: 0 | P58: 0 | Q58: =Berechnungstabellen!I115 -> 0
A59: Erwachsene Rammler | C59: 0.6 | F59: =ROUNDDOWN(E59/C59,0) -> 0 | H59: 0 | I59: 0 | K59: 2.5 | M59: 0 | O59: 0 | P59: 0 | Q59: =Berechnungstabellen!I116 -> 0
A60: Erwachsene Rammler mit Weibchen zur Paarung | C60: 1 | F60: 0 | H60: 0 | I60: 0 | K60: 2.5 | M60: 0 | O60: 0 | P60: 0 | Q60: =Berechnungstabellen!I117 -> 0
A62: Geprüfte Maßangaben:
A64: Anmerkungen / ANG´s
A66: Stallblatt | B66: 5 | C66: Stallname (bei mehreren Ställen: Je Stall ist das Formular jew. separat auszufüllen): | N66: Baujahr:
A67: Fester Stall | C67: Stallgebäude | K67: Außenfläche (muss planbefestigt sein!)
A68: Mobiler Stall | E68: Stallfläche | H68: Stallboden | N68: Überdachung max. | O68: 0.5
A69: Tiergruppe | C69: benötigte m²/Tier | D69: Stall- /Box-nummer(n) lt. Stall-plan | E69: Stallfläche m² | F69: max. Tierzahl Stallfläche | G69: davon Spalten-boden / perforiert m² | H69: in % | I69: max. Tierzahl Stallboden | J69: Belegung aktuell | K69: benötigte m²/Tier | L69: Außen-fläche m² | M69: max. Tierzahl Außenflächen | N69: Über-dachung m2 | O69: Über-dachung % | P69: max. Tierzahl Über-dachung | Q69: Max. Tier-zahl
A70: Säugende Muttertiere mit Jungen bis zum Absetzen Mutter < 6kg | C70: 0.6 | F70: =IF($B$67="Ja",ROUNDDOWN(E70/C70,0),ROUNDDOWN(E70/C70,0)) -> 0 | H70: =IF(ISERROR(G70/E70),0,G70/E70) -> 0 | I70: =IF(G70=0,F70,IF(ROUNDDOWN(E70/C70/(G70/(E70/2)),0)<(E70/C70),ROUNDDOWN(E70/C70/(G70/(E70/2)),0),ROUNDDOWN(E70/C70,0))) -> 0 | K70: 2.5 | M70: =ROUNDDOWN(L70/K70,0) -> 0 | O70: =IF(L70=0,0,N70/L70) -> 0 | P70: =IF(L70=0,0,IF(ROUNDDOWN((M70+(M70*-((N70-(L70*$O$4))/(L70-(L70*$O$4))))),0)>M70,M70,(ROUNDDOWN((M70+(M70*-((N70-(L70*$O$4))/(L70-(L70*$O$4))))),0)))) -> 0 | Q70: =Berechnungstabellen!I119 -> 0
A71: Säugende Muttertiere mit Jungen bis zum Absetzen Mutter > 6kg | C71: 0.72 | F71: =IF($B$67="Ja",ROUNDDOWN(E71/C71,0),ROUNDDOWN(E71/C71,0)) -> 0 | H71: =IF(ISERROR(G71/E71),0,G71/E71) -> 0 | I71: =IF(G71=0,F71,IF(ROUNDDOWN(E71/C71/(G71/(E71/2)),0)<(E71/C71),ROUNDDOWN(E71/C71/(G71/(E71/2)),0),ROUNDDOWN(E71/C71,0))) -> 0 | K71: 2.5 | M71: =ROUNDDOWN(L71/K71,0) -> 0 | O71: =IF(L71=0,0,N71/L71) -> 0 | P71: =IF(L71=0,0,IF(ROUNDDOWN((M71+(M71*-((N71-(L71*$O$4))/(L71-(L71*$O$4))))),0)>M71,M71,(ROUNDDOWN((M71+(M71*-((N71-(L71*$O$4))/(L71-(L71*$O$4))))),0)))) -> 0 | Q71: =Berechnungstabellen!I120 -> 0
A72: Trächtige Tiere und weibliche Zuchtkaninchen < 6 kg | C72: 0.5 | F72: =IF($B$67="Ja",ROUNDDOWN(E72/C72,0),ROUNDDOWN(E72/C72,0)) -> 0 | H72: 0 | I72: 0 | K72: 2.5 | M72: 0 | O72: 0 | P72: 0 | Q72: =Berechnungstabellen!I121 -> 0
A73: Trächtige Tiere und weibliche Zuchtkaninchen > 6 kg | C73: 0.62 | F73: =IF($B$67="Ja",ROUNDDOWN(E73/C73,0),ROUNDDOWN(E73/C73,0)) -> 0 | H73: 0 | I73: 0 | K73: 2.5 | M73: 0 | O73: 0 | P73: 0 | Q73: =Berechnungstabellen!I122 -> 0
A74: Mastkaninchen vom Absetzen bis zur Schlachtung Nachzuchtkaninchen (vom Ende der Mast bis 6 Monate) | C74: 0.2 | F74: =IF($B$67="Ja",ROUNDDOWN(E74/C74,0),ROUNDDOWN(E74/0.15,0)) -> 0 | H74: 0 | I74: 0 | K74: 0.5 | M74: 0 | O74: 0 | P74: 0 | Q74: =Berechnungstabellen!I123 -> 0
A75: Erwachsene Rammler | C75: 0.6 | F75: =ROUNDDOWN(E75/C75,0) -> 0 | H75: 0 | I75: 0 | K75: 2.5 | M75: 0 | O75: 0 | P75: 0 | Q75: =Berechnungstabellen!I124 -> 0
A76: Erwachsene Rammler mit Weibchen zur Paarung | C76: 1 | F76: 0 | H76: 0 | I76: 0 | K76: 2.5 | M76: 0 | O76: 0 | P76: 0 | Q76: =Berechnungstabellen!I125 -> 0
A78: Geprüfte Maßangaben:
A80: Anmerkungen / ANG´s
A82: Stallblatt | B82: 6 | C82: Stallname (bei mehreren Ställen: Je Stall ist das Formular jew. separat auszufüllen): | N82: Baujahr:
A83: Fester Stall | B83: JA | C83: Stallgebäude | K83: Außenfläche (muss planbefestigt sein!)
A84: Mobiler Stall | B84: NEIN | E84: Stallfläche | H84: Stallboden | N84: Überdachung max. | O84: 0.5
A85: Tiergruppe | C85: benötigte m²/Tier | D85: Stall- /Box-nummer(n) lt. Stall-plan | E85: Stallfläche m² | F85: max. Tierzahl Stallfläche | G85: davon Spalten-boden / perforiert m² | H85: in % | I85: max. Tierzahl Stallboden | J85: Belegung aktuell | K85: benötigte m²/Tier | L85: Außen-fläche m² | M85: max. Tierzahl Außenflächen | N85: Über-dachung m2 | O85: Über-dachung % | P85: max. Tierzahl Über-dachung | Q85: Max. Tier-zahl
A86: Säugende Muttertiere mit Jungen bis zum Absetzen Mutter < 6kg | C86: 0.6 | F86: =IF($B$83="Ja",ROUNDDOWN(E86/C86,0),ROUNDDOWN(E86/C86,0)) -> 0 | H86: =IF(ISERROR(G86/E86),0,G86/E86) -> 0 | I86: =IF(G86=0,F86,IF(ROUNDDOWN(E86/C86/(G86/(E86/2)),0)<(E86/C86),ROUNDDOWN(E86/C86/(G86/(E86/2)),0),ROUNDDOWN(E86/C86,0))) -> 0 | K86: 2.5 | M86: =ROUNDDOWN(L86/K86,0) -> 0 | O86: =IF(L86=0,0,N86/L86) -> 0 | P86: =IF(L86=0,0,IF(ROUNDDOWN((M86+(M86*-((N86-(L86*$O$4))/(L86-(L86*$O$4))))),0)>M86,M86,(ROUNDDOWN((M86+(M86*-((N86-(L86*$O$4))/(L86-(L86*$O$4))))),0)))) -> 0 | Q86: =Berechnungstabellen!I127 -> 0
A87: Säugende Muttertiere mit Jungen bis zum Absetzen Mutter > 6kg | C87: 0.72 | F87: =IF($B$83="Ja",ROUNDDOWN(E87/C87,0),ROUNDDOWN(E87/C87,0)) -> 0 | H87: =IF(ISERROR(G87/E87),0,G87/E87) -> 0 | I87: =IF(G87=0,F87,IF(ROUNDDOWN(E87/C87/(G87/(E87/2)),0)<(E87/C87),ROUNDDOWN(E87/C87/(G87/(E87/2)),0),ROUNDDOWN(E87/C87,0))) -> 0 | K87: 2.5 | M87: =ROUNDDOWN(L87/K87,0) -> 0 | O87: =IF(L87=0,0,N87/L87) -> 0 | P87: =IF(L87=0,0,IF(ROUNDDOWN((M87+(M87*-((N87-(L87*$O$4))/(L87-(L87*$O$4))))),0)>M87,M87,(ROUNDDOWN((M87+(M87*-((N87-(L87*$O$4))/(L87-(L87*$O$4))))),0)))) -> 0 | Q87: =Berechnungstabellen!I128 -> 0
A88: Trächtige Tiere und weibliche Zuchtkaninchen < 6 kg | C88: 0.5 | F88: =IF($B$83="Ja",ROUNDDOWN(E88/C88,0),ROUNDDOWN(E88/C88,0)) -> 0 | H88: 0 | I88: 0 | K88: 2.5 | M88: 0 | O88: 0 | P88: 0 | Q88: =Berechnungstabellen!I129 -> 0
A89: Trächtige Tiere und weibliche Zuchtkaninchen > 6 kg | C89: 0.62 | F89: =IF($B$83="Ja",ROUNDDOWN(E89/C89,0),ROUNDDOWN(E89/C89,0)) -> 0 | H89: 0 | I89: 0 | K89: 2.5 | M89: 0 | O89: 0 | P89: 0 | Q89: =Berechnungstabellen!I130 -> 0
A90: Mastkaninchen vom Absetzen bis zur Schlachtung Nachzuchtkaninchen (vom Ende der Mast bis 6 Monate) | C90: 0.2 | F90: =IF($B$83="Ja",ROUNDDOWN(E90/C90,0),ROUNDDOWN(E90/0.15,0)) -> 0 | H90: 0 | I90: 0 | K90: 0.5 | M90: 0 | O90: 0 | P90: 0 | Q90: =Berechnungstabellen!I131 -> 0
A91: Erwachsene Rammler | C91: 0.6 | F91: =ROUNDDOWN(E91/C91,0) -> 0 | H91: 0 | I91: 0 | K91: 2.5 | M91: 0 | O91: 0 | P91: 0 | Q91: =Berechnungstabellen!I132 -> 0
A92: Erwachsene Rammler mit Weibchen zur Paarung | C92: 1 | F92: 0 | H92: 0 | I92: 0 | K92: 2.5 | M92: 0 | O92: 0 | P92: 0 | Q92: =Berechnungstabellen!I133 -> 0
A94: Geprüfte Maßangaben:
A96: Anmerkungen / ANG´s

Sheet Geweihträger
A1: Ermittlung der maximalen Tierzahl, die gem. EU VO 2018/848 sowie 2020/464 Anhang I Teil II je Gehege gehalten werden darf | J1: Geweihträger | L1: Zum Abgleich Eingabe Ecert mit Bestandsregister
A2: Gehegeblatt | B2: 1 | C2: Gehegename (bei mehreren Gehegen: Je Gehege ist das Formular jew. separat auszufüllen): | H2: Baujahr: | L2: Max. Tierzahl ges. über alle Ställe
A3: Tiergruppe | C3: Mindestgröße Gehege (ha) | D3: Gehegeabteil lt. Gehegeplan | E3: Gehegegröße ha | F3: Mindestgröße Gehege liegt vor | G3: Besatzdichte, d. h. Höchstzahl erwachsener Tiere (*)pro ha | H3: max. Tierzahl Gehegeabteil | I3: Belegung aktuell | J3: Max. Tier-zahl | N3: Max Tierzahl ges. | O3: Gehaltene Tiere
A4: Sikahirsch | C4: 1 | F4: =IF(E4<C4,"Nein","Ja") -> Nein | G4: 15 | H4: =IF(F4="Nein",0,ROUNDDOWN(E4*G4,0)) -> 0 | J4: =H4 -> 0 | L4: Sikahirsch | N4: =Berechnungstabellen!J136 -> 0 | O4: =I4+I17+I30+I43+I56+I69 -> 0
A5: Damhirsch | C5: 1 | F5: =IF(E5<C5,"Nein","Ja") -> Nein | G5: 15 | H5: =IF(F5="Nein",0,ROUNDDOWN(E5*G5,0)) -> 0 | J5: =H5 -> 0 | L5: Damhirsch | N5: =Berechnungstabellen!J137 -> 0 | O5: =I5+I18+I31+I44+I57+I70 -> 0
A6: Rothirsch | C6: 2 | F6: Nein | G6: 7 | H6: 0 | J6: 0 | L6: Rothirsch | N6: =Berechnungstabellen!J138 -> 0 | O6: =I6+I19+I32+I45+I58+I71 -> 0
A7: Davidshirsch | C7: 2 | F7: Nein | G7: 7 | H7: 0 | J7: 0 | L7: Davidshirsch | N7: =Berechnungstabellen!J139 -> 0 | O7: 0
A8: Mehr als eine Geweihträgerart (MIT Rot- oder Davidshirsch in der Herde) | C8: 3 | F8: Nein | G8: 7 | H8: 0 | J8: 0 | L8: Mehr als eine Geweihträgerart (MIT Rot- oder Davidshirsch in der Herde) | N8: =Berechnungstabellen!J140 -> 0 | O8: 0
A9: Mehr als eine Geweihträgerart (OHNE Rot- oder Davidshirsch in der Herde) | C9: 3 | F9: Nein | G9: 15 | H9: 0 | J9: 0 | L9: Mehr als eine Geweihträgerart (OHNE Rot- oder Davidshirsch in der Herde) | N9: =ROUNDUP(Berechnungstabellen!J141,0) -> 0 | O9: 0
A10: (*) Zwei bis zu 18 Monate alte Geweihträger gelten als ein Geweihträger.
A11: Geprüfte Maßangaben:
A13: Anmerkungen / ANG´s
A15: Gehegeblatt | B15: 2 | C15: Gehegename (bei mehreren Gehegen: Je Gehege ist das Formular jew. separat auszufüllen): | H15: Baujahr:
A16: Tiergruppe | C16: Mindestgröße Gehege (ha) | D16: Gehegeabteil lt. Gehegeplan | E16: Gehegegröße ha | F16: Mindestgröße Gehege liegt vor | G16: Besatzdichte, d. h. Höchstzahl erwachsener Tiere (*)pro ha | H16: max. Tierzahl Gehegeabteil | I16: Belegung aktuell | J16: Max. Tier-zahl
A17: Sikahirsch | C17: 1 | F17: =IF(E17<C17,"Nein","Ja") -> Nein | G17: 15 | H17: =IF(F17="Nein",0,ROUNDDOWN(E17*G17,0)) -> 0 | J17: =H17 -> 0
A18: Damhirsch | C18: 1 | F18: =IF(E18<C18,"Nein","Ja") -> Nein | G18: 15 | H18: =IF(F18="Nein",0,ROUNDDOWN(E18*G18,0)) -> 0 | J18: =H18 -> 0
A19: Rothirsch | C19: 2 | F19: Nein | G19: 7 | H19: 0 | J19: 0
A20: Davidshirsch | C20: 2 | F20: Nein | G20: 7 | H20: 0 | J20: 0
A21: Mehr als eine Geweihträgerart (MIT Rot- oder Davidshirsch in der Herde) | C21: 3 | F21: Nein | G21: 7 | H21: 0 | J21: 0
A22: Mehr als eine Geweihträgerart (OHNE Rot- oder Davidshirsch in der Herde) | C22: 3 | F22: Nein | G22: 15 | H22: 0 | J22: 0
A23: (*) Zwei bis zu 18 Monate alte Geweihträger gelten als ein Geweihträger.
A24: Geprüfte Maßangaben:
A26: Anmerkungen / ANG´s
A28: Gehegeblatt | B28: 3 | C28: Gehegename (bei mehreren Gehegen: Je Gehege ist das Formular jew. separat auszufüllen): | H28: Baujahr:
A29: Tiergruppe | C29: Mindestgröße Gehege (ha) | D29: Gehegeabteil lt. Gehegeplan | E29: Gehegegröße ha | F29: Mindestgröße Gehege liegt vor | G29: Besatzdichte, d. h. Höchstzahl erwachsener Tiere (*)pro ha | H29: max. Tierzahl Gehegeabteil | I29: Belegung aktuell | J29: Max. Tier-zahl
A30: Sikahirsch | C30: 1 | F30: =IF(E30<C30,"Nein","Ja") -> Nein | G30: 15 | H30: =IF(F30="Nein",0,ROUNDDOWN(E30*G30,0)) -> 0 | J30: =H30 -> 0
A31: Damhirsch | C31: 1 | F31: =IF(E31<C31,"Nein","Ja") -> Nein | G31: 15 | H31: =IF(F31="Nein",0,ROUNDDOWN(E31*G31,0)) -> 0 | J31: =H31 -> 0
A32: Rothirsch | C32: 2 | F32: Nein | G32: 7 | H32: 0 | J32: 0
A33: Davidshirsch | C33: 2 | F33: Nein | G33: 7 | H33: 0 | J33: 0
A34: Mehr als eine Geweihträgerart (MIT Rot- oder Davidshirsch in der Herde) | C34: 3 | F34: Nein | G34: 7 | H34: 0 | J34: 0
A35: Mehr als eine Geweihträgerart (OHNE Rot- oder Davidshirsch in der Herde) | C35: 3 | F35: Nein | G35: 15 | H35: 0 | J35: 0
A36: (*) Zwei bis zu 18 Monate alte Geweihträger gelten als ein Geweihträger.
A37: Geprüfte Maßangaben:
A39: Anmerkungen / ANG´s
A41: Gehegeblatt | B41: 4 | C41: Gehegename (bei mehreren Gehegen: Je Gehege ist das Formular jew. separat auszufüllen): | H41: Baujahr:
A42: Tiergruppe | C42: Mindestgröße Gehege (ha) | D42: Gehegeabteil lt. Gehegeplan | E42: Gehegegröße ha | F42: Mindestgröße Gehege liegt vor | G42: Besatzdichte, d. h. Höchstzahl erwachsener Tiere (*)pro ha | H42: max. Tierzahl Gehegeabteil | I42: Belegung aktuell | J42: Max. Tier-zahl
A43: Sikahirsch | C43: 1 | F43: =IF(E43<C43,"Nein","Ja") -> Nein | G43: 15 | H43: =IF(F43="Nein",0,ROUNDDOWN(E43*G43,0)) -> 0 | J43: =H43 -> 0
A44: Damhirsch | C44: 1 | F44: =IF(E44<C44,"Nein","Ja") -> Nein | G44: 15 | H44: =IF(F44="Nein",0,ROUNDDOWN(E44*G44,0)) -> 0 | J44: =H44 -> 0
A45: Rothirsch | C45: 2 | F45: Nein | G45: 7 | H45: 0 | J45: 0
A46: Davidshirsch | C46: 2 | F46: Nein | G46: 7 | H46: 0 | J46: 0
A47: Mehr als eine Geweihträgerart (MIT Rot- oder Davidshirsch in der Herde) | C47: 3 | F47: Nein | G47: 7 | H47: 0 | J47: 0
A48: Mehr als eine Geweihträgerart (OHNE Rot- oder Davidshirsch in der Herde) | C48: 3 | F48: Nein | G48: 15 | H48: 0 | J48: 0
A49: (*) Zwei bis zu 18 Monate alte Geweihträger gelten als ein Geweihträger.
A50: Geprüfte Maßangaben:
A52: Anmerkungen / ANG´s
A54: Gehegeblatt | B54: 5 | C54: Gehegename (bei mehreren Gehegen: Je Gehege ist das Formular jew. separat auszufüllen): | H54: Baujahr:
A55: Tiergruppe | C55: Mindestgröße Gehege (ha) | D55: Gehegeabteil lt. Gehegeplan | E55: Gehegegröße ha | F55: Mindestgröße Gehege liegt vor | G55: Besatzdichte, d. h. Höchstzahl erwachsener Tiere (*)pro ha | H55: max. Tierzahl Gehegeabteil | I55: Belegung aktuell | J55: Max. Tier-zahl
A56: Sikahirsch | C56: 1 | F56: =IF(E56<C56,"Nein","Ja") -> Nein | G56: 15 | H56: =IF(F56="Nein",0,ROUNDDOWN(E56*G56,0)) -> 0 | J56: =H56 -> 0
A57: Damhirsch | C57: 1 | F57: =IF(E57<C57,"Nein","Ja") -> Nein | G57: 15 | H57: =IF(F57="Nein",0,ROUNDDOWN(E57*G57,0)) -> 0 | J57: =H57 -> 0
A58: Rothirsch | C58: 2 | F58: Nein | G58: 7 | H58: 0 | J58: 0
A59: Davidshirsch | C59: 2 | F59: Nein | G59: 7 | H59: 0 | J59: 0
A60: Mehr als eine Geweihträgerart (MIT Rot- oder Davidshirsch in der Herde) | C60: 3 | F60: Nein | G60: 7 | H60: 0 | J60: 0
A61: Mehr als eine Geweihträgerart (OHNE Rot- oder Davidshirsch in der Herde) | C61: 3 | F61: Nein | G61: 15 | H61: 0 | J61: 0
A62: (*) Zwei bis zu 18 Monate alte Geweihträger gelten als ein Geweihträger.
A63: Geprüfte Maßangaben:
A65: Anmerkungen / ANG´s
A67: Gehegeblatt | B67: 6 | C67: Gehegename (bei mehreren Gehegen: Je Gehege ist das Formular jew. separat auszufüllen): | H67: Baujahr:
A68: Tiergruppe | C68: Mindestgröße Gehege (ha) | D68: Gehegeabteil lt. Gehegeplan | E68: Gehegegröße ha | F68: Mindestgröße Gehege liegt vor | G68: Besatzdichte, d. h. Höchstzahl erwachsener Tiere (*)pro ha | H68: max. Tierzahl Gehegeabteil | I68: Belegung aktuell | J68: Max. Tier-zahl
A69: Sikahirsch | C69: 1 | F69: =IF(E69<C69,"Nein","Ja") -> Nein | G69: 15 | H69: =IF(F69="Nein",0,ROUNDDOWN(E69*G69,0)) -> 0 | J69: =H69 -> 0
A70: Damhirsch | C70: 1 | F70: =IF(E70<C70,"Nein","Ja") -> Nein | G70: 15 | H70: =IF(F70="Nein",0,ROUNDDOWN(E70*G70,0)) -> 0 | J70: =H70 -> 0
A71: Rothirsch | C71: 2 | F71: Nein | G71: 7 | H71: 0 | J71: 0
A72: Davidshirsch | C72: 2 | F72: Nein | G72: 7 | H72: 0 | J72: 0
A73: Mehr als eine Geweihträgerart (MIT Rot- oder Davidshirsch in der Herde) | C73: 3 | F73: Nein | G73: 7 | H73: 0 | J73: 0
A74: Mehr als eine Geweihträgerart (OHNE Rot- oder Davidshirsch in der Herde) | C74: 3 | F74: Nein | G74: 15 | H74: 0 | J74: 0
A75: (*) Zwei bis zu 18 Monate alte Geweihträger gelten als ein Geweihträger.
A76: Geprüfte Maßangaben:
A78: Anmerkungen / ANG´s

Sheet Legehennen
A1: Ermittlung der maximalen Tierzahl, die gem. EU VO 2018/848 sowie 2020/464 Anhang I je Stall gehalten werden darf | BG1: Legehennen
C2: Allg. Angaben | D2: =TODAY() -> 2025-05-23 | E2: Belegung | H2: Tierverluste | N2: Stall | R2: Sitzstangen | T2: Nestfläche | Y2: Luken (Stall-AKB) | AC2: Scharraumfläche | AE2: Auslauföffnungen (AKB – Auslauf) | AH2: Auslauf (bis 150 /350 m) | AK2: Zusatzangaben: gem. TierSchNutztV (verpflichtend!) | AS2: Info zur Sollermittlung: Bezugswert = Anzahl Tiere bei Einstallung | BE2: Auswertung
D3: max. Belegung je Stall: | F3: 3000 | J3: Voliere Ebenen | M3: Warm- stall | N3: Isolierte Veranda | O3: Ergebnis Stall | AN3: Futter | AW3: Tränken | BD3: Überschreitung bei Einstallung | BF3: Überschreitung aktuell
A4: Name Stall (lt. Stall-plan) | B4: Baujahr | C4: Kenn- bzw. Print-Nr. nach LegReG | D4: Einstall- datum | E4: Tierzahl bei Ein-stallung | F4: Belegung akt. | G4: Gesamt (Anzahl Tiere) | H4: Tiere je Tag | I4: % | J4: Ebenen max | K4: Ebenen ist | L4: Tiere Max. | M4: m² | N4: m² jederzeit nutzbar | O4: Summe m² | P4: Kapa- zität (Tier-zahl) | Q4: soll m | R4: ist m | S4: Kapa- zität (Tier-zahl) | T4: ist m² | U4: Kapa- zität (Tier-zahl) | V4: ist An-zahl | W4: Kapa- zität (Tier-zahl) | X4: Kapa- zität (Tier-zahl) Nester | Y4: soll m | Z4: ist m | AA4: Kapa- zität (Tierzahl) | AB4: soll m² | AC4: ist m² | AD4: Kapa- zität (Tier-zahl) | AE4: soll m | AF4: ist m | AG4: Kapa- zität (Tier-zahl) | AH4: ist m² | AI4: Kapa- zität (Tier-zahl) | AK4: Stall | AL4: Futtertröge Rinnen | AO4: Futtertröge Rund | AR4: Futtertröge ges. | AS4: Tränkeanzahl (Nippel) | AV4: Rinnentränke | AY4: Rundtränke | BB4: Tränken ges. | BC4: Kapa- zität Min. aller Krite- rien | BD4: Anzahl Tiere | BE4: Einstal-lung % | BF4: Anzahl Tiere | BG4: aktuell %
G5: . | O5: max. Tiere / m²: | P5: 6 | Q5: mind. | R5: 0.18 | S5: m / Tier | T5: Gemeinsch. Nester mind. 120cm²/T. | V5: Einzelnester 7 LH/Nest | Y5: mind. 2m/500 Tiere | AB5: mind. 1/3 der notw. Fläche | AE5: mind. 4m/100m² | AH5: mind. m²/Tier: | AI5: 4 | AL5: soll (cm) | AM5: ist (cm) | AN5: Kapa- zität (Tierzahl) | AO5: soll (cm) | AP5: ist (cm) | AQ5: Kapa- zität (Tierzahl) | AR5: Kapa- zität (Tierzahl) | AS5: soll | AT5: ist (Anzahl) | AU5: Kapa- zität (Tierzahl) | AV5: soll (cm) | AW5: ist (cm) | AX5: Kapa- zität (Tierzahl) | AY5: soll (cm) | AZ5: ist (cm) | BA5: Kapa- zität (Tierzahl) | BB5: Summe Tränken
G6: =E6-F6 -> 0 | H6: =IF(F6=0,0,G6/(D$2-D6)) -> 0 | I6: =IF(E6=0,0,IF(F6=0,0,1-(F6/E6))) -> 0 | J6: =IF(B6=0,0,IF(B6<"2021",4,3)) -> 0 | L6: =IF(B6=0,0,IF(K6>J6,0,$F$3)) -> 0 | O6: =SUM(M6:N6) -> 0 | P6: =IF(ROUNDDOWN(O6*$P$5,0)>$F$3,$F$3,(ROUNDDOWN(O6*$P$5,0))) -> 0 | Q6: =F6*$R$5 -> 0 | S6: =IF(ROUNDDOWN(R6/0.18,0)>$F$3,$F$3,(ROUNDDOWN(R6/0.18,0))) -> 0 | U6: =IF(ROUNDDOWN(T6*100*100/120,0)>$F$3,$F$3,(ROUNDDOWN(T6*100*100/120,0))) -> 0 | W6: =IF(ROUNDDOWN(V6*7,0)>$F$3,$F$3,(ROUNDDOWN(V6*7,0))) -> 0 | X6: =W6+U6 -> 0 | Y6: =E6/500*2 -> 0 | AA6: =IF(F6=0,0,IF(Z6>Y6,P6,(Z6/Y6*F6))) -> 0 | AB6: =(F6/6)/3 -> 0 | AD6: =IF(ROUNDDOWN(AC6*3*6,0)>$F$3,$F$3,(ROUNDDOWN(AC6*3*6,0))) -> 0 | AE6: =O6/25 -> 0 | AG6: =IF(ROUNDDOWN(6*100/4*AF6,0)>$F$3,$F$3,(ROUNDDOWN(6*100/4*AF6,0))) -> 0 | AH6: 20000 | AI6: =IF(ROUNDDOWN(AH6/4,0)>$F$3,$F$3,(ROUNDDOWN(AH6/4,0))) -> 3000 | AK6: =A6 -> 0 | AL6: =ROUNDDOWN(E6*10,0) -> 0 | AN6: =ROUNDDOWN(AM6/10,0) -> 0 | AO6: =ROUNDDOWN(E6*4,0) -> 0 | AP6: ='Randlängen-Rund'!D4 -> 21991.14855 | AQ6: =ROUNDDOWN(AP6/4,0) -> 5497 | AR6: =IF(AN6+AQ6>$F$3,$F$3,AN6+AQ6) -> 3000 | AS6: =IF(E6=0,"",ROUNDDOWN(E6/10+1,0)) ->  | AU6: =IF(ROUNDDOWN(AT6*10,0)>$F$3,$F$3,ROUNDDOWN(AT6*10,0)) -> 0 | AV6: =ROUNDDOWN(E6*2.5,0) -> 0 | AX6: =ROUNDDOWN(AW6/2.5,0) -> 0 | AY6: =E6 -> 0 | AZ6: ='Randlängen-Rund'!D26 -> 18849.5559 | BA6: =AZ6/1 -> 18849.5559 | BB6: =IF(AU6+AX6+BA6>$F$3,$F$3,AU6+AX6+BA6) -> 3000 | BC6: =IF(F6=0,0,Berechnungstabellen!K199) -> 0 | BD6: =IF($BC6=0,"",IF($E6>$BC6,$E6-$BC6,0)) ->  | BE6: =IF(E6>BC6,(E6-BC6)/BC6,"") ->  | BF6: =IF($BC6=0,"",IF($F6>$BC6,$F6-$BC6,0)) ->  | BG6: =IF(F6>BC6,(F6-BC6)/BC6,"") -> 
G7: =E7-F7 -> 0 | H7: =IF(F7=0,0,G7/(D$2-D7)) -> 0 | I7: =IF(E7=0,0,IF(F7=0,0,1-(F7/E7))) -> 0 | J7: =IF(B7=0,0,IF(B7<"2021",4,3)) -> 0 | L7: =IF(B7=0,0,IF(K7>J7,0,$F$3)) -> 0 | O7: 0 | P7: =IF(ROUNDDOWN(O7*$P$5,0)>$F$3,$F$3,(ROUNDDOWN(O7*$P$5,0))) -> 0 | Q7: 0 | S7: 0 | U7: 0 | W7: 0 | X7: 0 | Y7: 0 | AA7: 0 | AB7: 0 | AD7: 0 | AE7: 0 | AG7: 0 | AI7: 0 | AK7: 0 | AL7: 0 | AN7: 0 | AO7: 0 | AP7: ='Randlängen-Rund'!D5 -> 0 | AQ7: 0 | AR7: 0 | AU7: 0 | AV7: =ROUNDDOWN(E7*2.5,0) -> 0 | AX7: 0 | AY7: 0 | AZ7: ='Randlängen-Rund'!D27 -> 0 | BA7: 0 | BB7: 0 | BC7: =IF(F7=0,0,Berechnungstabellen!K200) -> 0 | BD7: =IF($BC7=0,"",IF($E7>$BC7,$E7-$BC7,0)) ->  | BF7: =IF(BC7=0,"",IF(F7>BC7,F7-BC7,0)) -> 
G8: 0 | H8: 0 | I8: 0 | J8: 0 | L8: =IF(B8=0,0,IF(K8>J8,0,$F$3)) -> 0 | O8: 0 | P8: 0 | Q8: 0 | S8: 0 | U8: 0 | W8: 0 | X8: 0 | Y8: 0 | AA8: 0 | AB8: 0 | AD8: 0 | AE8: 0 | AG8: 0 | AI8: 0 | AK8: 0 | AL8: 0 | AN8: 0 | AO8: 0 | AP8: ='Randlängen-Rund'!D6 -> 0 | AQ8: 0 | AR8: 0 | AU8: 0 | AV8: 0 | AX8: 0 | AY8: 0 | AZ8: ='Randlängen-Rund'!D28 -> 0 | BA8: 0 | BB8: 0 | BC8: =IF(F8=0,0,Berechnungstabellen!K201) -> 0
G9: 0 | H9: 0 | I9: 0 | J9: 0 | L9: =IF(B9=0,0,IF(K9>J9,0,$F$3)) -> 0 | O9: 0 | P9: 0 | Q9: 0 | S9: 0 | U9: 0 | W9: 0 | X9: 0 | Y9: 0 | AA9: 0 | AB9: 0 | AD9: 0 | AE9: 0 | AG9: 0 | AI9: 0 | AK9: 0 | AL9: 0 | AN9: 0 | AO9: 0 | AP9: ='Randlängen-Rund'!D7 -> 0 | AQ9: 0 | AR9: 0 | AU9: 0 | AV9: 0 | AX9: 0 | AY9: 0 | AZ9: ='Randlängen-Rund'!D29 -> 0 | BA9: 0 | BB9: 0 | BC9: =IF(F9=0,0,Berechnungstabellen!K202) -> 0
G10: 0 | H10: 0 | I10: 0 | J10: 0 | L10: 0 | O10: 0 | P10: 0 | Q10: 0 | S10: 0 | U10: 0 | W10: 0 | X10: 0 | Y10: 0 | AA10: 0 | AB10: 0 | AD10: 0 | AE10: 0 | AG10: 0 | AI10: 0 | AK10: 0 | AL10: 0 | AN10: 0 | AO10: 0 | AP10: ='Randlängen-Rund'!D8 -> 0 | AQ10: 0 | AR10: 0 | AU10: 0 | AV10: 0 | AX10: 0 | AY10: 0 | AZ10: ='Randlängen-Rund'!D30 -> 0 | BA10: 0 | BB10: 0 | BC10: =IF(F10=0,0,Berechnungstabellen!K203) -> 0
G11: 0 | H11: 0 | I11: 0 | J11: 0 | L11: =IF(B11=0,0,IF(K11>J11,0,$F$3)) -> 0 | O11: 0 | P11: 0 | Q11: 0 | S11: 0 | U11: 0 | W11: 0 | X11: 0 | Y11: 0 | AA11: 0 | AB11: 0 | AD11: 0 | AE11: 0 | AG11: 0 | AI11: 0 | AK11: 0 | AL11: 0 | AN11: 0 | AO11: 0 | AP11: ='Randlängen-Rund'!D9 -> 0 | AQ11: 0 | AR11: 0 | AU11: 0 | AV11: 0 | AX11: 0 | AY11: 0 | AZ11: ='Randlängen-Rund'!D31 -> 0 | BA11: 0 | BB11: 0 | BC11: =IF(F11=0,0,Berechnungstabellen!K204) -> 0
G12: 0 | H12: 0 | I12: 0 | J12: 0 | L12: 0 | O12: 0 | P12: 0 | Q12: 0 | S12: 0 | U12: 0 | W12: 0 | X12: 0 | Y12: 0 | AA12: 0 | AB12: 0 | AD12: 0 | AE12: 0 | AG12: 0 | AI12: 0 | AK12: 0 | AL12: 0 | AN12: 0 | AO12: 0 | AP12: ='Randlängen-Rund'!D10 -> 0 | AQ12: 0 | AR12: 0 | AU12: 0 | AV12: 0 | AX12: 0 | AY12: 0 | AZ12: ='Randlängen-Rund'!D32 -> 0 | BA12: 0 | BB12: 0 | BC12: =IF(F12=0,0,Berechnungstabellen!K205) -> 0
G13: 0 | H13: 0 | I13: 0 | J13: 0 | L13: 0 | O13: 0 | P13: 0 | Q13: 0 | S13: 0 | U13: 0 | W13: 0 | X13: 0 | Y13: 0 | AA13: 0 | AB13: 0 | AD13: 0 | AE13: 0 | AG13: 0 | AI13: 0 | AK13: 0 | AL13: 0 | AN13: 0 | AO13: 0 | AP13: ='Randlängen-Rund'!D11 -> 0 | AQ13: 0 | AR13: 0 | AU13: 0 | AV13: 0 | AX13: 0 | AY13: 0 | AZ13: ='Randlängen-Rund'!D33 -> 0 | BA13: 0 | BB13: 0 | BC13: =IF(F13=0,0,Berechnungstabellen!K206) -> 0
G14: 0 | H14: 0 | I14: 0 | J14: 0 | L14: 0 | O14: 0 | P14: 0 | Q14: 0 | S14: 0 | U14: 0 | W14: 0 | X14: 0 | Y14: 0 | AA14: 0 | AB14: 0 | AD14: 0 | AE14: 0 | AG14: 0 | AI14: 0 | AK14: 0 | AL14: 0 | AN14: 0 | AO14: 0 | AP14: ='Randlängen-Rund'!D12 -> 0 | AQ14: 0 | AR14: 0 | AU14: 0 | AV14: 0 | AX14: 0 | AY14: 0 | AZ14: ='Randlängen-Rund'!D34 -> 0 | BA14: 0 | BB14: 0 | BC14: =IF(F14=0,0,Berechnungstabellen!K207) -> 0
G15: 0 | H15: 0 | I15: 0 | J15: 0 | L15: 0 | O15: 0 | P15: 0 | Q15: 0 | S15: 0 | U15: 0 | W15: 0 | X15: 0 | Y15: 0 | AA15: 0 | AB15: 0 | AD15: 0 | AE15: 0 | AG15: 0 | AI15: 0 | AK15: 0 | AL15: 0 | AN15: 0 | AO15: 0 | AP15: ='Randlängen-Rund'!D13 -> 0 | AQ15: 0 | AR15: 0 | AU15: 0 | AV15: 0 | AX15: 0 | AY15: 0 | AZ15: ='Randlängen-Rund'!D35 -> 0 | BA15: 0 | BB15: 0 | BC15: =IF(F15=0,0,Berechnungstabellen!K208) -> 0
G16: 0 | H16: 0 | I16: 0 | J16: 0 | L16: 0 | O16: 0 | P16: 0 | Q16: 0 | S16: 0 | U16: 0 | W16: 0 | X16: 0 | Y16: 0 | AA16: 0 | AB16: 0 | AD16: 0 | AE16: 0 | AG16: 0 | AI16: 0 | AK16: 0 | AL16: 0 | AN16: 0 | AO16: 0 | AP16: ='Randlängen-Rund'!D14 -> 0 | AQ16: 0 | AR16: 0 | AU16: 0 | AV16: 0 | AX16: 0 | AY16: 0 | AZ16: ='Randlängen-Rund'!D36 -> 0 | BA16: 0 | BB16: 0 | BC16: =IF(F16=0,0,Berechnungstabellen!K209) -> 0
G17: 0 | H17: 0 | I17: 0 | J17: 0 | L17: 0 | O17: 0 | P17: 0 | Q17: 0 | S17: 0 | U17: 0 | W17: 0 | X17: 0 | Y17: 0 | AA17: 0 | AB17: 0 | AD17: 0 | AE17: 0 | AG17: 0 | AI17: 0 | AK17: 0 | AL17: 0 | AN17: 0 | AO17: 0 | AP17: ='Randlängen-Rund'!D15 -> 0 | AQ17: 0 | AR17: 0 | AU17: 0 | AV17: 0 | AX17: 0 | AY17: 0 | AZ17: ='Randlängen-Rund'!D37 -> 0 | BA17: 0 | BB17: 0 | BC17: =IF(F17=0,0,Berechnungstabellen!K210) -> 0
G18: 0 | H18: 0 | I18: 0 | J18: 0 | L18: 0 | O18: 0 | P18: 0 | Q18: 0 | S18: 0 | U18: 0 | W18: 0 | X18: 0 | Y18: 0 | AA18: 0 | AB18: 0 | AD18: 0 | AE18: 0 | AG18: 0 | AI18: 0 | AK18: 0 | AL18: 0 | AN18: 0 | AO18: 0 | AP18: ='Randlängen-Rund'!D16 -> 0 | AQ18: 0 | AR18: 0 | AU18: 0 | AV18: 0 | AX18: 0 | AY18: 0 | AZ18: ='Randlängen-Rund'!D38 -> 0 | BA18: 0 | BB18: 0 | BC18: =IF(F18=0,0,Berechnungstabellen!K211) -> 0
G19: 0 | H19: 0 | I19: 0 | J19: 0 | L19: 0 | O19: 0 | P19: 0 | Q19: 0 | S19: 0 | U19: 0 | W19: 0 | X19: 0 | Y19: 0 | AA19: 0 | AB19: 0 | AD19: 0 | AE19: 0 | AG19: 0 | AI19: 0 | AK19: 0 | AL19: 0 | AN19: =ROUNDDOWN(AM19/10,0) -> 0 | AO19: 0 | AP19: ='Randlängen-Rund'!D17 -> 0 | AQ19: =ROUNDDOWN(AP19/4,0) -> 0 | AR19: 0 | AU19: 0 | AV19: 0 | AX19: =ROUNDDOWN(AW19/2.5,0) -> 0 | AY19: 0 | AZ19: ='Randlängen-Rund'!D39 -> 0 | BA19: =AZ19/1 -> 0 | BB19: 0 | BC19: =IF(F19=0,0,Berechnungstabellen!K212) -> 0
G20: 0 | H20: 0 | I20: 0 | J20: 0 | L20: =IF(B20=0,0,IF(K20>J20,0,$F$3)) -> 0 | O20: 0 | P20: 0 | Q20: 0 | S20: 0 | U20: 0 | W20: 0 | X20: 0 | Y20: 0 | AA20: 0 | AB20: 0 | AD20: 0 | AE20: 0 | AG20: 0 | AI20: 0 | AK20: 0 | AL20: 0 | AN20: 0 | AO20: 0 | AP20: ='Randlängen-Rund'!D18 -> 0 | AQ20: 0 | AR20: 0 | AU20: 0 | AV20: 0 | AX20: 0 | AY20: 0 | AZ20: ='Randlängen-Rund'!D40 -> 0 | BA20: 0 | BB20: 0 | BC20: =IF(F20=0,0,Berechnungstabellen!K213) -> 0
G21: 0 | H21: 0 | I21: 0 | J21: 0 | L21: 0 | O21: 0 | P21: 0 | Q21: 0 | S21: 0 | U21: 0 | W21: 0 | X21: 0 | Y21: 0 | AA21: 0 | AB21: 0 | AD21: 0 | AE21: 0 | AG21: 0 | AI21: 0 | AK21: 0 | AL21: 0 | AN21: 0 | AO21: 0 | AP21: ='Randlängen-Rund'!D19 -> 0 | AQ21: 0 | AR21: 0 | AU21: 0 | AV21: 0 | AX21: 0 | AY21: 0 | AZ21: ='Randlängen-Rund'!D41 -> 0 | BA21: 0 | BB21: 0 | BC21: =IF(F21=0,0,Berechnungstabellen!K214) -> 0
G22: 0 | H22: 0 | I22: 0 | J22: 0 | L22: 0 | O22: 0 | P22: 0 | Q22: 0 | S22: 0 | U22: 0 | W22: 0 | X22: 0 | Y22: 0 | AA22: 0 | AB22: 0 | AD22: 0 | AE22: 0 | AG22: 0 | AI22: 0 | AK22: 0 | AL22: 0 | AN22: 0 | AO22: 0 | AP22: ='Randlängen-Rund'!D20 -> 0 | AQ22: 0 | AR22: 0 | AU22: 0 | AV22: 0 | AX22: 0 | AY22: 0 | AZ22: ='Randlängen-Rund'!D42 -> 0 | BA22: 0 | BB22: 0 | BC22: =IF(F22=0,0,Berechnungstabellen!K215) -> 0
E23: Summen: | G23: Summe: | H23: Durchschnitt | BC23: =SUMIF(BC6:BC22,">0") -> 0 | BD23: =SUM(BD6:BD22) -> 0 | BF23: =SUM(BF6:BF22) -> 0
E24: =SUM(E6:E22) -> 0 | F24: =SUM(F6:F22) -> 0 | G24: =SUM(G6:G22) -> 0 | H24: =IF(H6=0,0,AVERAGEIF(H6:H22,"<>0")) -> 0 | I24: =IF(I6=0,0,AVERAGEIF(I6:I22,"<>0")) -> 0
A26: Geprüfte Maßangaben:
A28: Anmerkungen / ANG´s

Sheet Junghennen-Bruderhähne
A1: Ermittlung der maximalen Tierzahl, die gem. EU VO 2018/848 sowie 2020/464 Anhang I je Stall gehalten werden darf | BF1: Junghennen - Bruderhähne
A2: Allg. Angaben | C2: =TODAY() -> 2025-05-23 | D2: Belegung | H2: Tierverluste | M2: Stall | Q2: Sitzstangen | T2: Sitzebenen | X2: Luken (Stall-AKB) | AB2: Scharraumfläche | AD2: Auslauföffnungen (AKB – Auslauf) | AG2: Auslauf (bis 150 /350 m) | AJ2: Zusatzangaben: gem. TierSchNutztV (verpflichtend!) | AR2: Info zur Sollermittlung: Bezugswert = Anzahl Tiere bei Einstallung | BD2: Auswertung
J3: Voliere Ebenen | M3: Warm- stall | N3: Isolierte Veranda | O3: Ergebnis Stall | AM3: Futter | AV3: Tränken | BC3: Überschreitung bei Einstallung | BE3: Überschreitung aktuell
A4: Name Stall (lt. Stall-plan) | B4: Baujahr | C4: Einstall- datum | D4: Tierzahl bei Ein-stallung | E4: Belegung akt. | F4: Durch-schnitts-gewicht aktuell | G4: Gesamt (Anzahl Tiere) | H4: Tiere je Tag | I4: % | J4: Ebenen max | K4: Ebenen ist | L4: Tiere Max. | M4: m² | N4: m² jederzeit nutzbar | O4: Summe m² | P4: Kapa- zität Tiere gem. Gewicht | Q4: soll m | R4: ist m | S4: Kapa- zität (Tier-zahl) | T4: soll cm2 | U4: ist cm2 | V4: Kapa- zität (Tierzahl) | W4: Kapa- zität Sitze gesamt (Tier-zahl) | X4: soll m | Y4: ist m | Z4: Kapa- zität (Tier-zahl) | AA4: soll m² | AB4: ist m² | AC4: Kapa- zität (Tierzahl) | AD4: soll m | AE4: ist m | AF4: Kapa- zität (Tierzahl) | AG4: ist m² | AH4: Kapa- zität (Tier-zahl) | AJ4: Stall | AK4: Futtertröge Rinnen | AN4: Futtertröge Rund | AQ4: Futter-tröge ges. | AR4: Tränkeanzahl (Nippel) | AU4: Rinnentränke | AX4: Rundtränke | BA4: Tränken ges. | BB4: Kapa- zität Min. aller Krite- rien | BC4: Anzahl Tiere | BD4: Einstal-lung % | BE4: Anzahl Tiere | BF4: aktuell %
A5: Feste Ställe | C5: max. Belegung je Stall: | E5: 10000 | F5: . | G5: . | O5: max. kg / m²: | P5: 21 | Q5: mind. | R5: 0.1 | S5: m / Tier | T5: mind. | U5: 100 | V5: cm2 / Tier | X5: mind. 2m/500 Tiere | AA5: mind. | AB5: 0.3333 | AC5: der notw. Fläche | AD5: mind. | AE5: 4 | AF5: m/100m² | AG5: mind. m²/Tier: | AH5: 4 | AK5: soll (cm) | AL5: ist (cm) | AM5: Kapa- zität (Tierzahl) | AN5: soll (cm) | AO5: ist (cm) | AP5: Kapa- zität (Tierzahl) | AQ5: Kapa- zität (Tierzahl) | AR5: soll | AS5: ist (Anzahl) | AT5: Kapa- zität (Tierzahl) | AU5: soll (cm) | AV5: ist (cm) | AW5: Kapa- zität (Tierzahl) | AX5: soll (cm) | AY5: ist (cm) | AZ5: Kapa- zität (Tierzahl) | BA5: Summe Tränken
G6: =D6-E6 -> 0 | H6: =IF(E6=0,0,G6/(C$2-C6)) -> 0 | I6: =IF(C6=0,0,IF(E6=0,0,1-(E6/D6))) -> 0 | J6: =IF(B6=0,0,IF(B6<"2021",4,3)) -> 0 | L6: =IF(B6=0,0,IF(K6>J6,0,$E$5)) -> 0 | O6: =SUM(M6:N6) -> 0 | P6: =IF(F6=0,0,IF(ROUNDDOWN(O6*P$5/F6,0)>$E$5,$E$5,(ROUNDDOWN(O6*P$5/F6,0)))) -> 0 | Q6: =E6*$R$5 -> 0 | S6: =IF(ROUNDDOWN(R6/$R$5,0)>$E$5,$E$5,(ROUNDDOWN(R6/$R$5,0))) -> 0 | T6: =$E6*$U$5 -> 0 | V6: =IF(ROUNDDOWN(U6/$U$5,0)>$E$5,$E$5,(ROUNDDOWN(U6/$U$5,0))) -> 0 | W6: =S6+V6 -> 0 | X6: =D6/500*2 -> 0 | Z6: =IF(E6=0,0,IF(Y6>X6,P6,(Y6/X6*D6))) -> 0 | AA6: =(E6/6)*$AB$5 -> 0 | AC6: =IF(ROUNDDOWN(AB6*3*6,0)>$E$5,$E$5,(ROUNDDOWN(AB6*3*6,0))) -> 0 | AD6: =IF(P6=0,0,(E6*F6/$P$5/100*$AE$5)) -> 0 | AF6: =IF(AE6>AD6,P6,IF(AD6=0,0,(AE6/AD6*E6))) -> 0 | AH6: =IF(ROUNDDOWN(AG6/$AH$5,0)>$E$5,$E$5,(ROUNDDOWN(AG6/$AH$5,0))) -> 0 | AJ6: =A6 -> 0 | AK6: =ROUNDDOWN(D6*10,0) -> 0 | AL6: 80000 | AM6: =ROUNDDOWN(AL6/10,0) -> 8000 | AN6: =ROUNDDOWN(D6*4,0) -> 0 | AO6: ='Randlängen-Rund'!I4 -> 0 | AP6: =ROUNDDOWN(AO6/4,0) -> 0 | AQ6: =IF(AM6+AP6>$E$5,$E$5,AM6+AP6) -> 8000 | AR6: =IF(D6=0,"",ROUNDDOWN(D6/10+1,0)) ->  | AS6: 800 | AT6: =IF(ROUNDDOWN(AS6*10,0)>$E$5,$E$5,ROUNDDOWN(AS6*10,0)) -> 8000 | AU6: =ROUNDDOWN(C6*2.5,0) -> 0 | AW6: =ROUNDDOWN(AV6/2.5,0) -> 0 | AX6: =D6 -> 0 | AY6: ='Randlängen-Rund'!I26 -> 0 | AZ6: =AY6/1 -> 0 | BA6: =IF(AT6+AW6+AZ6>$E$5,$E$5,AT6+AW6+AZ6) -> 8000 | BB6: =Berechnungstabellen!K220 -> 0 | BC6: =IF($BB6=0,"",IF($D6>$BB6,$D6-$BB6,0)) ->  | BD6: =IF(D6>BB6,(D6-BB6)/BB6,"") ->  | BE6: =IF($BB6=0,"",IF($E6>$BB6,$E6-$BB6,0)) ->  | BF6: =IF(E6>BB6,(E6-BB6)/BB6,"") -> 
G7: =D7-E7 -> 0 | H7: =IF(E7=0,0,G7/(C$2-C7)) -> 0 | I7: =IF(C7=0,0,IF(E7=0,0,1-(E7/D7))) -> 0 | J7: =IF(B7=0,0,IF(B7<"2021",4,3)) -> 0 | L7: =IF(B7=0,0,IF(K7>J7,0,$E$5)) -> 0 | O7: 0 | P7: 0 | Q7: 0 | S7: 0 | T7: =$E7*$U$5 -> 0 | V7: 0 | W7: =S7+V7 -> 0 | X7: =D7/500*2 -> 0 | Z7: =IF(E7=0,0,IF(Y7>X7,P7,(Y7/X7*D7))) -> 0 | AA7: 0 | AC7: 0 | AD7: 0 | AF7: 0 | AH7: 0 | AJ7: 0 | AK7: 0 | AM7: 0 | AN7: 0 | AO7: ='Randlängen-Rund'!I5 -> 0 | AP7: 0 | AQ7: =IF(AM7+AP7>$E$5,$E$5,AM7+AP7) -> 0 | AT7: =IF(ROUNDDOWN(AS7*10,0)>$E$5,$E$5,ROUNDDOWN(AS7*10,0)) -> 0 | AU7: =ROUNDDOWN(C7*2.5,0) -> 0 | AW7: 0 | AX7: 0 | AY7: ='Randlängen-Rund'!I27 -> 0 | AZ7: 0 | BA7: =IF(AT7+AW7+AZ7>$E$5,$E$5,AT7+AW7+AZ7) -> 0 | BB7: =Berechnungstabellen!K221 -> 0 | BE7: =IF(BB7=0,"",IF(E7>BB7,E7-BB7,0)) -> 
G8: 0 | H8: 0 | I8: 0 | J8: 0 | L8: 0 | O8: 0 | P8: 0 | Q8: 0 | S8: 0 | T8: 0 | V8: 0 | W8: 0 | X8: 0 | Z8: 0 | AA8: 0 | AC8: 0 | AD8: 0 | AF8: 0 | AH8: 0 | AJ8: 0 | AK8: 0 | AM8: 0 | AN8: 0 | AO8: ='Randlängen-Rund'!I6 -> 0 | AP8: 0 | AQ8: 0 | AT8: 0 | AU8: =ROUNDDOWN(C8*2.5,0) -> 0 | AW8: 0 | AX8: 0 | AY8: ='Randlängen-Rund'!I28 -> 0 | AZ8: 0 | BA8: 0 | BB8: =Berechnungstabellen!K222 -> 0
G9: 0 | H9: 0 | I9: 0 | J9: 0 | L9: 0 | O9: 0 | P9: 0 | Q9: 0 | S9: 0 | T9: 0 | V9: 0 | W9: 0 | X9: 0 | Z9: 0 | AA9: 0 | AC9: 0 | AD9: 0 | AF9: 0 | AH9: 0 | AJ9: 0 | AK9: 0 | AM9: 0 | AN9: 0 | AO9: ='Randlängen-Rund'!I7 -> 0 | AP9: 0 | AQ9: 0 | AT9: 0 | AU9: 0 | AW9: 0 | AX9: 0 | AY9: ='Randlängen-Rund'!I29 -> 0 | AZ9: 0 | BA9: 0 | BB9: =Berechnungstabellen!K223 -> 0
G10: 0 | H10: 0 | I10: 0 | J10: 0 | L10: 0 | O10: 0 | P10: 0 | Q10: 0 | S10: 0 | T10: 0 | V10: 0 | W10: 0 | X10: 0 | Z10: 0 | AA10: 0 | AC10: 0 | AD10: 0 | AF10: =IF(AE10>AD10,P10,IF(AD10=0,0,(AE10/AD10*E10))) -> 0 | AH10: 0 | AJ10: 0 | AK10: 0 | AM10: 0 | AN10: 0 | AO10: ='Randlängen-Rund'!I8 -> 0 | AP10: 0 | AQ10: 0 | AT10: 0 | AU10: 0 | AW10: 0 | AX10: 0 | AY10: ='Randlängen-Rund'!I30 -> 0 | AZ10: 0 | BA10: 0 | BB10: =Berechnungstabellen!K224 -> 0
G11: 0 | H11: 0 | I11: 0 | J11: 0 | L11: 0 | O11: 0 | P11: 0 | Q11: 0 | S11: 0 | T11: 0 | V11: 0 | W11: 0 | X11: 0 | Z11: 0 | AA11: 0 | AC11: 0 | AD11: 0 | AF11: =IF(AE11>AD11,P11,IF(AD11=0,0,(AE11/AD11*E11))) -> 0 | AH11: 0 | AJ11: 0 | AK11: 0 | AM11: 0 | AN11: 0 | AO11: ='Randlängen-Rund'!I9 -> 0 | AP11: 0 | AQ11: 0 | AT11: 0 | AU11: 0 | AW11: 0 | AX11: 0 | AY11: ='Randlängen-Rund'!I31 -> 0 | AZ11: 0 | BA11: 0 | BB11: =Berechnungstabellen!K225 -> 0
G12: 0 | H12: 0 | I12: 0 | J12: 0 | L12: 0 | O12: 0 | P12: 0 | Q12: 0 | S12: 0 | T12: 0 | V12: 0 | W12: 0 | X12: 0 | Z12: 0 | AA12: 0 | AC12: 0 | AD12: 0 | AF12: 0 | AH12: 0 | AJ12: 0 | AK12: 0 | AM12: 0 | AN12: 0 | AO12: ='Randlängen-Rund'!I10 -> 0 | AP12: 0 | AQ12: 0 | AT12: 0 | AU12: 0 | AW12: 0 | AX12: 0 | AY12: ='Randlängen-Rund'!I32 -> 0 | AZ12: 0 | BA12: 0 | BB12: =Berechnungstabellen!K226 -> 0
G13: 0 | H13: 0 | I13: 0 | J13: 0 | L13: 0 | O13: 0 | P13: 0 | Q13: 0 | S13: 0 | T13: 0 | V13: 0 | W13: 0 | X13: 0 | Z13: 0 | AA13: 0 | AC13: 0 | AD13: 0 | AF13: 0 | AH13: 0 | AJ13: 0 | AK13: 0 | AM13: 0 | AN13: 0 | AO13: ='Randlängen-Rund'!I11 -> 0 | AP13: 0 | AQ13: 0 | AT13: 0 | AU13: 0 | AW13: 0 | AX13: 0 | AY13: ='Randlängen-Rund'!I33 -> 0 | AZ13: 0 | BA13: 0 | BB13: =Berechnungstabellen!K227 -> 0
A14: Bewegl. Ställe | C14: max. Belegung je Stall: | E14: 10000 | F14: . | O14: max. kg / m²: | P14: 21 | X14: . | AG14: mind. m²/Tier: | AH14: 2.5
G15: 0 | H15: 0 | I15: =IF(C15=0,0,IF(E15=0,0,1-(E15/D15))) -> 0 | J15: =IF(B15=0,0,IF(B15<"2021",4,3)) -> 0 | L15: =IF(B15=0,0,IF(K15>J15,0,$E$14)) -> 0 | O15: =SUM(M15:N15) -> 0 | P15: =IF(F15=0,0,IF(ROUNDDOWN(O15*P$14/F15,0)>$E$14,$E$14,(ROUNDDOWN(O15*P$14/F15,0)))) -> 0 | Q15: =E15*$R$5 -> 0 | S15: =IF(ROUNDDOWN(R15/$R$5,0)>$E$5,$E$5,(ROUNDDOWN(R15/$R$5,0))) -> 0 | T15: =$E15*$U$5 -> 0 | V15: =IF(ROUNDDOWN(U15/$U$5,0)>$E$14,$E$14,(ROUNDDOWN(U15/$U$5,0))) -> 0 | W15: =S15+V15 -> 0 | X15: =D15/500*2 -> 0 | Z15: =IF(E15=0,0,IF(Y15>X15,P15,(Y15/X15*D15))) -> 0 | AA15: =(E15/6)*$AB$5 -> 0 | AC15: =IF(ROUNDDOWN(AB15*3*6,0)>$E$14,$E$14,(ROUNDDOWN(AB15*3*6,0))) -> 0 | AD15: =IF(P15=0,0,(E15*F15/$P$5/100*$AE$5)) -> 0 | AF15: =IF(AE15>AD15,P15,IF(AD15=0,0,(AE15/AD15*E15))) -> 0 | AH15: =IF(ROUNDDOWN(AG15/$AH$14,0)>$E$14,$E$14,(ROUNDDOWN(AG15/$AH$14,0))) -> 0 | AJ15: =A15 -> 0 | AK15: =ROUNDDOWN(D15*10,0) -> 0 | AM15: 0 | AN15: =ROUNDDOWN(D15*4,0) -> 0 | AO15: ='Randlängen-Rund'!I13 -> 0 | AP15: 0 | AQ15: =IF(AM15+AP15>$E$5,$E$5,AM15+AP15) -> 0 | AR15: =IF(D15=0,"",ROUNDDOWN(D15/10+1,0)) ->  | AT15: =IF(ROUNDDOWN(AS15*10,0)>$E$5,$E$5,ROUNDDOWN(AS15*10,0)) -> 0 | AU15: =ROUNDDOWN(C15*2.5,0) -> 0 | AW15: 0 | AX15: =D15 -> 0 | AY15: ='Randlängen-Rund'!I35 -> 0 | AZ15: 0 | BA15: =IF(AT15+AW15+AZ15>$E$5,$E$5,AT15+AW15+AZ15) -> 0 | BB15: =Berechnungstabellen!K229 -> 0 | BC15: =IF($BB15=0,"",IF($D15>$BB15,$D15-$BB15,0)) ->  | BD15: =IF(D15>BB15,(D15-BB15)/BB15,"") ->  | BE15: =IF($BB15=0,"",IF($E15>$BB15,$E15-$BB15,0)) ->  | BF15: =IF(E15>BB15,(E15-BB15)/BB15,"") -> 
G16: 0 | H16: 0 | I16: =IF(C16=0,0,IF(E16=0,0,1-(E16/D16))) -> 0 | J16: =IF(B16=0,0,IF(B16<"2021",4,3)) -> 0 | L16: =IF(B16=0,0,IF(K16>J16,0,$E$14)) -> 0 | O16: 0 | P16: =IF(F16=0,0,IF(ROUNDDOWN(O16*P$14/F16,0)>$E$14,$E$14,(ROUNDDOWN(O16*P$14/F16,0)))) -> 0 | Q16: 0 | S16: 0 | T16: =$E16*$U$5 -> 0 | V16: 0 | W16: =S16+V16 -> 0 | X16: =D16/500*2 -> 0 | Z16: =IF(E16=0,0,IF(Y16>X16,P16,(Y16/X16*D16))) -> 0 | AA16: 0 | AC16: 0 | AD16: 0 | AF16: 0 | AH16: =IF(ROUNDDOWN(AG16/$AH$14,0)>$E$14,$E$14,(ROUNDDOWN(AG16/$AH$14,0))) -> 0 | AJ16: 0 | AK16: 0 | AM16: 0 | AN16: 0 | AO16: ='Randlängen-Rund'!I14 -> 0 | AP16: 0 | AQ16: =IF(AM16+AP16>$E$5,$E$5,AM16+AP16) -> 0 | AT16: =IF(ROUNDDOWN(AS16*10,0)>$E$5,$E$5,ROUNDDOWN(AS16*10,0)) -> 0 | AU16: =ROUNDDOWN(C16*2.5,0) -> 0 | AW16: 0 | AX16: 0 | AY16: ='Randlängen-Rund'!I36 -> 0 | AZ16: 0 | BA16: =IF(AT16+AW16+AZ16>$E$5,$E$5,AT16+AW16+AZ16) -> 0 | BB16: =Berechnungstabellen!K230 -> 0
G17: 0 | H17: 0 | I17: 0 | J17: 0 | L17: 0 | O17: 0 | P17: 0 | Q17: 0 | S17: 0 | T17: 0 | V17: 0 | W17: 0 | X17: 0 | Z17: 0 | AA17: 0 | AC17: 0 | AD17: 0 | AF17: 0 | AH17: 0 | AJ17: 0 | AK17: 0 | AM17: 0 | AN17: 0 | AO17: ='Randlängen-Rund'!I15 -> 0 | AP17: 0 | AQ17: 0 | AT17: 0 | AU17: =ROUNDDOWN(C17*2.5,0) -> 0 | AW17: 0 | AX17: 0 | AY17: ='Randlängen-Rund'!I37 -> 0 | AZ17: 0 | BA17: 0 | BB17: =Berechnungstabellen!K231 -> 0
G18: 0 | H18: 0 | I18: 0 | J18: 0 | L18: 0 | O18: 0 | P18: 0 | Q18: 0 | S18: 0 | T18: 0 | V18: 0 | W18: 0 | X18: 0 | Z18: 0 | AA18: 0 | AC18: 0 | AD18: 0 | AF18: 0 | AH18: 0 | AJ18: 0 | AK18: 0 | AM18: 0 | AN18: 0 | AO18: ='Randlängen-Rund'!I16 -> 0 | AP18: 0 | AQ18: 0 | AT18: 0 | AU18: 0 | AW18: 0 | AX18: 0 | AY18: ='Randlängen-Rund'!I38 -> 0 | AZ18: 0 | BA18: 0 | BB18: =Berechnungstabellen!K232 -> 0
G19: 0 | H19: 0 | I19: 0 | J19: 0 | L19: 0 | O19: 0 | P19: 0 | Q19: 0 | S19: 0 | T19: 0 | V19: 0 | W19: 0 | X19: 0 | Z19: 0 | AA19: 0 | AC19: 0 | AD19: 0 | AF19: 0 | AH19: 0 | AJ19: 0 | AK19: 0 | AM19: 0 | AN19: 0 | AO19: ='Randlängen-Rund'!I17 -> 0 | AP19: 0 | AQ19: 0 | AT19: 0 | AU19: 0 | AW19: 0 | AX19: 0 | AY19: ='Randlängen-Rund'!I39 -> 0 | AZ19: 0 | BA19: 0 | BB19: =Berechnungstabellen!K233 -> 0
G20: 0 | H20: 0 | I20: 0 | J20: 0 | L20: 0 | O20: 0 | P20: 0 | Q20: 0 | S20: 0 | T20: 0 | V20: 0 | W20: 0 | X20: 0 | Z20: 0 | AA20: 0 | AC20: 0 | AD20: 0 | AF20: 0 | AH20: 0 | AJ20: 0 | AK20: 0 | AM20: 0 | AN20: 0 | AO20: ='Randlängen-Rund'!I18 -> 0 | AP20: 0 | AQ20: 0 | AT20: 0 | AU20: 0 | AW20: 0 | AX20: 0 | AY20: ='Randlängen-Rund'!I40 -> 0 | AZ20: 0 | BA20: 0 | BB20: =Berechnungstabellen!K234 -> 0
G21: 0 | H21: 0 | I21: 0 | J21: 0 | L21: 0 | O21: 0 | P21: 0 | Q21: 0 | S21: 0 | T21: 0 | V21: 0 | W21: 0 | X21: 0 | Z21: 0 | AA21: 0 | AC21: 0 | AD21: 0 | AF21: 0 | AH21: 0 | AJ21: 0 | AK21: 0 | AM21: 0 | AN21: 0 | AO21: ='Randlängen-Rund'!I19 -> 0 | AP21: 0 | AQ21: 0 | AT21: 0 | AU21: 0 | AW21: 0 | AX21: 0 | AY21: ='Randlängen-Rund'!I41 -> 0 | AZ21: 0 | BA21: 0 | BB21: =Berechnungstabellen!K235 -> 0
G22: 0 | H22: 0 | I22: 0 | J22: 0 | L22: 0 | O22: 0 | P22: 0 | Q22: 0 | S22: 0 | T22: =$E22*$U$5 -> 0 | V22: 0 | W22: 0 | X22: 0 | Z22: 0 | AA22: 0 | AC22: 0 | AD22: 0 | AF22: 0 | AH22: 0 | AJ22: 0 | AK22: 0 | AM22: 0 | AN22: 0 | AO22: ='Randlängen-Rund'!I20 -> 0 | AP22: 0 | AQ22: 0 | AT22: 0 | AU22: 0 | AW22: 0 | AX22: 0 | AY22: ='Randlängen-Rund'!I42 -> 0 | AZ22: 0 | BA22: 0 | BB22: =Berechnungstabellen!K236 -> 0
G23: 0 | H23: 0 | I23: 0 | J23: =IF(B23=0,0,IF(B23<"2021",4,3)) -> 0 | L23: 0 | O23: 0 | P23: 0 | Q23: 0 | S23: 0 | T23: 0 | V23: 0 | W23: 0 | X23: =D23/500*2 -> 0 | Z23: 0 | AA23: 0 | AC23: 0 | AD23: 0 | AF23: 0 | AH23: 0 | AJ23: 0 | AK23: 0 | AM23: 0 | AN23: 0 | AO23: ='Randlängen-Rund'!I21 -> 0 | AP23: 0 | AQ23: =IF(AM23+AP23>$E$5,$E$5,AM23+AP23) -> 0 | AT23: 0 | AU23: =ROUNDDOWN(C23*2.5,0) -> 0 | AW23: 0 | AX23: 0 | AY23: ='Randlängen-Rund'!I43 -> 0 | AZ23: 0 | BA23: 0 | BB23: =Berechnungstabellen!K237 -> 0 | BD23: =IF(D23>BB23,(D23-BB23)/BB23,"") ->  | BE23: =IF($BB23=0,"",IF($E23>$BB23,$E23-$BB23,0)) ->  | BF23: =IF(E23>BB23,(E23-BB23)/BB23,"") -> 
D24: Summen: | G24: Summe: | H24: Durchschnitt | BB24: =SUMIF(BB6:BB23,">0") -> 0
D25: =SUM(D6:D23) -> 0 | E25: =SUM(E6:E23)-E14 -> 0 | G25: =SUM(G6:G23) -> 0 | H25: =IF(H6=0,0,AVERAGEIF(H6:H23,"<>0")) -> 0 | I25: =IF(I6=0,0,AVERAGEIF(I6:I23,"<>0")) -> 0
A27: Geprüfte Maßangaben: | C27: asdflsadjflas asjfldjsf
A29: Anmerkungen / Kommentare

Sheet Masthähnchen
A1: Ermittlung der maximalen Tierzahl, die gem. EU VO 2018/848 sowie 2020/464 Anhang I je Stall gehalten werden darf | BF1: Mastgeflügel
C2: =TODAY() -> 2025-05-23 | D2: Belegung | H2: Tierverluste | M2: Stall | R2: Sitzstangen | U2: Sitzebenen | Y2: Luken (Stall-KSR) | AB2: Scharraumfläche | AD2: Auslauföffnungen (KSR – Auslauf) | AG2: Auslauf (bis 150 /350 m) | AJ2: Zusatzangaben: gem. TierSchNutztV (verpflichtend!) | AR2: Info zur Sollermittlung: Bezugswert = Anzahl Tiere bei Einstallung | BD2: Auswertung
J3: Voliere Ebenen | M3: Warm- stall | N3: Isolierte Veranda | O3: Ergebnis Stall | AL3: Futter | AV3: Tränken | BC3: Überschreitung bei Einstallung | BE3: Überschreitung aktuell
A4: Name Stall (lt. Stall-plan) | B4: Baujahr | C4: Einstall- datum | D4: Tierzahl bei Ein-stallung | E4: Belegung akt. | F4: Durch-schnitts-gewicht aktuell | G4: Gesamt (Anzahl Tiere) | H4: Tiere je Tag | I4: % | J4: Ebenen max | K4: Ebenen ist | L4: Tiere Max. | M4: m² | N4: m² jederzeit nutzbar | O4: Summe m² | P4: Kapa- zität Tiere gem. Gewicht | Q4: soll m | R4: ist m | S4: Kapa- zität (Tier-zahl) | T4: soll cm2 | U4: ist cm2 | V4: Kapa- zität (Tier-zahl) | W4: Kapa- zität Sitze gesamt (Tier-zahl) | X4: soll m | Y4: ist m | Z4: Kapa- zität (Tier-zahl) | AA4: soll m² | AB4: ist m² | AC4: Kapa- zität (Tier-zahl) | AD4: soll m | AE4: ist m | AF4: Kapa- zität (Tier-zahl) | AG4: ist m² | AH4: Kapa- zität (Tier-zahl) | AJ4: Stall | AK4: Futtertröge Rinnen | AN4: Futtertröge Rund | AQ4: Futter-tröge ges. | AR4: Tränkeanzahl (Nippel) | AU4: Rinnentränke | AX4: Rundtränke | BA4: Tränken ges. | BB4: Kapa- zität Min. aller Krite- rien | BC4: Anzahl Tiere | BD4: Einstal-lung % | BE4: Anzahl Tiere | BF4: aktuell %
A5: Gallus gallus Stall fest | C5: max. Belegung je Stall: | E5: 4800 | F5: . | G5: . | O5: max. kg / m²: | P5: 21 | Q5: mind. | R5: 0.05 | S5: m / Tier | T5: mind. | U5: 25 | V5: cm2 / Tier | X5: mind. 2m/500 Tiere | AA5: mind. | AB5: 0.3333 | AC5: der notw. Fläche | AD5: mind. | AE5: 4 | AF5: m/100m² | AG5: mind. m²/Tier: | AH5: 4 | AK5: soll (cm) | AL5: ist (cm) | AM5: Kapa- zität (Tierzahl) | AN5: soll (cm) | AO5: ist (cm) | AP5: Kapa- zität (Tierzahl) | AQ5: Kapa- zität (Tierzahl) | AR5: soll | AS5: ist (Anzahl) | AT5: Kapa- zität (Tierzahl) | AU5: soll (cm) | AV5: ist (cm) | AW5: Kapa- zität (Tierzahl) | AX5: soll (cm) | AY5: ist (cm) | AZ5: Kapa- zität (Tierzahl) | BA5: Summe Tränken
G6: =D6-E6 -> 0 | H6: =IF(E6=0,0,G6/(C$2-C6)) -> 0 | I6: =IF(C6=0,0,IF(E6=0,0,1-(E6/D6))) -> 0 | J6: =IF(B6=0,0,IF(B6<"2021",4,3)) -> 0 | L6: =IF(B6=0,0,IF(K6>J6,0,$E$5)) -> 0 | O6: =SUM(M6:N6) -> 0 | P6: =IF(F6=0,0,IF(ROUNDDOWN(O6*P$5/F6,0)>$E$5,$E$5,(ROUNDDOWN(O6*P$5/F6,0)))) -> 0 | Q6: =E6*$R$5 -> 0 | S6: =IF(ROUNDDOWN(R6/$R$5,0)>$E$5,$E$5,(ROUNDDOWN(R6/$R$5,0))) -> 0 | T6: =$E6*$U$5 -> 0 | V6: =IF(ROUNDDOWN(U6/$U$5,0)>$E$5,$E$5,(ROUNDDOWN(U6/$U$5,0))) -> 0 | W6: =S6+V6 -> 0 | X6: =D6/500*2 -> 0 | Z6: =IF(E6=0,0,IF(Y6>X6,P6,(Y6/X6*E6))) -> 0 | AA6: =(E6/6)*$AB$5 -> 0 | AC6: =IF(ROUNDDOWN(AB6*3*6,0)>$E$5,$E$5,(ROUNDDOWN(AB6*3*6,0))) -> 0 | AD6: =IF(P6=0,0,(E6*F6/$P$5/100*$AE$5)) -> 0 | AF6: =IF(AE6>AD6,P6,IF(AD6=0,0,(AE6/AD6*E6))) -> 0 | AH6: =IF(ROUNDDOWN(AG6/$AH$5,0)>$E$5,$E$5,(ROUNDDOWN(AG6/$AH$5,0))) -> 0 | AJ6: =A6 -> 0 | AK6: =ROUNDDOWN(D6*10,0) -> 0 | AM6: =ROUNDDOWN(AL6/10,0) -> 0 | AN6: =ROUNDDOWN(D6*4,0) -> 0 | AO6: ='Randlängen-Rund'!N4 -> 0 | AP6: =ROUNDDOWN(AO6/4,0) -> 0 | AQ6: =IF((AM6+AP6)>$E$5,$E$5,AM6+AP6) -> 0 | AR6: =IF(D6=0,"",ROUNDDOWN(D6/10+1,0)) ->  | AT6: =IF(ROUNDDOWN(AS6*10,0)>$E$5,$E$5,ROUNDDOWN(AS6*10,0)) -> 0 | AU6: =ROUNDDOWN(D6*2.5,0) -> 0 | AW6: =ROUNDDOWN(AV6/2.5,0) -> 0 | AX6: =D6 -> 0 | AY6: ='Randlängen-Rund'!N26 -> 0 | AZ6: =AY6/1 -> 0 | BA6: =IF((AT6+AW6+AZ6)>$E$5,$E$5,AT6+AW6+AZ6) -> 0 | BB6: =Berechnungstabellen!K241 -> 0 | BC6: =IF($BB6=0,"",IF($D6>$BB6,$D6-$BB6,0)) ->  | BD6: =IF(D6>BB6,(D6-BB6)/BB6,"") ->  | BE6: =IF($BB6=0,"",IF($E6>$BB6,$E6-$BB6,0)) ->  | BF6: =IF(E6>BB6,(E6-BB6)/BB6,"") -> 
G7: =D7-E7 -> 0 | H7: =IF(E7=0,0,G7/(C$2-C7)) -> 0 | I7: =IF(C7=0,0,IF(E7=0,0,1-(E7/D7))) -> 0 | J7: =IF(B7=0,0,IF(B7<"2021",4,3)) -> 0 | L7: =IF(B7=0,0,IF(K7>J7,0,$E$5)) -> 0 | O7: 0 | P7: =IF(F7=0,0,IF(ROUNDDOWN(O7*P$5/F7,0)>$E$5,$E$5,(ROUNDDOWN(O7*P$5/F7,0)))) -> 0 | Q7: 0 | S7: 0 | T7: =$E7*$U$5 -> 0 | V7: 0 | W7: =S7+V7 -> 0 | X7: 0 | Z7: =IF(E7=0,0,IF(Y7>X7,P7,(Y7/X7*E7))) -> 0 | AA7: 0 | AC7: 0 | AD7: 0 | AF7: 0 | AH7: 0 | AJ7: 0 | AK7: 0 | AM7: 0 | AN7: 0 | AO7: ='Randlängen-Rund'!N5 -> 0 | AP7: 0 | AQ7: =IF((AM7+AP7)>$E$5,$E$5,AM7+AP7) -> 0 | AT7: =IF(ROUNDDOWN(AS7*10,0)>$E$5,$E$5,ROUNDDOWN(AS7*10,0)) -> 0 | AU7: =ROUNDDOWN(D7*2.5,0) -> 0 | AW7: 0 | AX7: 0 | AY7: ='Randlängen-Rund'!N27 -> 0 | AZ7: 0 | BA7: =IF((AT7+AW7+AZ7)>$E$5,$E$5,AT7+AW7+AZ7) -> 0 | BB7: =Berechnungstabellen!K242 -> 0 | BE7: =IF(BB7=0,"",IF(E7>BB7,E7-BB7,0)) -> 
G8: 0 | H8: 0 | I8: 0 | J8: 0 | L8: 0 | O8: 0 | P8: 0 | Q8: 0 | S8: 0 | T8: 0 | V8: 0 | W8: 0 | X8: 0 | Z8: 0 | AA8: 0 | AC8: 0 | AD8: 0 | AF8: 0 | AH8: 0 | AJ8: 0 | AK8: 0 | AM8: 0 | AN8: 0 | AO8: ='Randlängen-Rund'!N6 -> 0 | AP8: 0 | AQ8: 0 | AT8: 0 | AU8: =ROUNDDOWN(D8*2.5,0) -> 0 | AW8: 0 | AX8: 0 | AY8: ='Randlängen-Rund'!N28 -> 0 | AZ8: 0 | BA8: 0 | BB8: =Berechnungstabellen!K243 -> 0
G9: 0 | H9: 0 | I9: 0 | J9: 0 | L9: 0 | O9: 0 | P9: 0 | Q9: 0 | S9: 0 | T9: 0 | V9: 0 | W9: 0 | X9: 0 | Z9: 0 | AA9: 0 | AC9: 0 | AD9: 0 | AF9: 0 | AH9: 0 | AJ9: 0 | AK9: 0 | AM9: 0 | AN9: 0 | AO9: ='Randlängen-Rund'!N7 -> 0 | AP9: 0 | AQ9: 0 | AT9: 0 | AU9: 0 | AW9: 0 | AX9: 0 | AY9: ='Randlängen-Rund'!N29 -> 0 | AZ9: 0 | BA9: 0 | BB9: =Berechnungstabellen!K244 -> 0
G10: 0 | H10: 0 | I10: 0 | J10: 0 | L10: 0 | O10: 0 | P10: 0 | Q10: 0 | S10: 0 | T10: 0 | V10: 0 | W10: 0 | X10: 0 | Z10: 0 | AA10: 0 | AC10: 0 | AD10: 0 | AF10: =IF(AE10>AD10,P10,IF(AD10=0,0,(AE10/AD10*E10))) -> 0 | AH10: 0 | AJ10: 0 | AK10: 0 | AM10: 0 | AN10: 0 | AO10: ='Randlängen-Rund'!N8 -> 0 | AP10: 0 | AQ10: 0 | AT10: 0 | AU10: 0 | AW10: 0 | AX10: 0 | AY10: ='Randlängen-Rund'!N30 -> 0 | AZ10: 0 | BA10: 0 | BB10: =Berechnungstabellen!K245 -> 0
G11: 0 | H11: 0 | I11: 0 | J11: 0 | L11: 0 | O11: 0 | P11: 0 | Q11: 0 | S11: 0 | T11: 0 | V11: 0 | W11: 0 | X11: 0 | Z11: 0 | AA11: 0 | AC11: 0 | AD11: 0 | AF11: =IF(AE11>AD11,P11,IF(AD11=0,0,(AE11/AD11*E11))) -> 0 | AH11: 0 | AJ11: 0 | AK11: 0 | AM11: 0 | AN11: 0 | AO11: ='Randlängen-Rund'!N9 -> 0 | AP11: 0 | AQ11: 0 | AT11: 0 | AU11: 0 | AW11: 0 | AX11: 0 | AY11: ='Randlängen-Rund'!N31 -> 0 | AZ11: 0 | BA11: 0 | BB11: =Berechnungstabellen!K246 -> 0
G12: 0 | H12: 0 | I12: 0 | J12: 0 | L12: 0 | O12: 0 | P12: 0 | Q12: 0 | S12: 0 | T12: 0 | V12: 0 | W12: 0 | X12: 0 | Z12: 0 | AA12: 0 | AC12: 0 | AD12: 0 | AF12: 0 | AH12: 0 | AJ12: 0 | AK12: 0 | AM12: 0 | AN12: 0 | AO12: ='Randlängen-Rund'!N10 -> 0 | AP12: 0 | AQ12: 0 | AT12: 0 | AU12: 0 | AW12: 0 | AX12: 0 | AY12: ='Randlängen-Rund'!N32 -> 0 | AZ12: 0 | BA12: 0 | BB12: =Berechnungstabellen!K247 -> 0
G13: 0 | H13: 0 | I13: 0 | J13: 0 | L13: 0 | O13: 0 | P13: 0 | Q13: 0 | S13: 0 | T13: 0 | V13: 0 | W13: 0 | X13: 0 | Z13: 0 | AA13: 0 | AC13: 0 | AD13: 0 | AF13: 0 | AH13: 0 | AJ13: 0 | AK13: 0 | AM13: 0 | AN13: 0 | AO13: ='Randlängen-Rund'!N11 -> 0 | AP13: 0 | AQ13: 0 | AT13: 0 | AU13: 0 | AW13: 0 | AX13: 0 | AY13: ='Randlängen-Rund'!N33 -> 0 | AZ13: 0 | BA13: 0 | BB13: =Berechnungstabellen!K248 -> 0
A14: Bewegl. Ställe | C14: max. Belegung je Stall: | E14: 4800 | F14: . | O14: max. kg / m²: | P14: 21 | X14: . | AG14: mind. m²/Tier: | AH14: 2.5
G15: =D15-E15 -> 0 | H15: =IF(E15=0,0,G15/(C$2-C15)) -> 0 | I15: =IF(C15=0,0,IF(E15=0,0,1-(E15/D15))) -> 0 | J15: =IF(B15=0,0,IF(B15<"2021",4,3)) -> 0 | L15: =IF(B15=0,0,IF(K15>J15,0,$E$14)) -> 0 | O15: =SUM(M15:N15) -> 0 | P15: =IF(F15=0,0,IF(ROUNDDOWN(O15*P$14/F15,0)>$E$14,$E$14,(ROUNDDOWN(O15*P$14/F15,0)))) -> 0 | Q15: =E15*$R$5 -> 0 | S15: =IF(ROUNDDOWN(R15/$R$5,0)>$E$5,$E$5,(ROUNDDOWN(R15/$R$5,0))) -> 0 | T15: =$E15*$U$5 -> 0 | V15: =IF(ROUNDDOWN(U15/$U$5,0)>$E$14,$E$14,(ROUNDDOWN(U15/$U$5,0))) -> 0 | W15: =S15+V15 -> 0 | X15: =D15/500*2 -> 0 | Z15: =IF(E15=0,0,IF(Y15>X15,S15,(Y15/X15*E15))) -> 0 | AA15: =(E15/6)*$AB$5 -> 0 | AC15: =IF(ROUNDDOWN(AB15*3*6,0)>$E$14,$E$14,(ROUNDDOWN(AB15*3*6,0))) -> 0 | AD15: =IF(P15=0,0,(E15*F15/$P$5/100*$AE$5)) -> 0 | AF15: =IF(AE15>AD15,P15,IF(AD15=0,0,(AE15/AD15*E15))) -> 0 | AH15: =IF(ROUNDDOWN(AG15/$AH$14,0)>$E$14,$E$14,(ROUNDDOWN(AG15/$AH$14,0))) -> 0 | AJ15: =A15 -> 0 | AK15: =ROUNDDOWN(D15*10,0) -> 0 | AM15: =ROUNDDOWN(AL15/10,0) -> 0 | AN15: =ROUNDDOWN(D15*4,0) -> 0 | AO15: ='Randlängen-Rund'!N13 -> 0 | AP15: =ROUNDDOWN(AO15/4,0) -> 0 | AQ15: =IF((AM15+AP15)>$E$14,$E$14,AM15+AP15) -> 0 | AR15: =IF(D15=0,"",ROUNDDOWN(D15/10+1,0)) ->  | AT15: =IF(ROUNDDOWN(AS15*10,0)>$E$5,$E$5,ROUNDDOWN(AS15*10,0)) -> 0 | AU15: =ROUNDDOWN(D15*2.5,0) -> 0 | AW15: =ROUNDDOWN(AV15/2.5,0) -> 0 | AX15: =D15 -> 0 | AY15: ='Randlängen-Rund'!N35 -> 0 | AZ15: =AY15/1 -> 0 | BA15: =IF((AT15+AW15+AZ15)>$E$14,$E$14,AT15+AW15+AZ15) -> 0 | BB15: =Berechnungstabellen!K250 -> 0 | BC15: =IF($BB15=0,"",IF($D15>$BB15,$D15-$BB15,0)) ->  | BD15: =IF(D15>BB15,(D15-BB15)/BB15,"") ->  | BE15: =IF($BB15=0,"",IF($E15>$BB15,$E15-$BB15,0)) ->  | BF15: =IF(E15>BB15,(E15-BB15)/BB15,"") -> 
G16: 0 | H16: 0 | I16: =IF(C16=0,0,IF(E16=0,0,1-(E16/D16))) -> 0 | J16: =IF(B16=0,0,IF(B16<"2021",4,3)) -> 0 | L16: =IF(B16=0,0,IF(K16>J16,0,$E$14)) -> 0 | O16: 0 | P16: =IF(F16=0,0,IF(ROUNDDOWN(O16*P$14/F16,0)>$E$14,$E$14,(ROUNDDOWN(O16*P$14/F16,0)))) -> 0 | Q16: 0 | S16: 0 | T16: =$E16*$U$5 -> 0 | V16: 0 | W16: =S16+V16 -> 0 | X16: 0 | Z16: =IF(E16=0,0,IF(Y16>X16,S16,(Y16/X16*E16))) -> 0 | AA16: 0 | AC16: 0 | AD16: 0 | AF16: 0 | AH16: =IF(ROUNDDOWN(AG16/$AH$14,0)>$E$14,$E$14,(ROUNDDOWN(AG16/$AH$14,0))) -> 0 | AJ16: 0 | AK16: 0 | AM16: 0 | AN16: 0 | AO16: ='Randlängen-Rund'!N14 -> 0 | AP16: 0 | AQ16: 0 | AT16: =IF(ROUNDDOWN(AS16*10,0)>$E$5,$E$5,ROUNDDOWN(AS16*10,0)) -> 0 | AU16: =ROUNDDOWN(D16*2.5,0) -> 0 | AW16: 0 | AX16: 0 | AY16: ='Randlängen-Rund'!N36 -> 0 | AZ16: 0 | BA16: =IF((AT16+AW16+AZ16)>$E$14,$E$14,AT16+AW16+AZ16) -> 0 | BB16: =Berechnungstabellen!K251 -> 0 | BE16: =IF(BB16=0,"",IF(E16>BB16,E16-BB16,0)) -> 
G17: 0 | H17: 0 | I17: 0 | J17: 0 | L17: 0 | O17: 0 | P17: 0 | Q17: 0 | S17: 0 | T17: 0 | V17: 0 | W17: 0 | X17: 0 | Z17: 0 | AA17: 0 | AC17: 0 | AD17: 0 | AF17: 0 | AH17: 0 | AJ17: 0 | AK17: 0 | AM17: 0 | AN17: 0 | AO17: ='Randlängen-Rund'!N15 -> 0 | AP17: 0 | AQ17: 0 | AT17: 0 | AU17: =ROUNDDOWN(D17*2.5,0) -> 0 | AW17: 0 | AX17: 0 | AY17: ='Randlängen-Rund'!N37 -> 0 | AZ17: 0 | BA17: 0 | BB17: =Berechnungstabellen!K252 -> 0
G18: 0 | H18: 0 | I18: 0 | J18: 0 | L18: 0 | O18: 0 | P18: 0 | Q18: 0 | S18: 0 | T18: 0 | V18: 0 | W18: 0 | X18: 0 | Z18: 0 | AA18: 0 | AC18: 0 | AD18: 0 | AF18: 0 | AH18: 0 | AJ18: 0 | AK18: 0 | AM18: 0 | AN18: 0 | AO18: ='Randlängen-Rund'!N16 -> 0 | AP18: 0 | AQ18: 0 | AT18: 0 | AU18: 0 | AW18: 0 | AX18: 0 | AY18: ='Randlängen-Rund'!N38 -> 0 | AZ18: 0 | BA18: 0 | BB18: =Berechnungstabellen!K253 -> 0
G19: 0 | H19: 0 | I19: 0 | J19: 0 | L19: 0 | O19: 0 | P19: 0 | Q19: 0 | S19: 0 | T19: 0 | V19: 0 | W19: 0 | X19: 0 | Z19: 0 | AA19: 0 | AC19: 0 | AD19: 0 | AF19: 0 | AH19: 0 | AJ19: 0 | AK19: 0 | AM19: 0 | AN19: 0 | AO19: ='Randlängen-Rund'!N17 -> 0 | AP19: 0 | AQ19: 0 | AT19: 0 | AU19: 0 | AW19: 0 | AX19: 0 | AY19: ='Randlängen-Rund'!N39 -> 0 | AZ19: 0 | BA19: 0 | BB19: =Berechnungstabellen!K254 -> 0
G20: 0 | H20: 0 | I20: 0 | J20: 0 | L20: 0 | O20: 0 | P20: 0 | Q20: 0 | S20: 0 | T20: 0 | V20: 0 | W20: 0 | X20: 0 | Z20: 0 | AA20: 0 | AC20: 0 | AD20: 0 | AF20: 0 | AH20: 0 | AJ20: 0 | AK20: 0 | AM20: 0 | AN20: 0 | AO20: ='Randlängen-Rund'!N18 -> 0 | AP20: 0 | AQ20: 0 | AT20: 0 | AU20: 0 | AW20: 0 | AX20: 0 | AY20: ='Randlängen-Rund'!N40 -> 0 | AZ20: 0 | BA20: 0 | BB20: =Berechnungstabellen!K255 -> 0
G21: 0 | H21: 0 | I21: 0 | J21: 0 | L21: 0 | O21: 0 | P21: 0 | Q21: 0 | S21: 0 | T21: =$E21*$U$5 -> 0 | V21: 0 | W21: 0 | X21: 0 | Z21: 0 | AA21: 0 | AC21: 0 | AD21: 0 | AF21: 0 | AH21: 0 | AJ21: 0 | AK21: 0 | AM21: 0 | AN21: 0 | AO21: ='Randlängen-Rund'!N19 -> 0 | AP21: 0 | AQ21: 0 | AT21: 0 | AU21: 0 | AW21: 0 | AX21: 0 | AY21: ='Randlängen-Rund'!N41 -> 0 | AZ21: 0 | BA21: 0 | BB21: =Berechnungstabellen!K256 -> 0
G22: 0 | H22: 0 | I22: 0 | J22: 0 | L22: 0 | O22: 0 | P22: 0 | Q22: 0 | S22: 0 | T22: 0 | V22: 0 | W22: 0 | X22: 0 | Z22: 0 | AA22: 0 | AC22: 0 | AD22: 0 | AF22: 0 | AH22: 0 | AJ22: 0 | AK22: 0 | AM22: 0 | AN22: 0 | AO22: ='Randlängen-Rund'!N20 -> 0 | AP22: 0 | AQ22: 0 | AT22: 0 | AU22: 0 | AW22: 0 | AX22: 0 | AY22: ='Randlängen-Rund'!N42 -> 0 | AZ22: 0 | BA22: 0 | BB22: =Berechnungstabellen!K257 -> 0
D23: Summen: | G23: Summe: | H23: Durchschnitt
D24: =SUM(D6:D22) -> 0 | E24: =SUM(E6:E22)-E14 -> 0 | G24: =SUM(G6:G22) -> 0 | H24: =IF(H6=0,0,AVERAGEIF(H6:H22,"<>0")) -> 0 | I24: =IF(I6=0,0,AVERAGEIF(I6:I22,"<>0")) -> 0
A25: Kapaune | C25: max. Belegung je Stall: | E25: 2500 | O25: max. kg / m²: | P25: 21 | X25: . | AG25: mind. m²/Tier: | AH25: 2.5 | BF25: =A25 -> Kapaune
G26: 0 | H26: 0 | I26: =IF(C26=0,0,IF(E26=0,0,1-(E26/D26))) -> 0 | J26: =IF(B26=0,0,IF(B26<"2021",4,3)) -> 0 | L26: =IF(B26=0,0,IF(K26>J26,0,$E$25)) -> 0 | O26: =SUM(M26:N26) -> 0 | P26: =IF(F26=0,0,IF(ROUNDDOWN(O26*P$25/F26,0)>$E$25,$E$25,(ROUNDDOWN(O26*P$25/F26,0)))) -> 0 | Q26: =E26*$R$5 -> 0 | S26: =IF(ROUNDDOWN(R26/$R$5,0)>$E$5,$E$5,(ROUNDDOWN(R26/$R$5,0))) -> 0 | T26: =$E26*$U$5 -> 0 | V26: =IF(ROUNDDOWN(U26/$U$5,0)>$E$25,$E$25,(ROUNDDOWN(U26/$U$5,0))) -> 0 | W26: =S26+V26 -> 0 | X26: =E26/500*2 -> 0 | Z26: =IF(E26=0,0,IF(Y26>X26,S26,(Y26/X26*E26))) -> 0 | AA26: =(E26/6)*$AB$5 -> 0 | AC26: =IF(ROUNDDOWN(AB26*3*6,0)>$E$25,$E$25,(ROUNDDOWN(AB26*3*6,0))) -> 0 | AD26: =IF(P26=0,0,(O26/P26*E26/100*$AE$5)) -> 0 | AF26: =IF(AE26>AD26,P26,IF(AD26=0,0,(AE26/AD26*E26))) -> 0 | AH26: =IF(ROUNDDOWN(AG26/$AH$25,0)>$E$25,$E$25,(ROUNDDOWN(AG26/$AH$25,0))) -> 0 | AJ26: =A26 -> 0 | AK26: =ROUNDDOWN(D26*10,0) -> 0 | AM26: 0 | AN26: =ROUNDDOWN(D26*4,0) -> 0 | AO26: ='Randlängen-Rund'!S4 -> 0 | AP26: 0 | AQ26: =IF((AM26+AP26)>$E$25,$E$25,AM26+AP26) -> 0 | AR26: =IF(D26=0,"",ROUNDDOWN(D26/10+1,0)) ->  | AT26: =IF(ROUNDDOWN(AS26*10,0)>$E$25,$E$25,ROUNDDOWN(AS26*10,0)) -> 0 | AU26: =ROUNDDOWN(D26*2.5,0) -> 0 | AW26: =ROUNDDOWN(AV26/2.5,0) -> 0 | AX26: =D26 -> 0 | AY26: ='Randlängen-Rund'!N46 -> 0 | AZ26: =AY26/1 -> 0 | BA26: =IF((AT26+AW26+AZ26)>$E$25,$E$25,AT26+AW26+AZ26) -> 0 | BB26: =Berechnungstabellen!K261 -> 0 | BC26: =IF($BB26=0,"",IF($D26>$BB26,$D26-$BB26,0)) ->  | BD26: =IF(D26>BB26,(D26-BB26)/BB26,"") ->  | BE26: =IF($BB26=0,"",IF($E26>$BB26,$E26-$BB26,0)) ->  | BF26: =IF(E26>BB26,(E26-BB26)/BB26,"") -> 
G27: 0 | H27: 0 | I27: =IF(C27=0,0,IF(E27=0,0,1-(E27/D27))) -> 0 | J27: =IF(B27=0,0,IF(B27<"2021",4,3)) -> 0 | L27: =IF(B27=0,0,IF(K27>J27,0,$E$25)) -> 0 | O27: 0 | P27: 0 | Q27: 0 | S27: 0 | T27: =$E27*$U$5 -> 0 | V27: 0 | W27: =S27+V27 -> 0 | X27: 0 | Z27: =IF(E27=0,0,IF(Y27>X27,S27,(Y27/X27*E27))) -> 0 | AA27: 0 | AC27: 0 | AD27: 0 | AF27: 0 | AH27: 0 | AJ27: 0 | AK27: 0 | AM27: 0 | AN27: 0 | AO27: ='Randlängen-Rund'!S5 -> 0 | AP27: 0 | AQ27: 0 | AT27: 0 | AU27: =ROUNDDOWN(D27*2.5,0) -> 0 | AW27: 0 | AX27: 0 | AY27: ='Randlängen-Rund'!N47 -> 0 | AZ27: 0 | BA27: 0 | BB27: =Berechnungstabellen!K262 -> 0 | BE27: =IF(BB27=0,"",IF(E27>BB27,E27-BB27,0)) -> 
G28: 0 | H28: 0 | I28: 0 | J28: 0 | L28: 0 | O28: 0 | P28: 0 | Q28: 0 | S28: 0 | T28: 0 | V28: 0 | W28: 0 | X28: 0 | Z28: 0 | AA28: 0 | AC28: 0 | AD28: 0 | AF28: 0 | AH28: 0 | AJ28: 0 | AK28: 0 | AM28: 0 | AN28: 0 | AO28: ='Randlängen-Rund'!S6 -> 0 | AP28: 0 | AQ28: 0 | AT28: 0 | AU28: =ROUNDDOWN(D28*2.5,0) -> 0 | AW28: 0 | AX28: 0 | AY28: ='Randlängen-Rund'!N48 -> 0 | AZ28: 0 | BA28: 0 | BB28: =Berechnungstabellen!K263 -> 0
G29: 0 | H29: 0 | I29: 0 | J29: 0 | L29: 0 | O29: 0 | P29: 0 | Q29: 0 | S29: 0 | T29: 0 | V29: 0 | W29: 0 | X29: 0 | Z29: 0 | AA29: 0 | AC29: 0 | AD29: 0 | AF29: 0 | AH29: 0 | AJ29: 0 | AK29: 0 | AM29: 0 | AN29: 0 | AO29: ='Randlängen-Rund'!S7 -> 0 | AP29: 0 | AQ29: 0 | AT29: 0 | AU29: 0 | AW29: 0 | AX29: 0 | AY29: ='Randlängen-Rund'!N49 -> 0 | AZ29: 0 | BA29: 0 | BB29: =Berechnungstabellen!K264 -> 0
G30: 0 | H30: 0 | I30: 0 | J30: 0 | L30: 0 | O30: 0 | P30: 0 | Q30: 0 | S30: 0 | T30: 0 | V30: 0 | W30: 0 | X30: 0 | Z30: 0 | AA30: 0 | AC30: 0 | AD30: =IF(P30=0,0,(O30/P30*E30/100*$AE$5)) -> 0 | AF30: 0 | AH30: 0 | AJ30: 0 | AK30: 0 | AM30: 0 | AN30: 0 | AO30: ='Randlängen-Rund'!S8 -> 0 | AP30: 0 | AQ30: 0 | AT30: 0 | AU30: 0 | AW30: 0 | AX30: 0 | AY30: ='Randlängen-Rund'!N50 -> 0 | AZ30: 0 | BA30: 0 | BB30: =Berechnungstabellen!K265 -> 0
G31: 0 | H31: 0 | I31: 0 | J31: 0 | L31: 0 | O31: 0 | P31: 0 | Q31: 0 | S31: 0 | T31: 0 | V31: 0 | W31: 0 | X31: 0 | Z31: 0 | AA31: 0 | AC31: 0 | AD31: 0 | AF31: 0 | AH31: 0 | AJ31: 0 | AK31: 0 | AM31: 0 | AN31: 0 | AO31: ='Randlängen-Rund'!S9 -> 0 | AP31: 0 | AQ31: 0 | AT31: 0 | AU31: 0 | AW31: 0 | AX31: 0 | AY31: ='Randlängen-Rund'!N51 -> 0 | AZ31: 0 | BA31: 0 | BB31: =Berechnungstabellen!K266 -> 0
G32: 0 | H32: 0 | I32: 0 | J32: 0 | L32: 0 | O32: 0 | P32: 0 | Q32: 0 | S32: 0 | T32: =$E32*$U$5 -> 0 | V32: 0 | W32: 0 | X32: 0 | Z32: 0 | AA32: 0 | AC32: 0 | AD32: 0 | AF32: 0 | AH32: 0 | AJ32: 0 | AK32: 0 | AM32: 0 | AN32: 0 | AO32: ='Randlängen-Rund'!S10 -> 0 | AP32: 0 | AQ32: 0 | AT32: 0 | AU32: 0 | AW32: 0 | AX32: 0 | AY32: ='Randlängen-Rund'!N52 -> 0 | AZ32: 0 | BA32: 0 | BB32: =Berechnungstabellen!K267 -> 0
G33: 0 | H33: 0 | I33: 0 | J33: 0 | L33: 0 | O33: 0 | P33: 0 | Q33: 0 | S33: 0 | T33: 0 | V33: 0 | W33: 0 | X33: 0 | Z33: 0 | AA33: 0 | AC33: 0 | AD33: 0 | AF33: 0 | AH33: 0 | AJ33: 0 | AK33: 0 | AM33: 0 | AN33: 0 | AO33: ='Randlängen-Rund'!S11 -> 0 | AP33: 0 | AQ33: 0 | AT33: 0 | AU33: 0 | AW33: 0 | AX33: 0 | AY33: ='Randlängen-Rund'!N53 -> 0 | AZ33: 0 | BA33: 0 | BB33: =Berechnungstabellen!K268 -> 0
G34: Summe: | H34: Durchschnitt | K34: .
G35: =SUM(G27:G33) -> 0 | H35: =IF(H26=0,0,AVERAGEIF(H26:H33,"<>0")) -> 0 | I35: =IF(I26=0,0,AVERAGEIF(I26:I33,"<>0")) -> 0
A36: Poularden | C36: max. Belegung je Stall: | E36: 4000 | O36: max. kg / m²: | P36: 21 | X36: . | AG36: mind. m²/Tier: | AH36: 2.5 | BF36: =A36 -> Poularden
G37: =D37-E37 -> 0 | H37: =IF(E37=0,0,G37/(C$2-C37)) -> 0 | I37: =IF(C37=0,0,IF(E37=0,0,1-(E37/D37))) -> 0 | J37: =IF(B37=0,0,IF(B37<"2021",4,3)) -> 0 | L37: =IF(B37=0,0,IF(K37>J37,0,$E$36)) -> 0 | O37: =SUM(M37:N37) -> 0 | P37: =IF(F37=0,0,IF(ROUNDDOWN(O37*P$36/F37,0)>$E$36,$E$36,(ROUNDDOWN(O37*P$36/F37,0)))) -> 0 | Q37: =E37*$R$5 -> 0 | S37: =IF(ROUNDDOWN(R37/$R$5,0)>$E$5,$E$5,(ROUNDDOWN(R37/$R$5,0))) -> 0 | T37: =$E37*$U$5 -> 0 | V37: =IF(ROUNDDOWN(U37/$U$5,0)>$E$25,$E$25,(ROUNDDOWN(U37/$U$5,0))) -> 0 | W37: =S37+V37 -> 0 | X37: =E37/500*2 -> 0 | Z37: =IF(E37=0,0,IF(Y37>X37,S37,(Y37/X37*E37))) -> 0 | AA37: =(E37/6)*$AB$5 -> 0 | AC37: =IF(ROUNDDOWN(AB37*3*6,0)>$E$25,$E$25,(ROUNDDOWN(AB37*3*6,0))) -> 0 | AD37: =IF(P37=0,0,(O37/P37*E37/100*$AE$5)) -> 0 | AF37: =IF(AE37>AD37,P37,IF(AD37=0,0,(AE37/AD37*E37))) -> 0 | AH37: =IF(ROUNDDOWN(AG37/$AH$25,0)>$E$25,$E$25,(ROUNDDOWN(AG37/$AH$25,0))) -> 0 | AJ37: =A37 -> 0 | AK37: =ROUNDDOWN(D37*10,0) -> 0 | AM37: =ROUNDDOWN(AL37/10,0) -> 0 | AN37: =ROUNDDOWN(D37*4,0) -> 0 | AO37: ='Randlängen-Rund'!S13 -> 0 | AP37: =ROUNDDOWN(AO37/4,0) -> 0 | AQ37: =IF((AM37+AP37)>$E$36,$E$36,AM37+AP37) -> 0 | AR37: =IF(D37=0,"",ROUNDDOWN(D37/10+1,0)) ->  | AT37: =IF(ROUNDDOWN(AS37*10,0)>$E$36,$E$36,ROUNDDOWN(AS37*10,0)) -> 0 | AU37: =ROUNDDOWN(D37*2.5,0) -> 0 | AW37: =ROUNDDOWN(AV37/2.5,0) -> 0 | AX37: =D37 -> 0 | AY37: ='Randlängen-Rund'!N57 -> 0 | AZ37: =AY37/1 -> 0 | BA37: =IF((AT37+AW37+AZ37)>$E$36,$E$36,AT37+AW37+AZ37) -> 0 | BB37: =Berechnungstabellen!K272 -> 0 | BC37: =IF($BB37=0,"",IF($D37>$BB37,$D37-$BB37,0)) ->  | BD37: =IF(D37>BB37,(D37-BB37)/BB37,"") ->  | BE37: =IF($BB37=0,"",IF($E37>$BB37,$E37-$BB37,0)) ->  | BF37: =IF(E37>BB37,(E37-BB37)/BB37,"") -> 
G38: 0 | H38: 0 | I38: =IF(C38=0,0,IF(E38=0,0,1-(E38/D38))) -> 0 | J38: =IF(B38=0,0,IF(B38<"2021",4,3)) -> 0 | L38: =IF(B38=0,0,IF(K38>J38,0,$E$36)) -> 0 | O38: 0 | P38: 0 | Q38: 0 | S38: 0 | T38: =$E38*$U$5 -> 0 | V38: 0 | W38: =S38+V38 -> 0 | X38: 0 | Z38: =IF(E38=0,0,IF(Y38>X38,S38,(Y38/X38*E38))) -> 0 | AA38: 0 | AC38: 0 | AD38: 0 | AF38: 0 | AH38: =IF(ROUNDDOWN(AG38/$AH$25,0)>$E$25,$E$25,(ROUNDDOWN(AG38/$AH$25,0))) -> 0 | AJ38: 0 | AK38: 0 | AM38: 0 | AN38: 0 | AO38: ='Randlängen-Rund'!S14 -> 0 | AP38: 0 | AQ38: 0 | AT38: 0 | AU38: =ROUNDDOWN(D38*2.5,0) -> 0 | AW38: 0 | AX38: 0 | AY38: ='Randlängen-Rund'!N58 -> 0 | AZ38: 0 | BA38: 0 | BB38: =Berechnungstabellen!K273 -> 0 | BE38: =IF(BB38=0,"",IF(E38>BB38,E38-BB38,0)) -> 
G39: 0 | H39: 0 | I39: 0 | J39: 0 | L39: 0 | O39: 0 | P39: 0 | Q39: 0 | S39: 0 | T39: 0 | V39: 0 | W39: 0 | X39: 0 | Z39: 0 | AA39: 0 | AC39: 0 | AD39: 0 | AF39: 0 | AH39: 0 | AJ39: 0 | AK39: 0 | AM39: 0 | AN39: 0 | AO39: ='Randlängen-Rund'!S15 -> 0 | AP39: 0 | AQ39: 0 | AT39: 0 | AU39: =ROUNDDOWN(D39*2.5,0) -> 0 | AW39: 0 | AX39: 0 | AY39: ='Randlängen-Rund'!N59 -> 0 | AZ39: 0 | BA39: 0 | BB39: =Berechnungstabellen!K274 -> 0
G40: 0 | H40: 0 | I40: 0 | J40: 0 | L40: 0 | O40: 0 | P40: 0 | Q40: 0 | S40: 0 | T40: 0 | V40: 0 | W40: 0 | X40: 0 | Z40: 0 | AA40: 0 | AC40: 0 | AD40: 0 | AF40: 0 | AH40: 0 | AJ40: 0 | AK40: 0 | AM40: 0 | AN40: 0 | AO40: ='Randlängen-Rund'!S16 -> 0 | AP40: 0 | AQ40: 0 | AT40: 0 | AU40: 0 | AW40: 0 | AX40: 0 | AY40: ='Randlängen-Rund'!N60 -> 0 | AZ40: 0 | BA40: 0 | BB40: =Berechnungstabellen!K275 -> 0
G41: 0 | H41: 0 | I41: 0 | J41: 0 | L41: 0 | O41: 0 | P41: 0 | Q41: 0 | S41: 0 | T41: 0 | V41: 0 | W41: 0 | X41: 0 | Z41: 0 | AA41: 0 | AC41: 0 | AD41: 0 | AF41: 0 | AH41: 0 | AJ41: 0 | AK41: 0 | AM41: 0 | AN41: 0 | AO41: ='Randlängen-Rund'!S17 -> 0 | AP41: 0 | AQ41: 0 | AT41: 0 | AU41: 0 | AW41: 0 | AX41: 0 | AY41: ='Randlängen-Rund'!N61 -> 0 | AZ41: 0 | BA41: 0 | BB41: =Berechnungstabellen!K276 -> 0
G42: 0 | H42: 0 | I42: 0 | J42: 0 | L42: 0 | O42: 0 | P42: 0 | Q42: 0 | S42: 0 | T42: 0 | V42: 0 | W42: 0 | X42: 0 | Z42: 0 | AA42: 0 | AC42: 0 | AD42: 0 | AF42: 0 | AH42: 0 | AJ42: 0 | AK42: 0 | AM42: 0 | AN42: 0 | AO42: ='Randlängen-Rund'!S18 -> 0 | AP42: 0 | AQ42: 0 | AT42: 0 | AU42: 0 | AW42: 0 | AX42: 0 | AY42: ='Randlängen-Rund'!N62 -> 0 | AZ42: 0 | BA42: 0 | BB42: =Berechnungstabellen!K277 -> 0
G43: 0 | H43: 0 | I43: 0 | J43: 0 | L43: 0 | O43: 0 | P43: 0 | Q43: 0 | S43: 0 | T43: =$E43*$U$5 -> 0 | V43: 0 | W43: 0 | X43: 0 | Z43: 0 | AA43: 0 | AC43: 0 | AD43: 0 | AF43: 0 | AH43: 0 | AJ43: 0 | AK43: 0 | AM43: 0 | AN43: 0 | AO43: ='Randlängen-Rund'!S19 -> 0 | AP43: 0 | AQ43: 0 | AT43: 0 | AU43: 0 | AW43: 0 | AX43: 0 | AY43: ='Randlängen-Rund'!N63 -> 0 | AZ43: 0 | BA43: 0 | BB43: =Berechnungstabellen!K278 -> 0
G44: 0 | H44: 0 | I44: 0 | J44: 0 | L44: 0 | O44: 0 | P44: 0 | Q44: 0 | S44: 0 | T44: 0 | V44: 0 | W44: 0 | X44: 0 | Z44: 0 | AA44: 0 | AC44: 0 | AD44: 0 | AF44: 0 | AH44: 0 | AJ44: 0 | AK44: 0 | AM44: 0 | AN44: 0 | AO44: ='Randlängen-Rund'!S20 -> 0 | AP44: 0 | AQ44: 0 | AT44: 0 | AU44: 0 | AW44: 0 | AX44: 0 | AY44: ='Randlängen-Rund'!N64 -> 0 | AZ44: 0 | BA44: 0 | BB44: =Berechnungstabellen!K279 -> 0
G45: Summe: | H45: Durchschnitt
G46: =SUM(G38:G44) -> 0 | H46: =IF(H37=0,0,AVERAGEIF(H37:H44,"<>0")) -> 0 | I46: =IF(I37=0,0,AVERAGEIF(I37:I44,"<>0")) -> 0 | M46: Geprüfte Maßangaben:
A48: Anmerkungen / Kommentare

Sheet Mastputen
A1: Ermittlung der maximalen Tierzahl, die gem. EU VO 2018/848 sowie 2020/464 Anhang I je Stall gehalten werden darf | BF1: Mastputen
C2: =TODAY() -> 2025-05-23 | D2: Belegung | H2: Tierverluste | N2: Stall | R2: Sitzstangen | U2: Sitzebenen | Y2: Luken (Stall-AKB) | AB2: Scharraumfläche | AD2: Auslauföffnungen (AKB – Auslauf) | AG2: Auslauf (bis 150 /350 m) | AJ2: Zusatzangaben: gem. TierSchNutztV (verpflichtend!) | AR2: Info zur Sollermittlung: Bezugswert = Anzahl Tiere bei Einstallung | BD2: Auswertung
J3: Voliere Ebenen | M3: Warm- stall | N3: Isolierte Veranda | O3: Ergebnis Stall | AM3: Futter | AV3: Tränken | BC3: Überschreitung bei Einstallung | BE3: Überschreitung aktuell
A4: Name Stall (lt. Stall-plan) | B4: Baujahr | C4: Einstall- datum | D4: Tierzahl bei Ein-stallung | E4: Belegung akt. | F4: Durch-schnitts-gewicht aktuell | G4: Gesamt (Anzahl Tiere) | H4: Tiere je Tag | I4: % | J4: Ebenen max | K4: Ebenen ist | L4: Tiere Max. | M4: m² | N4: m² jederzeit nutzbar | O4: Summe m² | P4: Kapa- zität Tiere gem. Gewicht | Q4: soll m | R4: ist m | S4: Kapa- zität (Tierzahl) | T4: soll cm2 | U4: ist cm2 | V4: Kapa- zität (Tierzahl) | W4: Kapa- zität Sitze gesamt (Tierzahl) | X4: soll m | Y4: ist m | Z4: Kapa- zität (Tierzahl) | AA4: soll m² | AB4: ist m² | AC4: Kapa- zität (Tierzahl) | AD4: soll m | AE4: ist m | AF4: Kapa- zität (Tierzahl) | AG4: ist m² | AH4: Kapa- zität (Tierzahl) | AJ4: Stall | AK4: Futtertröge Rinnen | AN4: Futtertröge Rund | AQ4: Futter-tröge ges. | AR4: Tränkeanzahl (Nippel) | AU4: Rinnentränke | AX4: Rundtränke | BA4: Tränken ges. | BB4: Kapa- zität Min. aller Krite- rien | BC4: Anzahl Tiere | BD4: Einstal-lung % | BE4: Anzahl Tiere | BF4: aktuell %
A5: Feste Ställe | C5: max. Belegung je Stall: | E5: 2500 | F5: . | G5: . | O5: max. kg / m²: | P5: 21 | Q5: mind. | R5: 0.1 | S5: m / Tier | T5: mind. | U5: 100 | V5: cm2 / Tier | X5: mind. 2m/500 Tiere | AA5: mind. | AB5: 0.3333 | AC5: der notw. Fläche | AD5: mind. | AE5: 4 | AF5: m/100m² | AG5: mind. 4m²/Tier | AK5: soll (cm) | AL5: ist (cm) | AM5: Kapa- zität (Tierzahl) | AN5: soll (cm) | AO5: ist (cm) | AP5: Kapa- zität (Tierzahl) | AQ5: Kapa- zität (Tierzahl) | AR5: soll | AS5: ist (Anzahl) | AT5: Kapa- zität (Tierzahl) | AU5: soll (cm) | AV5: ist (cm) | AW5: Kapa- zität (Tierzahl) | AX5: soll (cm) | AY5: ist (cm) | AZ5: Kapa- zität (Tierzahl) | BA5: Summe Tränken
G6: =D6-E6 -> 0 | H6: =IF(E6=0,0,G6/(C$2-C6)) -> 0 | I6: =IF(C6=0,0,IF(E6=0,0,1-(E6/D6))) -> 0 | J6: =IF(B6=0,0,IF(B6<"2021",4,3)) -> 0 | L6: =IF(B6=0,0,IF(K6>J6,0,$E$5)) -> 0 | O6: =SUM(M6:N6) -> 0 | P6: =IF(F6=0,0,IF(ROUNDDOWN(O6*P$5/F6,0)>$E$5,$E$5,(ROUNDDOWN(O6*P$5/F6,0)))) -> 0 | Q6: =E6*$R$5 -> 0 | S6: =IF(ROUNDDOWN(R6/$R$5,0)>$E$5,$E$5,(ROUNDDOWN(R6/$R$5,0))) -> 0 | T6: =$E6*$U$5 -> 0 | V6: =IF(ROUNDDOWN(U6/$U$5,0)>$E$5,$E$5,(ROUNDDOWN(U6/$U$5,0))) -> 0 | W6: =S6+V6 -> 0 | X6: =D6/500*2 -> 0 | Z6: =IF(E6=0,0,IF(Y6>X6,P6,(Y6/X6*E6))) -> 0 | AA6: =(E6/6)*$AB$5 -> 0 | AB6: =N6 -> 0 | AC6: =IF(ROUNDDOWN(AB6*3*6,0)>$E$5,$E$5,(ROUNDDOWN(AB6*3*6,0))) -> 0 | AD6: =IF(P6=0,0,(E6*F6/$P$5/100*$AE$5)) -> 0 | AF6: =IF(AE6>AD6,P6,IF(AD6=0,0,(AE6/AD6*E6))) -> 0 | AH6: =IF(ROUNDDOWN(AG6/4,0)>$E$5,$E$5,(ROUNDDOWN(AG6/4,0))) -> 0 | AJ6: =A6 -> 0 | AK6: =ROUNDDOWN(D6*10,0) -> 0 | AM6: =ROUNDDOWN(AL6/10,0) -> 0 | AN6: =ROUNDDOWN(D6*4,0) -> 0 | AO6: ='Randlängen-Rund'!X4 -> 0 | AP6: =ROUNDDOWN(AO6/4,0) -> 0 | AQ6: =IF(AM6+AP6>$E$5,$E$5,AM6+AP6) -> 0 | AR6: =IF(D6=0,"",ROUNDDOWN(D6/10+1,0)) ->  | AT6: =IF(ROUNDDOWN(AS6*10,0)>$E$5,$E$5,ROUNDDOWN(AS6*10,0)) -> 0 | AU6: =ROUNDDOWN(C6*2.5,0) -> 0 | AW6: =ROUNDDOWN(AV6/2.5,0) -> 0 | AX6: =D6 -> 0 | AY6: ='Randlängen-Rund'!X26 -> 0 | AZ6: =AY6/1 -> 0 | BA6: =IF(AT6+AW6+AZ6>$E$5,$E$5,AT6+AW6+AZ6) -> 0 | BB6: =Berechnungstabellen!K284 -> 0 | BC6: =IF($BB6=0,"",IF($D6>$BB6,$D6-$BB6,0)) ->  | BD6: =IF(D6>BB6,(D6-BB6)/BB6,"") ->  | BE6: =IF($BB6=0,"",IF($E6>$BB6,$E6-$BB6,0)) ->  | BF6: =IF(E6>BB6,(E6-BB6)/BB6,"") -> 
G7: =D7-E7 -> 0 | H7: =IF(E7=0,0,G7/(C$2-C7)) -> 0 | I7: =IF(C7=0,0,IF(E7=0,0,1-(E7/D7))) -> 0 | J7: =IF(B7=0,0,IF(B7<"2021",4,3)) -> 0 | L7: =IF(B7=0,0,IF(K7>J7,0,$E$5)) -> 0 | O7: 0 | P7: =IF(F7=0,0,IF(ROUNDDOWN(O7*P$5/F7,0)>$E$5,$E$5,(ROUNDDOWN(O7*P$5/F7,0)))) -> 0 | Q7: 0 | S7: 0 | T7: =$E7*$U$5 -> 0 | V7: 0 | W7: =S7+V7 -> 0 | X7: 0 | Z7: =IF(E7=0,0,IF(Y7>X7,P7,(Y7/X7*E7))) -> 0 | AA7: 0 | AB7: 0 | AC7: 0 | AD7: 0 | AF7: 0 | AH7: 0 | AJ7: 0 | AK7: 0 | AM7: 0 | AN7: 0 | AO7: ='Randlängen-Rund'!X5 -> 0 | AP7: 0 | AQ7: 0 | AT7: =IF(ROUNDDOWN(AS7*10,0)>$E$5,$E$5,ROUNDDOWN(AS7*10,0)) -> 0 | AU7: =ROUNDDOWN(C7*2.5,0) -> 0 | AW7: 0 | AX7: 0 | AY7: ='Randlängen-Rund'!X27 -> 0 | AZ7: =AY7/1 -> 0 | BA7: 0 | BB7: =Berechnungstabellen!K285 -> 0 | BE7: =IF(BB7=0,"",IF(E7>BB7,E7-BB7,0)) -> 
G8: 0 | H8: 0 | I8: 0 | J8: 0 | L8: 0 | O8: 0 | P8: 0 | Q8: 0 | S8: 0 | T8: 0 | V8: 0 | W8: 0 | X8: 0 | Z8: 0 | AA8: 0 | AB8: 0 | AC8: 0 | AD8: 0 | AF8: 0 | AH8: 0 | AJ8: 0 | AK8: 0 | AM8: 0 | AN8: 0 | AO8: ='Randlängen-Rund'!X6 -> 0 | AP8: 0 | AQ8: 0 | AT8: 0 | AU8: =ROUNDDOWN(C8*2.5,0) -> 0 | AW8: 0 | AX8: 0 | AY8: ='Randlängen-Rund'!X28 -> 0 | AZ8: 0 | BA8: 0 | BB8: =Berechnungstabellen!K286 -> 0
G9: 0 | H9: 0 | I9: 0 | J9: 0 | L9: 0 | O9: 0 | P9: 0 | Q9: 0 | S9: 0 | T9: 0 | V9: 0 | W9: 0 | X9: 0 | Z9: 0 | AA9: 0 | AB9: 0 | AC9: 0 | AD9: 0 | AF9: 0 | AH9: 0 | AJ9: 0 | AK9: 0 | AM9: 0 | AN9: 0 | AO9: ='Randlängen-Rund'!X7 -> 0 | AP9: 0 | AQ9: 0 | AT9: 0 | AU9: 0 | AW9: 0 | AX9: 0 | AY9: ='Randlängen-Rund'!X29 -> 0 | AZ9: 0 | BA9: 0 | BB9: =Berechnungstabellen!K287 -> 0
G10: 0 | H10: 0 | I10: 0 | J10: 0 | L10: 0 | O10: 0 | P10: 0 | Q10: 0 | S10: 0 | T10: 0 | V10: 0 | W10: 0 | X10: 0 | Z10: 0 | AA10: 0 | AB10: 0 | AC10: 0 | AD10: 0 | AF10: =IF(AE10>AD10,P10,IF(AD10=0,0,(AE10/AD10*E10))) -> 0 | AH10: 0 | AJ10: 0 | AK10: 0 | AM10: 0 | AN10: 0 | AO10: ='Randlängen-Rund'!X8 -> 0 | AP10: 0 | AQ10: 0 | AT10: 0 | AU10: 0 | AW10: 0 | AX10: 0 | AY10: ='Randlängen-Rund'!X30 -> 0 | AZ10: 0 | BA10: 0 | BB10: =Berechnungstabellen!K288 -> 0
G11: 0 | H11: 0 | I11: 0 | J11: 0 | L11: 0 | O11: 0 | P11: 0 | Q11: 0 | S11: 0 | T11: 0 | V11: 0 | W11: 0 | X11: 0 | Z11: 0 | AA11: 0 | AB11: 0 | AC11: 0 | AD11: 0 | AF11: =IF(AE11>AD11,P11,IF(AD11=0,0,(AE11/AD11*E11))) -> 0 | AH11: 0 | AJ11: 0 | AK11: 0 | AM11: 0 | AN11: 0 | AO11: ='Randlängen-Rund'!X9 -> 0 | AP11: 0 | AQ11: 0 | AT11: 0 | AU11: 0 | AW11: 0 | AX11: 0 | AY11: ='Randlängen-Rund'!X31 -> 0 | AZ11: 0 | BA11: 0 | BB11: =Berechnungstabellen!K289 -> 0
G12: 0 | H12: 0 | I12: 0 | J12: 0 | L12: 0 | O12: 0 | P12: 0 | Q12: 0 | S12: 0 | T12: 0 | V12: 0 | W12: 0 | X12: 0 | Z12: 0 | AA12: 0 | AB12: 0 | AC12: 0 | AD12: 0 | AF12: 0 | AH12: 0 | AJ12: 0 | AK12: 0 | AM12: 0 | AN12: 0 | AO12: ='Randlängen-Rund'!X10 -> 0 | AP12: 0 | AQ12: 0 | AT12: 0 | AU12: 0 | AW12: 0 | AX12: 0 | AY12: ='Randlängen-Rund'!X32 -> 0 | AZ12: 0 | BA12: 0 | BB12: =Berechnungstabellen!K290 -> 0
G13: 0 | H13: 0 | I13: 0 | J13: 0 | L13: 0 | O13: 0 | P13: 0 | Q13: 0 | S13: 0 | T13: 0 | V13: 0 | W13: 0 | X13: 0 | Z13: 0 | AA13: 0 | AB13: 0 | AC13: 0 | AD13: 0 | AF13: 0 | AH13: 0 | AJ13: 0 | AK13: 0 | AM13: 0 | AN13: 0 | AO13: ='Randlängen-Rund'!X11 -> 0 | AP13: 0 | AQ13: 0 | AT13: 0 | AU13: 0 | AW13: 0 | AX13: 0 | AY13: ='Randlängen-Rund'!X33 -> 0 | AZ13: 0 | BA13: 0 | BB13: =Berechnungstabellen!K291 -> 0
A14: Bewegl. Ställe | C14: max. Belegung je Stall: | E14: 2500 | F14: . | O14: max. kg / m²: | P14: 21 | X14: .
G15: =D15-E15 -> 0 | H15: =IF(E15=0,0,G15/(C$2-C15)) -> 0 | I15: =IF(C15=0,0,IF(E15=0,0,1-(E15/D15))) -> 0 | J15: =IF(B15=0,0,IF(B15<"2021",4,3)) -> 0 | L15: =IF(B15=0,0,IF(K15>J15,0,$E$14)) -> 0 | O15: =SUM(M15:N15) -> 0 | P15: =IF(F15=0,0,IF(ROUNDDOWN(O15*P$14/F15,0)>$E$14,$E$14,(ROUNDDOWN(O15*P$14/F15,0)))) -> 0 | Q15: =E15*$R$5 -> 0 | S15: =IF(ROUNDDOWN(R15/$R$5,0)>$E$5,$E$5,(ROUNDDOWN(R15/$R$5,0))) -> 0 | T15: =$E15*$U$5 -> 0 | V15: =IF(ROUNDDOWN(U15/$U$5,0)>$E$14,$E$14,(ROUNDDOWN(U15/$U$5,0))) -> 0 | W15: =S15+V15 -> 0 | X15: =D15/500*2 -> 0 | Z15: =IF(E15=0,0,IF(Y15>X15,S15,(Y15/X15*E15))) -> 0 | AA15: =(E15/6)*$AB$5 -> 0 | AB15: =N15 -> 0 | AC15: =IF(ROUNDDOWN(AB15*3*6,0)>$E$14,$E$14,(ROUNDDOWN(AB15*3*6,0))) -> 0 | AD15: =IF(P15=0,0,(E15*F15/$P$5/100*$AE$5)) -> 0 | AF15: =IF(AE15>AD15,P15,IF(AD15=0,0,(AE15/AD15*E15))) -> 0 | AH15: =IF(ROUNDDOWN(AG15/4,0)>$E$14,$E$14,(ROUNDDOWN(AG15/4,0))) -> 0 | AJ15: =A15 -> 0 | AK15: =ROUNDDOWN(D15*10,0) -> 0 | AM15: =ROUNDDOWN(AL15/10,0) -> 0 | AN15: =ROUNDDOWN(D15*4,0) -> 0 | AO15: ='Randlängen-Rund'!X13 -> 0 | AP15: =ROUNDDOWN(AO15/4,0) -> 0 | AQ15: =IF(AM15+AP15>$E$14,$E$14,AM15+AP15) -> 0 | AR15: =IF(D15=0,"",ROUNDDOWN(D15/10+1,0)) ->  | AT15: =IF(ROUNDDOWN(AS15*10,0)>$E$5,$E$5,ROUNDDOWN(AS15*10,0)) -> 0 | AU15: =ROUNDDOWN(C15*2.5,0) -> 0 | AW15: =ROUNDDOWN(AV15/2.5,0) -> 0 | AX15: =D15 -> 0 | AY15: ='Randlängen-Rund'!X35 -> 0 | AZ15: =AY15/1 -> 0 | BA15: =IF(AT15+AW15+AZ15>$E$14,$E$14,AT15+AW15+AZ15) -> 0 | BB15: =Berechnungstabellen!K293 -> 0 | BC15: =IF($BB15=0,"",IF($D15>$BB15,$D15-$BB15,0)) ->  | BD15: =IF(D15>BB15,(D15-BB15)/BB15,"") ->  | BE15: =IF($BB15=0,"",IF($E15>$BB15,$E15-$BB15,0)) ->  | BF15: =IF(E15>BB15,(E15-BB15)/BB15,"") -> 
G16: 0 | H16: 0 | I16: =IF(C16=0,0,IF(E16=0,0,1-(E16/D16))) -> 0 | J16: =IF(B16=0,0,IF(B16<"2021",4,3)) -> 0 | L16: =IF(B16=0,0,IF(K16>J16,0,$E$14)) -> 0 | O16: 0 | P16: =IF(F16=0,0,IF(ROUNDDOWN(O16*P$14/F16,0)>$E$14,$E$14,(ROUNDDOWN(O16*P$14/F16,0)))) -> 0 | Q16: 0 | S16: 0 | T16: =$E16*$U$5 -> 0 | V16: 0 | W16: =S16+V16 -> 0 | X16: 0 | Z16: =IF(E16=0,0,IF(Y16>X16,S16,(Y16/X16*E16))) -> 0 | AA16: 0 | AB16: 0 | AC16: 0 | AD16: 0 | AF16: 0 | AH16: 0 | AJ16: 0 | AK16: 0 | AM16: 0 | AN16: 0 | AO16: ='Randlängen-Rund'!X14 -> 0 | AP16: 0 | AQ16: =IF(AM16+AP16>$E$14,$E$14,AM16+AP16) -> 0 | AT16: =IF(ROUNDDOWN(AS16*10,0)>$E$5,$E$5,ROUNDDOWN(AS16*10,0)) -> 0 | AU16: =ROUNDDOWN(C16*2.5,0) -> 0 | AW16: 0 | AX16: 0 | AY16: ='Randlängen-Rund'!X36 -> 0 | AZ16: 0 | BA16: =IF(AT16+AW16+AZ16>$E$14,$E$14,AT16+AW16+AZ16) -> 0 | BB16: =Berechnungstabellen!K294 -> 0 | BE16: =IF(BB16=0,"",IF(E16>BB16,E16-BB16,0)) -> 
G17: 0 | H17: 0 | I17: 0 | J17: 0 | L17: 0 | O17: 0 | P17: 0 | Q17: 0 | S17: 0 | T17: 0 | V17: 0 | W17: 0 | X17: 0 | Z17: 0 | AA17: 0 | AB17: 0 | AC17: 0 | AD17: 0 | AF17: 0 | AH17: 0 | AJ17: 0 | AK17: 0 | AM17: 0 | AN17: 0 | AO17: ='Randlängen-Rund'!X15 -> 0 | AP17: 0 | AQ17: 0 | AT17: 0 | AU17: =ROUNDDOWN(C17*2.5,0) -> 0 | AW17: 0 | AX17: 0 | AY17: ='Randlängen-Rund'!X37 -> 0 | AZ17: 0 | BA17: 0 | BB17: =Berechnungstabellen!K295 -> 0
G18: 0 | H18: 0 | I18: 0 | J18: 0 | L18: 0 | O18: 0 | P18: 0 | Q18: 0 | S18: 0 | T18: 0 | V18: 0 | W18: 0 | X18: 0 | Z18: 0 | AA18: 0 | AB18: 0 | AC18: 0 | AD18: 0 | AF18: 0 | AH18: 0 | AJ18: 0 | AK18: 0 | AM18: 0 | AN18: 0 | AO18: ='Randlängen-Rund'!X16 -> 0 | AP18: 0 | AQ18: 0 | AT18: 0 | AU18: 0 | AW18: 0 | AX18: 0 | AY18: ='Randlängen-Rund'!X38 -> 0 | AZ18: 0 | BA18: 0 | BB18: =Berechnungstabellen!K296 -> 0
G19: 0 | H19: 0 | I19: 0 | J19: 0 | L19: 0 | O19: 0 | P19: 0 | Q19: 0 | S19: 0 | T19: 0 | V19: 0 | W19: 0 | X19: 0 | Z19: 0 | AA19: 0 | AB19: 0 | AC19: 0 | AD19: 0 | AF19: 0 | AH19: 0 | AJ19: 0 | AK19: 0 | AM19: 0 | AN19: 0 | AO19: ='Randlängen-Rund'!X17 -> 0 | AP19: 0 | AQ19: 0 | AT19: 0 | AU19: 0 | AW19: 0 | AX19: 0 | AY19: ='Randlängen-Rund'!X39 -> 0 | AZ19: 0 | BA19: 0 | BB19: =Berechnungstabellen!K297 -> 0
G20: 0 | H20: 0 | I20: 0 | J20: 0 | L20: 0 | O20: 0 | P20: 0 | Q20: 0 | S20: 0 | T20: 0 | V20: 0 | W20: 0 | X20: 0 | Z20: 0 | AA20: 0 | AB20: 0 | AC20: 0 | AD20: 0 | AF20: 0 | AH20: 0 | AJ20: 0 | AK20: 0 | AM20: 0 | AN20: 0 | AO20: ='Randlängen-Rund'!X18 -> 0 | AP20: 0 | AQ20: 0 | AT20: 0 | AU20: 0 | AW20: 0 | AX20: 0 | AY20: ='Randlängen-Rund'!X40 -> 0 | AZ20: 0 | BA20: 0 | BB20: =Berechnungstabellen!K298 -> 0
G21: 0 | H21: 0 | I21: 0 | J21: 0 | L21: 0 | O21: 0 | P21: 0 | Q21: 0 | S21: 0 | T21: 0 | V21: 0 | W21: 0 | X21: 0 | Z21: 0 | AA21: 0 | AB21: 0 | AC21: 0 | AD21: 0 | AF21: 0 | AH21: 0 | AJ21: 0 | AK21: 0 | AM21: 0 | AN21: 0 | AO21: ='Randlängen-Rund'!X19 -> 0 | AP21: 0 | AQ21: 0 | AT21: 0 | AU21: 0 | AW21: 0 | AX21: 0 | AY21: ='Randlängen-Rund'!X41 -> 0 | AZ21: 0 | BA21: 0 | BB21: =Berechnungstabellen!K299 -> 0
G22: 0 | H22: 0 | I22: 0 | J22: 0 | L22: 0 | O22: 0 | P22: 0 | Q22: 0 | S22: 0 | T22: =$E22*$U$5 -> 0 | V22: 0 | W22: 0 | X22: 0 | Z22: 0 | AA22: 0 | AB22: 0 | AC22: 0 | AD22: 0 | AF22: 0 | AH22: 0 | AJ22: 0 | AK22: 0 | AM22: 0 | AN22: 0 | AO22: ='Randlängen-Rund'!X20 -> 0 | AP22: 0 | AQ22: 0 | AT22: 0 | AU22: 0 | AW22: 0 | AX22: 0 | AY22: ='Randlängen-Rund'!X42 -> 0 | AZ22: 0 | BA22: 0 | BB22: =Berechnungstabellen!K300 -> 0
G23: 0 | H23: 0 | I23: 0 | J23: =IF(B23=0,0,IF(B23<"2021",4,3)) -> 0 | L23: 0 | O23: 0 | P23: 0 | Q23: 0 | S23: 0 | T23: 0 | V23: 0 | W23: 0 | X23: 0 | Z23: 0 | AA23: 0 | AB23: 0 | AC23: 0 | AD23: 0 | AF23: 0 | AH23: 0 | AJ23: 0 | AK23: 0 | AM23: 0 | AN23: 0 | AO23: ='Randlängen-Rund'!X21 -> 0 | AP23: 0 | AQ23: 0 | AT23: 0 | AU23: =ROUNDDOWN(C23*2.5,0) -> 0 | AW23: 0 | AX23: 0 | AY23: ='Randlängen-Rund'!X43 -> 0 | AZ23: 0 | BA23: 0 | BB23: =Berechnungstabellen!K301 -> 0 | BD23: =IF(D23>BB23,(D23-BB23)/BB23,"") ->  | BE23: =IF(BB23=0,"",IF(E23>BB23,E23-BB23,0)) ->  | BF23: =IF(E23>BB23,(E23-BB23)/BB23,"") -> 
D24: Summen: | G24: Summe: | H24: Durchschnitt
D25: =SUM(D6:D23) -> 0 | E25: =SUM(E6:E23)-E14 -> 0 | G25: =SUM(G6:G23) -> 0 | H25: =IF(H6=0,0,AVERAGEIF(H6:H23,"<>0")) -> 0 | I25: =IF(I6=0,0,AVERAGEIF(I6:I23,"<>0")) -> 0
A26: Geprüfte Maßangaben:
A28: Anmerkungen / Kommentare

Sheet Mastgeflügel
A1: Ermittlung der maximalen Tierzahl, die gem EU VO 889/2008 Anhang III je Stall gehalten werden darf | BF1: Mastgeflügel sonst.
C2: =TODAY() -> 2025-05-23 | D2: Belegung | H2: Tierverluste | N2: Stall | R2: Sitzstangen | U2: Sitzebenen | Y2: Luken (Stall-AKB) | AB2: Scharraumfläche | AD2: Auslauföffnungen (AKB – Auslauf) | AG2: Auslauf (bis 150 /350 m) | AJ2: Zusatzangaben: gem. TierSchNutztV (verpflichtend!) | AR2: Info zur Sollermittlung: Bezugswert = Anzahl Tiere bei Einstallung | BD2: Auswertung
J3: Voliere Ebenen | M3: Warm- stall | N3: Isolierte Veranda | O3: Ergebnis Stall | AK3: Futter | AR3: Tränken | BC3: Überschreitung bei Einstallung | BE3: Überschreitung aktuell
A4: Name Stall (lt. Stall-plan) | B4: Baujahr | C4: Einstall- datum | D4: Tierzahl bei Ein-stallung | E4: Belegung akt. | F4: Durch-schnitts-gewicht aktuell | G4: Gesamt (Anzahl Tiere) | H4: Tiere je Tag | I4: % | J4: Ebenen max | K4: Ebenen ist | L4: Tiere Max. | M4: m² | N4: m² jederzeit nutzbar | O4: Summe m² | P4: Kapa- zität Tiere gem. Gewicht | Q4: soll m | R4: ist m | S4: Kapa- zität (Tierzahl) | T4: soll cm2 | U4: ist cm2 | V4: Kapa- zität (Tierzahl) | W4: Kapa- zität Sitze gesamt (Tierzahl) | X4: soll m | Y4: ist m | Z4: Kapa- zität (Tierzahl) | AA4: soll m² | AB4: ist m² | AC4: Kapa- zität (Tierzahl) | AD4: soll m | AE4: ist m | AF4: Kapa- zität (Tierzahl) | AG4: ist m² | AH4: Kapa- zität (Tierzahl) | AJ4: Stall | AK4: Futtertröge Rinnen | AN4: Futtertröge Rund | AQ4: Futtertröge ges. | AR4: Tränkeanzahl (Nippel) | AU4: Rinnentränke | AX4: Rundtränke | BA4: Tränken ges. | BB4: Kapa- zität Min. aller Krite- rien | BC4: Anzahl Tiere | BD4: Einstal-lung % | BE4: Anzahl Tiere | BF4: aktuell %
A5: Gänse | C5: max. Belegung je Stall: | E5: 2500 | F5: . | G5: . | O5: max. kg / m²: | P5: 21 | X5: mind. 2m/500 Tiere | AA5: mind. | AB5: 0.3333 | AC5: der notw. Fläche | AD5: mind. | AE5: 4 | AF5: m/100m² | AG5: mind. 4m²/Tier | AJ5: =A5 -> Gänse | AK5: soll (cm) | AL5: ist (cm) | AM5: Kapa- zität (Tierzahl) | AN5: soll (cm) | AO5: ist (cm) | AP5: Kapa- zität (Tierzahl) | AQ5: Kapa- zität (Tierzahl) | AR5: soll | AS5: ist (Anzahl) | AT5: Kapa- zität (Tierzahl) | AU5: soll (cm) | AV5: ist (cm) | AW5: Kapa- zität (Tierzahl) | AX5: soll (cm) | AY5: ist (cm) | AZ5: Kapa- zität (Tierzahl) | BA5: Summe Tränken
G6: =D6-E6 -> 0 | H6: =IF(E6=0,0,G6/(C$2-C6)) -> 0 | I6: =IF(C6=0,0,IF(E6=0,0,1-(E6/D6))) -> 0 | J6: =IF(B6=0,0,IF(B6<"2021",4,3)) -> 0 | L6: =IF(B6=0,0,IF(K6>J6,0,$E$5)) -> 0 | O6: =SUM(M6:N6) -> 0 | P6: =IF(F6=0,0,IF(ROUNDDOWN(O6*P$5/F6,0)>$E$5,$E$5,(ROUNDDOWN(O6*P$5/F6,0)))) -> 0 | Q6: Nicht relevant | T6: Nicht relevant | X6: =D6/500*2 -> 0 | Z6: =IF(E6=0,0,IF(Y6>X6,P6,(Y6/X6*E6))) -> 0 | AA6: =(E6/6)*$AB$5 -> 0 | AC6: =IF(ROUNDDOWN(AB6*3*6,0)>$E$5,$E$5,(ROUNDDOWN(AB6*3*6,0))) -> 0 | AD6: =IF(P6=0,0,(E6*F6/$P$5/100*$AE$5)) -> 0 | AE6: 10.97 | AF6: =IF(AE6>AD6,P6,IF(AD6=0,0,(AE6/AD6*E6))) -> 0 | AH6: =IF(ROUNDDOWN(AG6/4,0)>$E$5,$E$5,(ROUNDDOWN(AG6/4,0))) -> 0 | AJ6: 0 | AK6: =ROUNDDOWN(D6*10,0) -> 0 | AM6: =ROUNDDOWN(AL6/10,0) -> 0 | AN6: =ROUNDDOWN(D6*4,0) -> 0 | AO6: ='Randlängen-Rund'!AC5 -> 0 | AP6: =ROUNDDOWN(AO6/4,0) -> 0 | AQ6: =IF(AM6+AP6>$E$5,$E$5,AM6+AP6) -> 0 | AR6: =IF(D6=0,"",ROUNDDOWN(D6/10+1,0)) ->  | AT6: =IF(ROUNDDOWN(AS6*10,0)>$E$5,$E$5,ROUNDDOWN(AS6*10,0)) -> 0 | AU6: =ROUNDDOWN(D6*2.5,0) -> 0 | AW6: =ROUNDDOWN(AV6/2.5,0) -> 0 | AX6: =D6 -> 0 | AY6: ='Randlängen-Rund'!AC27 -> 0 | AZ6: =AY6/1 -> 0 | BA6: =IF(AT6+AW6+AZ6>$E$5,$E$5,AT6+AW6+AZ6) -> 0 | BB6: =Berechnungstabellen!K307 -> 0 | BC6: =IF(BB6=0,"",D6-BB6) ->  | BD6: =IF(D6>BB6,(D6-BB6)/BB6,"") ->  | BE6: =IF(BB6=0,"",IF(E6>BB6,E6-BB6,0)) ->  | BF6: =IF($E6>$BB6,($E6-$BB6)/$BB6,"") -> 
G7: =D7-E7 -> 0 | H7: =IF(E7=0,0,G7/(C$2-C7)) -> 0 | I7: =IF(C7=0,0,IF(E7=0,0,1-(E7/D7))) -> 0 | J7: =IF(B7=0,0,IF(B7<"2021",4,3)) -> 0 | L7: =IF(B7=0,0,IF(K7>J7,0,$E$5)) -> 0 | O7: =SUM(M7:N7) -> 0 | P7: =IF(F7=0,0,IF(ROUNDDOWN(O7*P$5/F7,0)>$E$5,$E$5,(ROUNDDOWN(O7*P$5/F7,0)))) -> 0 | X7: =D7/500*2 -> 0 | Z7: =IF(E7=0,0,IF(Y7>X7,P7,(Y7/X7*E7))) -> 0 | AA7: =(E7/6)*$AB$5 -> 0 | AC7: 0 | AD7: =IF(P7=0,0,(E7*F7/$P$5/100*$AE$5)) -> 0 | AF7: 0 | AH7: 0 | AJ7: 0 | AK7: =ROUNDDOWN(D7*10,0) -> 0 | AM7: 0 | AN7: =ROUNDDOWN(D7*4,0) -> 0 | AO7: ='Randlängen-Rund'!AC6 -> 0 | AP7: 0 | AQ7: =IF(AM7+AP7>$E$5,$E$5,AM7+AP7) -> 0 | AR7: =IF(D7=0,"",ROUNDDOWN(D7/10+1,0)) ->  | AT7: =IF(ROUNDDOWN(AS7*10,0)>$E$5,$E$5,ROUNDDOWN(AS7*10,0)) -> 0 | AU7: =ROUNDDOWN(D7*2.5,0) -> 0 | AW7: 0 | AX7: =D7 -> 0 | AY7: ='Randlängen-Rund'!AC28 -> 0 | AZ7: 0 | BA7: =IF(AT7+AW7+AZ7>$E$5,$E$5,AT7+AW7+AZ7) -> 0 | BB7: =Berechnungstabellen!K308 -> 0 | BC7: =IF(BB7=0,"",D7-BB7) ->  | BD7: =IF(D7>BB7,(D7-BB7)/BB7,"") ->  | BE7: =IF(BB7=0,"",IF(E7>BB7,E7-BB7,0)) ->  | BF7: =IF($E7>$BB7,($E7-$BB7)/$BB7,"") -> 
G8: 0 | H8: 0 | I8: 0 | J8: 0 | L8: 0 | O8: =SUM(M8:N8) -> 0 | P8: 0 | X8: =D8/500*2 -> 0 | Z8: 0 | AA8: =(E8/6)*$AB$5 -> 0 | AC8: 0 | AD8: =IF(P8=0,0,(E8*F8/$P$5/100*$AE$5)) -> 0 | AF8: 0 | AH8: 0 | AJ8: 0 | AK8: =ROUNDDOWN(D8*10,0) -> 0 | AM8: 0 | AN8: =ROUNDDOWN(D8*4,0) -> 0 | AO8: ='Randlängen-Rund'!AC7 -> 0 | AP8: 0 | AQ8: =IF(AM8+AP8>$E$5,$E$5,AM8+AP8) -> 0 | AR8: =IF(D8=0,"",ROUNDDOWN(D8/10+1,0)) ->  | AT8: =IF(ROUNDDOWN(AS8*10,0)>$E$5,$E$5,ROUNDDOWN(AS8*10,0)) -> 0 | AU8: 0 | AW8: 0 | AX8: =D8 -> 0 | AY8: ='Randlängen-Rund'!AC29 -> 0 | AZ8: 0 | BA8: =IF(AT8+AW8+AZ8>$E$5,$E$5,AT8+AW8+AZ8) -> 0 | BB8: =Berechnungstabellen!K309 -> 0 | BC8: =IF(BB8=0,"",D8-BB8) ->  | BD8: =IF(D8>BB8,(D8-BB8)/BB8,"") ->  | BF8: =IF($E8>$BB8,($E8-$BB8)/$BB8,"") -> 
G9: 0 | H9: 0 | I9: 0 | J9: 0 | L9: 0 | O9: =SUM(M9:N9) -> 0 | P9: 0 | X9: =D9/500*2 -> 0 | Z9: 0 | AA9: =(E9/6)*$AB$5 -> 0 | AC9: 0 | AD9: =IF(P9=0,0,(E9*F9/$P$5/100*$AE$5)) -> 0 | AF9: 0 | AH9: 0 | AJ9: 0 | AK9: =ROUNDDOWN(D9*10,0) -> 0 | AM9: 0 | AN9: =ROUNDDOWN(D9*4,0) -> 0 | AO9: ='Randlängen-Rund'!AC8 -> 0 | AP9: 0 | AQ9: =IF(AM9+AP9>$E$5,$E$5,AM9+AP9) -> 0 | AR9: =IF(D9=0,"",ROUNDDOWN(D9/10+1,0)) ->  | AT9: =IF(ROUNDDOWN(AS9*10,0)>$E$5,$E$5,ROUNDDOWN(AS9*10,0)) -> 0 | AU9: 0 | AW9: 0 | AX9: =D9 -> 0 | AY9: ='Randlängen-Rund'!AC30 -> 0 | AZ9: 0 | BA9: =IF(AT9+AW9+AZ9>$E$5,$E$5,AT9+AW9+AZ9) -> 0 | BB9: =Berechnungstabellen!K310 -> 0 | BC9: =IF(BB9=0,"",D9-BB9) ->  | BD9: =IF(D9>BB9,(D9-BB9)/BB9,"") ->  | BF9: =IF($E9>$BB9,($E9-$BB9)/$BB9,"") -> 
A10: Enten wbl. | C10: max. Belegung je Stall: | E10: 4000 | F10: . | G10: . | O10: max. kg / m²: | P10: 21 | X10: mind. 2m/500 Tiere | AA10: mind. | AB10: 0.3333 | AC10: der notw. Fläche | AD10: mind. | AE10: 4 | AF10: m/100m² | AG10: mind. 4m²/Tier | AJ10: Enten wbl.
G11: =D11-E11 -> 0 | H11: =IF(E11=0,0,G11/(C$2-C11)) -> 0 | I11: =IF(C11=0,0,IF(E11=0,0,1-(E11/D11))) -> 0 | J11: =IF(B11=0,0,IF(B11<"2021",4,3)) -> 0 | L11: =IF(B11=0,0,IF(K11>J11,0,$E$10)) -> 0 | O11: =SUM(M11:N11) -> 0 | P11: =IF(F11=0,0,IF(ROUNDDOWN(O11*P$10/F11,0)>$E$5,$E$5,(ROUNDDOWN(O11*P$10/F11,0)))) -> 0 | Q11: Nicht relevant | T11: Nicht relevant | X11: =D11/500*2 -> 0 | Z11: =IF(E11=0,0,IF(Y11>X11,P11,(Y11/X11*E11))) -> 0 | AA11: =(E11/6)*$AB$10 -> 0 | AC11: =IF(ROUNDDOWN(AB11*3*6,0)>$E$10,$E$10,(ROUNDDOWN(AB11*3*6,0))) -> 0 | AD11: =IF(P11=0,0,(E11*F11/$P$10/100*$AE$10)) -> 0 | AF11: 0 | AH11: =IF(ROUNDDOWN(AG11/4,0)>$E$10,$E$10,(ROUNDDOWN(AG11/4,0))) -> 0 | AJ11: 0 | AK11: =ROUNDDOWN(D11*10,0) -> 0 | AM11: =ROUNDDOWN(AL11/10,0) -> 0 | AN11: =ROUNDDOWN(D11*4,0) -> 0 | AO11: ='Randlängen-Rund'!AC10 -> 0 | AP11: =ROUNDDOWN(AO11/4,0) -> 0 | AQ11: =IF(AM11+AP11>$E$10,$E$10,AM11+AP11) -> 0 | AR11: =IF(D11=0,"",ROUNDDOWN(D11/10+1,0)) ->  | AT11: =IF(ROUNDDOWN(AS11*10,0)>$E$10,$E$10,ROUNDDOWN(AS11*10,0)) -> 0 | AU11: =ROUNDDOWN(D11*2.5,0) -> 0 | AW11: =ROUNDDOWN(AV11/2.5,0) -> 0 | AX11: =D11 -> 0 | AY11: ='Randlängen-Rund'!AC32 -> 0 | AZ11: =AY11/1 -> 0 | BA11: =IF(AT11+AW11+AZ11>$E$10,$E$10,AT11+AW11+AZ11) -> 0 | BB11: =Berechnungstabellen!K312 -> 0 | BC11: =IF(BB11=0,"",D11-BB11) ->  | BD11: =IF(D11>BB11,(D11-BB11)/BB11,"") ->  | BE11: =IF(BB11=0,"",IF(E11>BB11,E11-BB11,0)) ->  | BF11: =IF($E11>$BB11,($E11-$BB11)/$BB11,"") -> 
G12: =D12-E12 -> 0 | H12: =IF(E12=0,0,G12/(C$2-C12)) -> 0 | I12: =IF(C12=0,0,IF(E12=0,0,1-(E12/D12))) -> 0 | J12: =IF(B12=0,0,IF(B12<"2021",4,3)) -> 0 | L12: =IF(B12=0,0,IF(K12>J12,0,$E$10)) -> 0 | O12: =SUM(M12:N12) -> 0 | P12: =IF(F12=0,0,IF(ROUNDDOWN(O12*P$10/F12,0)>$E$5,$E$5,(ROUNDDOWN(O12*P$10/F12,0)))) -> 0 | X12: =D12/500*2 -> 0 | Z12: =IF(E12=0,0,IF(Y12>X12,P12,(Y12/X12*E12))) -> 0 | AA12: =(E12/6)*$AB$10 -> 0 | AC12: =IF(ROUNDDOWN(AB12*3*6,0)>$E$10,$E$10,(ROUNDDOWN(AB12*3*6,0))) -> 0 | AD12: =IF(P12=0,0,(E12*F12/$P$10/100*$AE$10)) -> 0 | AF12: 0 | AH12: =IF(ROUNDDOWN(AG12/4,0)>$E$10,$E$10,(ROUNDDOWN(AG12/4,0))) -> 0 | AJ12: 0 | AK12: =ROUNDDOWN(D12*10,0) -> 0 | AM12: =ROUNDDOWN(AL12/10,0) -> 0 | AN12: =ROUNDDOWN(D12*4,0) -> 0 | AO12: ='Randlängen-Rund'!AC11 -> 0 | AP12: 0 | AQ12: =IF(AM12+AP12>$E$10,$E$10,AM12+AP12) -> 0 | AR12: =IF(D12=0,"",ROUNDDOWN(D12/10+1,0)) ->  | AT12: =IF(ROUNDDOWN(AS12*10,0)>$E$10,$E$10,ROUNDDOWN(AS12*10,0)) -> 0 | AU12: =ROUNDDOWN(D12*2.5,0) -> 0 | AW12: 0 | AX12: =D12 -> 0 | AY12: ='Randlängen-Rund'!AC33 -> 0 | AZ12: 0 | BA12: =IF(AT12+AW12+AZ12>$E$10,$E$10,AT12+AW12+AZ12) -> 0 | BB12: =Berechnungstabellen!K313 -> 0 | BC12: =IF(BB12=0,"",D12-BB12) ->  | BD12: =IF(D12>BB12,(D12-BB12)/BB12,"") ->  | BE12: =IF(BB12=0,"",IF(E12>BB12,E12-BB12,0)) ->  | BF12: =IF($E12>$BB12,($E12-$BB12)/$BB12,"") -> 
G13: 0 | H13: 0 | I13: 0 | J13: 0 | L13: 0 | O13: =SUM(M13:N13) -> 0 | P13: 0 | X13: =D13/500*2 -> 0 | Z13: 0 | AA13: =(E13/6)*$AB$10 -> 0 | AC13: =IF(ROUNDDOWN(AB13*3*6,0)>$E$10,$E$10,(ROUNDDOWN(AB13*3*6,0))) -> 0 | AD13: =IF(P13=0,0,(E13*F13/$P$10/100*$AE$10)) -> 0 | AF13: 0 | AH13: =IF(ROUNDDOWN(AG13/4,0)>$E$10,$E$10,(ROUNDDOWN(AG13/4,0))) -> 0 | AJ13: 0 | AK13: =ROUNDDOWN(D13*10,0) -> 0 | AM13: =ROUNDDOWN(AL13/10,0) -> 0 | AN13: =ROUNDDOWN(D13*4,0) -> 0 | AO13: ='Randlängen-Rund'!AC12 -> 0 | AP13: 0 | AQ13: =IF(AM13+AP13>$E$10,$E$10,AM13+AP13) -> 0 | AR13: =IF(D13=0,"",ROUNDDOWN(D13/10+1,0)) ->  | AT13: =IF(ROUNDDOWN(AS13*10,0)>$E$10,$E$10,ROUNDDOWN(AS13*10,0)) -> 0 | AU13: 0 | AW13: 0 | AX13: =D13 -> 0 | AY13: ='Randlängen-Rund'!AC34 -> 0 | AZ13: 0 | BA13: =IF(AT13+AW13+AZ13>$E$10,$E$10,AT13+AW13+AZ13) -> 0 | BB13: =Berechnungstabellen!K314 -> 0 | BC13: =IF(BB13=0,"",D13-BB13) ->  | BD13: =IF(D13>BB13,(D13-BB13)/BB13,"") ->  | BF13: =IF($E13>$BB13,($E13-$BB13)/$BB13,"") -> 
G14: 0 | H14: 0 | I14: 0 | J14: 0 | L14: 0 | O14: =SUM(M14:N14) -> 0 | P14: 0 | X14: =D14/500*2 -> 0 | Z14: 0 | AA14: =(E14/6)*$AB$10 -> 0 | AC14: =IF(ROUNDDOWN(AB14*3*6,0)>$E$10,$E$10,(ROUNDDOWN(AB14*3*6,0))) -> 0 | AD14: =IF(P14=0,0,(E14*F14/$P$10/100*$AE$10)) -> 0 | AF14: 0 | AH14: =IF(ROUNDDOWN(AG14/4,0)>$E$10,$E$10,(ROUNDDOWN(AG14/4,0))) -> 0 | AJ14: 0 | AK14: =ROUNDDOWN(D14*10,0) -> 0 | AM14: =ROUNDDOWN(AL14/10,0) -> 0 | AN14: =ROUNDDOWN(D14*4,0) -> 0 | AO14: ='Randlängen-Rund'!AC13 -> 0 | AP14: 0 | AQ14: =IF(AM14+AP14>$E$10,$E$10,AM14+AP14) -> 0 | AR14: =IF(D14=0,"",ROUNDDOWN(D14/10+1,0)) ->  | AT14: =IF(ROUNDDOWN(AS14*10,0)>$E$10,$E$10,ROUNDDOWN(AS14*10,0)) -> 0 | AU14: 0 | AW14: 0 | AX14: =D14 -> 0 | AY14: ='Randlängen-Rund'!AC35 -> 0 | AZ14: 0 | BA14: =IF(AT14+AW14+AZ14>$E$10,$E$10,AT14+AW14+AZ14) -> 0 | BB14: =Berechnungstabellen!K315 -> 0 | BC14: =IF(BB14=0,"",D14-BB14) ->  | BD14: =IF(D14>BB14,(D14-BB14)/BB14,"") ->  | BF14: =IF($E14>$BB14,($E14-$BB14)/$BB14,"") -> 
A15: Enten männl. | C15: max. Belegung je Stall: | E15: 3200 | F15: . | G15: . | O15: max. kg / m²: | P15: 21 | X15: mind. 2m/500 Tiere | AA15: mind. | AB15: 0.3333 | AC15: der notw. Fläche | AD15: mind. | AE15: 4 | AF15: m/100m² | AG15: mind. 4m²/Tier | AJ15: Enten männl.
G16: =D16-E16 -> 0 | H16: =IF(E16=0,0,G16/(C$2-C16)) -> 0 | I16: =IF(C16=0,0,IF(E16=0,0,1-(E16/D16))) -> 0 | J16: =IF(B16=0,0,IF(B16<"2021",4,3)) -> 0 | L16: =IF(B16=0,0,IF(K16>J16,0,$E$15)) -> 0 | O16: =SUM(M16:N16) -> 0 | P16: =IF(F16=0,0,IF(ROUNDDOWN(O16*P$15/F16,0)>$E$5,$E$5,(ROUNDDOWN(O16*P$15/F16,0)))) -> 0 | Q16: Nicht relevant | T16: Nicht relevant | X16: =D16/500*2 -> 0 | Z16: =IF(E16=0,0,IF(Y16>X16,P16,(Y16/X16*E16))) -> 0 | AA16: =(E16/6)*$AB$15 -> 0 | AC16: =IF(ROUNDDOWN(AB16*3*6,0)>$E$15,$E$15,(ROUNDDOWN(AB16*3*6,0))) -> 0 | AD16: =IF(P16=0,0,(E16*F16/$P$15/100*$AE$15)) -> 0 | AF16: 0 | AH16: =IF(ROUNDDOWN(AG16/4,0)>$E$15,$E$15,(ROUNDDOWN(AG16/4,0))) -> 0 | AJ16: 0 | AK16: =ROUNDDOWN(D16*10,0) -> 0 | AM16: =ROUNDDOWN(AL16/10,0) -> 0 | AN16: =ROUNDDOWN(D16*4,0) -> 0 | AO16: ='Randlängen-Rund'!AC15 -> 0 | AP16: =ROUNDDOWN(AO16/4,0) -> 0 | AQ16: =IF(AM16+AP16>$E$15,$E$15,AM16+AP16) -> 0 | AR16: =IF(D16=0,"",ROUNDDOWN(D16/10+1,0)) ->  | AT16: =IF(ROUNDDOWN(AS16*10,0)>$E$15,$E$15,ROUNDDOWN(AS16*10,0)) -> 0 | AU16: =ROUNDDOWN(D16*2.5,0) -> 0 | AW16: =ROUNDDOWN(AV16/2.5,0) -> 0 | AX16: =D16 -> 0 | AY16: ='Randlängen-Rund'!AC37 -> 0 | AZ16: =AY16/1 -> 0 | BA16: =IF(AT16+AW16+AZ16>$E$15,$E$15,AT16+AW16+AZ16) -> 0 | BB16: =Berechnungstabellen!K317 -> 0 | BC16: =IF(BB16=0,"",D16-BB16) ->  | BD16: =IF(D16>BB16,(D16-BB16)/BB16,"") ->  | BE16: =IF(BB16=0,"",IF(E16>BB16,E16-BB16,0)) ->  | BF16: =IF($E16>$BB16,($E16-$BB16)/$BB16,"") -> 
G17: =D17-E17 -> 0 | H17: =IF(E17=0,0,G17/(C$2-C17)) -> 0 | I17: =IF(C17=0,0,IF(E17=0,0,1-(E17/D17))) -> 0 | J17: =IF(B17=0,0,IF(B17<"2021",4,3)) -> 0 | L17: =IF(B17=0,0,IF(K17>J17,0,$E$15)) -> 0 | O17: =SUM(M17:N17) -> 0 | P17: =IF(F17=0,0,IF(ROUNDDOWN(O17*P$15/F17,0)>$E$5,$E$5,(ROUNDDOWN(O17*P$15/F17,0)))) -> 0 | X17: =D17/500*2 -> 0 | Z17: =IF(E17=0,0,IF(Y17>X17,P17,(Y17/X17*E17))) -> 0 | AA17: =(E17/6)*$AB$15 -> 0 | AC17: =IF(ROUNDDOWN(AB17*3*6,0)>$E$15,$E$15,(ROUNDDOWN(AB17*3*6,0))) -> 0 | AD17: =IF(P17=0,0,(E17*F17/$P$15/100*$AE$15)) -> 0 | AF17: 0 | AH17: =IF(ROUNDDOWN(AG17/4,0)>$E$15,$E$15,(ROUNDDOWN(AG17/4,0))) -> 0 | AJ17: 0 | AK17: =ROUNDDOWN(D17*10,0) -> 0 | AM17: 0 | AN17: =ROUNDDOWN(D17*4,0) -> 0 | AO17: ='Randlängen-Rund'!AC16 -> 0 | AP17: 0 | AQ17: =IF(AM17+AP17>$E$15,$E$15,AM17+AP17) -> 0 | AR17: =IF(D17=0,"",ROUNDDOWN(D17/10+1,0)) ->  | AT17: =IF(ROUNDDOWN(AS17*10,0)>$E$15,$E$15,ROUNDDOWN(AS17*10,0)) -> 0 | AU17: =ROUNDDOWN(D17*2.5,0) -> 0 | AW17: 0 | AX17: =D17 -> 0 | AY17: ='Randlängen-Rund'!AC38 -> 0 | AZ17: 0 | BA17: =IF(AT17+AW17+AZ17>$E$15,$E$15,AT17+AW17+AZ17) -> 0 | BB17: =Berechnungstabellen!K318 -> 0 | BC17: =IF(BB17=0,"",D17-BB17) ->  | BD17: =IF(D17>BB17,(D17-BB17)/BB17,"") ->  | BE17: =IF(BB17=0,"",IF(E17>BB17,E17-BB17,0)) ->  | BF17: =IF($E17>$BB17,($E17-$BB17)/$BB17,"") -> 
G18: 0 | H18: 0 | I18: 0 | J18: 0 | L18: 0 | O18: =SUM(M18:N18) -> 0 | P18: 0 | X18: =D18/500*2 -> 0 | Z18: 0 | AA18: =(E18/6)*$AB$15 -> 0 | AC18: =IF(ROUNDDOWN(AB18*3*6,0)>$E$15,$E$15,(ROUNDDOWN(AB18*3*6,0))) -> 0 | AD18: =IF(P18=0,0,(E18*F18/$P$15/100*$AE$15)) -> 0 | AF18: 0 | AH18: =IF(ROUNDDOWN(AG18/4,0)>$E$15,$E$15,(ROUNDDOWN(AG18/4,0))) -> 0 | AJ18: 0 | AK18: =ROUNDDOWN(D18*10,0) -> 0 | AM18: 0 | AN18: =ROUNDDOWN(D18*4,0) -> 0 | AO18: ='Randlängen-Rund'!AC17 -> 0 | AP18: 0 | AQ18: =IF(AM18+AP18>$E$15,$E$15,AM18+AP18) -> 0 | AR18: =IF(D18=0,"",ROUNDDOWN(D18/10+1,0)) ->  | AT18: =IF(ROUNDDOWN(AS18*10,0)>$E$15,$E$15,ROUNDDOWN(AS18*10,0)) -> 0 | AU18: 0 | AW18: 0 | AX18: =D18 -> 0 | AY18: ='Randlängen-Rund'!AC39 -> 0 | AZ18: 0 | BA18: =IF(AT18+AW18+AZ18>$E$15,$E$15,AT18+AW18+AZ18) -> 0 | BB18: =Berechnungstabellen!K319 -> 0 | BC18: =IF(BB18=0,"",D18-BB18) ->  | BD18: =IF(D18>BB18,(D18-BB18)/BB18,"") ->  | BF18: =IF($E18>$BB18,($E18-$BB18)/$BB18,"") -> 
G19: 0 | H19: 0 | I19: 0 | J19: 0 | L19: 0 | O19: =SUM(M19:N19) -> 0 | P19: 0 | X19: =D19/500*2 -> 0 | Z19: 0 | AA19: =(E19/6)*$AB$15 -> 0 | AC19: =IF(ROUNDDOWN(AB19*3*6,0)>$E$15,$E$15,(ROUNDDOWN(AB19*3*6,0))) -> 0 | AD19: =IF(P19=0,0,(E19*F19/$P$15/100*$AE$15)) -> 0 | AF19: 0 | AH19: =IF(ROUNDDOWN(AG19/4,0)>$E$15,$E$15,(ROUNDDOWN(AG19/4,0))) -> 0 | AJ19: 0 | AK19: =ROUNDDOWN(D19*10,0) -> 0 | AM19: 0 | AN19: =ROUNDDOWN(D19*4,0) -> 0 | AO19: ='Randlängen-Rund'!AC18 -> 0 | AP19: 0 | AQ19: =IF(AM19+AP19>$E$15,$E$15,AM19+AP19) -> 0 | AR19: =IF(D19=0,"",ROUNDDOWN(D19/10+1,0)) ->  | AT19: =IF(ROUNDDOWN(AS19*10,0)>$E$15,$E$15,ROUNDDOWN(AS19*10,0)) -> 0 | AU19: 0 | AW19: 0 | AX19: =D19 -> 0 | AY19: ='Randlängen-Rund'!AC40 -> 0 | AZ19: 0 | BA19: =IF(AT19+AW19+AZ19>$E$15,$E$15,AT19+AW19+AZ19) -> 0 | BB19: =Berechnungstabellen!K320 -> 0 | BC19: =IF(BB19=0,"",D19-BB19) ->  | BD19: =IF(D19>BB19,(D19-BB19)/BB19,"") ->  | BF19: =IF($E19>$BB19,($E19-$BB19)/$BB19,"") -> 
A20: Perl-hühner | C20: max. Belegung je Stall: | E20: 5200 | F20: . | G20: . | O20: max. kg / m²: | P20: 21 | Q20: mind. | R20: 0.05 | S20: m / Tier | T20: mind. | U20: 25 | V20: cm2 / Tier | X20: mind. 2m/500 Tiere | AA20: mind. | AB20: 0.3333 | AC20: der notw. Fläche | AD20: mind. | AE20: 4 | AF20: m/100m² | AG20: mind. 4m²/Tier | AJ20: Perl-hühner
G21: =D21-E21 -> 0 | H21: =IF(E21=0,0,G21/(C$2-C21)) -> 0 | I21: =IF(C21=0,0,IF(E21=0,0,1-(E21/D21))) -> 0 | J21: =IF(B21=0,0,IF(B21<"2021",4,3)) -> 0 | L21: =IF(B21=0,0,IF(K21>J21,0,$E$20)) -> 0 | O21: =SUM(M21:N21) -> 0 | P21: =IF(F21=0,0,IF(ROUNDDOWN(O21*P$20/F21,0)>$E$5,$E$5,(ROUNDDOWN(O21*P$20/F21,0)))) -> 0 | Q21: =E21*$R$20 -> 0 | S21: =IF(ROUNDDOWN(R21/$R$20,0)>$E$5,$E$5,(ROUNDDOWN(R21/$R$20,0))) -> 0 | T21: =$E21*$U$20 -> 0 | V21: =IF(ROUNDDOWN(U21/$U$20,0)>$E$5,$E$5,(ROUNDDOWN(U21/$U$20,0))) -> 0 | W21: =S21+V21 -> 0 | X21: =D21/500*2 -> 0 | Z21: =IF(E21=0,0,IF(Y21>X21,P21,(Y21/X21*E21))) -> 0 | AA21: =(E21/6)*$AB$20 -> 0 | AC21: =IF(ROUNDDOWN(AB21*3*6,0)>$E$20,$E$20,(ROUNDDOWN(AB21*3*6,0))) -> 0 | AD21: =IF(P21=0,0,(E21*F21/$P$20/100*$AE$20)) -> 0 | AF21: 0 | AH21: =IF(ROUNDDOWN(AG21/4,0)>$E$20,$E$20,(ROUNDDOWN(AG21/4,0))) -> 0 | AJ21: 0 | AK21: =ROUNDDOWN(D21*10,0) -> 0 | AM21: =ROUNDDOWN(AL21/10,0) -> 0 | AN21: =ROUNDDOWN(D21*4,0) -> 0 | AO21: ='Randlängen-Rund'!AC20 -> 0 | AP21: =ROUNDDOWN(AO21/4,0) -> 0 | AQ21: =IF(AM21+AP21>$E$20,$E$20,AM21+AP21) -> 0 | AR21: =IF(D21=0,"",ROUNDDOWN(D21/10+1,0)) ->  | AT21: =IF(ROUNDDOWN(AS21*10,0)>$E$20,$E$20,ROUNDDOWN(AS21*10,0)) -> 0 | AU21: =ROUNDDOWN(D21*2.5,0) -> 0 | AW21: =ROUNDDOWN(AV21/2.5,0) -> 0 | AX21: =D21 -> 0 | AY21: ='Randlängen-Rund'!AC42 -> 0 | AZ21: =AY21/1 -> 0 | BA21: =IF(AT21+AW21+AZ21>$E$20,$E$20,AT21+AW21+AZ21) -> 0 | BB21: =Berechnungstabellen!K322 -> 0 | BC21: =IF(BB21=0,"",D21-BB21) ->  | BD21: =IF(D21>BB21,(D21-BB21)/BB21,"") ->  | BE21: =IF(BB21=0,"",IF(E21>BB21,E21-BB21,0)) ->  | BF21: =IF($E21>$BB21,($E21-$BB21)/$BB21,"") -> 
G22: =D22-E22 -> 0 | H22: =IF(E22=0,0,G22/(C$2-C22)) -> 0 | I22: =IF(C22=0,0,IF(E22=0,0,1-(E22/D22))) -> 0 | J22: =IF(B22=0,0,IF(B22<"2021",4,3)) -> 0 | L22: =IF(B22=0,0,IF(K22>J22,0,$E$20)) -> 0 | O22: =SUM(M22:N22) -> 0 | P22: =IF(F22=0,0,IF(ROUNDDOWN(O22*P$20/F22,0)>$E$5,$E$5,(ROUNDDOWN(O22*P$20/F22,0)))) -> 0 | Q22: =E22*$R$20 -> 0 | S22: =IF(ROUNDDOWN(R22/$R$20,0)>$E$20,$E$20,(ROUNDDOWN(R22/$R$20,0))) -> 0 | T22: =$E22*$U$20 -> 0 | V22: =IF(ROUNDDOWN(U22/$U$20,0)>$E$5,$E$5,(ROUNDDOWN(U22/$U$20,0))) -> 0 | W22: =S22+V22 -> 0 | X22: =D22/500*2 -> 0 | Z22: =IF(E22=0,0,IF(Y22>X22,P22,(Y22/X22*E22))) -> 0 | AA22: =(E22/6)*$AB$20 -> 0 | AC22: =IF(ROUNDDOWN(AB22*3*6,0)>$E$20,$E$20,(ROUNDDOWN(AB22*3*6,0))) -> 0 | AD22: =IF(P22=0,0,(E22*F22/$P$20/100*$AE$20)) -> 0 | AF22: 0 | AH22: =IF(ROUNDDOWN(AG22/4,0)>$E$20,$E$20,(ROUNDDOWN(AG22/4,0))) -> 0 | AJ22: 0 | AK22: =ROUNDDOWN(D22*10,0) -> 0 | AM22: 0 | AN22: =ROUNDDOWN(D22*4,0) -> 0 | AO22: ='Randlängen-Rund'!AC21 -> 0 | AP22: 0 | AQ22: =IF(AM22+AP22>$E$20,$E$20,AM22+AP22) -> 0 | AR22: =IF(D22=0,"",ROUNDDOWN(D22/10+1,0)) ->  | AT22: =IF(ROUNDDOWN(AS22*10,0)>$E$20,$E$20,ROUNDDOWN(AS22*10,0)) -> 0 | AU22: =ROUNDDOWN(D22*2.5,0) -> 0 | AW22: 0 | AX22: =D22 -> 0 | AY22: ='Randlängen-Rund'!AC43 -> 0 | AZ22: 0 | BA22: =IF(AT22+AW22+AZ22>$E$20,$E$20,AT22+AW22+AZ22) -> 0 | BB22: =Berechnungstabellen!K323 -> 0 | BC22: =IF(BB22=0,"",D22-BB22) ->  | BD22: =IF(D22>BB22,(D22-BB22)/BB22,"") ->  | BE22: =IF(BB22=0,"",IF(E22>BB22,E22-BB22,0)) ->  | BF22: =IF($E22>$BB22,($E22-$BB22)/$BB22,"") -> 
G23: 0 | H23: 0 | I23: 0 | J23: 0 | L23: 0 | O23: =SUM(M23:N23) -> 0 | P23: 0 | Q23: 0 | S23: =IF(ROUNDDOWN(R23/$R$20,0)>$E$20,$E$20,(ROUNDDOWN(R23/$R$20,0))) -> 0 | T23: 0 | V23: 0 | W23: 0 | X23: =D23/500*2 -> 0 | Z23: 0 | AA23: =(E23/6)*$AB$20 -> 0 | AC23: =IF(ROUNDDOWN(AB23*3*6,0)>$E$20,$E$20,(ROUNDDOWN(AB23*3*6,0))) -> 0 | AD23: =IF(P23=0,0,(E23*F23/$P$20/100*$AE$20)) -> 0 | AF23: 0 | AH23: =IF(ROUNDDOWN(AG23/4,0)>$E$20,$E$20,(ROUNDDOWN(AG23/4,0))) -> 0 | AJ23: 0 | AK23: =ROUNDDOWN(D23*10,0) -> 0 | AM23: 0 | AN23: =ROUNDDOWN(D23*4,0) -> 0 | AO23: ='Randlängen-Rund'!AC22 -> 0 | AP23: 0 | AQ23: =IF(AM23+AP23>$E$20,$E$20,AM23+AP23) -> 0 | AR23: =IF(D23=0,"",ROUNDDOWN(D23/10+1,0)) ->  | AT23: =IF(ROUNDDOWN(AS23*10,0)>$E$20,$E$20,ROUNDDOWN(AS23*10,0)) -> 0 | AU23: 0 | AW23: 0 | AX23: =D23 -> 0 | AY23: ='Randlängen-Rund'!AC44 -> 0 | AZ23: 0 | BA23: =IF(AT23+AW23+AZ23>$E$20,$E$20,AT23+AW23+AZ23) -> 0 | BB23: =Berechnungstabellen!K324 -> 0 | BC23: =IF(BB23=0,"",D23-BB23) ->  | BD23: =IF(D23>BB23,(D23-BB23)/BB23,"") ->  | BF23: =IF($E23>$BB23,($E23-$BB23)/$BB23,"") -> 
G24: 0 | H24: 0 | I24: 0 | J24: 0 | L24: 0 | O24: =SUM(M24:N24) -> 0 | P24: 0 | Q24: 0 | S24: =IF(ROUNDDOWN(R24/$R$20,0)>$E$20,$E$20,(ROUNDDOWN(R24/$R$20,0))) -> 0 | T24: 0 | V24: 0 | W24: 0 | X24: =D24/500*2 -> 0 | Z24: 0 | AA24: =(E24/6)*$AB$20 -> 0 | AC24: =IF(ROUNDDOWN(AB24*3*6,0)>$E$20,$E$20,(ROUNDDOWN(AB24*3*6,0))) -> 0 | AD24: =IF(P24=0,0,(E24*F24/$P$20/100*$AE$20)) -> 0 | AF24: 0 | AH24: =IF(ROUNDDOWN(AG24/4,0)>$E$20,$E$20,(ROUNDDOWN(AG24/4,0))) -> 0 | AJ24: 0 | AK24: =ROUNDDOWN(D24*10,0) -> 0 | AM24: 0 | AN24: =ROUNDDOWN(D24*4,0) -> 0 | AO24: ='Randlängen-Rund'!AC23 -> 0 | AP24: 0 | AQ24: =IF(AM24+AP24>$E$20,$E$20,AM24+AP24) -> 0 | AR24: =IF(D24=0,"",ROUNDDOWN(D24/10+1,0)) ->  | AT24: =IF(ROUNDDOWN(AS24*10,0)>$E$20,$E$20,ROUNDDOWN(AS24*10,0)) -> 0 | AU24: 0 | AW24: 0 | AX24: =D24 -> 0 | AY24: ='Randlängen-Rund'!AC45 -> 0 | AZ24: 0 | BA24: =IF(AT24+AW24+AZ24>$E$20,$E$20,AT24+AW24+AZ24) -> 0 | BB24: =Berechnungstabellen!K325 -> 0 | BC24: =IF(BB24=0,"",D24-BB24) ->  | BD24: =IF(D24>BB24,(D24-BB24)/BB24,"") ->  | BF24: =IF($E24>$BB24,($E24-$BB24)/$BB24,"") -> 
A27: Geprüfte Maßangaben:
A29: Anmerkungen / Kommentare

Sheet Randlängen-Rund
A1: 1. Ermittlung Rand-Länge Legehennen | F1: 2. Ermittlung Rand-Länge Junghennen-Bruderhähne | K1: 3. Ermittlung Rand-Länge Masthähnchen | P1: 4. Ermittlung Rand-Länge Kapaune / Poularden | U1: 5. Ermittlung Rand-Länge Mastputen | Z1: 6. Ermittlung Rand-Länge Mastgeflügel-sonstiges
A2: A) Futter | D2: 3.14159265 | F2: A) Futter | I2: 3.14159265 | K2: A) Futter | N2: 3.14159265 | P2: A) Futter | S2: 3.14159265 | U2: A) Futter | X2: 3.14159265 | Z2: A) Futter | AC2: 3.14159265
A3: Bezeichng. Stall | B3: Durch-messer Rundtrog (cm) | C3: Anzahl | D3: Randlänge (cm) | F3: Bezeichng. Stall | G3: Durch-messer Rundtrog (cm) | H3: Anzahl | I3: Randlänge (cm) | K3: Bezeichng. Stall | L3: Durch-messer Rundtrog (cm) | M3: Anzahl | N3: Randlänge (cm) | P3: Bezeichng. Stall | Q3: Durch-messer Rundtrog (cm) | R3: Anzahl | S3: Randlänge (cm) | U3: Bezeichng. Stall | V3: Durch-messer Rundtrog (cm) | W3: Anzahl | X3: Randlänge (cm) | Z3: Bezeichng. Stall | AA3: Durch-messer Rundtrog (cm) | AB3: Anzahl | AC3: Randlänge (cm)
A4: =Legehennen!A6 -> 0 | B4: 35 | C4: 200 | D4: =B4*D$2*C4 -> 21991.14855 | F4: ='Junghennen-Bruderhähne'!A6 -> 0 | I4: =G4*$D$2*H4 -> 0 | K4: =Masthähnchen!A6 -> 0 | N4: =L4*D$2*M4 -> 0 | P4: =Masthähnchen!A26 -> 0 | S4: =Q4*$D$2*R4 -> 0 | U4: =Mastputen!A6 -> 0 | X4: =V4*D$2*W4 -> 0 | Z4: =Mastgeflügel!A5 -> Gänse
A5: =Legehennen!A7 -> 0 | D5: =B5*D$2*C5 -> 0 | F5: ='Junghennen-Bruderhähne'!A7 -> 0 | I5: =G5*$D$2*H5 -> 0 | K5: =Masthähnchen!A7 -> 0 | N5: 0 | P5: =Masthähnchen!A27 -> 0 | S5: =Q5*$D$2*R5 -> 0 | U5: =Mastputen!A7 -> 0 | X5: 0 | Z5: =Mastgeflügel!A6 -> 0 | AC5: =AA5*D$2*AB5 -> 0
A6: =Legehennen!A8 -> 0 | D6: 0 | F6: ='Junghennen-Bruderhähne'!A8 -> 0 | I6: 0 | K6: =Masthähnchen!A8 -> 0 | N6: 0 | P6: =Masthähnchen!A28 -> 0 | S6: 0 | U6: =Mastputen!A8 -> 0 | X6: 0 | Z6: =Mastgeflügel!A7 -> 0 | AC6: =AA6*D$2*AB6 -> 0
A7: =Legehennen!A9 -> 0 | D7: 0 | F7: ='Junghennen-Bruderhähne'!A9 -> 0 | I7: 0 | K7: =Masthähnchen!A9 -> 0 | N7: 0 | P7: =Masthähnchen!A29 -> 0 | S7: 0 | U7: =Mastputen!A9 -> 0 | X7: 0 | Z7: =Mastgeflügel!A8 -> 0 | AC7: =AA7*D$2*AB7 -> 0
A8: =Legehennen!A10 -> 0 | D8: 0 | F8: ='Junghennen-Bruderhähne'!A10 -> 0 | I8: 0 | K8: =Masthähnchen!A10 -> 0 | N8: 0 | P8: =Masthähnchen!A30 -> 0 | S8: 0 | U8: =Mastputen!A10 -> 0 | X8: 0 | Z8: =Mastgeflügel!A9 -> 0 | AC8: =AA8*D$2*AB8 -> 0
A9: =Legehennen!A11 -> 0 | D9: 0 | F9: ='Junghennen-Bruderhähne'!A11 -> 0 | I9: 0 | K9: =Masthähnchen!A11 -> 0 | N9: 0 | P9: =Masthähnchen!A31 -> 0 | S9: 0 | U9: =Mastputen!A11 -> 0 | X9: 0 | Z9: =Mastgeflügel!A10 -> Enten wbl.
A10: =Legehennen!A12 -> 0 | D10: 0 | F10: ='Junghennen-Bruderhähne'!A12 -> 0 | I10: 0 | K10: =Masthähnchen!A12 -> 0 | N10: 0 | P10: =Masthähnchen!A32 -> 0 | S10: 0 | U10: =Mastputen!A12 -> 0 | X10: 0 | Z10: =Mastgeflügel!A11 -> 0 | AC10: =AA10*D$2*AB10 -> 0
A11: =Legehennen!A13 -> 0 | D11: 0 | F11: ='Junghennen-Bruderhähne'!A13 -> 0 | I11: 0 | K11: =Masthähnchen!A13 -> 0 | N11: 0 | P11: =Masthähnchen!A33 -> 0 | S11: 0 | U11: =Mastputen!A13 -> 0 | X11: 0 | Z11: =Mastgeflügel!A12 -> 0 | AC11: =AA11*D$2*AB11 -> 0
A12: =Legehennen!A14 -> 0 | D12: 0 | F12: ='Junghennen-Bruderhähne'!A14 -> Bewegl. Ställe | K12: =Masthähnchen!A14 -> Bewegl. Ställe | P12: =Masthähnchen!A36 -> Poularden | U12: =Mastputen!A14 -> Bewegl. Ställe | X12: 0 | Z12: =Mastgeflügel!A13 -> 0 | AC12: =AA12*D$2*AB12 -> 0
A13: =Legehennen!A15 -> 0 | D13: 0 | F13: ='Junghennen-Bruderhähne'!A15 -> 0 | I13: =G13*$D$2*H13 -> 0 | K13: =Masthähnchen!A15 -> 0 | N13: =L13*D$2*M13 -> 0 | P13: =Masthähnchen!A37 -> 0 | S13: 0 | U13: =Mastputen!A15 -> 0 | X13: 0 | Z13: =Mastgeflügel!A14 -> 0 | AC13: =AA13*D$2*AB13 -> 0
A14: =Legehennen!A16 -> 0 | D14: 0 | F14: ='Junghennen-Bruderhähne'!A16 -> 0 | I14: =G14*$D$2*H14 -> 0 | K14: =Masthähnchen!A16 -> 0 | N14: 0 | P14: =Masthähnchen!A38 -> 0 | S14: 0 | U14: =Mastputen!A16 -> 0 | X14: 0 | Z14: =Mastgeflügel!A15 -> Enten männl.
A15: =Legehennen!A17 -> 0 | D15: 0 | F15: ='Junghennen-Bruderhähne'!A17 -> 0 | I15: 0 | K15: =Masthähnchen!A17 -> 0 | N15: 0 | P15: =Masthähnchen!A39 -> 0 | S15: 0 | U15: =Mastputen!A17 -> 0 | X15: 0 | Z15: =Mastgeflügel!A16 -> 0 | AC15: =AA15*D$2*AB15 -> 0
A16: =Legehennen!A18 -> 0 | D16: 0 | F16: ='Junghennen-Bruderhähne'!A18 -> 0 | I16: 0 | K16: =Masthähnchen!A18 -> 0 | N16: 0 | P16: =Masthähnchen!A40 -> 0 | S16: 0 | U16: =Mastputen!A18 -> 0 | X16: 0 | Z16: =Mastgeflügel!A17 -> 0 | AC16: =AA16*D$2*AB16 -> 0
A17: =Legehennen!A19 -> 0 | D17: 0 | F17: ='Junghennen-Bruderhähne'!A19 -> 0 | I17: 0 | K17: =Masthähnchen!A19 -> 0 | N17: 0 | P17: =Masthähnchen!A41 -> 0 | S17: 0 | U17: =Mastputen!A19 -> 0 | X17: 0 | Z17: =Mastgeflügel!A18 -> 0 | AC17: =AA17*D$2*AB17 -> 0
A18: =Legehennen!A20 -> 0 | D18: 0 | F18: ='Junghennen-Bruderhähne'!A20 -> 0 | I18: 0 | K18: =Masthähnchen!A20 -> 0 | N18: 0 | P18: =Masthähnchen!A42 -> 0 | S18: 0 | U18: =Mastputen!A20 -> 0 | X18: 0 | Z18: =Mastgeflügel!A19 -> 0 | AC18: =AA18*D$2*AB18 -> 0
A19: =Legehennen!A21 -> 0 | D19: 0 | F19: ='Junghennen-Bruderhähne'!A21 -> 0 | I19: 0 | K19: =Masthähnchen!A21 -> 0 | N19: 0 | P19: =Masthähnchen!A43 -> 0 | S19: 0 | U19: =Mastputen!A21 -> 0 | X19: 0 | Z19: =Mastgeflügel!A20 -> Perl-hühner
A20: =Legehennen!A22 -> 0 | D20: 0 | F20: ='Junghennen-Bruderhähne'!A22 -> 0 | I20: 0 | K20: =Masthähnchen!A22 -> 0 | N20: 0 | P20: =Masthähnchen!A44 -> 0 | S20: 0 | U20: =Mastputen!A22 -> 0 | X20: 0 | Z20: =Mastgeflügel!A21 -> 0 | AC20: =AA20*D$2*AB20 -> 0
F21: ='Junghennen-Bruderhähne'!A23 -> 0 | I21: 0 | K21: =Masthähnchen!A23 -> 0 | N21: 0 | P21: =Masthähnchen!A45 -> 0 | S21: 0 | U21: =Mastputen!A23 -> 0 | X21: 0 | Z21: =Mastgeflügel!A22 -> 0 | AC21: =AA21*D$2*AB21 -> 0
Z22: =Mastgeflügel!A23 -> 0 | AC22: 0
Z23: =Mastgeflügel!A24 -> 0 | AC23: 0
A24: B) Tränken | F24: B) Tränken | K24: B) Tränken | P24: B) Tränken | U24: B) Tränken | Z24: B) Tränken
A25: Bezeichng. Stall | B25: Durch-messer Rundtränke (cm) | C25: Anzahl | D25: Randlänge (cm) | F25: Bezeichng. Stall | G25: Durch-messer Rundtränke (cm) | H25: Anzahl | I25: Randlänge (cm) | K25: Bezeichng. Stall | L25: Durch-messer Rundtränke (cm) | M25: Anzahl | N25: Randlänge (cm) | P25: Bezeichng. Stall | Q25: Durch-messer Rundtränke (cm) | R25: Anzahl | S25: Randlänge (cm) | U25: Bezeichng. Stall | V25: Durch-messer Rundtränke (cm) | W25: Anzahl | X25: Randlänge (cm) | Z25: Bezeichng. Stall | AA25: Durch-messer Rundtrog (cm) | AB25: Anzahl | AC25: Randlänge (cm)
A26: =A4 -> 0 | B26: 30 | C26: 200 | D26: =B26*D$2*C26 -> 18849.5559 | F26: =F4 -> 0 | I26: =G26*$D$2*H26 -> 0 | K26: =K4 -> 0 | N26: =L26*D$2*M26 -> 0 | P26: =P4 -> 0 | S26: =Q26*$D$2*R26 -> 0 | U26: =U4 -> 0 | X26: =V26*D$2*W26 -> 0 | Z26: =Z4 -> Gänse
A27: =A5 -> 0 | D27: =B27*D$2*C27 -> 0 | F27: =F5 -> 0 | I27: =G27*$D$2*H27 -> 0 | K27: =K5 -> 0 | N27: 0 | P27: =P5 -> 0 | S27: =Q27*$D$2*R27 -> 0 | U27: =U5 -> 0 | X27: 0 | Z27: =Z5 -> 0 | AC27: =AA27*D$2*AB27 -> 0
A28: 0 | D28: 0 | F28: 0 | I28: 0 | K28: 0 | N28: 0 | P28: 0 | S28: 0 | U28: 0 | X28: 0 | Z28: 0 | AC28: =AA28*D$2*AB28 -> 0
A29: 0 | D29: 0 | F29: 0 | I29: 0 | K29: 0 | N29: 0 | P29: 0 | S29: 0 | U29: 0 | X29: 0 | Z29: 0 | AC29: =AA29*D$2*AB29 -> 0
A30: 0 | D30: 0 | F30: 0 | I30: 0 | K30: 0 | N30: 0 | P30: 0 | S30: 0 | U30: 0 | X30: 0 | Z30: 0 | AC30: =AA30*D$2*AB30 -> 0
A31: 0 | D31: 0 | F31: 0 | I31: 0 | K31: 0 | N31: 0 | P31: 0 | S31: 0 | U31: 0 | X31: 0 | Z31: Enten wbl.
A32: 0 | D32: 0 | F32: 0 | I32: 0 | K32: 0 | N32: 0 | P32: 0 | S32: 0 | U32: 0 | X32: 0 | Z32: 0 | AC32: =AA32*D$2*AB32 -> 0
A33: 0 | D33: 0 | F33: 0 | I33: 0 | K33: 0 | N33: 0 | P33: 0 | S33: 0 | U33: 0 | X33: 0 | Z33: 0 | AC33: =AA33*D$2*AB33 -> 0
A34: 0 | D34: 0 | F34: Bewegl. Ställe | K34: Bewegl. Ställe | P34: Poularden | U34: Bewegl. Ställe | X34: 0 | Z34: 0 | AC34: =AA34*D$2*AB34 -> 0
A35: 0 | D35: 0 | F35: 0 | I35: =G35*$D$2*H35 -> 0 | K35: 0 | N35: =L35*D$2*M35 -> 0 | P35: 0 | S35: 0 | U35: 0 | X35: 0 | Z35: 0 | AC35: =AA35*D$2*AB35 -> 0
A36: 0 | D36: 0 | F36: 0 | I36: =G36*$D$2*H36 -> 0 | K36: 0 | N36: 0 | P36: 0 | S36: 0 | U36: 0 | X36: 0 | Z36: Enten männl.
A37: 0 | D37: 0 | F37: 0 | I37: 0 | K37: 0 | N37: 0 | P37: 0 | S37: 0 | U37: 0 | X37: 0 | Z37: 0 | AC37: =AA37*D$2*AB37 -> 0
A38: 0 | D38: 0 | F38: 0 | I38: =G38*$D$2*H38 -> 0 | K38: 0 | N38: 0 | P38: 0 | S38: 0 | U38: 0 | X38: 0 | Z38: 0 | AC38: =AA38*D$2*AB38 -> 0
A39: 0 | D39: 0 | F39: 0 | I39: 0 | K39: 0 | N39: 0 | P39: 0 | S39: 0 | U39: 0 | X39: 0 | Z39: 0 | AC39: =AA39*D$2*AB39 -> 0
A40: 0 | D40: 0 | F40: 0 | I40: 0 | K40: 0 | N40: 0 | P40: 0 | S40: 0 | U40: 0 | X40: 0 | Z40: 0 | AC40: =AA40*D$2*AB40 -> 0
A41: 0 | D41: 0 | F41: 0 | I41: 0 | K41: 0 | N41: 0 | P41: 0 | S41: 0 | U41: 0 | X41: 0 | Z41: Perl-hühner
A42: 0 | D42: 0 | F42: 0 | I42: 0 | K42: 0 | N42: 0 | P42: 0 | S42: 0 | U42: 0 | X42: 0 | Z42: 0 | AC42: =AA42*D$2*AB42 -> 0
F43: 0 | I43: 0 | K43: 0 | N43: 0 | P43: 0 | S43: 0 | U43: 0 | X43: 0 | Z43: 0 | AC43: =AA43*D$2*AB43 -> 0
Z44: 0 | AC44: 0
Z45: 0 | AC45: 0

Sheet Berechnungstabellen (hidden)
A1: 1. Säugetiere | L1: N max / ha | M1: N Betrieb
A2: Tiergruppe | C2: Box-nummer(n) lt. Stall-plan | D2: max. Tierzahl Stallflächen/-Plätze | E2: max. Tierzahl Stallboden | F2: Liegeplätze | G2: max. Tierzahl Außen-flächen | H2: max. Tierzahl Überdachung | L2: 170 | M2: =M12+M43+M46+M51+M94+M142+M155+N216+N280+N302+N311+N316+N321+N326 -> 0 | N2: 1 DE = | O2: 80 | P2: kg N | Q2: =CONCATENATE(L2," kg N entspr. ") -> 170 kg N entspr. | R2: =L2/O2 -> 2.125 | S2: DE
A3: Rinder | B3: =CONCATENATE(Rinder!A2," ",Rinder!B2) -> Stallblatt 1 | D3: Anbindehaltg | E3: =Rinder!B4 -> 0 | I3: Max. Tierzahl | J3: Max Tierzahl ges. | K3: Gehaltene Tiere | L3: Tiere max. / ha | M3: Kg N max.
A4: Kälber <1 Jahr <100kg | C4: =IF(Rinder!D7=0,0,Rinder!D7) -> 0 | D4: =Rinder!F7 -> 0 | E4: =Rinder!J7 -> 0 | G4: =Rinder!O7 -> 0 | H4: =Rinder!R7 -> 0 | I4: =IF(C4=0,0,IF(SUM(D4:H4)=0,0,MIN(D4:H4))) -> 0 | J4: =I4+I13+I22+I31 -> 0 | K4: =Rinder!K7+Rinder!K27+Rinder!K47+Rinder!K67 -> 0 | L4: 5 | M4: =K4/L4*$L$2 -> 0
A5: Kälber <1 Jahr <200kg | C5: =IF(Rinder!D8=0,0,Rinder!D8) -> 0 | D5: =Rinder!F8 -> 0 | E5: =Rinder!J8 -> 0 | G5: =Rinder!O8 -> 0 | H5: =Rinder!R8 -> 0 | I5: =IF(C5=0,0,IF(SUM(D5:H5)=0,0,MIN(D5:H5))) -> 0 | J5: =I5+I14+I23+I32 -> 0 | K5: =Rinder!K8+Rinder!K28+Rinder!K48+Rinder!K68 -> 0 | L5: 5 | M5: 0
A6: Rinder 1-2 Jahr <350kg | C6: =IF(Rinder!D9=0,0,Rinder!D9) -> 0 | D6: =Rinder!F9 -> 0 | E6: =Rinder!J9 -> 0 | F6: =Rinder!G9 -> 0 | G6: =Rinder!O9 -> 0 | H6: =Rinder!R9 -> 0 | I6: 0 | J6: 0 | K6: =Rinder!K9+Rinder!K29+Rinder!K49+Rinder!K69 -> 0 | L6: 3.3 | M6: 0
A7: Milchkühe | C7: =IF(Rinder!D11=0,0,Rinder!D11) -> 0 | D7: =IF(Rinder!$B$4="JA",Rinder!G11,ROUNDDOWN(Rinder!$E11/Rinder!$C11,0)) -> 0 | E7: =Rinder!J11 -> 0 | F7: =Rinder!G11 -> 0 | G7: =Rinder!O11 -> 0 | H7: =Rinder!R11 -> 0 | I7: 0 | J7: 0 | K7: =Rinder!K11+Rinder!K31+Rinder!K51+Rinder!K71 -> 0 | L7: 2 | M7: 0
A8: Mutter Ammenkühe | C8: =IF(Rinder!D12=0,0,Rinder!D12) -> 0 | D8: =IF(Rinder!$B$4="JA",ROUNDDOWN(MIN(Rinder!$G12,Rinder!$O12,Rinder!$R12),0),ROUNDDOWN(Rinder!$E12/Rinder!$C12,0)) -> 0 | E8: =Rinder!J12 -> 0 | F8: =Rinder!G12 -> 0 | G8: =Rinder!O12 -> 0 | H8: =Rinder!R12 -> 0 | I8: 0 | J8: 0 | K8: =Rinder!K12+Rinder!K32+Rinder!K52+Rinder!K72 -> 0 | L8: 2 | M8: 0
A9: Bullen >2 Jahr >350kg | C9: =IF(Rinder!D14=0,0,Rinder!D14) -> 0 | D9: =IF(Rinder!$B$4="JA",ROUNDDOWN(MIN(Rinder!$G14,Rinder!$O14,Rinder!$R14),0),ROUNDDOWN(Rinder!$E14/Rinder!$C14,0)) -> 0 | E9: =Rinder!J14 -> 0 | F9: =Rinder!G14 -> 0 | G9: =Rinder!O14 -> 0 | H9: =Rinder!R14 -> 0 | I9: 0 | J9: 0 | K9: =Rinder!K14+Rinder!K34+Rinder!K54+Rinder!K74 -> 0 | L9: 2 | M9: 0
A10: Färsen >2 Jahr >350kg | C10: =IF(Rinder!D15=0,0,Rinder!D15) -> 0 | D10: =IF(Rinder!$B$4="JA",ROUNDDOWN(MIN(Rinder!$G15,Rinder!$O15,Rinder!$R15),0),ROUNDDOWN(Rinder!$E15/Rinder!$C15,0)) -> 0 | E10: =Rinder!J15 -> 0 | F10: =Rinder!G15 -> 0 | G10: =Rinder!O15 -> 0 | H10: =Rinder!R15 -> 0 | I10: 0 | J10: 0 | K10: =Rinder!K15+Rinder!K35+Rinder!K55+Rinder!K75 -> 0 | L10: 2.5 | M10: 0
A11: Zuchtbullen | C11: =IF(Rinder!E17=0,0,Rinder!E17) -> 0 | D11: =IF(Rinder!$B$4="JA",ROUNDDOWN(MIN(Rinder!$G17,Rinder!$O17,Rinder!$R17),0),ROUNDDOWN(Rinder!$E17/Rinder!$C17,0)) -> 0 | E11: =Rinder!J17 -> 0 | F11: =Rinder!G17 -> 0 | G11: =Rinder!O17 -> 0 | H11: =Rinder!R17 -> 0 | I11: 0 | J11: 0 | K11: =Rinder!K17+Rinder!K37+Rinder!K57+Rinder!K77 -> 0 | L11: 2 | M11: 0
A12: Rinder | B12: =CONCATENATE(Rinder!A22," ",Rinder!B22) -> Stallblatt 2 | D12: Anbindehaltg | E12: =Rinder!B24 -> 0 | I12: Max. Tierzahl | L12: =CONCATENATE("Gesamt ",A3) -> Gesamt Rinder | M12: =SUM(M4:M11) -> 0
A13: Kälber <1 Jahr <100kg | C13: =IF(Rinder!D27=0,0,Rinder!D27) -> 0 | D13: =Rinder!F27 -> 0 | E13: =Rinder!J27 -> 0 | G13: =Rinder!O27 -> 0 | H13: =Rinder!R27 -> 0 | I13: =IF(C13=0,0,IF(SUM(D13:H13)=0,0,MIN(D13:H13))) -> 0
A14: Kälber <1 Jahr <200kg | C14: =IF(Rinder!D28=0,0,Rinder!D28) -> 0 | D14: =Rinder!F28 -> 0 | E14: =Rinder!J28 -> 0 | G14: =Rinder!O28 -> 0 | H14: =Rinder!R28 -> 0 | I14: =IF(C14=0,0,IF(SUM(D14:H14)=0,0,MIN(D14:H14))) -> 0
A15: Rinder 1-2 Jahr <350kg | C15: =IF(Rinder!D29=0,0,Rinder!D29) -> 0 | D15: =Rinder!F29 -> 0 | E15: =Rinder!J29 -> 0 | G15: =Rinder!O29 -> 0 | H15: =Rinder!R29 -> 0 | I15: 0
A16: Milchkühe | C16: =IF(Rinder!D31=0,0,Rinder!D31) -> 0 | D16: =IF(Rinder!$B$24="JA",ROUNDDOWN(MIN(Rinder!$G31,Rinder!$O31,Rinder!$R31),0),ROUNDDOWN(Rinder!$E31/Rinder!$C31,0)) -> 0 | E16: =Rinder!J31 -> 0 | F16: =IF(Rinder!B$4="JA",Rinder!G31,ROUNDDOWN(MIN(Rinder!F31,Rinder!J31,Rinder!O31,Rinder!R31),0)) -> 0 | G16: =Rinder!O31 -> 0 | H16: =Rinder!R31 -> 0 | I16: 0
A17: Mutter Ammenkühe | C17: =IF(Rinder!D32=0,0,Rinder!D32) -> 0 | D17: =IF(Rinder!$B$24="JA",ROUNDDOWN(MIN(Rinder!$G32,Rinder!$O32,Rinder!$R32),0),ROUNDDOWN(Rinder!$E32/Rinder!$C32,0)) -> 0 | E17: =Rinder!J32 -> 0 | F17: =IF(Rinder!B$4="JA",Rinder!G32,ROUNDDOWN(MIN(Rinder!F32,Rinder!J32,Rinder!O32,Rinder!R32),0)) -> 0 | G17: =Rinder!O32 -> 0 | H17: =Rinder!R32 -> 0 | I17: 0
A18: Bullen >2 Jahr >350kg | C18: =IF(Rinder!D34=0,0,Rinder!D34) -> 0 | D18: =IF(Rinder!$B$24="JA",ROUNDDOWN(MIN(Rinder!$G34,Rinder!$O34,Rinder!$R34),0),ROUNDDOWN(Rinder!$E34/Rinder!$C34,0)) -> 0 | E18: =Rinder!J34 -> 0 | F18: =IF(Rinder!B24="JA",Rinder!G34,ROUNDDOWN(MIN(Rinder!F34,Rinder!J34,Rinder!O34,Rinder!R34),0)) -> 0 | G18: =Rinder!O34 -> 0 | H18: =Rinder!R34 -> 0 | I18: 0
A19: Färsen >2 Jahr >350kg | C19: =IF(Rinder!D35=0,0,Rinder!D35) -> 0 | D19: =IF(Rinder!$B$24="JA",ROUNDDOWN(MIN(Rinder!$G35,Rinder!$O35,Rinder!$R35),0),ROUNDDOWN(Rinder!$E35/Rinder!$C35,0)) -> 0 | E19: =Rinder!J35 -> 0 | F19: =IF(Rinder!B24="JA",Rinder!G35,ROUNDDOWN(MIN(Rinder!F35,Rinder!J35,Rinder!O35,Rinder!R35),0)) -> 0 | G19: =Rinder!O35 -> 0 | H19: =Rinder!R35 -> 0 | I19: 0
A20: Zuchtbullen | C20: =IF(Rinder!D37=0,0,Rinder!D37) -> 0 | D20: =IF(Rinder!$B$24="JA",ROUNDDOWN(MIN(Rinder!$G37,Rinder!$O37,Rinder!$R37),0),ROUNDDOWN(Rinder!$E37/Rinder!$C37,0)) -> 0 | E20: =Rinder!J37 -> 0 | F20: =IF(Rinder!B24="JA",Rinder!G37,ROUNDDOWN(MIN(Rinder!F37,Rinder!J37,Rinder!O37,Rinder!R37),0)) -> 0 | G20: =Rinder!O37 -> 0 | H20: =Rinder!R37 -> 0 | I20: 0
A21: Rinder | B21: =CONCATENATE(Rinder!A42," ",Rinder!B42) -> Stallblatt 3 | D21: Anbindehaltg | E21: =Rinder!B44 -> 0 | I21: Max. Tierzahl
A22: Kälber <1 Jahr <100kg | C22: =IF(Rinder!D47=0,0,Rinder!D47) -> 0 | D22: =Rinder!F47 -> 0 | E22: =Rinder!J47 -> 0 | G22: =Rinder!O47 -> 0 | H22: =Rinder!R47 -> 0 | I22: =IF(C22=0,0,IF(SUM(D22:H22)=0,0,MIN(D22:H22))) -> 0
A23: Kälber <1 Jahr <200kg | C23: =IF(Rinder!D48=0,0,Rinder!D48) -> 0 | D23: =Rinder!F48 -> 0 | E23: =Rinder!J48 -> 0 | G23: =Rinder!O48 -> 0 | H23: =Rinder!R48 -> 0 | I23: =IF(C23=0,0,IF(SUM(D23:H23)=0,0,MIN(D23:H23))) -> 0
A24: Rinder 1-2 Jahr <350kg | C24: =IF(Rinder!D49=0,0,Rinder!D49) -> 0 | D24: =Rinder!F49 -> 0 | E24: =Rinder!J49 -> 0 | G24: =Rinder!O49 -> 0 | H24: =Rinder!R49 -> 0 | I24: 0
A25: Milchkühe | C25: =IF(Rinder!D51=0,0,Rinder!D51) -> 0 | D25: =IF(Rinder!$B$44="JA",ROUNDDOWN(MIN(Rinder!$G51,Rinder!$O51,Rinder!$R51),0),ROUNDDOWN(Rinder!$E51/Rinder!$C51,0)) -> 0 | E25: =Rinder!J51 -> 0 | F25: =IF(Rinder!B$4="JA",Rinder!G51,ROUNDDOWN(MIN(Rinder!F51,Rinder!J51,Rinder!O51,Rinder!R51),0)) -> 0 | G25: =Rinder!O51 -> 0 | H25: =Rinder!R51 -> 0 | I25: 0
A26: Mutter Ammenkühe | C26: =IF(Rinder!D52=0,0,Rinder!D52) -> 0 | D26: =IF(Rinder!$B$44="JA",ROUNDDOWN(MIN(Rinder!$G52,Rinder!$O52,Rinder!$R52),0),ROUNDDOWN(Rinder!$E52/Rinder!$C52,0)) -> 0 | E26: =Rinder!J52 -> 0 | F26: =IF(Rinder!B$4="JA",Rinder!G52,ROUNDDOWN(MIN(Rinder!F52,Rinder!J52,Rinder!O52,Rinder!R52),0)) -> 0 | G26: =Rinder!O52 -> 0 | H26: =Rinder!R52 -> 0 | I26: 0
A27: Bullen >2 Jahr >350kg | C27: =IF(Rinder!D54=0,0,Rinder!D54) -> 0 | D27: =IF(Rinder!$B$44="JA",ROUNDDOWN(MIN(Rinder!$G54,Rinder!$O54,Rinder!$R54),0),ROUNDDOWN(Rinder!$E54/Rinder!$C54,0)) -> 0 | E27: =Rinder!J54 -> 0 | F27: =IF(Rinder!B44="JA",Rinder!G54,ROUNDDOWN(MIN(Rinder!F54,Rinder!J54,Rinder!O54,Rinder!R54),0)) -> 0 | G27: =Rinder!O54 -> 0 | H27: =Rinder!R54 -> 0 | I27: 0
A28: Färsen >2 Jahr >350kg | C28: =IF(Rinder!D55=0,0,Rinder!D55) -> 0 | D28: =IF(Rinder!$B$44="JA",ROUNDDOWN(MIN(Rinder!$G55,Rinder!$O55,Rinder!$R55),0),ROUNDDOWN(Rinder!$E55/Rinder!$C55,0)) -> 0 | E28: =Rinder!J55 -> 0 | F28: =IF(Rinder!B44="JA",Rinder!G55,ROUNDDOWN(MIN(Rinder!F55,Rinder!J55,Rinder!O55,Rinder!R55),0)) -> 0 | G28: =Rinder!O55 -> 0 | H28: =Rinder!R55 -> 0 | I28: 0
A29: Zuchtbullen | C29: =IF(Rinder!D57=0,0,Rinder!D57) -> 0 | D29: =IF(Rinder!$B$44="JA",ROUNDDOWN(MIN(Rinder!$G57,Rinder!$O57,Rinder!$R57),0),ROUNDDOWN(Rinder!$E57/Rinder!$C57,0)) -> 0 | E29: =Rinder!J57 -> 0 | F29: =IF(Rinder!B44="JA",Rinder!G57,ROUNDDOWN(MIN(Rinder!F57,Rinder!J57,Rinder!O57,Rinder!R57),0)) -> 0 | G29: =Rinder!O57 -> 0 | H29: =Rinder!R57 -> 0 | I29: 0
A30: Rinder | B30: =CONCATENATE(Rinder!A62," ",Rinder!B62) -> Stallblatt 4 | D30: Anbindehaltg | E30: =Rinder!B64 -> 0 | I30: Max. Tierzahl
A31: Kälber <1 Jahr <100kg | C31: =IF(Rinder!D67=0,0,Rinder!D67) -> 0 | D31: =Rinder!F67 -> 0 | E31: =Rinder!J67 -> 0 | G31: =Rinder!O67 -> 0 | H31: =Rinder!R67 -> 0 | I31: =IF(C31=0,0,IF(SUM(D31:H31)=0,0,MIN(D31:H31))) -> 0
A32: Kälber <1 Jahr <200kg | C32: =IF(Rinder!D68=0,0,Rinder!D68) -> 0 | D32: =Rinder!F68 -> 0 | E32: =Rinder!J68 -> 0 | G32: =Rinder!O68 -> 0 | H32: =Rinder!R68 -> 0 | I32: =IF(C32=0,0,IF(SUM(D32:H32)=0,0,MIN(D32:H32))) -> 0
A33: Rinder 1-2 Jahr <350kg | C33: =IF(Rinder!D69=0,0,Rinder!D69) -> 0 | D33: =Rinder!F69 -> 0 | E33: =Rinder!J69 -> 0 | G33: =Rinder!O69 -> 0 | H33: =Rinder!R69 -> 0 | I33: 0
A34: Milchkühe | C34: =IF(Rinder!D71=0,0,Rinder!D71) -> 0 | D34: =IF(Rinder!$B$64="JA",ROUNDDOWN(MIN(Rinder!$G71,Rinder!$O71,Rinder!$R71),0),ROUNDDOWN(Rinder!$E71/Rinder!$C71,0)) -> 0 | E34: =Rinder!J71 -> 0 | F34: =IF(Rinder!B$4="JA",Rinder!G71,ROUNDDOWN(MIN(Rinder!F71,Rinder!J71,Rinder!O71,Rinder!R71),0)) -> 0 | G34: =Rinder!O71 -> 0 | H34: =Rinder!R71 -> 0 | I34: 0
A35: Mutter Ammenkühe | C35: =IF(Rinder!D72=0,0,Rinder!D72) -> 0 | D35: =IF(Rinder!$B$64="JA",ROUNDDOWN(MIN(Rinder!$G72,Rinder!$O72,Rinder!$R72),0),ROUNDDOWN(Rinder!$E72/Rinder!$C72,0)) -> 0 | E35: =Rinder!J72 -> 0 | F35: =IF(Rinder!B$4="JA",Rinder!G72,ROUNDDOWN(MIN(Rinder!F72,Rinder!J72,Rinder!O72,Rinder!R72),0)) -> 0 | G35: =Rinder!O72 -> 0 | H35: =Rinder!R72 -> 0 | I35: 0
A36: Bullen >2 Jahr >350kg | C36: =IF(Rinder!D74=0,0,Rinder!D74) -> 0 | D36: =IF(Rinder!$B$64="JA",ROUNDDOWN(MIN(Rinder!$G74,Rinder!$O74,Rinder!$R74),0),ROUNDDOWN(Rinder!$E74/Rinder!$C74,0)) -> 0 | E36: =Rinder!J74 -> 0 | F36: =IF(Rinder!B64="JA",Rinder!G74,ROUNDDOWN(MIN(Rinder!F74,Rinder!J74,Rinder!O74,Rinder!R74),0)) -> 0 | G36: =Rinder!O74 -> 0 | H36: =Rinder!R74 -> 0 | I36: 0
A37: Färsen >2 Jahr >350kg | C37: =IF(Rinder!D75=0,0,Rinder!D75) -> 0 | D37: =IF(Rinder!$B$64="JA",ROUNDDOWN(MIN(Rinder!$G75,Rinder!$O75,Rinder!$R75),0),ROUNDDOWN(Rinder!$E75/Rinder!$C75,0)) -> 0 | E37: =Rinder!J75 -> 0 | F37: =IF(Rinder!B64="JA",Rinder!G75,ROUNDDOWN(MIN(Rinder!F75,Rinder!J75,Rinder!O75,Rinder!R75),0)) -> 0 | G37: =Rinder!O75 -> 0 | H37: =Rinder!R75 -> 0 | I37: 0
A38: Zuchtbullen | C38: =IF(Rinder!D77=0,0,Rinder!D77) -> 0 | D38: =IF(Rinder!$B$64="JA",ROUNDDOWN(MIN(Rinder!$G77,Rinder!$O77,Rinder!$R77),0),ROUNDDOWN(Rinder!$E77/Rinder!$C77,0)) -> 0 | E38: =Rinder!J77 -> 0 | F38: =IF(Rinder!B64="JA",Rinder!G77,ROUNDDOWN(MIN(Rinder!F77,Rinder!J77,Rinder!O77,Rinder!R77),0)) -> 0 | G38: =Rinder!O77 -> 0 | H38: =Rinder!R77 -> 0 | I38: 0
A40: Schafe | C40: ='Kl. Wiederkäuer_Equidien'!A2 -> Stallblatt | D40: ='Kl. Wiederkäuer_Equidien'!B2 -> 1 | I40: Max. Tierzahl | J40: Max Tierzahl ges. | K40: Gehaltene Tiere | L40: Tiere max. / ha | M40: Kg N max.
A41: Lamm (< 1J) | C41: =IF('Kl. Wiederkäuer_Equidien'!D7=0,0,'Kl. Wiederkäuer_Equidien'!D7) -> 0 | D41: ='Kl. Wiederkäuer_Equidien'!F7 -> 0 | E41: ='Kl. Wiederkäuer_Equidien'!I7 -> 0 | G41: ='Kl. Wiederkäuer_Equidien'!N7 -> 0 | H41: ='Kl. Wiederkäuer_Equidien'!Q7 -> 0 | I41: =IF(C41=0,0,IF(SUM(D41:H41)=0,0,MIN(D41:H41))) -> 0 | J41: =I41+I52+I63+I74 -> 0 | K41: ='Kl. Wiederkäuer_Equidien'!J7+'Kl. Wiederkäuer_Equidien'!J26+'Kl. Wiederkäuer_Equidien'!J45+'Kl. Wiederkäuer_Equidien'!J64 -> 0 | L41: 26 | M41: =K41/L41*$L$2 -> 0
A42: Mutter/Milchschaf | C42: =IF('Kl. Wiederkäuer_Equidien'!D8=0,0,'Kl. Wiederkäuer_Equidien'!D8) -> 0 | D42: ='Kl. Wiederkäuer_Equidien'!F8 -> 0 | E42: ='Kl. Wiederkäuer_Equidien'!I8 -> 0 | G42: ='Kl. Wiederkäuer_Equidien'!N8 -> 0 | H42: ='Kl. Wiederkäuer_Equidien'!Q8 -> 0 | I42: =IF(C42=0,0,IF(SUM(D42:H42)=0,0,MIN(D42:H42))) -> 0 | J42: =I42+I53+I64+I75 -> 0 | K42: ='Kl. Wiederkäuer_Equidien'!J8+'Kl. Wiederkäuer_Equidien'!J27+'Kl. Wiederkäuer_Equidien'!J46+'Kl. Wiederkäuer_Equidien'!J65 -> 0 | L42: 13.3 | M42: =K42/L42*$L$2 -> 0
A43: Ziegen | L43: =CONCATENATE("Gesamt ",A40) -> Gesamt Schafe | M43: =SUM(M41:M42) -> 0
A44: Ziegenlamm (< 1J) | C44: =IF('Kl. Wiederkäuer_Equidien'!D10=0,0,'Kl. Wiederkäuer_Equidien'!D10) -> 0 | D44: ='Kl. Wiederkäuer_Equidien'!F10 -> 0 | E44: ='Kl. Wiederkäuer_Equidien'!I10 -> 0 | G44: ='Kl. Wiederkäuer_Equidien'!N10 -> 0 | H44: ='Kl. Wiederkäuer_Equidien'!Q10 -> 0 | I44: =IF(C44=0,0,IF(SUM(D44:H44)=0,0,MIN(D44:H44))) -> 0 | J44: =I44+I55+I66+I77 -> 0 | K44: ='Kl. Wiederkäuer_Equidien'!J10+'Kl. Wiederkäuer_Equidien'!J29+'Kl. Wiederkäuer_Equidien'!J48+'Kl. Wiederkäuer_Equidien'!J67 -> 0 | L44: 26 | M44: =K44/L44*$L$2 -> 0
A45: Ziegen | C45: =IF('Kl. Wiederkäuer_Equidien'!D11=0,0,'Kl. Wiederkäuer_Equidien'!D11) -> 0 | D45: ='Kl. Wiederkäuer_Equidien'!F11 -> 0 | E45: ='Kl. Wiederkäuer_Equidien'!I11 -> 0 | G45: ='Kl. Wiederkäuer_Equidien'!N11 -> 0 | H45: ='Kl. Wiederkäuer_Equidien'!Q11 -> 0 | I45: =IF(C45=0,0,IF(SUM(D45:H45)=0,0,MIN(D45:H45))) -> 0 | J45: =I45+I56+I67+I78 -> 0 | K45: ='Kl. Wiederkäuer_Equidien'!J11+'Kl. Wiederkäuer_Equidien'!J30+'Kl. Wiederkäuer_Equidien'!J49+'Kl. Wiederkäuer_Equidien'!J68 -> 0 | L45: 13.3 | M45: =K45/L45*$L$2 -> 0
A46: Pferde | L46: =CONCATENATE("Gesamt ",A43) -> Gesamt Ziegen | M46: =SUM(M44:M45) -> 0
A47: Pferde < 100 kg | C47: =IF('Kl. Wiederkäuer_Equidien'!D13=0,0,'Kl. Wiederkäuer_Equidien'!D13) -> 0 | D47: ='Kl. Wiederkäuer_Equidien'!F13 -> 0 | E47: ='Kl. Wiederkäuer_Equidien'!I13 -> 0 | G47: ='Kl. Wiederkäuer_Equidien'!N13 -> 0 | H47: ='Kl. Wiederkäuer_Equidien'!Q13 -> 0 | I47: =IF(C47=0,0,IF(SUM(D47:H47)=0,0,MIN(D47:H47))) -> 0 | J47: =I47+I58+I69+I80 -> 0 | K47: ='Kl. Wiederkäuer_Equidien'!J13+'Kl. Wiederkäuer_Equidien'!J32+'Kl. Wiederkäuer_Equidien'!J51+'Kl. Wiederkäuer_Equidien'!J70 -> 0 | L47: 5 | M47: =K47/L47*$L$2 -> 0
A48: Pferde bis 200 kg | C48: =IF('Kl. Wiederkäuer_Equidien'!D14=0,0,'Kl. Wiederkäuer_Equidien'!D14) -> 0 | D48: ='Kl. Wiederkäuer_Equidien'!F14 -> 0 | E48: ='Kl. Wiederkäuer_Equidien'!I14 -> 0 | G48: ='Kl. Wiederkäuer_Equidien'!N14 -> 0 | H48: ='Kl. Wiederkäuer_Equidien'!Q14 -> 0 | I48: =IF(C48=0,0,IF(SUM(D48:H48)=0,0,MIN(D48:H48))) -> 0 | J48: =I48+I59+I70+I81 -> 0 | K48: ='Kl. Wiederkäuer_Equidien'!J14+'Kl. Wiederkäuer_Equidien'!J33+'Kl. Wiederkäuer_Equidien'!J52+'Kl. Wiederkäuer_Equidien'!J71 -> 0 | L48: 5 | M48: =K48/L48*$L$2 -> 0
A49: Pferde bis 350 kg | C49: =IF('Kl. Wiederkäuer_Equidien'!D15=0,0,'Kl. Wiederkäuer_Equidien'!D15) -> 0 | D49: ='Kl. Wiederkäuer_Equidien'!F15 -> 0 | E49: ='Kl. Wiederkäuer_Equidien'!I15 -> 0 | G49: ='Kl. Wiederkäuer_Equidien'!N15 -> 0 | H49: ='Kl. Wiederkäuer_Equidien'!Q15 -> 0 | I49: 0 | J49: 0 | K49: ='Kl. Wiederkäuer_Equidien'!J15+'Kl. Wiederkäuer_Equidien'!J34+'Kl. Wiederkäuer_Equidien'!J53+'Kl. Wiederkäuer_Equidien'!J72 -> 0 | L49: 3.3 | M49: 0
A50: Pferde über 350 kg | C50: =IF('Kl. Wiederkäuer_Equidien'!D16=0,0,'Kl. Wiederkäuer_Equidien'!D16) -> 0 | D50: ='Kl. Wiederkäuer_Equidien'!F16 -> 0 | E50: ='Kl. Wiederkäuer_Equidien'!I16 -> 0 | G50: ='Kl. Wiederkäuer_Equidien'!N16 -> 0 | H50: ='Kl. Wiederkäuer_Equidien'!Q16 -> 0 | I50: =IF(C50=0,0,IF(SUM(D50:H50)=0,0,MIN(D50:H50))) -> 0 | J50: =I50+I61+I72+I83 -> 0 | K50: ='Kl. Wiederkäuer_Equidien'!J16+'Kl. Wiederkäuer_Equidien'!J35+'Kl. Wiederkäuer_Equidien'!J54+'Kl. Wiederkäuer_Equidien'!J73 -> 0 | L50: 2 | M50: =K50/L50*$L$2 -> 0
A51: Schafe | C51: ='Kl. Wiederkäuer_Equidien'!A21 -> Stallblatt | D51: ='Kl. Wiederkäuer_Equidien'!B21 -> 2 | I51: Max. Tierzahl | L51: =CONCATENATE("Gesamt ",A46) -> Gesamt Pferde | M51: =SUM(M47:M50) -> 0
A52: Lamm (< 1J) | C52: =IF('Kl. Wiederkäuer_Equidien'!D26=0,0,'Kl. Wiederkäuer_Equidien'!D26) -> 0 | D52: ='Kl. Wiederkäuer_Equidien'!F26 -> 0 | E52: ='Kl. Wiederkäuer_Equidien'!I26 -> 0 | G52: ='Kl. Wiederkäuer_Equidien'!N26 -> 0 | H52: ='Kl. Wiederkäuer_Equidien'!Q26 -> 0 | I52: =IF(C52=0,0,IF(SUM(D52:H52)=0,0,MIN(D52:H52))) -> 0
A53: Mutter/Milchschaf | C53: =IF('Kl. Wiederkäuer_Equidien'!D27=0,0,'Kl. Wiederkäuer_Equidien'!D27) -> 0 | D53: ='Kl. Wiederkäuer_Equidien'!F27 -> 0 | E53: ='Kl. Wiederkäuer_Equidien'!I27 -> 0 | G53: ='Kl. Wiederkäuer_Equidien'!N27 -> 0 | H53: ='Kl. Wiederkäuer_Equidien'!Q27 -> 0 | I53: =IF(C53=0,0,IF(SUM(D53:H53)=0,0,MIN(D53:H53))) -> 0
A54: Ziegen
A55: Ziegenlamm (< 1J) | C55: =IF('Kl. Wiederkäuer_Equidien'!D29=0,0,'Kl. Wiederkäuer_Equidien'!D29) -> 0 | D55: ='Kl. Wiederkäuer_Equidien'!F29 -> 0 | E55: ='Kl. Wiederkäuer_Equidien'!I29 -> 0 | G55: ='Kl. Wiederkäuer_Equidien'!N29 -> 0 | H55: ='Kl. Wiederkäuer_Equidien'!Q29 -> 0 | I55: =IF(C55=0,0,IF(SUM(D55:H55)=0,0,MIN(D55:H55))) -> 0
A56: Ziegen | C56: =IF('Kl. Wiederkäuer_Equidien'!D30=0,0,'Kl. Wiederkäuer_Equidien'!D30) -> 0 | D56: ='Kl. Wiederkäuer_Equidien'!F30 -> 0 | E56: ='Kl. Wiederkäuer_Equidien'!I30 -> 0 | G56: ='Kl. Wiederkäuer_Equidien'!N30 -> 0 | H56: ='Kl. Wiederkäuer_Equidien'!Q30 -> 0 | I56: =IF(C56=0,0,IF(SUM(D56:H56)=0,0,MIN(D56:H56))) -> 0
A57: Pferde
A58: Pferde < 100 kg | C58: =IF('Kl. Wiederkäuer_Equidien'!D32=0,0,'Kl. Wiederkäuer_Equidien'!D32) -> 0 | D58: ='Kl. Wiederkäuer_Equidien'!F32 -> 0 | E58: ='Kl. Wiederkäuer_Equidien'!I32 -> 0 | G58: ='Kl. Wiederkäuer_Equidien'!N32 -> 0 | H58: ='Kl. Wiederkäuer_Equidien'!Q32 -> 0 | I58: =IF(C58=0,0,IF(SUM(D58:H58)=0,0,MIN(D58:H58))) -> 0
A59: Pferde bis 200 kg | C59: =IF('Kl. Wiederkäuer_Equidien'!D33=0,0,'Kl. Wiederkäuer_Equidien'!D33) -> 0 | D59: ='Kl. Wiederkäuer_Equidien'!F33 -> 0 | E59: ='Kl. Wiederkäuer_Equidien'!I33 -> 0 | G59: ='Kl. Wiederkäuer_Equidien'!N33 -> 0 | H59: ='Kl. Wiederkäuer_Equidien'!Q33 -> 0 | I59: =IF(C59=0,0,IF(SUM(D59:H59)=0,0,MIN(D59:H59))) -> 0
A60: Pferde bis 350 kg | C60: =IF('Kl. Wiederkäuer_Equidien'!D34=0,0,'Kl. Wiederkäuer_Equidien'!D34) -> 0 | D60: ='Kl. Wiederkäuer_Equidien'!F34 -> 0 | E60: ='Kl. Wiederkäuer_Equidien'!I34 -> 0 | G60: ='Kl. Wiederkäuer_Equidien'!N34 -> 0 | H60: ='Kl. Wiederkäuer_Equidien'!Q34 -> 0 | I60: 0
A61: Pferde über 350 kg | C61: =IF('Kl. Wiederkäuer_Equidien'!D35=0,0,'Kl. Wiederkäuer_Equidien'!D35) -> 0 | D61: ='Kl. Wiederkäuer_Equidien'!F35 -> 0 | E61: ='Kl. Wiederkäuer_Equidien'!I35 -> 0 | G61: ='Kl. Wiederkäuer_Equidien'!N35 -> 0 | H61: ='Kl. Wiederkäuer_Equidien'!Q35 -> 0 | I61: =IF(C61=0,0,IF(SUM(D61:H61)=0,0,MIN(D61:H61))) -> 0
A62: Schafe | C62: ='Kl. Wiederkäuer_Equidien'!A40 -> Stallblatt | D62: ='Kl. Wiederkäuer_Equidien'!B40 -> 3 | I62: Max. Tierzahl
A63: Lamm (< 1J) | C63: =IF('Kl. Wiederkäuer_Equidien'!D45=0,0,'Kl. Wiederkäuer_Equidien'!D45) -> 0 | D63: ='Kl. Wiederkäuer_Equidien'!F45 -> 0 | E63: ='Kl. Wiederkäuer_Equidien'!I45 -> 0 | G63: ='Kl. Wiederkäuer_Equidien'!N45 -> 0 | H63: ='Kl. Wiederkäuer_Equidien'!Q45 -> 0 | I63: =IF(C63=0,0,IF(SUM(D63:H63)=0,0,MIN(D63:H63))) -> 0
A64: Mutter/Milchschaf | C64: =IF('Kl. Wiederkäuer_Equidien'!D46=0,0,'Kl. Wiederkäuer_Equidien'!D46) -> 0 | D64: ='Kl. Wiederkäuer_Equidien'!F46 -> 0 | E64: ='Kl. Wiederkäuer_Equidien'!I46 -> 0 | G64: ='Kl. Wiederkäuer_Equidien'!N46 -> 0 | H64: ='Kl. Wiederkäuer_Equidien'!Q46 -> 0 | I64: =IF(C64=0,0,IF(SUM(D64:H64)=0,0,MIN(D64:H64))) -> 0
A65: Ziegen
A66: Ziegenlamm (< 1J) | C66: =IF('Kl. Wiederkäuer_Equidien'!D48=0,0,'Kl. Wiederkäuer_Equidien'!D48) -> 0 | D66: ='Kl. Wiederkäuer_Equidien'!F48 -> 0 | E66: ='Kl. Wiederkäuer_Equidien'!I48 -> 0 | G66: ='Kl. Wiederkäuer_Equidien'!N48 -> 0 | H66: ='Kl. Wiederkäuer_Equidien'!Q48 -> 0 | I66: =IF(C66=0,0,IF(SUM(D66:H66)=0,0,MIN(D66:H66))) -> 0
A67: Ziegen | C67: =IF('Kl. Wiederkäuer_Equidien'!D49=0,0,'Kl. Wiederkäuer_Equidien'!D49) -> 0 | D67: ='Kl. Wiederkäuer_Equidien'!F49 -> 0 | E67: ='Kl. Wiederkäuer_Equidien'!I49 -> 0 | G67: ='Kl. Wiederkäuer_Equidien'!N49 -> 0 | H67: ='Kl. Wiederkäuer_Equidien'!Q49 -> 0 | I67: =IF(C67=0,0,IF(SUM(D67:H67)=0,0,MIN(D67:H67))) -> 0
A68: Pferde
A69: Pferde < 100 kg | C69: =IF('Kl. Wiederkäuer_Equidien'!D51=0,0,'Kl. Wiederkäuer_Equidien'!D51) -> 0 | D69: ='Kl. Wiederkäuer_Equidien'!F51 -> 0 | E69: ='Kl. Wiederkäuer_Equidien'!I51 -> 0 | G69: ='Kl. Wiederkäuer_Equidien'!N51 -> 0 | H69: ='Kl. Wiederkäuer_Equidien'!Q51 -> 0 | I69: =IF(C69=0,0,IF(SUM(D69:H69)=0,0,MIN(D69:H69))) -> 0
A70: Pferde bis 200 kg | C70: =IF('Kl. Wiederkäuer_Equidien'!D52=0,0,'Kl. Wiederkäuer_Equidien'!D52) -> 0 | D70: ='Kl. Wiederkäuer_Equidien'!F52 -> 0 | E70: ='Kl. Wiederkäuer_Equidien'!I52 -> 0 | G70: ='Kl. Wiederkäuer_Equidien'!N52 -> 0 | H70: ='Kl. Wiederkäuer_Equidien'!Q52 -> 0 | I70: =IF(C70=0,0,IF(SUM(D70:H70)=0,0,MIN(D70:H70))) -> 0
A71: Pferde bis 350 kg | C71: =IF('Kl. Wiederkäuer_Equidien'!D53=0,0,'Kl. Wiederkäuer_Equidien'!D53) -> 0 | D71: ='Kl. Wiederkäuer_Equidien'!F53 -> 0 | E71: ='Kl. Wiederkäuer_Equidien'!I53 -> 0 | G71: ='Kl. Wiederkäuer_Equidien'!N53 -> 0 | H71: ='Kl. Wiederkäuer_Equidien'!Q53 -> 0 | I71: 0
A72: Pferde über 350 kg | C72: =IF('Kl. Wiederkäuer_Equidien'!D54=0,0,'Kl. Wiederkäuer_Equidien'!D54) -> 0 | D72: ='Kl. Wiederkäuer_Equidien'!F54 -> 0 | E72: ='Kl. Wiederkäuer_Equidien'!I54 -> 0 | G72: ='Kl. Wiederkäuer_Equidien'!N54 -> 0 | H72: ='Kl. Wiederkäuer_Equidien'!Q54 -> 0 | I72: =IF(C72=0,0,IF(SUM(D72:H72)=0,0,MIN(D72:H72))) -> 0
A73: Schafe | C73: ='Kl. Wiederkäuer_Equidien'!A59 -> Stallblatt | D73: ='Kl. Wiederkäuer_Equidien'!B59 -> 4 | I73: Max. Tierzahl
A74: Lamm (< 1J) | C74: =IF('Kl. Wiederkäuer_Equidien'!D64=0,0,'Kl. Wiederkäuer_Equidien'!D64) -> 0 | D74: ='Kl. Wiederkäuer_Equidien'!F64 -> 0 | E74: ='Kl. Wiederkäuer_Equidien'!I64 -> 0 | G74: ='Kl. Wiederkäuer_Equidien'!N64 -> 0 | H74: ='Kl. Wiederkäuer_Equidien'!Q64 -> 0 | I74: =IF(C74=0,0,IF(SUM(D74:H74)=0,0,MIN(D74:H74))) -> 0
A75: Mutter/Milchschaf | C75: =IF('Kl. Wiederkäuer_Equidien'!D65=0,0,'Kl. Wiederkäuer_Equidien'!D65) -> 0 | D75: ='Kl. Wiederkäuer_Equidien'!F65 -> 0 | E75: ='Kl. Wiederkäuer_Equidien'!I65 -> 0 | G75: ='Kl. Wiederkäuer_Equidien'!N65 -> 0 | H75: ='Kl. Wiederkäuer_Equidien'!Q65 -> 0 | I75: =IF(C75=0,0,IF(SUM(D75:H75)=0,0,MIN(D75:H75))) -> 0
A76: Ziegen
A77: Ziegenlamm (< 1J) | C77: =IF('Kl. Wiederkäuer_Equidien'!D67=0,0,'Kl. Wiederkäuer_Equidien'!D67) -> 0 | D77: ='Kl. Wiederkäuer_Equidien'!F67 -> 0 | E77: ='Kl. Wiederkäuer_Equidien'!I67 -> 0 | G77: ='Kl. Wiederkäuer_Equidien'!N67 -> 0 | H77: ='Kl. Wiederkäuer_Equidien'!Q67 -> 0 | I77: =IF(C77=0,0,IF(SUM(D77:H77)=0,0,MIN(D77:H77))) -> 0
A78: Ziegen | C78: =IF('Kl. Wiederkäuer_Equidien'!D68=0,0,'Kl. Wiederkäuer_Equidien'!D68) -> 0 | D78: ='Kl. Wiederkäuer_Equidien'!F68 -> 0 | E78: ='Kl. Wiederkäuer_Equidien'!I68 -> 0 | G78: ='Kl. Wiederkäuer_Equidien'!N68 -> 0 | H78: ='Kl. Wiederkäuer_Equidien'!Q68 -> 0 | I78: =IF(C78=0,0,IF(SUM(D78:H78)=0,0,MIN(D78:H78))) -> 0
A79: Pferde
A80: Pferde < 100 kg | C80: =IF('Kl. Wiederkäuer_Equidien'!D70=0,0,'Kl. Wiederkäuer_Equidien'!D70) -> 0 | D80: ='Kl. Wiederkäuer_Equidien'!F70 -> 0 | E80: ='Kl. Wiederkäuer_Equidien'!I70 -> 0 | G80: ='Kl. Wiederkäuer_Equidien'!N70 -> 0 | H80: ='Kl. Wiederkäuer_Equidien'!Q70 -> 0 | I80: =IF(C80=0,0,IF(SUM(D80:H80)=0,0,MIN(D80:H80))) -> 0
A81: Pferde bis 200 kg | C81: =IF('Kl. Wiederkäuer_Equidien'!D71=0,0,'Kl. Wiederkäuer_Equidien'!D71) -> 0 | D81: ='Kl. Wiederkäuer_Equidien'!F71 -> 0 | E81: ='Kl. Wiederkäuer_Equidien'!I71 -> 0 | G81: ='Kl. Wiederkäuer_Equidien'!N71 -> 0 | H81: ='Kl. Wiederkäuer_Equidien'!Q71 -> 0 | I81: =IF(C81=0,0,IF(SUM(D81:H81)=0,0,MIN(D81:H81))) -> 0
A82: Pferde bis 350 kg | C82: =IF('Kl. Wiederkäuer_Equidien'!D72=0,0,'Kl. Wiederkäuer_Equidien'!D72) -> 0 | D82: ='Kl. Wiederkäuer_Equidien'!F72 -> 0 | E82: ='Kl. Wiederkäuer_Equidien'!I72 -> 0 | G82: ='Kl. Wiederkäuer_Equidien'!N72 -> 0 | H82: ='Kl. Wiederkäuer_Equidien'!Q72 -> 0 | I82: 0
A83: Pferde über 350 kg | C83: =IF('Kl. Wiederkäuer_Equidien'!D73=0,0,'Kl. Wiederkäuer_Equidien'!D73) -> 0 | D83: ='Kl. Wiederkäuer_Equidien'!F73 -> 0 | E83: ='Kl. Wiederkäuer_Equidien'!I73 -> 0 | G83: ='Kl. Wiederkäuer_Equidien'!N73 -> 0 | H83: ='Kl. Wiederkäuer_Equidien'!Q73 -> 0 | I83: =IF(C83=0,0,IF(SUM(D83:H83)=0,0,MIN(D83:H83))) -> 0
C85: Box-nummer(n) lt. Stall-plan | D85: max. Tierzahl Stallflächen/-Plätze | E85: max. Tierzahl Stallboden | G85: max. Tierzahl Außen-flächen | H85: max. Tierzahl Überdachung
A86: Kaninchen | C86: Stallblatt | D86: 1 | J86: Max Tierzahl ges. | K86: Gehaltene Tiere | L86: Tiere max. / ha | M86: Kg N max.
A87: Säugende Muttertiere mit Jungen bis zum Absetzen Mutter < 6kg | C87: =Kaninchen!D6 -> 0 | D87: =Kaninchen!F6 -> 0 | E87: =Kaninchen!I6 -> 0 | G87: =Kaninchen!M6 -> 0 | H87: =Kaninchen!P6 -> 0 | I87: =IF(C87=0,0,IF(SUM(D87:H87)=0,0,MIN(D87:H87))) -> 0 | J87: =I87+I95+I103+I111+I119+I127 -> 0 | K87: =Kaninchen!J6+Kaninchen!J22+Kaninchen!J38+Kaninchen!J54+Kaninchen!J70+Kaninchen!J86 -> 0 | L87: =ROUNDDOWN(2/0.013,2) -> 153.84 | M87: =K87/L87*$L$2 -> 0
A88: Säugende Muttertiere mit Jungen bis zum Absetzen Mutter > 6kg | C88: =Kaninchen!D7 -> 0 | D88: =Kaninchen!F7 -> 0 | E88: =Kaninchen!I7 -> 0 | G88: =Kaninchen!M7 -> 0 | H88: =Kaninchen!P7 -> 0 | I88: =IF(C88=0,0,IF(SUM(D88:H88)=0,0,MIN(D88:H88))) -> 0 | J88: =I88+I96+I104+I112+I120+I128 -> 0 | K88: =Kaninchen!J7+Kaninchen!J23+Kaninchen!J39+Kaninchen!J55+Kaninchen!J71+Kaninchen!J87 -> 0 | L88: =ROUNDDOWN(2/0.013,2) -> 153.84 | M88: 0
A89: Trächtige Tiere und weibliche Zuchtkaninchen < 6 kg | C89: =Kaninchen!D8 -> 0 | D89: =Kaninchen!F8 -> 0 | E89: =Kaninchen!I8 -> 0 | G89: =Kaninchen!M8 -> 0 | H89: =Kaninchen!P8 -> 0 | I89: 0 | J89: 0 | K89: =Kaninchen!J8+Kaninchen!J24+Kaninchen!J40+Kaninchen!J56+Kaninchen!J72+Kaninchen!J88 -> 0 | L89: =ROUNDDOWN(2/0.013,2) -> 153.84 | M89: 0
A90: Trächtige Tiere und weibliche Zuchtkaninchen > 6 kg | C90: =Kaninchen!D9 -> 0 | D90: =Kaninchen!F9 -> 0 | E90: =Kaninchen!I9 -> 0 | G90: =Kaninchen!M9 -> 0 | H90: =Kaninchen!P9 -> 0 | I90: 0 | J90: 0 | K90: =Kaninchen!J9+Kaninchen!J25+Kaninchen!J41+Kaninchen!J57+Kaninchen!J73+Kaninchen!J89 -> 0 | L90: =ROUNDDOWN(2/0.013,2) -> 153.84 | M90: 0
A91: Mastkaninchen vom Absetzen bis zur Schlachtung Nachzuchtkaninchen (vom Ende der Mast bis 6 Monate) | C91: =Kaninchen!D10 -> 0 | D91: =Kaninchen!F10 -> 0 | E91: =Kaninchen!I10 -> 0 | G91: =Kaninchen!M10 -> 0 | H91: =Kaninchen!P10 -> 0 | I91: 0 | J91: 0 | K91: =Kaninchen!J10+Kaninchen!J26+Kaninchen!J42+Kaninchen!J58+Kaninchen!J74+Kaninchen!J90 -> 0 | L91: =ROUNDDOWN(2/0.002,2) -> 1000 | M91: 0
A92: Erwachsene Rammler | C92: =Kaninchen!D11 -> 0 | D92: =Kaninchen!F11 -> 0 | E92: =Kaninchen!I11 -> 0 | G92: =Kaninchen!M11 -> 0 | H92: =Kaninchen!P11 -> 0 | I92: 0 | J92: 0 | K92: =Kaninchen!J11+Kaninchen!J27+Kaninchen!J43+Kaninchen!J59+Kaninchen!J75+Kaninchen!J91 -> 0 | L92: =ROUNDDOWN(2/0.013,2) -> 153.84 | M92: 0
A93: Erwachsene Rammler mit Weibchen zur Paarung | C93: =Kaninchen!D12 -> 0 | D93: =Kaninchen!F12 -> 0 | E93: =Kaninchen!I12 -> 0 | G93: =Kaninchen!M12 -> 0 | H93: =Kaninchen!P12 -> 0 | I93: 0 | J93: 0 | K93: =Kaninchen!J12+Kaninchen!J28+Kaninchen!J44+Kaninchen!J60+Kaninchen!J76+Kaninchen!J92 -> 0 | L93: =ROUNDDOWN(2/0.013,2) -> 153.84 | M93: 0
A94: Kaninchen | C94: Stallblatt | D94: =D86+1 -> 2 | L94: Gesamt Kaninchen | M94: =SUM(M87:M93) -> 0
A95: Säugende Muttertiere mit Jungen bis zum Absetzen Mutter < 6kg | C95: =Kaninchen!D22 -> 0 | D95: =Kaninchen!F22 -> 0 | E95: =Kaninchen!I22 -> 0 | G95: =Kaninchen!M22 -> 0 | H95: =Kaninchen!P22 -> 0 | I95: =IF(C95=0,0,IF(SUM(D95:H95)=0,0,MIN(D95:H95))) -> 0 | J95: Quelle: LfL Basisdaten Tabelle 4b (Mrz. 21)
A96: Säugende Muttertiere mit Jungen bis zum Absetzen Mutter > 6kg | C96: =Kaninchen!D23 -> 0 | D96: =Kaninchen!F23 -> 0 | E96: =Kaninchen!I23 -> 0 | G96: =Kaninchen!M23 -> 0 | H96: =Kaninchen!P23 -> 0 | I96: =IF(C96=0,0,IF(SUM(D96:H96)=0,0,MIN(D96:H96))) -> 0
A97: Trächtige Tiere und weibliche Zuchtkaninchen < 6 kg | C97: =Kaninchen!D24 -> 0 | D97: =Kaninchen!F24 -> 0 | E97: =Kaninchen!I24 -> 0 | G97: =Kaninchen!M24 -> 0 | H97: =Kaninchen!P24 -> 0 | I97: 0
A98: Trächtige Tiere und weibliche Zuchtkaninchen > 6 kg | C98: =Kaninchen!D25 -> 0 | D98: =Kaninchen!F25 -> 0 | E98: =Kaninchen!I25 -> 0 | G98: =Kaninchen!M25 -> 0 | H98: =Kaninchen!P25 -> 0 | I98: 0
A99: Mastkaninchen vom Absetzen bis zur Schlachtung Nachzuchtkaninchen (vom Ende der Mast bis 6 Monate) | C99: =Kaninchen!D26 -> 0 | D99: =Kaninchen!F26 -> 0 | E99: =Kaninchen!I26 -> 0 | G99: =Kaninchen!M26 -> 0 | H99: =Kaninchen!P26 -> 0 | I99: 0
A100: Erwachsene Rammler | C100: =Kaninchen!D27 -> 0 | D100: =Kaninchen!F27 -> 0 | E100: =Kaninchen!I27 -> 0 | G100: =Kaninchen!M27 -> 0 | H100: =Kaninchen!P27 -> 0 | I100: 0
A101: Erwachsene Rammler mit Weibchen zur Paarung | C101: =Kaninchen!D28 -> 0 | D101: =Kaninchen!F28 -> 0 | E101: =Kaninchen!I28 -> 0 | G101: =Kaninchen!M28 -> 0 | H101: =Kaninchen!P28 -> 0 | I101: 0
A102: Kaninchen | C102: Stallblatt | D102: =D94+1 -> 3
A103: Säugende Muttertiere mit Jungen bis zum Absetzen Mutter < 6kg | C103: =Kaninchen!D38 -> 0 | D103: =Kaninchen!F38 -> 0 | E103: =Kaninchen!I38 -> 0 | G103: =Kaninchen!M38 -> 0 | H103: =Kaninchen!P38 -> 0 | I103: =IF(C103=0,0,IF(SUM(D103:H103)=0,0,MIN(D103:H103))) -> 0
A104: Säugende Muttertiere mit Jungen bis zum Absetzen Mutter > 6kg | C104: =Kaninchen!D39 -> 0 | D104: =Kaninchen!F39 -> 0 | E104: =Kaninchen!I39 -> 0 | G104: =Kaninchen!M39 -> 0 | H104: =Kaninchen!P39 -> 0 | I104: =IF(C104=0,0,IF(SUM(D104:H104)=0,0,MIN(D104:H104))) -> 0
A105: Trächtige Tiere und weibliche Zuchtkaninchen < 6 kg | C105: =Kaninchen!D40 -> 0 | D105: =Kaninchen!F40 -> 0 | E105: =Kaninchen!I40 -> 0 | G105: =Kaninchen!M40 -> 0 | H105: =Kaninchen!P40 -> 0 | I105: 0
A106: Trächtige Tiere und weibliche Zuchtkaninchen > 6 kg | C106: =Kaninchen!D41 -> 0 | D106: =Kaninchen!F41 -> 0 | E106: =Kaninchen!I41 -> 0 | G106: =Kaninchen!M41 -> 0 | H106: =Kaninchen!P41 -> 0 | I106: 0
A107: Mastkaninchen vom Absetzen bis zur Schlachtung Nachzuchtkaninchen (vom Ende der Mast bis 6 Monate) | C107: =Kaninchen!D42 -> 0 | D107: =Kaninchen!F42 -> 0 | E107: =Kaninchen!I42 -> 0 | G107: =Kaninchen!M42 -> 0 | H107: =Kaninchen!P42 -> 0 | I107: 0
A108: Erwachsene Rammler | C108: =Kaninchen!D43 -> 0 | D108: =Kaninchen!F43 -> 0 | E108: =Kaninchen!I43 -> 0 | G108: =Kaninchen!M43 -> 0 | H108: =Kaninchen!P43 -> 0 | I108: 0
A109: Erwachsene Rammler mit Weibchen zur Paarung | C109: =Kaninchen!D44 -> 0 | D109: =Kaninchen!F44 -> 0 | E109: =Kaninchen!I44 -> 0 | G109: =Kaninchen!M44 -> 0 | H109: =Kaninchen!P44 -> 0 | I109: 0
A110: Kaninchen | C110: Stallblatt | D110: =D102+1 -> 4
A111: Säugende Muttertiere mit Jungen bis zum Absetzen Mutter < 6kg | C111: =Kaninchen!D54 -> 0 | D111: =Kaninchen!F54 -> 0 | E111: =Kaninchen!I54 -> 0 | G111: =Kaninchen!M54 -> 0 | H111: =Kaninchen!P54 -> 0 | I111: =IF(C111=0,0,IF(SUM(D111:H111)=0,0,MIN(D111:H111))) -> 0
A112: Säugende Muttertiere mit Jungen bis zum Absetzen Mutter > 6kg | C112: =Kaninchen!D55 -> 0 | D112: =Kaninchen!F55 -> 0 | E112: =Kaninchen!I49 -> 0 | G112: =Kaninchen!M55 -> 0 | H112: =Kaninchen!P55 -> 0 | I112: =IF(C112=0,0,IF(SUM(D112:H112)=0,0,MIN(D112:H112))) -> 0
A113: Trächtige Tiere und weibliche Zuchtkaninchen < 6 kg | C113: =Kaninchen!D56 -> 0 | D113: =Kaninchen!F56 -> 0 | E113: =Kaninchen!I50 -> 0 | G113: =Kaninchen!M56 -> 0 | H113: =Kaninchen!P56 -> 0 | I113: 0
A114: Trächtige Tiere und weibliche Zuchtkaninchen > 6 kg | C114: =Kaninchen!D57 -> 0 | D114: =Kaninchen!F57 -> 0 | E114: =Kaninchen!I51 -> 0 | G114: =Kaninchen!M57 -> 0 | H114: =Kaninchen!P57 -> 0 | I114: 0
A115: Mastkaninchen vom Absetzen bis zur Schlachtung Nachzuchtkaninchen (vom Ende der Mast bis 6 Monate) | C115: =Kaninchen!D58 -> 0 | D115: =Kaninchen!F58 -> 0 | E115: =Kaninchen!I52 -> 0 | G115: =Kaninchen!M58 -> 0 | H115: =Kaninchen!P58 -> 0 | I115: 0
A116: Erwachsene Rammler | C116: =Kaninchen!D59 -> 0 | D116: =Kaninchen!F59 -> 0 | E116: =Kaninchen!I53 -> max. Tierzahl Stallboden | G116: =Kaninchen!M59 -> 0 | H116: =Kaninchen!P59 -> 0 | I116: 0
A117: Erwachsene Rammler mit Weibchen zur Paarung | C117: =Kaninchen!D60 -> 0 | D117: =Kaninchen!F60 -> 0 | E117: =Kaninchen!I54 -> 0 | G117: =Kaninchen!M60 -> 0 | H117: =Kaninchen!P60 -> 0 | I117: 0
A118: Kaninchen | C118: Stallblatt | D118: =D110+1 -> 5
A119: Säugende Muttertiere mit Jungen bis zum Absetzen Mutter < 6kg | C119: =Kaninchen!D70 -> 0 | D119: =Kaninchen!F70 -> 0 | E119: =Kaninchen!I70 -> 0 | G119: =Kaninchen!M70 -> 0 | H119: =Kaninchen!P70 -> 0 | I119: =IF(C119=0,0,IF(SUM(D119:H119)=0,0,MIN(D119:H119))) -> 0
A120: Säugende Muttertiere mit Jungen bis zum Absetzen Mutter > 6kg | C120: =Kaninchen!D71 -> 0 | D120: =Kaninchen!F71 -> 0 | E120: =Kaninchen!I71 -> 0 | G120: =Kaninchen!M71 -> 0 | H120: =Kaninchen!P71 -> 0 | I120: =IF(C120=0,0,IF(SUM(D120:H120)=0,0,MIN(D120:H120))) -> 0
A121: Trächtige Tiere und weibliche Zuchtkaninchen < 6 kg | C121: =Kaninchen!D72 -> 0 | D121: =Kaninchen!F72 -> 0 | E121: =Kaninchen!I72 -> 0 | G121: =Kaninchen!M72 -> 0 | H121: =Kaninchen!P72 -> 0 | I121: 0
A122: Trächtige Tiere und weibliche Zuchtkaninchen > 6 kg | C122: =Kaninchen!D73 -> 0 | D122: =Kaninchen!F73 -> 0 | E122: =Kaninchen!I73 -> 0 | G122: =Kaninchen!M73 -> 0 | H122: =Kaninchen!P73 -> 0 | I122: 0
A123: Mastkaninchen vom Absetzen bis zur Schlachtung Nachzuchtkaninchen (vom Ende der Mast bis 6 Monate) | C123: =Kaninchen!D74 -> 0 | D123: =Kaninchen!F74 -> 0 | E123: =Kaninchen!I74 -> 0 | G123: =Kaninchen!M74 -> 0 | H123: =Kaninchen!P74 -> 0 | I123: 0
A124: Erwachsene Rammler | C124: =Kaninchen!D75 -> 0 | D124: =Kaninchen!F75 -> 0 | E124: =Kaninchen!I75 -> 0 | G124: =Kaninchen!M75 -> 0 | H124: =Kaninchen!P75 -> 0 | I124: 0
A125: Erwachsene Rammler mit Weibchen zur Paarung | C125: =Kaninchen!D76 -> 0 | D125: =Kaninchen!F76 -> 0 | E125: =Kaninchen!I76 -> 0 | G125: =Kaninchen!M76 -> 0 | H125: =Kaninchen!P76 -> 0 | I125: 0
A126: Kaninchen | C126: Stallblatt | D126: =D118+1 -> 6
A127: Säugende Muttertiere mit Jungen bis zum Absetzen Mutter < 6kg | C127: =Kaninchen!D86 -> 0 | D127: =Kaninchen!F86 -> 0 | E127: =Kaninchen!I86 -> 0 | G127: =Kaninchen!M86 -> 0 | H127: =Kaninchen!P86 -> 0 | I127: =IF(C127=0,0,IF(SUM(D127:H127)=0,0,MIN(D127:H127))) -> 0
A128: Säugende Muttertiere mit Jungen bis zum Absetzen Mutter > 6kg | C128: =Kaninchen!D87 -> 0 | D128: =Kaninchen!F87 -> 0 | E128: =Kaninchen!I87 -> 0 | G128: =Kaninchen!M87 -> 0 | H128: =Kaninchen!P87 -> 0 | I128: =IF(C128=0,0,IF(SUM(D128:H128)=0,0,MIN(D128:H128))) -> 0
A129: Trächtige Tiere und weibliche Zuchtkaninchen < 6 kg | C129: =Kaninchen!D88 -> 0 | D129: =Kaninchen!F88 -> 0 | E129: =Kaninchen!I88 -> 0 | G129: =Kaninchen!M88 -> 0 | H129: =Kaninchen!P88 -> 0 | I129: 0
A130: Trächtige Tiere und weibliche Zuchtkaninchen > 6 kg | C130: =Kaninchen!D89 -> 0 | D130: =Kaninchen!F89 -> 0 | E130: =Kaninchen!I89 -> 0 | G130: =Kaninchen!M89 -> 0 | H130: =Kaninchen!P89 -> 0 | I130: 0
A131: Mastkaninchen vom Absetzen bis zur Schlachtung Nachzuchtkaninchen (vom Ende der Mast bis 6 Monate) | C131: =Kaninchen!D90 -> 0 | D131: =Kaninchen!F90 -> 0 | E131: =Kaninchen!I90 -> 0 | G131: =Kaninchen!M90 -> 0 | H131: =Kaninchen!P90 -> 0 | I131: 0
A132: Erwachsene Rammler | C132: =Kaninchen!D91 -> 0 | D132: =Kaninchen!F91 -> 0 | E132: =Kaninchen!I91 -> 0 | G132: =Kaninchen!M91 -> 0 | H132: =Kaninchen!P91 -> 0 | I132: 0
A133: Erwachsene Rammler mit Weibchen zur Paarung | C133: =Kaninchen!D92 -> 0 | D133: =Kaninchen!F92 -> 0 | E133: =Kaninchen!I92 -> 0 | G133: =Kaninchen!M92 -> 0 | H133: =Kaninchen!P92 -> 0 | I133: 0
A135: Geweihträger | J135: Max Tierzahl ges. | K135: Gehaltene Tiere | L135: Tiere max. / ha | M135: Kg N max.
A136: Sikahirsch | J136: =Geweihträger!J4+Geweihträger!J17+Geweihträger!J30+Geweihträger!J43+Geweihträger!J56+Geweihträger!J69 -> 0 | K136: =Geweihträger!I4+Geweihträger!I17+Geweihträger!I30+Geweihträger!I43+Geweihträger!I56+Geweihträger!I69 -> 0 | L136: =2/0.15 -> 13.33333333 | M136: =K136/L136*$L$2 -> 0
A137: Damhirsch | J137: =Geweihträger!J5+Geweihträger!J18+Geweihträger!J31+Geweihträger!J44+Geweihträger!J57+Geweihträger!J70 -> 0 | K137: =Geweihträger!I5+Geweihträger!I18+Geweihträger!I31+Geweihträger!I44+Geweihträger!I57+Geweihträger!I70 -> 0 | L137: =2/0.15 -> 13.33333333 | M137: 0
A138: Rothirsch | J138: =Geweihträger!J6+Geweihträger!J19+Geweihträger!J32+Geweihträger!J45+Geweihträger!J58+Geweihträger!J71 -> 0 | K138: =Geweihträger!I6+Geweihträger!I19+Geweihträger!I32+Geweihträger!I45+Geweihträger!I58+Geweihträger!I71 -> 0 | L138: =2/0.3 -> 6.666666667 | M138: 0
A139: Davidshirsch | J139: =Geweihträger!J7+Geweihträger!J20+Geweihträger!J33+Geweihträger!J46+Geweihträger!J59+Geweihträger!J72 -> 0 | K139: =Geweihträger!I7+Geweihträger!I20+Geweihträger!I33+Geweihträger!I46+Geweihträger!I59+Geweihträger!I72 -> 0 | L139: =2/0.3 -> 6.666666667 | M139: 0
A140: Mehr als eine Geweihträgerart (MIT Rot- oder Davidshirsch in der Herde) | J140: =Geweihträger!J8+Geweihträger!J21+Geweihträger!J34+Geweihträger!J47+Geweihträger!J60+Geweihträger!J73 -> 0 | K140: =Geweihträger!I8+Geweihträger!I21+Geweihträger!I34+Geweihträger!I47+Geweihträger!I60+Geweihträger!I73 -> 0 | L140: 6.666666667 | M140: 0
A141: Mehr als eine Geweihträgerart (OHNE Rot- oder Davidshirsch in der Herde) | J141: =Geweihträger!J9+Geweihträger!J22+Geweihträger!J35+Geweihträger!J48+Geweihträger!J61+Geweihträger!J74 -> 0 | K141: =Geweihträger!I9+Geweihträger!I22+Geweihträger!I35+Geweihträger!I48+Geweihträger!I61+Geweihträger!I74 -> 0 | L141: =2/0.15 -> 13.33333333 | M141: 0
L142: Gesamt Geweihträger | M142: =SUM(M136:M141) -> 0
J143: Quelle: LfL Basisdaten Tabelle 4b (Mrz. 21)
A145: Schweine | C145: =Schweine!A2 -> Stallblatt | D145: =Schweine!B2 -> 1 | I145: Max. Tierzahl | J145: Max Tierzahl ges. | K145: Gehaltene Tiere | L145: Tiere max. / ha | M145: Kg N max.
A146: Führende Sau m. Ferkel <40 T. | C146: =IF(Schweine!D7=0,0,Schweine!D7) -> 0 | D146: =Schweine!F7 -> 0 | E146: =Schweine!I7 -> 0 | I146: =IF(C146=0,0,IF(SUM(D146:H146)=0,0,MIN(D146:H146))) -> 0 | J146: =I146+I156+I166+I176+I186 -> 0 | K146: =Schweine!J7+Schweine!J25+Schweine!J43+Schweine!J61+Schweine!J79 -> 0 | L146: 6.5 | M146: =K146/L146*$L$2 -> 0
A147: Ferkel >40Tage, < 30 kg | C147: =IF(Schweine!D8=0,0,Schweine!D8) -> 0 | D147: =Schweine!F8 -> 0 | E147: =Schweine!I8 -> 0 | G147: =Schweine!N8 -> 0 | H147: =Schweine!Q8 -> 0 | I147: =IF(C147=0,0,IF(SUM(D147:H147)=0,0,MIN(D147:H147))) -> 0 | J147: =I147+I157+I167+I177+I187 -> 0 | K147: =Schweine!J8+Schweine!J26+Schweine!J44+Schweine!J62+Schweine!J80 -> 0 | L147: 74 | M147: 0
A148: Mastschweine bis 50 kg | C148: =IF(Schweine!D9=0,0,Schweine!D9) -> 0 | D148: =Schweine!F9 -> 0 | E148: =Schweine!I9 -> 0 | G148: =Schweine!N9 -> 0 | H148: =Schweine!Q9 -> 0 | I148: 0 | J148: 0 | K148: =Schweine!J9+Schweine!J27+Schweine!J45+Schweine!J63+Schweine!J81 -> 0 | L148: 14 | M148: 0
A149: Mastschweine bis 85 kg | C149: =IF(Schweine!D10=0,0,Schweine!D10) -> 0 | D149: =Schweine!F10 -> 0 | E149: =Schweine!I10 -> 0 | G149: =Schweine!N10 -> 0 | H149: =Schweine!Q10 -> 0 | I149: 0 | J149: 0 | K149: =Schweine!J10+Schweine!J28+Schweine!J46+Schweine!J64+Schweine!J82 -> 0 | L149: 14 | M149: 0
A150: Mastschweine bis 110 kg | C150: =IF(Schweine!D11=0,0,Schweine!D11) -> 0 | D150: =Schweine!F11 -> 0 | E150: =Schweine!I11 -> 0 | G150: =Schweine!N11 -> 0 | H150: =Schweine!Q11 -> 0 | I150: 0 | J150: 0 | K150: =Schweine!J11+Schweine!J29+Schweine!J47+Schweine!J65+Schweine!J83 -> 0 | L150: 14 | M150: 0
A151: Mastschweine über 110 kg | C151: =IF(Schweine!D12=0,0,Schweine!D12) -> 0 | D151: =Schweine!F12 -> 0 | E151: =Schweine!I12 -> 0 | G151: =Schweine!N12 -> 0 | H151: =Schweine!Q12 -> 0 | I151: 0 | J151: 0 | K151: =Schweine!J12+Schweine!J30+Schweine!J48+Schweine!J66+Schweine!J84 -> 0 | L151: 14 | M151: 0
A152: Zuchtsauen | C152: =IF(Schweine!D13=0,0,Schweine!D13) -> 0 | D152: =Schweine!F13 -> 0 | E152: =Schweine!I13 -> 0 | G152: =Schweine!N13 -> 0 | H152: =Schweine!Q13 -> 0 | I152: 0 | J152: 0 | K152: =Schweine!J13+Schweine!J31+Schweine!J49+Schweine!J67+Schweine!J85 -> 0 | L152: 6.5 | M152: 0
A153: Eber | C153: =IF(Schweine!D14=0,0,Schweine!D14) -> 0 | D153: =Schweine!F14 -> 0 | E153: =Schweine!I14 -> 0 | G153: =Schweine!N14 -> 0 | H153: =Schweine!Q14 -> 0 | I153: 0 | J153: 0 | K153: =Schweine!J14+Schweine!J32+Schweine!J50+Schweine!J68+Schweine!J86 -> 0 | L153: 6.5 | M153: 0
A154: Eber (natürl. Paarung in Buchten) | C154: =IF(Schweine!D15=0,0,Schweine!D15) -> 0 | D154: =Schweine!F15 -> 0 | E154: =Schweine!I15 -> 0 | G154: =Schweine!N15 -> 0 | H154: =Schweine!Q15 -> 0 | I154: 0 | J154: 0 | K154: =Schweine!J15+Schweine!J33+Schweine!J51+Schweine!J69+Schweine!J87 -> 0 | L154: 6.5 | M154: 0
A155: Schweine | C155: =Schweine!A20 -> Stallblatt | D155: =Schweine!B20 -> 2 | I155: Max. Tierzahl | L155: =CONCATENATE("Gesamt ",A145) -> Gesamt Schweine | M155: =SUM(M146:M154) -> 0
A156: Führende Sau m. Ferkel <40 T. | C156: =IF(Schweine!D25=0,0,Schweine!D25) -> 0 | D156: =Schweine!F25 -> 0 | E156: =Schweine!I25 -> 0 | I156: =IF(C156=0,0,IF(SUM(D156:H156)=0,0,MIN(D156:H156))) -> 0
A157: Ferkel >40Tage, < 30 kg | C157: =IF(Schweine!D26=0,0,Schweine!D26) -> 0 | D157: =Schweine!F26 -> 0 | E157: =Schweine!I26 -> 0 | G157: =Schweine!N26 -> 0 | H157: =Schweine!Q26 -> 0 | I157: =IF(C157=0,0,IF(SUM(D157:H157)=0,0,MIN(D157:H157))) -> 0
A158: Mastschweine bis 50 kg | C158: =IF(Schweine!D27=0,0,Schweine!D27) -> 0 | D158: =Schweine!F27 -> 0 | E158: =Schweine!I27 -> 0 | G158: =Schweine!N27 -> 0 | H158: =Schweine!Q27 -> 0 | I158: 0
A159: Mastschweine bis 85 kg | C159: =IF(Schweine!D28=0,0,Schweine!D28) -> 0 | D159: =Schweine!F28 -> 0 | E159: =Schweine!I28 -> 0 | G159: =Schweine!N28 -> 0 | H159: =Schweine!Q28 -> 0 | I159: 0
A160: Mastschweine bis 110 kg | C160: =IF(Schweine!D29=0,0,Schweine!D29) -> 0 | D160: =Schweine!F29 -> 0 | E160: =Schweine!I29 -> 0 | G160: =Schweine!N29 -> 0 | H160: =Schweine!Q29 -> 0 | I160: 0
A161: Mastschweine über 110 kg | C161: =IF(Schweine!D30=0,0,Schweine!D30) -> 0 | D161: =Schweine!F30 -> 0 | E161: =Schweine!I30 -> 0 | G161: =Schweine!N30 -> 0 | H161: =Schweine!Q30 -> 0 | I161: 0
A162: Zuchtsauen | C162: =IF(Schweine!D31=0,0,Schweine!D31) -> 0 | D162: =Schweine!F31 -> 0 | E162: =Schweine!I31 -> 0 | G162: =Schweine!N31 -> 0 | H162: =Schweine!Q31 -> 0 | I162: 0
A163: Eber | C163: =IF(Schweine!D32=0,0,Schweine!D32) -> 0 | D163: =Schweine!F32 -> 0 | E163: =Schweine!I32 -> 0 | G163: =Schweine!N32 -> 0 | H163: =Schweine!Q32 -> 0 | I163: 0
A164: Eber (natürl. Paarung in Buchten) | C164: =IF(Schweine!D33=0,0,Schweine!D33) -> 0 | D164: =Schweine!F33 -> 0 | E164: =Schweine!I33 -> 0 | G164: =Schweine!N33 -> 0 | H164: =Schweine!Q33 -> 0 | I164: 0
A165: Schweine | C165: =Schweine!A38 -> Stallblatt | D165: =Schweine!B38 -> 3 | I165: Max. Tierzahl
A166: Führende Sau m. Ferkel <40 T. | C166: =IF(Schweine!D43=0,0,Schweine!D43) -> 0 | D166: =Schweine!F43 -> 0 | E166: =Schweine!I43 -> 0 | I166: =IF(C166=0,0,IF(SUM(D166:H166)=0,0,MIN(D166:H166))) -> 0
A167: Ferkel >40Tage, < 30 kg | C167: =IF(Schweine!D44=0,0,Schweine!D44) -> 0 | D167: =Schweine!F44 -> 0 | E167: =Schweine!I44 -> 0 | G167: =Schweine!N44 -> 0 | H167: =Schweine!Q44 -> 0 | I167: =IF(C167=0,0,IF(SUM(D167:H167)=0,0,MIN(D167:H167))) -> 0
A168: Mastschweine bis 50 kg | C168: =IF(Schweine!D45=0,0,Schweine!D45) -> 0 | D168: =Schweine!F45 -> 0 | E168: =Schweine!I45 -> 0 | G168: =Schweine!N45 -> 0 | H168: =Schweine!Q45 -> 0 | I168: 0
A169: Mastschweine bis 85 kg | C169: =IF(Schweine!D46=0,0,Schweine!D46) -> 0 | D169: =Schweine!F46 -> 0 | E169: =Schweine!I46 -> 0 | G169: =Schweine!N46 -> 0 | H169: =Schweine!Q46 -> 0 | I169: 0
A170: Mastschweine bis 110 kg | C170: =IF(Schweine!D47=0,0,Schweine!D47) -> 0 | D170: =Schweine!F47 -> 0 | E170: =Schweine!I47 -> 0 | G170: =Schweine!N47 -> 0 | H170: =Schweine!Q47 -> 0 | I170: 0
A171: Mastschweine über 110 kg | C171: =IF(Schweine!D48=0,0,Schweine!D48) -> 0 | D171: =Schweine!F48 -> 0 | E171: =Schweine!I48 -> 0 | G171: =Schweine!N48 -> 0 | H171: =Schweine!Q48 -> 0 | I171: 0
A172: Zuchtsauen | C172: =IF(Schweine!D49=0,0,Schweine!D49) -> 0 | D172: =Schweine!F49 -> 0 | E172: =Schweine!I49 -> 0 | G172: =Schweine!N49 -> 0 | H172: =Schweine!Q49 -> 0 | I172: 0
A173: Eber | C173: =IF(Schweine!D50=0,0,Schweine!D50) -> 0 | D173: =Schweine!F50 -> 0 | E173: =Schweine!I50 -> 0 | G173: =Schweine!N50 -> 0 | H173: =Schweine!Q50 -> 0 | I173: 0
A174: Eber (natürl. Paarung in Buchten) | C174: =IF(Schweine!D51=0,0,Schweine!D51) -> 0 | D174: =Schweine!F51 -> 0 | E174: =Schweine!I51 -> 0 | G174: =Schweine!N51 -> 0 | H174: =Schweine!Q51 -> 0 | I174: 0
A175: Schweine | C175: =Schweine!A56 -> Stallblatt | D175: =Schweine!B56 -> 4 | I175: Max. Tierzahl
A176: Führende Sau m. Ferkel <40 T. | C176: =IF(Schweine!D61=0,0,Schweine!D61) -> 0 | D176: =Schweine!F61 -> 0 | E176: =Schweine!I61 -> 0 | I176: =IF(C176=0,0,IF(SUM(D176:H176)=0,0,MIN(D176:H176))) -> 0
A177: Ferkel >40Tage, < 30 kg | C177: =IF(Schweine!D62=0,0,Schweine!D62) -> 0 | D177: =Schweine!F62 -> 0 | E177: =Schweine!I62 -> 0 | G177: =Schweine!N62 -> 0 | H177: =Schweine!Q62 -> 0 | I177: =IF(C177=0,0,IF(SUM(D177:H177)=0,0,MIN(D177:H177))) -> 0
A178: Mastschweine bis 50 kg | C178: =IF(Schweine!D63=0,0,Schweine!D63) -> 0 | D178: =Schweine!F63 -> 0 | E178: =Schweine!I63 -> 0 | G178: =Schweine!N63 -> 0 | H178: =Schweine!Q63 -> 0 | I178: 0
A179: Mastschweine bis 85 kg | C179: =IF(Schweine!D64=0,0,Schweine!D64) -> 0 | D179: =Schweine!F64 -> 0 | E179: =Schweine!I64 -> 0 | G179: =Schweine!N64 -> 0 | H179: =Schweine!Q64 -> 0 | I179: 0
A180: Mastschweine bis 110 kg | C180: =IF(Schweine!D65=0,0,Schweine!D65) -> 0 | D180: =Schweine!F65 -> 0 | E180: =Schweine!I65 -> 0 | G180: =Schweine!N65 -> 0 | H180: =Schweine!Q65 -> 0 | I180: 0
A181: Mastschweine über 110 kg | C181: =IF(Schweine!D66=0,0,Schweine!D66) -> 0 | D181: =Schweine!F66 -> 0 | E181: =Schweine!I66 -> 0 | G181: =Schweine!N66 -> 0 | H181: =Schweine!Q66 -> 0 | I181: 0
A182: Zuchtsauen | C182: =IF(Schweine!D67=0,0,Schweine!D67) -> 0 | D182: =Schweine!F67 -> 0 | E182: =Schweine!I67 -> 0 | G182: =Schweine!N67 -> 0 | H182: =Schweine!Q67 -> 0 | I182: 0
A183: Eber | C183: =IF(Schweine!D68=0,0,Schweine!D68) -> 0 | D183: =Schweine!F68 -> 0 | E183: =Schweine!I68 -> 0 | G183: =Schweine!N68 -> 0 | H183: =Schweine!Q68 -> 0 | I183: 0
A184: Eber (natürl. Paarung in Buchten) | C184: =IF(Schweine!D69=0,0,Schweine!D69) -> 0 | D184: =Schweine!F69 -> 0 | E184: =Schweine!I69 -> 0 | G184: =Schweine!N69 -> 0 | H184: =Schweine!Q69 -> 0 | I184: 0
A185: Schweine | C185: =Schweine!A74 -> Stallblatt | D185: =Schweine!B74 -> 5 | I185: Max. Tierzahl
A186: Führende Sau m. Ferkel <40 T. | C186: =IF(Schweine!D79=0,0,Schweine!D79) -> 0 | D186: =Schweine!F79 -> 0 | E186: =Schweine!I79 -> 0 | I186: =IF(C186=0,0,IF(SUM(D186:H186)=0,0,MIN(D186:H186))) -> 0
A187: Ferkel >40Tage, < 30 kg | C187: =IF(Schweine!D80=0,0,Schweine!D80) -> 0 | D187: =Schweine!F80 -> 0 | E187: =Schweine!I80 -> 0 | G187: =Schweine!N80 -> 0 | H187: =Schweine!Q80 -> 0 | I187: =IF(C187=0,0,IF(SUM(D187:H187)=0,0,MIN(D187:H187))) -> 0
A188: Mastschweine bis 50 kg | C188: =IF(Schweine!D81=0,0,Schweine!D81) -> 0 | D188: =Schweine!F81 -> 0 | E188: =Schweine!I81 -> 0 | G188: =Schweine!N81 -> 0 | H188: =Schweine!Q81 -> 0 | I188: 0
A189: Mastschweine bis 85 kg | C189: =IF(Schweine!D82=0,0,Schweine!D82) -> 0 | D189: =Schweine!F82 -> 0 | E189: =Schweine!I82 -> 0 | G189: =Schweine!N82 -> 0 | H189: =Schweine!Q82 -> 0 | I189: 0
A190: Mastschweine bis 110 kg | C190: =IF(Schweine!D83=0,0,Schweine!D83) -> 0 | D190: =Schweine!F83 -> 0 | E190: =Schweine!I83 -> 0 | G190: =Schweine!N83 -> 0 | H190: =Schweine!Q83 -> 0 | I190: 0
A191: Mastschweine über 110 kg | C191: =IF(Schweine!D84=0,0,Schweine!D84) -> 0 | D191: =Schweine!F84 -> 0 | E191: =Schweine!I84 -> 0 | G191: =Schweine!N84 -> 0 | H191: =Schweine!Q84 -> 0 | I191: 0
A192: Zuchtsauen | C192: =IF(Schweine!D85=0,0,Schweine!D85) -> 0 | D192: =Schweine!F85 -> 0 | E192: =Schweine!I85 -> 0 | G192: =Schweine!N85 -> 0 | H192: =Schweine!Q85 -> 0 | I192: 0
A193: Eber | C193: =IF(Schweine!D86=0,0,Schweine!D86) -> 0 | D193: =Schweine!F86 -> 0 | E193: =Schweine!I86 -> 0 | G193: =Schweine!N86 -> 0 | H193: =Schweine!Q86 -> 0 | I193: 0
A194: Eber (natürl. Paarung in Buchten) | C194: =IF(Schweine!D87=0,0,Schweine!D87) -> 0 | D194: =Schweine!F87 -> 0 | E194: =Schweine!I87 -> 0 | G194: =Schweine!N87 -> 0 | H194: =Schweine!Q87 -> 0 | I194: 0
A196: 2. Geflügel
A197: Legehennen
A198: Stall | B198: Ebenen | C198: Fläche | D198: Stangen | E198: Futtertöge | F198: Tränken | G198: Nest Sum | H198: Auslauf | I198: Luken | J198: Scharraum | K198: Max. Tierzahl | L198: Gehaltene Tiere | M198: Tiere max. / ha | N198: Kg N max.
A199: =Legehennen!A6 -> 0 | B199: =Legehennen!L6 -> 0 | C199: =Legehennen!P6 -> 0 | D199: =Legehennen!S6 -> 0 | E199: =Legehennen!AR6 -> 3000 | F199: =Legehennen!BB6 -> 3000 | G199: =Legehennen!X6 -> 0 | H199: =Legehennen!AI6 -> 3000 | I199: =Legehennen!AA6 -> 0 | J199: =Legehennen!AD6 -> 0 | K199: =IF(SUM(B199:J199)=0,0,MIN(B199:J199)) -> 0 | L199: =Legehennen!F6 -> 0 | M199: 230 | N199: =L199/M199*$L$2 -> 0
A200: =Legehennen!A7 -> 0 | B200: =Legehennen!L7 -> 0 | C200: =Legehennen!P7 -> 0 | D200: =Legehennen!S7 -> 0 | E200: =Legehennen!AR7 -> 0 | F200: =Legehennen!BB7 -> 0 | G200: =Legehennen!X7 -> 0 | H200: =Legehennen!AI7 -> 0 | I200: =Legehennen!AA7 -> 0 | J200: =Legehennen!AD7 -> 0 | K200: 0 | L200: =Legehennen!F7 -> 0 | M200: 230 | N200: 0
A201: =Legehennen!A8 -> 0 | B201: =Legehennen!L8 -> 0 | C201: =Legehennen!P8 -> 0 | D201: =Legehennen!S8 -> 0 | E201: =Legehennen!AR8 -> 0 | F201: =Legehennen!BB8 -> 0 | G201: =Legehennen!X8 -> 0 | H201: =Legehennen!AI8 -> 0 | I201: =Legehennen!AA8 -> 0 | J201: =Legehennen!AD8 -> 0 | K201: 0 | L201: =Legehennen!F8 -> 0 | M201: 230 | N201: 0
A202: =Legehennen!A9 -> 0 | B202: =Legehennen!L9 -> 0 | C202: =Legehennen!P9 -> 0 | D202: =Legehennen!S9 -> 0 | E202: =Legehennen!AR9 -> 0 | F202: =Legehennen!BB9 -> 0 | G202: =Legehennen!X9 -> 0 | H202: =Legehennen!AI9 -> 0 | I202: =Legehennen!AA9 -> 0 | J202: =Legehennen!AD9 -> 0 | K202: 0 | L202: =Legehennen!F9 -> 0 | M202: 230 | N202: 0
A203: =Legehennen!A10 -> 0 | B203: =Legehennen!L10 -> 0 | C203: =Legehennen!P10 -> 0 | D203: =Legehennen!S10 -> 0 | E203: =Legehennen!AR10 -> 0 | F203: =Legehennen!BB10 -> 0 | G203: =Legehennen!X10 -> 0 | H203: =Legehennen!AI10 -> 0 | I203: =Legehennen!AA10 -> 0 | J203: =Legehennen!AD10 -> 0 | K203: 0 | L203: =Legehennen!F10 -> 0 | M203: 230 | N203: 0
A204: =Legehennen!A11 -> 0 | B204: =Legehennen!L11 -> 0 | C204: =Legehennen!P11 -> 0 | D204: =Legehennen!S11 -> 0 | E204: =Legehennen!AR11 -> 0 | F204: =Legehennen!BB11 -> 0 | G204: =Legehennen!X11 -> 0 | H204: =Legehennen!AI11 -> 0 | I204: =Legehennen!AA11 -> 0 | J204: =Legehennen!AD11 -> 0 | K204: 0 | L204: =Legehennen!F11 -> 0 | M204: 230 | N204: 0
A205: =Legehennen!A12 -> 0 | B205: =Legehennen!L12 -> 0 | C205: =Legehennen!P12 -> 0 | D205: =Legehennen!S12 -> 0 | E205: =Legehennen!AR12 -> 0 | F205: =Legehennen!BB12 -> 0 | G205: =Legehennen!X12 -> 0 | H205: =Legehennen!AI12 -> 0 | I205: =Legehennen!AA12 -> 0 | J205: =Legehennen!AD12 -> 0 | K205: 0 | L205: =Legehennen!F12 -> 0 | M205: 230 | N205: 0
... 113 more rows

Sheet Dropdown (hidden)
A1: Status | C1: Zucht | E1: Einheit | G1: Tierart
A2: Ökologisch | C2: Natursprung | E2: dt | G2: Rinder
A3: In Umstellung | C3: Künstliche Besamung | E3: m3 | G3: Pferde, Kl. Widerkäuer
A4: 1. Umstellungsjahr- Nicht ökologisch | E4: Rundballen | G4: Schweine
A5: Nicht ökologisch | E5: Quaderballen | G5: Legehennen
E6: Stk. | G6: Masthähnchen
E7: ha | G7: Mastputen
G8: sonst. Mastgeflügel
